Workbook

Sheet Content
C2: Content
F3: Colour Codes | K3: File Name: | M3: =IFERROR(File_name(),"") -> 
C4: To Do | G4: Inputs | I4: 1234567890
G5: Section Titles | I5: TITLE ROW | K5: Last Save Date | M5: =IFERROR(lastsaved(),"") -> 
C6: Control Page | G6: Sum Column | I6: 1000000000
D7: Scenario Summary | G7: True or 1 | I7: =1=1 -> TRUE | K7: Last Save By | M7: =IFERROR(last_save_by(),"") -> 
D8: Sources & Uses | G8: False or 0 | I8: =1=2 -> FALSE
G9: Other Sheet Links | I9: |||||||||||||||||||
C10: Inputs
D11: Key Dates
D12: Financing Inputs
D13: Constants
C15: Operation EBITDA
D16: Timeline
D17: Capacity and Generation
D18: CAPEX
D19: O&M
D20: Revenue
D21: Operating Cash Flow
D22: Income Tax & Depreciation
C24: Financing
D25: Timeline
D26: Summary Sources and Uses
D27: Debt-sizing from DSCR
D28: Funding requirements and sources during construction
D29: Debt Balance
D30: DSRA
D31: Taxes
D32: Cash-Flow Waterfall
D33: Graphs
C35: Audit sheet
C37: Debt size-CFADS chart
C39: Circular-reference ex

Sheet Exercises
B3: Debt Structuring Exercises
C5: Debt Sizing with DSCR or Debt/Capital
D6: Note: Press Circular Reference Button Each Time
C8: Understand Sculpting vs Annuity
D9: Use Debt to Capital
D10: Note: Press Circular Reference
C12: Size Debt with Different Scenarios
C14: Change the DSRA, Debt Tenure etc.
B16: LD Exercises
B20: Risk Analysis Exercises
C21: Use Base Case and then Press the button to fix the debt
C22: Run Downside cases
C23: Use Cash Sweep
C26: Constant DSCR from LLCR
C27: Max DSCR from Option 3
C28: Check Code Number
C30: DSCR from Future Debt Service
C31: Sum Future Debt Service
C33: Note: Work Through Sources and Uses with Fixed Debt to Captial First
C37: 1. More efficient Copy and Paste
C38: 2. Actuals in Project Finance
C39: 3. LD's in Project Finance
C42: Put in Solar Model

Sheet Diagram
W1: P Success
R2: Costs | U2: Desk Study | W2: 0.5
U3: Testing Monkeys | W3: 0.3 | AA3: ENRON
U4: Testing Humans Stage 1 | W4: 0.2
U5: Testing Humans Stage 2 | W5: 0.6 | AA5: Developer Fee | AC5: ='Operating Inputs'!H29 -> 0.03
U6: Final Probability | W6: 0.2 | AA6: =AA5&TEXT(AC5,"#0.00%") -> Developer Fee 3.00%
G7: LD Penalities | I7: PPA Revenues | U7: Value | W7: =AC8/W6 -> 500000
I8: PPA Price | J8: ='Control Page'!T12 -> 51.19163427 | U8: Multiple | W8: =W7/AC8 -> 5 | AA8: Development Cost | AC8: ='Operating Inputs'!H27 -> 100000
I9: Cap Fac | J9: ='Control Page'!T10 -> 0.606 | AA9: =AA8&TEXT(AC8,"###,###") -> Development Cost 100,000
I10: Merchant | J10: ='Control Page'!T14 -> 51.05405405 | R10: Costs
AA11: EPC Fee | AB11: ='Control Page'!$T$16 -> 1870 | AC11: per kW
R12: Profit | AA12: =AA11&TEXT(AB11,"###,###")&AC11 -> EPC Fee 1,870 per kW
B13: Reimbursible Development | E13: ='Financing Inputs'!$F$20 -> 0.9
B14: Debt to Capital | E14: ='Control Page'!I19 -> 0.8 | AA14: LD Received | AC14: ='Operation Model'!K96 -> 0
P15: EPC Fee | AA15: =AA14&TEXT(AC14,"###,###") -> LD Received
AA17: LD Paid (Incl IDC)
L19: Dividends
AA20: Sponsor Performance
AA21: Cash Equity IRR | AC21: ='Control Page'!E21 -> 0.1581948578
AA22: Equity IRR with Econ Cost for Dev Fee | AC22: ='Financing Model'!I259 -> 0.1366752207
O23: Profits | AA23: Equity IRR with Econ Cost for Dev & EPC Fee | AC23: ='Financing Model'!I259 -> 0.1366752207
AA25: =AA20&CHAR(10)&AA21&TEXT(AC21,"##.00%")&CHAR(10)&AA22&TEXT(AC22,"##.00%")&CHAR(10)&AA23&TEXT(AC23,"##.00%") -> Sponsor Performance Cash Equity IRR 15.82% Equity IRR with Econ Cost for Dev Fee 13.67% Equity IRR with Econ Cost for Dev & EPC Fee 13.67%
O26: Costs
Q28: Soureces and Uses | AA28: SPV
Q29: Cap Exp and Development | AA29: Project IRR Pre-tax | AC29: ='Operation Model'!G52 -> 0.07527823746
AA30: Project IRR Post-tax | AC30: ='Operation Model'!G71 -> 0.07527823746
AA32: =AA28&CHAR(10)&AA29&TEXT(AC29,"##.00%")&CHAR(10)&AA30&TEXT(AC30,"##.00%") -> SPV Project IRR Pre-tax 7.53% Project IRR Post-tax 7.53%
J63: 7

Sheet Control Page
S1: =initialise() -> 0
D2: Scenario No. | E2: 4 | Q2: ='Audit sheet'!F4 -> 
C4: Scenario Summary
E5: Capex % | F5: PPA Price % | G5: Cap Fac % | H5: Constr Mnth | I5: Merchant Price
C6: 1 | D6: Base Case (P50) | E6: 1 | F6: 1 | G6: 1 | H6: 36 | I6: 1 | J6: =INDEX('Operating Inputs'!$D$69:$D$71,I6) -> Base Merchant | R6: Debt Sizing
C7: 2 | D7: P90 Case (1 in 10 yrs) | E7: 1 | F7: 1 | G7: 0.85 | H7: 36 | I7: 1 | J7: =INDEX('Operating Inputs'!$D$69:$D$71,I7) -> Base Merchant
C8: 3 | D8: P99 Case (1 in 100 yrs) | E8: 1 | F8: 1 | G8: 0.75 | H8: 36 | I8: 1 | J8: =INDEX('Operating Inputs'!$D$69:$D$71,I8) -> Base Merchant
C9: 4 | D9: Cap Exp Increase | E9: 1.1 | F9: 1 | G9: 1 | H9: 36 | I9: 1 | J9: =INDEX('Operating Inputs'!$D$69:$D$71,I9) -> Base Merchant
C10: 5 | D10: Delay sensitivity | E10: 1 | F10: 1 | G10: 1 | H10: 50 | I10: 1 | J10: =INDEX('Operating Inputs'!$D$69:$D$71,I10) -> Base Merchant | R10: Capactity Factor | T10: ='Operating Inputs'!P87*G15 -> 0.606
C11: 6 | D11: Downside case | E11: 1.1 | F11: 0.9 | G11: 0.75 | H11: 50 | I11: 2 | J11: =INDEX('Operating Inputs'!$D$69:$D$71,I11) -> Low Merchant
C12: 7 | D12: Merchant Price sensitivity | E12: 1 | F12: 1 | G12: 1 | H12: 36 | I12: 2 | J12: =INDEX('Operating Inputs'!$D$69:$D$71,I12) -> Low Merchant | R12: PPA Price | T12: ='Operating Inputs'!H52 -> 51.19163427
C13: 8 | D13: Up-side case | E13: 1 | F13: 1 | G13: 1.1 | H13: 36 | I13: 3 | J13: =INDEX('Operating Inputs'!$D$69:$D$71,I13) -> High Merchant
R14: Merchant Price Avg | T14: =AVERAGE('Operating Inputs'!73:73) -> 51.05405405
D15: Sensitivity Applied | E15: =E36/100 -> 1.1 | F15: =F36/100 -> 1 | G15: =G36/100 -> 1.01 | H15: =H36 -> 36
R16: Cost/kW | T16: ='Operating Inputs'!H33*E15 -> 1870
C17: Project Returns
D18: Pre-tax Project IRR | E18: ='Operation Model'!G52 -> 0.07527823746 | G18: DSCR Target | I18: ='Financing Inputs'!F5 -> 1.8
D19: Post-tax Project IRR | E19: ='Operation Model'!$G$71 -> 0.07527823746 | G19: Debt to Capital Target | I19: ='Financing Inputs'!F6 -> 0.8
D20: Debt IRR | E20: ='Financing Model'!I271 -> 0.02835613191
D21: Equity IRR w/o EBL | E21: ='Financing Model'!$I$250 -> 0.1581948578 | G21: Cash Sweep % | I21: ='Financing Inputs'!$F$56 -> 0
G22: Debt Tenure | I22: ='Financing Inputs'!F28 -> 17
C23: Uses of Funds | G23: Repayment Type
D24: Cap Exp & Development | E24: ='Financing Model'!I14+'Financing Model'!I15+'Financing Model'!I16 -> 3942200 | G24: Credit Spread | I24: ='Financing Inputs'!I39 -> 0
D25: Development Cost Reimburse | E25: ='Financing Model'!I15 -> 90000 | F25: ='Financing Inputs'!F20 -> 0.9
D26: Net LD Cost | E26: ='Financing Model'!I18+'Financing Model'!I19 -> 0 | G26: DSRA Months | I26: ='Financing Inputs'!$F$47 -> 0
D27: IDC and Other | E27: ='Financing Model'!I21+'Financing Model'!I22+'Financing Model'!I23+'Financing Model'!I24 -> 206677.6994 | L27: Pro Rata/Equity Up Front | O27: ='Financing Inputs'!F15 -> 0 | P27: =IF(O27=0,"Pro Rata",IF(O27=1,"Up Front","Mixed")) -> Pro Rata
D28: Total Uses | E28: ='Financing Model'!I25 -> 4258209.02
C29: Sources of Funds | H29: DSCR | I29: ='Financing Model'!I276 -> 1.462434479 | L29: Target Equity IRR | N29: ='Operating Inputs'!H53 -> 0.1
F30: Debt/Capital Ratio | H30: LLCR | I30: ='Financing Model'!I287 -> 1.443666811 | L30: PPA Price | N30: ='Operating Inputs'!H52 -> 51.19163427
D31: Total Debt | E31: ='Financing Model'!$I$30 -> 3406567.216 | F31: =E31/E33 -> 0.8 | H31: PLCR | I31: ='Financing Model'!I282 -> 2.367350132
D32: Total Equity | E32: ='Financing Model'!$I$31 -> 851641.8041 | F32: =E32/E33 -> 0.2
D33: Total | E33: =SUM(E31:E32) -> 4258209.02 | F33: =SUM(F31:F32) -> 1
D36: Cap Exp Increase | E36: 110 | F36: 100 | G36: 101 | H36: 36 | I36: 1 | J36: =INDEX('Operating Inputs'!$D$69:$D$71,I36) -> Base Merchant
D37: =INDEX(D6:D13,$E$2) -> Cap Exp Increase | E37: 1.1 | F37: 1 | G37: 1 | H37: 36 | I37: 1 | J37: Base Merchant
H48: 36
H68: 1
H87: 1

Sheet Operating Inputs
C2: Key Dates
B4: General and Macro-Economic
D6: Model Start Date | G6: Date | H6: 2020-03-01 | I6: =D6 -> Model Start Date
D7: Development Period | G7: months | H7: 11
D8: FC date | G8: date | H8: =EDATE(H6,H7) -> 2021-02-01 | I8: =D8 -> FC date
D9: Construction Period | G9: months | H9: ='Control Page'!H36 -> 36
D10: COD date | G10: date | H10: =EDATE(H8,H9) -> 2024-02-01 | I10: =D10 -> COD date
D11: Operation period | G11: years | H11: 35
D12: Decommisioning date | G12: date | H12: =EDATE(H10,H11*Months_per_year) -> 2059-02-01 | I12: =D12 -> Decommisioning date
E14: Months per period pre-COD | G14: months | H14: 1
E15: Months per period post-COD | G15: months | H15: 6
E16: Total months pre-COD | G16: months | H16: =SUM(H9,H7) -> 47
C18: Macro-economic Inputs
D20: Inflation start-date | G20: date | H20: 2022-01-01 | I20: =D20 -> Inflation start-date
E21: Year | K21: 2020 | L21: 2021 | M21: 2022 | N21: 2023 | O21: 2024 | P21: 2025 | Q21: 2026 | R21: 2027 | S21: 2028 | T21: 2029 | U21: 2030 | V21: 2031 | W21: 2032 | X21: 2033 | Y21: 2034 | Z21: 2035 | AA21: 2036 | AB21: 2037 | AC21: 2038 | AD21: 2039 | AE21: 2040
E22: USD Inflation | G22: % | K22: 0.015 | L22: 0.015 | M22: 0.015 | N22: 0.015 | O22: 0.015 | P22: 0.015 | Q22: 0.015 | R22: 0.015 | S22: 0.015 | T22: 0.015 | U22: 0.015 | V22: 0.015 | W22: 0.015 | X22: 0.015 | Y22: 0.015 | Z22: 0.015 | AA22: 0.015 | AB22: 0.015 | AC22: 0.015 | AD22: 0.015 | AE22: 0.015
B24: Capital Expenditures
E26: Capacity | G26: MW | H26: 2000
E27: Development Cost | G27: KUSD | H27: =J27*1000 -> 100000 | J27: 100
E28: Development S-Curve | G28: % | H28: =1/H7 -> 0.09090909091
E29: Development Fee Percentage of Project Cost | G29: % | H29: =J29/100 -> 0.03 | J29: 3
E30: Development Fee Multiple of Dev Cost | G30: x | H30: 3
E31: Apply Percentage | G31: Flag | H31: TRUE
E33: Capital Expenditure per kW | G33: USD/kw | H33: 1700
E34: EPC Fees | G34: % of CAPEX | H34: =J34/100 -> 0.03 | J34: 3
E35: S-Curve | G35: % | H35: =1/H9 -> 0.02777777778
E37: Target COD Date | G37: Date | H37: 2024-02-01
E38: Apply LD | G38: Flag | H38: TRUE
E39: Apply LD for IDC | G39: Flag | H39: TRUE
E40: LD Paid by EPC Back-to Back | G40: USD/MW-day | H40: 100
E42: Middle Period | G42: Months | H42: 18
E43: Standard Deviaton | G43: Months | H43: 6
K45: =Model_Start_Date -> 2020-03-01 | L45: =FC_date -> 2021-02-01 | M45: =EDATE(L45,1) -> 2021-03-01 | N45: 2021-04-01 | O45: 2021-05-01 | P45: 2021-06-01 | Q45: 2021-07-01 | R45: 2021-08-01 | S45: 2021-09-01 | T45: 2021-10-01 | U45: 2021-11-01 | V45: 2021-12-01 | W45: 2022-01-01 | X45: 2022-02-01 | Y45: 2022-03-01 | Z45: 2022-04-01 | AA45: 2022-05-01 | AB45: 2022-06-01 | AC45: 2022-07-01 | AD45: 2022-08-01 | AE45: 2022-09-01 | AF45: 2022-10-01 | AG45: 2022-11-01 | AH45: 2022-12-01 | AI45: 2023-01-01 | AJ45: 2023-02-01 | AK45: 2023-03-01 | AL45: 2023-04-01 | AM45: 2023-05-01 | AN45: 2023-06-01 | AO45: 2023-07-01 | AP45: 2023-08-01 | AQ45: 2023-09-01 | AR45: 2023-10-01 | AS45: =EDATE(AR45,1) -> 2023-11-01 | AT45: 2023-12-01 | AU45: 2024-01-01 | AV45: 2024-02-01 | AW45: 2024-03-01 | AX45: 2024-04-01 | AY45: 2024-05-01 | AZ45: 2024-06-01 | BA45: 2024-07-01 | BB45: 2024-08-01 | BC45: 2024-09-01 | BD45: 2024-10-01 | BE45: 2024-11-01 | BF45: 2024-12-01 | BG45: 2025-01-01 | BH45: 2025-02-01 | BI45: 2025-03-01 | BJ45: 2025-04-01 | BK45: 2025-05-01 | BL45: 2025-06-01 | BM45: 2025-07-01 | BN45: 2025-08-01 | BO45: 2025-09-01 | BP45: 2025-10-01 | BQ45: 2025-11-01 | BR45: 2025-12-01 | BS45: 2026-01-01 | BT45: 2026-02-01 | BU45: 2026-03-01
D46: Construction Period | L46: 1 | M46: 2 | N46: 3 | O46: 4 | P46: 5 | Q46: 6 | R46: 7 | S46: 8 | T46: 9 | U46: 10 | V46: 11 | W46: 12 | X46: 13 | Y46: 14 | Z46: 15 | AA46: 16 | AB46: 17 | AC46: 18 | AD46: 19 | AE46: 20 | AF46: 21 | AG46: 22 | AH46: 23 | AI46: 24 | AJ46: 25 | AK46: 26 | AL46: 27 | AM46: 28 | AN46: 29 | AO46: 30 | AP46: 31 | AQ46: 32 | AR46: 33 | AS46: 34 | AT46: 35
D47: Normal S-curve | H47: ='Operating Inputs'!H9/2 -> 18 | I47: 6 | J47: =SUM(L47:AT47) -> 0.99650018 | L47: =_xlfn.NORM.DIST(L46,$H47,$I47, 0) -> 0.001201016627 | M47: 0.001899331004 | N47: 0.002921383416 | O47: 0.004370314849 | P47: 0.006358770584 | Q47: 0.008998494419 | R47: 0.01238519393 | S47: 0.01657952313 | T47: 0.02158626594 | U47: 0.02733501245 | V47: 0.03366644759 | W47: 0.04032845409 | X47: 0.04698531257 | Y47: 0.05324133425 | Z47: 0.05867755446 | AA47: 0.06289720462 | AB47: 0.06557328602 | AC47: 0.06649038007 | AD47: 0.06557328602 | AE47: 0.06289720462 | AF47: 0.05867755446 | AG47: 0.05324133425 | AH47: 0.04698531257 | AI47: 0.04032845409 | AJ47: 0.03366644759 | AK47: 0.02733501245 | AL47: 0.02158626594 | AM47: 0.01657952313 | AN47: 0.01238519393 | AO47: 0.008998494419 | AP47: 0.006358770584 | AQ47: 0.004370314849 | AR47: 0.002921383416 | AS47: 0.001899331004 | AT47: 0.001201016627
D48: Final S-curve | G48: % | J48: =SUM(L48:AT48) -> 1 | L48: =L47/$J47 -> 0.001205234732 | M48: 0.001906001667 | N48: 0.002931643641 | O48: 0.004385663883 | P48: 0.006381103298 | Q48: 0.009030098137 | R48: 0.01242869211 | S48: 0.01663775227 | T48: 0.02166207932 | U48: 0.02743101607 | V48: 0.03378468792 | W48: 0.04047009213 | X48: 0.04715033024 | Y48: 0.05342832377 | Z48: 0.05888363659 | AA48: 0.06311810663 | AB48: 0.06580358673 | AC48: 0.06672390172 | AD48: 0.06580358673 | AE48: 0.06311810663 | AF48: 0.05888363659 | AG48: 0.05342832377 | AH48: 0.04715033024 | AI48: 0.04047009213 | AJ48: 0.03378468792 | AK48: 0.02743101607 | AL48: 0.02166207932 | AM48: 0.01663775227 | AN48: 0.01242869211 | AO48: 0.009030098137 | AP48: 0.006381103298 | AQ48: 0.004385663883 | AR48: 0.002931643641 | AS48: 0.001906001667 | AT48: 0.001205234732
B50: Pricing - PPA and Merchant
E52: PPA price | G52: USD/mwh | H52: 51.19163427
E53: Target Equity IRR for Setting PPA | G53: % | H53: 0.1 | K53: 10
E55: PPA inflation | G55: switch | H55: TRUE
E56: PPA term | G56: years | H56: 20
E57: PPA expiry date | G57: date | H57: =EDATE(COD_date, H56*Months_per_year) -> 2044-02-01
E58: % PPA | G58: % | H58: 0.75
E60: Target Start in PPA | G60: Date | H60: 2024-02-01
E61: LD Penalty for Delay | G61: USD/MW-day | H61: 100
K62: 2020 | L62: 2021 | M62: 2022 | N62: 2023 | O62: 2024 | P62: 2025 | Q62: 2026 | R62: 2027 | S62: 2028 | T62: 2029 | U62: 2030 | V62: 2031
E63: Merchant Price curve | G63: USD/mwh | K63: ='Operating Inputs'!I73 -> 40 | L63: ='Operating Inputs'!J73 -> 41 | M63: ='Operating Inputs'!K73 -> 42 | N63: ='Operating Inputs'!L73 -> 43 | O63: ='Operating Inputs'!M73 -> 44 | P63: ='Operating Inputs'!N73 -> 45 | Q63: ='Operating Inputs'!O73 -> 46 | R63: ='Operating Inputs'!P73 -> 47 | S63: ='Operating Inputs'!Q73 -> 48 | T63: ='Operating Inputs'!R73 -> 49 | U63: ='Operating Inputs'!S73 -> 50 | V63: ='Operating Inputs'!T73 -> 51
K65: 0 | L65: 8 | M65: 10 | N65: 12 | O65: 14 | P65: 16
E66: PPA Percent | L66: 1 | M66: 0.8 | N66: 0.6 | O66: 0.4 | P66: 0
I68: 2020 | J68: 2021 | K68: 2022 | L68: 2023 | M68: 2024 | N68: 2025 | O68: 2026 | P68: 2027 | Q68: 2028 | R68: 2029 | S68: 2030 | T68: 2031 | U68: 2032 | V68: 2033 | W68: 2034 | X68: 2035 | Y68: 2036 | Z68: 2037 | AA68: 2038 | AB68: 2039 | AC68: 2040 | AD68: 2041 | AE68: 2042 | AF68: 2043 | AG68: 2044 | AH68: 2045 | AI68: 2046 | AJ68: 2047 | AK68: 2048 | AL68: 2049 | AM68: 2050 | AN68: 2051 | AO68: 2052 | AP68: 2053 | AQ68: 2054 | AR68: 2055 | AS68: 2056
D69: Base Merchant | I69: 40 | J69: 41 | K69: 42 | L69: 43 | M69: 44 | N69: 45 | O69: 46 | P69: 47 | Q69: 48 | R69: 49 | S69: 50 | T69: 51 | U69: 51 | V69: 51 | W69: 51 | X69: 53 | Y69: 53 | Z69: 53 | AA69: 53 | AB69: 53 | AC69: 53 | AD69: 53 | AE69: 53 | AF69: 53 | AG69: 53 | AH69: 55 | AI69: 55 | AJ69: 55 | AK69: 55 | AL69: 55 | AM69: 55 | AN69: 55 | AO69: 55 | AP69: 55 | AQ69: 55 | AR69: 55 | AS69: 55
D70: Low Merchant | I70: 40 | J70: 35 | K70: 40 | L70: 40 | M70: 36 | N70: 36 | O70: 40 | P70: 42 | Q70: 42 | R70: 42 | S70: 42 | T70: 42 | U70: 42 | V70: 42 | W70: 42 | X70: 42 | Y70: 42 | Z70: 42 | AA70: 42 | AB70: 42 | AC70: 42 | AD70: 42 | AE70: 42 | AF70: 43 | AG70: 43 | AH70: 43 | AI70: 43 | AJ70: 45 | AK70: 45 | AL70: 45 | AM70: 45 | AN70: 45 | AO70: 45 | AP70: 45 | AQ70: 45 | AR70: 45 | AS70: 45
D71: High Merchant | I71: 55 | J71: 55 | K71: 55 | L71: 55 | M71: 55 | N71: 55 | O71: 55 | P71: 55 | Q71: 55 | R71: 55 | S71: 55 | T71: 55 | U71: 55 | V71: 55 | W71: 55 | X71: 55 | Y71: 55 | Z71: 55 | AA71: 55 | AB71: 55 | AC71: 55 | AD71: 55 | AE71: 55 | AF71: 55 | AG71: 55 | AH71: 55 | AI71: 55 | AJ71: 55 | AK71: 55 | AL71: 55 | AM71: 55 | AN71: 55 | AO71: 55 | AP71: 55 | AQ71: 55 | AR71: 55 | AS71: 55
D73: Applied case | I73: =INDEX(I69:I71,'Control Page'!$I$36) -> 40 | J73: =INDEX(J69:J71,'Control Page'!$I$36) -> 41 | K73: =INDEX(K69:K71,'Control Page'!$I$36) -> 42 | L73: =INDEX(L69:L71,'Control Page'!$I$36) -> 43 | M73: =INDEX(M69:M71,'Control Page'!$I$36) -> 44 | N73: =INDEX(N69:N71,'Control Page'!$I$36) -> 45 | O73: =INDEX(O69:O71,'Control Page'!$I$36) -> 46 | P73: =INDEX(P69:P71,'Control Page'!$I$36) -> 47 | Q73: =INDEX(Q69:Q71,'Control Page'!$I$36) -> 48 | R73: =INDEX(R69:R71,'Control Page'!$I$36) -> 49 | S73: =INDEX(S69:S71,'Control Page'!$I$36) -> 50 | T73: =INDEX(T69:T71,'Control Page'!$I$36) -> 51 | U73: =INDEX(U69:U71,'Control Page'!$I$36) -> 51 | V73: =INDEX(V69:V71,'Control Page'!$I$36) -> 51 | W73: =INDEX(W69:W71,'Control Page'!$I$36) -> 51 | X73: =INDEX(X69:X71,'Control Page'!$I$36) -> 53 | Y73: =INDEX(Y69:Y71,'Control Page'!$I$36) -> 53 | Z73: =INDEX(Z69:Z71,'Control Page'!$I$36) -> 53 | AA73: =INDEX(AA69:AA71,'Control Page'!$I$36) -> 53 | AB73: =INDEX(AB69:AB71,'Control Page'!$I$36) -> 53 | AC73: =INDEX(AC69:AC71,'Control Page'!$I$36) -> 53 | AD73: =INDEX(AD69:AD71,'Control Page'!$I$36) -> 53 | AE73: =INDEX(AE69:AE71,'Control Page'!$I$36) -> 53 | AF73: =INDEX(AF69:AF71,'Control Page'!$I$36) -> 53 | AG73: =INDEX(AG69:AG71,'Control Page'!$I$36) -> 53 | AH73: =INDEX(AH69:AH71,'Control Page'!$I$36) -> 55 | AI73: =INDEX(AI69:AI71,'Control Page'!$I$36) -> 55 | AJ73: =INDEX(AJ69:AJ71,'Control Page'!$I$36) -> 55 | AK73: =INDEX(AK69:AK71,'Control Page'!$I$36) -> 55 | AL73: =INDEX(AL69:AL71,'Control Page'!$I$36) -> 55 | AM73: =INDEX(AM69:AM71,'Control Page'!$I$36) -> 55 | AN73: =INDEX(AN69:AN71,'Control Page'!$I$36) -> 55 | AO73: =INDEX(AO69:AO71,'Control Page'!$I$36) -> 55 | AP73: =INDEX(AP69:AP71,'Control Page'!$I$36) -> 55 | AQ73: =INDEX(AQ69:AQ71,'Control Page'!$I$36) -> 55 | AR73: =INDEX(AR69:AR71,'Control Page'!$I$36) -> 55 | AS73: =INDEX(AS69:AS71,'Control Page'!$I$36) -> 55
B77: O&M Inputs
E79: Turbine O&M Variable - Real | G79: usd/mwh | H79: 2
E80: Turbine O&M Fixed - Real | G80: usd/kw year | H80: 40
E81: Other | G81: KUSD/period | H81: 10000
E83: P50 Capacity Factor
E84: P90 Capacity Fator
D86: Date | K86: =Model_Start_Date -> 2020-03-01 | L86: =COD_date -> 2024-02-01 | M86: =EDATE(L86, 6) -> 2024-08-01 | N86: =EDATE(M86, 6) -> 2025-02-01 | O86: =EDATE(N86, 60) -> 2030-02-01 | P86: =EDATE(O86, 60) -> 2035-02-01
D87: Capacity Factor | L87: 0.55 | M87: 0.58 | N87: 0.6 | O87: 0.6 | P87: 0.6
D90: Depreciation and Taxes
E91: Depreciation life | G91: years | H91: 15.25
E92: Tax rate | G92: % | H92: 0
D95: Circular Method
E96: 1. Copy and Paste Method
E97: 2. Parallel Model Method
G99: 2
C129: Constants
D130: Months per year | H130: 12 | I130: =D130 -> Months per year
D131: Hours per day | H131: 24 | I131: =D131 -> Hours per day
D132: Days in Year | H132: 365 | I132: =D132 -> Days in Year
D133: Quarters per Year | H133: 4 | I133: Quarters per Year
D134: Months per Quarter | H134: 3 | I134: Months per Quarter
D135: Hours per years | H135: 8760 | I135: Hours per years
D136: Thousand | H136: 1000 | I136: Thousand
D137: Million | H137: 1000000 | I137: Million

Sheet Financing Inputs
B2: Financing Inputs
B4: Debt-sizing
C5: Minimum DSCR | F5: =I5/100 -> 1.8 | I5: 180
C6: Maximum Debt-capital ratio | E6: % | F6: =I6/100 -> 0.8 | I6: 80
C8: Apply Minimum DSCR | F8: =F12=1 -> FALSE
C9: Apply Debt to Capital | F9: =F12=2 -> TRUE
C10: Apply Minimum DSCR/Debt to Capital | F10: =F12=3 -> FALSE
C12: Code | F12: 2
B14: Debt-funding
C15: Upfront equity financing | E15: % | F15: =H15/100 -> 0 | H15: 0
C16: Equity Bridge Loan | E16: switch | F16: FALSE
C17: Start of availability | E17: date | F17: =FC_date -> 2021-02-01 | G17: =C17 -> Start of availability
C18: End of availability | E18: date | F18: =EDATE(COD_date,-'Operating Inputs'!H14) -> 2024-01-01 | G18: =C18 -> End of availability
C20: Pct of Development Cost Reimbursible by lender | E20: % | F20: =I20/100 -> 0.9 | I20: 90
C21: Date of Development Reimbursment | E21: Date | F21: =FC_date -> 2021-02-01
C23: Percent of Development Fee Reimbursable | E23: % | F23: =I23/100 -> 0.85 | I23: 85
C24: Percent of EPC Fee Reimbursable | E24: % | F24: =I24/100 -> 1 | I24: 100
B26: Debt-repayment | I26: 1 | J26: Flat
C27: Debt repayment Option | E27: code# | F27: 3 | I27: 2 | J27: Annuity
C28: Tenor | E28: years | F28: 17 | I28: 3 | J28: Sculpted
C29: Grace period | E29: months | F29: 6 | I29: 4 | J29: Fixed sculpted
C30: Repayment start date | E30: date | F30: =EDATE(COD_date,F29) -> 2024-08-01 | G30: =C30 -> Repayment start date
C31: Maturity date | E31: date | F31: =EDATE(COD_date,F28*Months_per_year) -> 2041-02-01 | G31: =C31 -> Maturity date
B33: Interest rate & Fees
C34: Base-rate | E34: % p.a. | F34: 0.026
C36: Credit-spreads
C37: Step-up year | K37: 5 | L37: 5
C38: Step-up date | I38: =Model_Start_Date -> 2020-03-01 | J38: =COD_date -> 2024-02-01 | K38: =EDATE(J38,K37*Months_per_year) -> 2029-02-01 | L38: =EDATE(K38,L37*Months_per_year) -> 2034-02-01
C39: Step-up rate | E39: % | I39: 0 | J39: 0 | K39: 0 | L39: 0
C40: Step-up rate | I40: 0.014 | J40: 0.016 | K40: 0.0175 | L40: 0.018
C42: Floating Interest Rate
C43: Up-front Fee | E43: % | F43: 0.01 | H43: 0.01
C44: Commitment Fee | E44: % p.a | F44: 0.007 | H44: 0.007
B46: DSRA
C47: DSRA months | E47: months | F47: =H47 -> 0 | H47: 0
C48: DSRA Periods | E48: # | F48: =F47/'Operating Inputs'!H15 -> 0
C49: Cash funded | E49: switch | F49: FALSE
C50: Initial DSRA funded | E50: date | F50: =EDATE(COD_date, -1) -> 2024-01-01
C51: LC Fee | E51: % | F51: 0
B53: Cash Sweep
C54: Start date | E54: date | F54: =COD_date -> 2024-02-01
C55: End Date | E55: date | F55: =Decommisioning_date -> 2059-02-01
C56: Cash Sweep % | E56: % | F56: =H56/100 -> 0 | H56: 0
G87: 3

Sheet Operation Model
F1: Units | G1: Driver | H1: Description | I1: Driver | J1: Description | K1: Sum | L1: Test | M1: Initial
B2: Timeline
C3: Period no. | N3: 1 | O3: 2 | P3: 3 | Q3: 4 | R3: 5 | S3: 6 | T3: 7 | U3: 8 | V3: 9 | W3: 10 | X3: 11 | Y3: 12 | Z3: 13 | AA3: 14 | AB3: 15 | AC3: 16 | AD3: 17 | AE3: 18 | AF3: 19 | AG3: 20 | AH3: 21 | AI3: 22 | AJ3: 23 | AK3: 24 | AL3: 25 | AM3: 26 | AN3: 27 | AO3: 28 | AP3: 29 | AQ3: 30 | AR3: 31 | AS3: 32 | AT3: 33 | AU3: 34 | AV3: 35 | AW3: 36 | AX3: 37 | AY3: 38 | AZ3: 39 | BA3: 40 | BB3: 41 | BC3: 42 | BD3: 43 | BE3: 44 | BF3: 45 | BG3: 46 | BH3: 47 | BI3: 48 | BJ3: 49 | BK3: 50 | BL3: 51 | BM3: 52 | BN3: 53 | BO3: 54 | BP3: 55 | BQ3: 56 | BR3: 57 | BS3: 58 | BT3: 59 | BU3: 60 | BV3: 61 | BW3: 62 | BX3: 63 | BY3: 64 | BZ3: 65 | CA3: 66 | CB3: 67 | CC3: 68 | CD3: 69 | CE3: 70 | CF3: 71 | CG3: 72 | CH3: 73 | CI3: 74 | CJ3: 75 | CK3: 76 | CL3: 77 | CM3: 78 | CN3: 79 | CO3: 80 | CP3: 81 | CQ3: 82 | CR3: 83 | CS3: 84 | CT3: 85 | CU3: 86 | CV3: 87 | CW3: 88 | CX3: 89 | CY3: 90 | CZ3: 91 | DA3: 92 | DB3: 93 | DC3: 94 | DD3: 95 | DE3: 96 | DF3: 97 | DG3: 98 | DH3: 99 | DI3: 100 | DJ3: 101 | DK3: 102 | DL3: 103 | DM3: 104 | DN3: 105 | DO3: 106 | DP3: 107 | DQ3: 108 | DR3: 109 | DS3: 110 | DT3: 111 | DU3: 112 | DV3: 113 | DW3: 114 | DX3: 115 | DY3: 116 | DZ3: 117 | EA3: 118 | EB3: 119 | EC3: 120 | ED3: 121 | EE3: 122 | EF3: 123 | EG3: 124 | EH3: 125 | EI3: 126 | EJ3: 127 | EK3: 128 | EL3: 129 | EM3: 130 | EN3: 131 | EO3: 132 | EP3: 133 | EQ3: 134 | ER3: 135 | ES3: 136 | ET3: 137 | EU3: 138 | EV3: 139 | EW3: 140 | EX3: 141 | EY3: 142 | EZ3: 143 | FA3: 144 | FB3: 145 | FC3: 146 | FD3: 147 | FE3: 148 | FF3: 149 | FG3: 150
C4: Pre-COD flag | F4: flag | G4: ='Operating Inputs'!$H$16 -> 47 | N4: =IF(N3<=$G4,1,0) -> 1 | O4: 1 | P4: 1 | Q4: 1 | R4: 1 | S4: 1 | T4: 1 | U4: 1 | V4: 1 | W4: 1 | X4: 1 | Y4: 1 | Z4: 1 | AA4: 1 | AB4: 1 | AC4: 1 | AD4: 1 | AE4: 1 | AF4: 1 | AG4: 1 | AH4: 1 | AI4: 1 | AJ4: 1 | AK4: 1 | AL4: 1 | AM4: 1 | AN4: 1 | AO4: 1 | AP4: 1 | AQ4: 1 | AR4: 1 | AS4: 1 | AT4: =IF(AT3<=$G4,1,0) -> 1 | AU4: 1 | AV4: 1 | AW4: 1 | AX4: 1 | AY4: 1 | AZ4: 1 | BA4: 1 | BB4: 1 | BC4: 1 | BD4: 1 | BE4: 1 | BF4: 1 | BG4: 1 | BH4: 1 | BI4: 0 | BJ4: 0 | BK4: 0 | BL4: 0 | BM4: 0 | BN4: 0 | BO4: 0 | BP4: 0 | BQ4: 0 | BR4: 0 | BS4: 0 | BT4: 0 | BU4: 0 | BV4: 0 | BW4: 0 | BX4: 0 | BY4: 0 | BZ4: =IF(BZ3<=$G4,1,0) -> 0 | CA4: 0 | CB4: 0 | CC4: 0 | CD4: 0 | CE4: 0 | CF4: 0 | CG4: 0 | CH4: 0 | CI4: 0 | CJ4: 0 | CK4: 0 | CL4: 0 | CM4: 0 | CN4: 0 | CO4: 0 | CP4: 0 | CQ4: 0 | CR4: 0 | CS4: 0 | CT4: 0 | CU4: 0 | CV4: 0 | CW4: 0 | CX4: 0 | CY4: 0 | CZ4: 0 | DA4: 0 | DB4: 0 | DC4: 0 | DD4: 0 | DE4: 0 | DF4: =IF(DF3<=$G4,1,0) -> 0 | DG4: 0 | DH4: 0 | DI4: 0 | DJ4: 0 | DK4: 0 | DL4: 0 | DM4: 0 | DN4: 0 | DO4: 0 | DP4: 0 | DQ4: 0 | DR4: 0 | DS4: 0 | DT4: 0 | DU4: 0 | DV4: 0 | DW4: 0 | DX4: 0 | DY4: 0 | DZ4: 0 | EA4: 0 | EB4: 0 | EC4: 0 | ED4: 0 | EE4: 0 | EF4: 0 | EG4: 0 | EH4: 0 | EI4: 0 | EJ4: 0 | EK4: 0 | EL4: =IF(EL3<=$G4,1,0) -> 0 | EM4: 0 | EN4: 0 | EO4: 0 | EP4: 0 | EQ4: 0 | ER4: 0 | ES4: 0 | ET4: 0 | EU4: 0 | EV4: 0 | EW4: 0 | EX4: 0 | EY4: 0 | EZ4: 0 | FA4: 0 | FB4: 0 | FC4: 0 | FD4: 0 | FE4: 0 | FF4: 0 | FG4: 0
C5: Months in period | F5: months | G5: ='Operating Inputs'!$H$14 -> 1 | H5: ='Operating Inputs'!E14 -> Months per period pre-COD | I5: ='Operating Inputs'!$H$15 -> 6 | J5: ='Operating Inputs'!E15 -> Months per period post-COD | N5: =IF(N4,$G5,$I5) -> 1 | O5: 1 | P5: 1 | Q5: 1 | R5: 1 | S5: 1 | T5: 1 | U5: 1 | V5: 1 | W5: 1 | X5: 1 | Y5: 1 | Z5: 1 | AA5: 1 | AB5: 1 | AC5: 1 | AD5: 1 | AE5: 1 | AF5: 1 | AG5: 1 | AH5: 1 | AI5: 1 | AJ5: 1 | AK5: 1 | AL5: 1 | AM5: 1 | AN5: 1 | AO5: 1 | AP5: 1 | AQ5: 1 | AR5: 1 | AS5: 1 | AT5: =IF(AT4,$G5,$I5) -> 1 | AU5: 1 | AV5: 1 | AW5: 1 | AX5: 1 | AY5: 1 | AZ5: 1 | BA5: 1 | BB5: 1 | BC5: 1 | BD5: 1 | BE5: 1 | BF5: 1 | BG5: 1 | BH5: 1 | BI5: 6 | BJ5: 6 | BK5: 6 | BL5: 6 | BM5: 6 | BN5: 6 | BO5: 6 | BP5: 6 | BQ5: 6 | BR5: 6 | BS5: 6 | BT5: 6 | BU5: 6 | BV5: 6 | BW5: 6 | BX5: 6 | BY5: 6 | BZ5: =IF(BZ4,$G5,$I5) -> 6 | CA5: 6 | CB5: 6 | CC5: 6 | CD5: 6 | CE5: 6 | CF5: 6 | CG5: 6 | CH5: 6 | CI5: 6 | CJ5: 6 | CK5: 6 | CL5: 6 | CM5: 6 | CN5: 6 | CO5: 6 | CP5: 6 | CQ5: 6 | CR5: 6 | CS5: 6 | CT5: 6 | CU5: 6 | CV5: 6 | CW5: 6 | CX5: 6 | CY5: 6 | CZ5: 6 | DA5: 6 | DB5: 6 | DC5: 6 | DD5: 6 | DE5: 6 | DF5: =IF(DF4,$G5,$I5) -> 6 | DG5: 6 | DH5: 6 | DI5: 6 | DJ5: 6 | DK5: 6 | DL5: 6 | DM5: 6 | DN5: 6 | DO5: 6 | DP5: 6 | DQ5: 6 | DR5: 6 | DS5: 6 | DT5: 6 | DU5: 6 | DV5: 6 | DW5: 6 | DX5: 6 | DY5: 6 | DZ5: 6 | EA5: 6 | EB5: 6 | EC5: 6 | ED5: 6 | EE5: 6 | EF5: 6 | EG5: 6 | EH5: 6 | EI5: 6 | EJ5: 6 | EK5: 6 | EL5: =IF(EL4,$G5,$I5) -> 6 | EM5: 6 | EN5: 6 | EO5: 6 | EP5: 6 | EQ5: 6 | ER5: 6 | ES5: 6 | ET5: 6 | EU5: 6 | EV5: 6 | EW5: 6 | EX5: 6 | EY5: 6 | EZ5: 6 | FA5: 6 | FB5: 6 | FC5: 6 | FD5: 6 | FE5: 6 | FF5: 6 | FG5: 6
C6: Start of period | F6: date | N6: =M7+1 -> 2020-03-01 | O6: 2020-04-01 | P6: 2020-05-01 | Q6: 2020-06-01 | R6: 2020-07-01 | S6: 2020-08-01 | T6: 2020-09-01 | U6: 2020-10-01 | V6: 2020-11-01 | W6: 2020-12-01 | X6: 2021-01-01 | Y6: 2021-02-01 | Z6: 2021-03-01 | AA6: 2021-04-01 | AB6: 2021-05-01 | AC6: 2021-06-01 | AD6: 2021-07-01 | AE6: 2021-08-01 | AF6: 2021-09-01 | AG6: 2021-10-01 | AH6: 2021-11-01 | AI6: 2021-12-01 | AJ6: 2022-01-01 | AK6: 2022-02-01 | AL6: 2022-03-01 | AM6: 2022-04-01 | AN6: 2022-05-01 | AO6: 2022-06-01 | AP6: 2022-07-01 | AQ6: 2022-08-01 | AR6: 2022-09-01 | AS6: 2022-10-01 | AT6: =AS7+1 -> 2022-11-01 | AU6: 2022-12-01 | AV6: 2023-01-01 | AW6: 2023-02-01 | AX6: 2023-03-01 | AY6: 2023-04-01 | AZ6: 2023-05-01 | BA6: 2023-06-01 | BB6: 2023-07-01 | BC6: 2023-08-01 | BD6: 2023-09-01 | BE6: 2023-10-01 | BF6: 2023-11-01 | BG6: 2023-12-01 | BH6: 2024-01-01 | BI6: 2024-02-01 | BJ6: 2024-08-01 | BK6: 2025-02-01 | BL6: 2025-08-01 | BM6: 2026-02-01 | BN6: 2026-08-01 | BO6: 2027-02-01 | BP6: 2027-08-01 | BQ6: 2028-02-01 | BR6: 2028-08-01 | BS6: 2029-02-01 | BT6: 2029-08-01 | BU6: 2030-02-01 | BV6: 2030-08-01 | BW6: 2031-02-01 | BX6: 2031-08-01 | BY6: 2032-02-01 | BZ6: =BY7+1 -> 2032-08-01 | CA6: 2033-02-01 | CB6: 2033-08-01 | CC6: 2034-02-01 | CD6: 2034-08-01 | CE6: 2035-02-01 | CF6: 2035-08-01 | CG6: 2036-02-01 | CH6: 2036-08-01 | CI6: 2037-02-01 | CJ6: 2037-08-01 | CK6: 2038-02-01 | CL6: 2038-08-01 | CM6: 2039-02-01 | CN6: 2039-08-01 | CO6: 2040-02-01 | CP6: 2040-08-01 | CQ6: 2041-02-01 | CR6: 2041-08-01 | CS6: 2042-02-01 | CT6: 2042-08-01 | CU6: 2043-02-01 | CV6: 2043-08-01 | CW6: 2044-02-01 | CX6: 2044-08-01 | CY6: 2045-02-01 | CZ6: 2045-08-01 | DA6: 2046-02-01 | DB6: 2046-08-01 | DC6: 2047-02-01 | DD6: 2047-08-01 | DE6: 2048-02-01 | DF6: =DE7+1 -> 2048-08-01 | DG6: 2049-02-01 | DH6: 2049-08-01 | DI6: 2050-02-01 | DJ6: 2050-08-01 | DK6: 2051-02-01 | DL6: 2051-08-01 | DM6: 2052-02-01 | DN6: 2052-08-01 | DO6: 2053-02-01 | DP6: 2053-08-01 | DQ6: 2054-02-01 | DR6: 2054-08-01 | DS6: 2055-02-01 | DT6: 2055-08-01 | DU6: 2056-02-01 | DV6: 2056-08-01 | DW6: 2057-02-01 | DX6: 2057-08-01 | DY6: 2058-02-01 | DZ6: 2058-08-01 | EA6: 2059-02-01 | EB6: 2059-08-01 | EC6: 2060-02-01 | ED6: 2060-08-01 | EE6: 2061-02-01 | EF6: 2061-08-01 | EG6: 2062-02-01 | EH6: 2062-08-01 | EI6: 2063-02-01 | EJ6: 2063-08-01 | EK6: 2064-02-01 | EL6: =EK7+1 -> 2064-08-01 | EM6: 2065-02-01 | EN6: 2065-08-01 | EO6: 2066-02-01 | EP6: 2066-08-01 | EQ6: 2067-02-01 | ER6: 2067-08-01 | ES6: 2068-02-01 | ET6: 2068-08-01 | EU6: 2069-02-01 | EV6: 2069-08-01 | EW6: 2070-02-01 | EX6: 2070-08-01 | EY6: 2071-02-01 | EZ6: 2071-08-01 | FA6: 2072-02-01 | FB6: 2072-08-01 | FC6: 2073-02-01 | FD6: 2073-08-01 | FE6: 2074-02-01 | FF6: 2074-08-01 | FG6: 2075-02-01
C7: End of period | F7: date | M7: =Model_Start_Date-1 -> 2020-02-29 | N7: =EDATE(N6,N5)-1 -> 2020-03-31 | O7: 2020-04-30 | P7: 2020-05-31 | Q7: 2020-06-30 | R7: 2020-07-31 | S7: 2020-08-31 | T7: 2020-09-30 | U7: 2020-10-31 | V7: 2020-11-30 | W7: 2020-12-31 | X7: 2021-01-31 | Y7: 2021-02-28 | Z7: 2021-03-31 | AA7: 2021-04-30 | AB7: 2021-05-31 | AC7: 2021-06-30 | AD7: 2021-07-31 | AE7: 2021-08-31 | AF7: 2021-09-30 | AG7: 2021-10-31 | AH7: 2021-11-30 | AI7: 2021-12-31 | AJ7: 2022-01-31 | AK7: 2022-02-28 | AL7: 2022-03-31 | AM7: 2022-04-30 | AN7: 2022-05-31 | AO7: 2022-06-30 | AP7: 2022-07-31 | AQ7: 2022-08-31 | AR7: 2022-09-30 | AS7: 2022-10-31 | AT7: =EDATE(AT6,AT5)-1 -> 2022-11-30 | AU7: 2022-12-31 | AV7: 2023-01-31 | AW7: 2023-02-28 | AX7: 2023-03-31 | AY7: 2023-04-30 | AZ7: 2023-05-31 | BA7: 2023-06-30 | BB7: 2023-07-31 | BC7: 2023-08-31 | BD7: 2023-09-30 | BE7: 2023-10-31 | BF7: 2023-11-30 | BG7: 2023-12-31 | BH7: 2024-01-31 | BI7: 2024-07-31 | BJ7: 2025-01-31 | BK7: 2025-07-31 | BL7: 2026-01-31 | BM7: 2026-07-31 | BN7: 2027-01-31 | BO7: 2027-07-31 | BP7: 2028-01-31 | BQ7: 2028-07-31 | BR7: 2029-01-31 | BS7: 2029-07-31 | BT7: 2030-01-31 | BU7: 2030-07-31 | BV7: 2031-01-31 | BW7: 2031-07-31 | BX7: 2032-01-31 | BY7: 2032-07-31 | BZ7: =EDATE(BZ6,BZ5)-1 -> 2033-01-31 | CA7: 2033-07-31 | CB7: 2034-01-31 | CC7: 2034-07-31 | CD7: 2035-01-31 | CE7: 2035-07-31 | CF7: 2036-01-31 | CG7: 2036-07-31 | CH7: 2037-01-31 | CI7: 2037-07-31 | CJ7: 2038-01-31 | CK7: 2038-07-31 | CL7: 2039-01-31 | CM7: 2039-07-31 | CN7: 2040-01-31 | CO7: 2040-07-31 | CP7: 2041-01-31 | CQ7: 2041-07-31 | CR7: 2042-01-31 | CS7: 2042-07-31 | CT7: 2043-01-31 | CU7: 2043-07-31 | CV7: 2044-01-31 | CW7: 2044-07-31 | CX7: 2045-01-31 | CY7: 2045-07-31 | CZ7: 2046-01-31 | DA7: 2046-07-31 | DB7: 2047-01-31 | DC7: 2047-07-31 | DD7: 2048-01-31 | DE7: 2048-07-31 | DF7: =EDATE(DF6,DF5)-1 -> 2049-01-31 | DG7: 2049-07-31 | DH7: 2050-01-31 | DI7: 2050-07-31 | DJ7: 2051-01-31 | DK7: 2051-07-31 | DL7: 2052-01-31 | DM7: 2052-07-31 | DN7: 2053-01-31 | DO7: 2053-07-31 | DP7: 2054-01-31 | DQ7: 2054-07-31 | DR7: 2055-01-31 | DS7: 2055-07-31 | DT7: 2056-01-31 | DU7: 2056-07-31 | DV7: 2057-01-31 | DW7: 2057-07-31 | DX7: 2058-01-31 | DY7: 2058-07-31 | DZ7: 2059-01-31 | EA7: 2059-07-31 | EB7: 2060-01-31 | EC7: 2060-07-31 | ED7: 2061-01-31 | EE7: 2061-07-31 | EF7: 2062-01-31 | EG7: 2062-07-31 | EH7: 2063-01-31 | EI7: 2063-07-31 | EJ7: 2064-01-31 | EK7: 2064-07-31 | EL7: =EDATE(EL6,EL5)-1 -> 2065-01-31 | EM7: 2065-07-31 | EN7: 2066-01-31 | EO7: 2066-07-31 | EP7: 2067-01-31 | EQ7: 2067-07-31 | ER7: 2068-01-31 | ES7: 2068-07-31 | ET7: 2069-01-31 | EU7: 2069-07-31 | EV7: 2070-01-31 | EW7: 2070-07-31 | EX7: 2071-01-31 | EY7: 2071-07-31 | EZ7: 2072-01-31 | FA7: 2072-07-31 | FB7: 2073-01-31 | FC7: 2073-07-31 | FD7: 2074-01-31 | FE7: 2074-07-31 | FF7: 2075-01-31 | FG7: 2075-07-31
C8: Operating flag | F8: flag | G8: =COD_date -> 2024-02-01 | I8: =Decommisioning_date -> 2059-02-01 | K8: =SUM(N8:FG8) -> 70 | N8: =AND(N6>=$G8,N6<$I8)*1 -> 0 | O8: 0 | P8: 0 | Q8: 0 | R8: 0 | S8: 0 | T8: 0 | U8: 0 | V8: 0 | W8: 0 | X8: 0 | Y8: 0 | Z8: 0 | AA8: 0 | AB8: 0 | AC8: 0 | AD8: 0 | AE8: 0 | AF8: 0 | AG8: 0 | AH8: 0 | AI8: 0 | AJ8: 0 | AK8: 0 | AL8: 0 | AM8: 0 | AN8: 0 | AO8: 0 | AP8: 0 | AQ8: 0 | AR8: 0 | AS8: 0 | AT8: =AND(AT6>=$G8,AT6<$I8)*1 -> 0 | AU8: 0 | AV8: 0 | AW8: 0 | AX8: 0 | AY8: 0 | AZ8: 0 | BA8: 0 | BB8: 0 | BC8: 0 | BD8: 0 | BE8: 0 | BF8: 0 | BG8: 0 | BH8: 0 | BI8: 1 | BJ8: 1 | BK8: 1 | BL8: 1 | BM8: 1 | BN8: 1 | BO8: 1 | BP8: 1 | BQ8: 1 | BR8: 1 | BS8: 1 | BT8: 1 | BU8: 1 | BV8: 1 | BW8: 1 | BX8: 1 | BY8: 1 | BZ8: =AND(BZ6>=$G8,BZ6<$I8)*1 -> 1 | CA8: 1 | CB8: 1 | CC8: 1 | CD8: 1 | CE8: 1 | CF8: 1 | CG8: 1 | CH8: 1 | CI8: 1 | CJ8: 1 | CK8: 1 | CL8: 1 | CM8: 1 | CN8: 1 | CO8: 1 | CP8: 1 | CQ8: 1 | CR8: 1 | CS8: 1 | CT8: 1 | CU8: 1 | CV8: 1 | CW8: 1 | CX8: 1 | CY8: 1 | CZ8: 1 | DA8: 1 | DB8: 1 | DC8: 1 | DD8: 1 | DE8: 1 | DF8: =AND(DF6>=$G8,DF6<$I8)*1 -> 1 | DG8: 1 | DH8: 1 | DI8: 1 | DJ8: 1 | DK8: 1 | DL8: 1 | DM8: 1 | DN8: 1 | DO8: 1 | DP8: 1 | DQ8: 1 | DR8: 1 | DS8: 1 | DT8: 1 | DU8: 1 | DV8: 1 | DW8: 1 | DX8: 1 | DY8: 1 | DZ8: 1 | EA8: 0 | EB8: 0 | EC8: 0 | ED8: 0 | EE8: 0 | EF8: 0 | EG8: 0 | EH8: 0 | EI8: 0 | EJ8: 0 | EK8: 0 | EL8: =AND(EL6>=$G8,EL6<$I8)*1 -> 0 | EM8: 0 | EN8: 0 | EO8: 0 | EP8: 0 | EQ8: 0 | ER8: 0 | ES8: 0 | ET8: 0 | EU8: 0 | EV8: 0 | EW8: 0 | EX8: 0 | EY8: 0 | EZ8: 0 | FA8: 0 | FB8: 0 | FC8: 0 | FD8: 0 | FE8: 0 | FF8: 0 | FG8: 0
C9: Year | F9: year | N9: =YEAR(N7) -> 2020 | O9: 2020 | P9: 2020 | Q9: 2020 | R9: 2020 | S9: 2020 | T9: 2020 | U9: 2020 | V9: 2020 | W9: 2020 | X9: 2021 | Y9: 2021 | Z9: 2021 | AA9: 2021 | AB9: 2021 | AC9: 2021 | AD9: 2021 | AE9: 2021 | AF9: 2021 | AG9: 2021 | AH9: 2021 | AI9: 2021 | AJ9: 2022 | AK9: 2022 | AL9: 2022 | AM9: 2022 | AN9: 2022 | AO9: 2022 | AP9: 2022 | AQ9: 2022 | AR9: 2022 | AS9: 2022 | AT9: =YEAR(AT7) -> 2022 | AU9: 2022 | AV9: 2023 | AW9: 2023 | AX9: 2023 | AY9: 2023 | AZ9: 2023 | BA9: 2023 | BB9: 2023 | BC9: 2023 | BD9: 2023 | BE9: 2023 | BF9: 2023 | BG9: 2023 | BH9: 2024 | BI9: 2024 | BJ9: 2025 | BK9: 2025 | BL9: 2026 | BM9: 2026 | BN9: 2027 | BO9: 2027 | BP9: 2028 | BQ9: 2028 | BR9: 2029 | BS9: 2029 | BT9: 2030 | BU9: 2030 | BV9: 2031 | BW9: 2031 | BX9: 2032 | BY9: 2032 | BZ9: =YEAR(BZ7) -> 2033 | CA9: 2033 | CB9: 2034 | CC9: 2034 | CD9: 2035 | CE9: 2035 | CF9: 2036 | CG9: 2036 | CH9: 2037 | CI9: 2037 | CJ9: 2038 | CK9: 2038 | CL9: 2039 | CM9: 2039 | CN9: 2040 | CO9: 2040 | CP9: 2041 | CQ9: 2041 | CR9: 2042 | CS9: 2042 | CT9: 2043 | CU9: 2043 | CV9: 2044 | CW9: 2044 | CX9: 2045 | CY9: 2045 | CZ9: 2046 | DA9: 2046 | DB9: 2047 | DC9: 2047 | DD9: 2048 | DE9: 2048 | DF9: =YEAR(DF7) -> 2049 | DG9: 2049 | DH9: 2050 | DI9: 2050 | DJ9: 2051 | DK9: 2051 | DL9: 2052 | DM9: 2052 | DN9: 2053 | DO9: 2053 | DP9: 2054 | DQ9: 2054 | DR9: 2055 | DS9: 2055 | DT9: 2056 | DU9: 2056 | DV9: 2057 | DW9: 2057 | DX9: 2058 | DY9: 2058 | DZ9: 2059 | EA9: 2059 | EB9: 2060 | EC9: 2060 | ED9: 2061 | EE9: 2061 | EF9: 2062 | EG9: 2062 | EH9: 2063 | EI9: 2063 | EJ9: 2064 | EK9: 2064 | EL9: =YEAR(EL7) -> 2065 | EM9: 2065 | EN9: 2066 | EO9: 2066 | EP9: 2067 | EQ9: 2067 | ER9: 2068 | ES9: 2068 | ET9: 2069 | EU9: 2069 | EV9: 2070 | EW9: 2070 | EX9: 2071 | EY9: 2071 | EZ9: 2072 | FA9: 2072 | FB9: 2073 | FC9: 2073 | FD9: 2074 | FE9: 2074 | FF9: 2075 | FG9: 2075
B10: Capacity and Generation
C11: Capacity | F11: MW | G11: ='Operating Inputs'!H26 -> 2000 | N11: =$G11*N8 -> 0 | O11: 0 | P11: 0 | Q11: 0 | R11: 0 | S11: 0 | T11: 0 | U11: 0 | V11: 0 | W11: 0 | X11: 0 | Y11: 0 | Z11: 0 | AA11: 0 | AB11: 0 | AC11: 0 | AD11: 0 | AE11: 0 | AF11: 0 | AG11: 0 | AH11: 0 | AI11: 0 | AJ11: 0 | AK11: 0 | AL11: 0 | AM11: 0 | AN11: 0 | AO11: 0 | AP11: 0 | AQ11: 0 | AR11: 0 | AS11: 0 | AT11: =$G11*AT8 -> 0 | AU11: 0 | AV11: 0 | AW11: 0 | AX11: 0 | AY11: 0 | AZ11: 0 | BA11: 0 | BB11: 0 | BC11: 0 | BD11: 0 | BE11: 0 | BF11: 0 | BG11: 0 | BH11: 0 | BI11: 2000 | BJ11: 2000 | BK11: 2000 | BL11: 2000 | BM11: 2000 | BN11: 2000 | BO11: 2000 | BP11: 2000 | BQ11: 2000 | BR11: 2000 | BS11: 2000 | BT11: 2000 | BU11: 2000 | BV11: 2000 | BW11: 2000 | BX11: 2000 | BY11: 2000 | BZ11: =$G11*BZ8 -> 2000 | CA11: 2000 | CB11: 2000 | CC11: 2000 | CD11: 2000 | CE11: 2000 | CF11: 2000 | CG11: 2000 | CH11: 2000 | CI11: 2000 | CJ11: 2000 | CK11: 2000 | CL11: 2000 | CM11: 2000 | CN11: 2000 | CO11: 2000 | CP11: 2000 | CQ11: 2000 | CR11: 2000 | CS11: 2000 | CT11: 2000 | CU11: 2000 | CV11: 2000 | CW11: 2000 | CX11: 2000 | CY11: 2000 | CZ11: 2000 | DA11: 2000 | DB11: 2000 | DC11: 2000 | DD11: 2000 | DE11: 2000 | DF11: =$G11*DF8 -> 2000 | DG11: 2000 | DH11: 2000 | DI11: 2000 | DJ11: 2000 | DK11: 2000 | DL11: 2000 | DM11: 2000 | DN11: 2000 | DO11: 2000 | DP11: 2000 | DQ11: 2000 | DR11: 2000 | DS11: 2000 | DT11: 2000 | DU11: 2000 | DV11: 2000 | DW11: 2000 | DX11: 2000 | DY11: 2000 | DZ11: 2000 | EA11: 0 | EB11: 0 | EC11: 0 | ED11: 0 | EE11: 0 | EF11: 0 | EG11: 0 | EH11: 0 | EI11: 0 | EJ11: 0 | EK11: 0 | EL11: =$G11*EL8 -> 0 | EM11: 0 | EN11: 0 | EO11: 0 | EP11: 0 | EQ11: 0 | ER11: 0 | ES11: 0 | ET11: 0 | EU11: 0 | EV11: 0 | EW11: 0 | EX11: 0 | EY11: 0 | EZ11: 0 | FA11: 0 | FB11: 0 | FC11: 0 | FD11: 0 | FE11: 0 | FF11: 0 | FG11: 0
C12: Capaciy Factor | F12: % | N12: =LOOKUP(N6,'Operating Inputs'!86:86,'Operating Inputs'!87:87)*N8 -> 0 | O12: =LOOKUP(O6,'Operating Inputs'!86:86,'Operating Inputs'!87:87)*O8 -> 0 | P12: =LOOKUP(P6,'Operating Inputs'!86:86,'Operating Inputs'!87:87)*P8 -> 0 | Q12: =LOOKUP(Q6,'Operating Inputs'!86:86,'Operating Inputs'!87:87)*Q8 -> 0 | R12: =LOOKUP(R6,'Operating Inputs'!86:86,'Operating Inputs'!87:87)*R8 -> 0 | S12: =LOOKUP(S6,'Operating Inputs'!86:86,'Operating Inputs'!87:87)*S8 -> 0 | T12: =LOOKUP(T6,'Operating Inputs'!86:86,'Operating Inputs'!87:87)*T8 -> 0 | U12: =LOOKUP(U6,'Operating Inputs'!86:86,'Operating Inputs'!87:87)*U8 -> 0 | V12: =LOOKUP(V6,'Operating Inputs'!86:86,'Operating Inputs'!87:87)*V8 -> 0 | W12: =LOOKUP(W6,'Operating Inputs'!86:86,'Operating Inputs'!87:87)*W8 -> 0 | X12: =LOOKUP(X6,'Operating Inputs'!86:86,'Operating Inputs'!87:87)*X8 -> 0 | Y12: =LOOKUP(Y6,'Operating Inputs'!86:86,'Operating Inputs'!87:87)*Y8 -> 0 | Z12: =LOOKUP(Z6,'Operating Inputs'!86:86,'Operating Inputs'!87:87)*Z8 -> 0 | AA12: =LOOKUP(AA6,'Operating Inputs'!86:86,'Operating Inputs'!87:87)*AA8 -> 0 | AB12: =LOOKUP(AB6,'Operating Inputs'!86:86,'Operating Inputs'!87:87)*AB8 -> 0 | AC12: =LOOKUP(AC6,'Operating Inputs'!86:86,'Operating Inputs'!87:87)*AC8 -> 0 | AD12: =LOOKUP(AD6,'Operating Inputs'!86:86,'Operating Inputs'!87:87)*AD8 -> 0 | AE12: =LOOKUP(AE6,'Operating Inputs'!86:86,'Operating Inputs'!87:87)*AE8 -> 0 | AF12: =LOOKUP(AF6,'Operating Inputs'!86:86,'Operating Inputs'!87:87)*AF8 -> 0 | AG12: =LOOKUP(AG6,'Operating Inputs'!86:86,'Operating Inputs'!87:87)*AG8 -> 0 | AH12: =LOOKUP(AH6,'Operating Inputs'!86:86,'Operating Inputs'!87:87)*AH8 -> 0 | AI12: =LOOKUP(AI6,'Operating Inputs'!86:86,'Operating Inputs'!87:87)*AI8 -> 0 | AJ12: =LOOKUP(AJ6,'Operating Inputs'!86:86,'Operating Inputs'!87:87)*AJ8 -> 0 | AK12: =LOOKUP(AK6,'Operating Inputs'!86:86,'Operating Inputs'!87:87)*AK8 -> 0 | AL12: =LOOKUP(AL6,'Operating Inputs'!86:86,'Operating Inputs'!87:87)*AL8 -> 0 | AM12: =LOOKUP(AM6,'Operating Inputs'!86:86,'Operating Inputs'!87:87)*AM8 -> 0 | AN12: =LOOKUP(AN6,'Operating Inputs'!86:86,'Operating Inputs'!87:87)*AN8 -> 0 | AO12: =LOOKUP(AO6,'Operating Inputs'!86:86,'Operating Inputs'!87:87)*AO8 -> 0 | AP12: =LOOKUP(AP6,'Operating Inputs'!86:86,'Operating Inputs'!87:87)*AP8 -> 0 | AQ12: =LOOKUP(AQ6,'Operating Inputs'!86:86,'Operating Inputs'!87:87)*AQ8 -> 0 | AR12: =LOOKUP(AR6,'Operating Inputs'!86:86,'Operating Inputs'!87:87)*AR8 -> 0 | AS12: =LOOKUP(AS6,'Operating Inputs'!86:86,'Operating Inputs'!87:87)*AS8 -> 0 | AT12: =LOOKUP(AT6,'Operating Inputs'!86:86,'Operating Inputs'!87:87)*AT8 -> 0 | AU12: =LOOKUP(AU6,'Operating Inputs'!86:86,'Operating Inputs'!87:87)*AU8 -> 0 | AV12: =LOOKUP(AV6,'Operating Inputs'!86:86,'Operating Inputs'!87:87)*AV8 -> 0 | AW12: =LOOKUP(AW6,'Operating Inputs'!86:86,'Operating Inputs'!87:87)*AW8 -> 0 | AX12: =LOOKUP(AX6,'Operating Inputs'!86:86,'Operating Inputs'!87:87)*AX8 -> 0 | AY12: =LOOKUP(AY6,'Operating Inputs'!86:86,'Operating Inputs'!87:87)*AY8 -> 0 | AZ12: =LOOKUP(AZ6,'Operating Inputs'!86:86,'Operating Inputs'!87:87)*AZ8 -> 0 | BA12: =LOOKUP(BA6,'Operating Inputs'!86:86,'Operating Inputs'!87:87)*BA8 -> 0 | BB12: =LOOKUP(BB6,'Operating Inputs'!86:86,'Operating Inputs'!87:87)*BB8 -> 0 | BC12: =LOOKUP(BC6,'Operating Inputs'!86:86,'Operating Inputs'!87:87)*BC8 -> 0 | BD12: =LOOKUP(BD6,'Operating Inputs'!86:86,'Operating Inputs'!87:87)*BD8 -> 0 | BE12: =LOOKUP(BE6,'Operating Inputs'!86:86,'Operating Inputs'!87:87)*BE8 -> 0 | BF12: =LOOKUP(BF6,'Operating Inputs'!86:86,'Operating Inputs'!87:87)*BF8 -> 0 | BG12: =LOOKUP(BG6,'Operating Inputs'!86:86,'Operating Inputs'!87:87)*BG8 -> 0 | BH12: =LOOKUP(BH6,'Operating Inputs'!86:86,'Operating Inputs'!87:87)*BH8 -> 0 | BI12: =LOOKUP(BI6,'Operating Inputs'!86:86,'Operating Inputs'!87:87)*BI8 -> 0.55 | BJ12: =LOOKUP(BJ6,'Operating Inputs'!86:86,'Operating Inputs'!87:87)*BJ8 -> 0.58 | BK12: =LOOKUP(BK6,'Operating Inputs'!86:86,'Operating Inputs'!87:87)*BK8 -> 0.6 | BL12: =LOOKUP(BL6,'Operating Inputs'!86:86,'Operating Inputs'!87:87)*BL8 -> 0.6 | BM12: =LOOKUP(BM6,'Operating Inputs'!86:86,'Operating Inputs'!87:87)*BM8 -> 0.6 | BN12: =LOOKUP(BN6,'Operating Inputs'!86:86,'Operating Inputs'!87:87)*BN8 -> 0.6 | BO12: =LOOKUP(BO6,'Operating Inputs'!86:86,'Operating Inputs'!87:87)*BO8 -> 0.6 | BP12: =LOOKUP(BP6,'Operating Inputs'!86:86,'Operating Inputs'!87:87)*BP8 -> 0.6 | BQ12: =LOOKUP(BQ6,'Operating Inputs'!86:86,'Operating Inputs'!87:87)*BQ8 -> 0.6 | BR12: =LOOKUP(BR6,'Operating Inputs'!86:86,'Operating Inputs'!87:87)*BR8 -> 0.6 | BS12: =LOOKUP(BS6,'Operating Inputs'!86:86,'Operating Inputs'!87:87)*BS8 -> 0.6 | BT12: =LOOKUP(BT6,'Operating Inputs'!86:86,'Operating Inputs'!87:87)*BT8 -> 0.6 | BU12: =LOOKUP(BU6,'Operating Inputs'!86:86,'Operating Inputs'!87:87)*BU8 -> 0.6 | BV12: =LOOKUP(BV6,'Operating Inputs'!86:86,'Operating Inputs'!87:87)*BV8 -> 0.6 | BW12: =LOOKUP(BW6,'Operating Inputs'!86:86,'Operating Inputs'!87:87)*BW8 -> 0.6 | BX12: =LOOKUP(BX6,'Operating Inputs'!86:86,'Operating Inputs'!87:87)*BX8 -> 0.6 | BY12: =LOOKUP(BY6,'Operating Inputs'!86:86,'Operating Inputs'!87:87)*BY8 -> 0.6 | BZ12: =LOOKUP(BZ6,'Operating Inputs'!86:86,'Operating Inputs'!87:87)*BZ8 -> 0.6 | CA12: =LOOKUP(CA6,'Operating Inputs'!86:86,'Operating Inputs'!87:87)*CA8 -> 0.6 | CB12: =LOOKUP(CB6,'Operating Inputs'!86:86,'Operating Inputs'!87:87)*CB8 -> 0.6 | CC12: =LOOKUP(CC6,'Operating Inputs'!86:86,'Operating Inputs'!87:87)*CC8 -> 0.6 | CD12: =LOOKUP(CD6,'Operating Inputs'!86:86,'Operating Inputs'!87:87)*CD8 -> 0.6 | CE12: =LOOKUP(CE6,'Operating Inputs'!86:86,'Operating Inputs'!87:87)*CE8 -> 0.6 | CF12: =LOOKUP(CF6,'Operating Inputs'!86:86,'Operating Inputs'!87:87)*CF8 -> 0.6 | CG12: =LOOKUP(CG6,'Operating Inputs'!86:86,'Operating Inputs'!87:87)*CG8 -> 0.6 | CH12: =LOOKUP(CH6,'Operating Inputs'!86:86,'Operating Inputs'!87:87)*CH8 -> 0.6 | CI12: =LOOKUP(CI6,'Operating Inputs'!86:86,'Operating Inputs'!87:87)*CI8 -> 0.6 | CJ12: =LOOKUP(CJ6,'Operating Inputs'!86:86,'Operating Inputs'!87:87)*CJ8 -> 0.6 | CK12: =LOOKUP(CK6,'Operating Inputs'!86:86,'Operating Inputs'!87:87)*CK8 -> 0.6 | CL12: =LOOKUP(CL6,'Operating Inputs'!86:86,'Operating Inputs'!87:87)*CL8 -> 0.6 | CM12: =LOOKUP(CM6,'Operating Inputs'!86:86,'Operating Inputs'!87:87)*CM8 -> 0.6 | CN12: =LOOKUP(CN6,'Operating Inputs'!86:86,'Operating Inputs'!87:87)*CN8 -> 0.6 | CO12: =LOOKUP(CO6,'Operating Inputs'!86:86,'Operating Inputs'!87:87)*CO8 -> 0.6 | CP12: =LOOKUP(CP6,'Operating Inputs'!86:86,'Operating Inputs'!87:87)*CP8 -> 0.6 | CQ12: =LOOKUP(CQ6,'Operating Inputs'!86:86,'Operating Inputs'!87:87)*CQ8 -> 0.6 | CR12: =LOOKUP(CR6,'Operating Inputs'!86:86,'Operating Inputs'!87:87)*CR8 -> 0.6 | CS12: =LOOKUP(CS6,'Operating Inputs'!86:86,'Operating Inputs'!87:87)*CS8 -> 0.6 | CT12: =LOOKUP(CT6,'Operating Inputs'!86:86,'Operating Inputs'!87:87)*CT8 -> 0.6 | CU12: =LOOKUP(CU6,'Operating Inputs'!86:86,'Operating Inputs'!87:87)*CU8 -> 0.6 | CV12: =LOOKUP(CV6,'Operating Inputs'!86:86,'Operating Inputs'!87:87)*CV8 -> 0.6 | CW12: =LOOKUP(CW6,'Operating Inputs'!86:86,'Operating Inputs'!87:87)*CW8 -> 0.6 | CX12: =LOOKUP(CX6,'Operating Inputs'!86:86,'Operating Inputs'!87:87)*CX8 -> 0.6 | CY12: =LOOKUP(CY6,'Operating Inputs'!86:86,'Operating Inputs'!87:87)*CY8 -> 0.6 | CZ12: =LOOKUP(CZ6,'Operating Inputs'!86:86,'Operating Inputs'!87:87)*CZ8 -> 0.6 | DA12: =LOOKUP(DA6,'Operating Inputs'!86:86,'Operating Inputs'!87:87)*DA8 -> 0.6 | DB12: =LOOKUP(DB6,'Operating Inputs'!86:86,'Operating Inputs'!87:87)*DB8 -> 0.6 | DC12: =LOOKUP(DC6,'Operating Inputs'!86:86,'Operating Inputs'!87:87)*DC8 -> 0.6 | DD12: =LOOKUP(DD6,'Operating Inputs'!86:86,'Operating Inputs'!87:87)*DD8 -> 0.6 | DE12: =LOOKUP(DE6,'Operating Inputs'!86:86,'Operating Inputs'!87:87)*DE8 -> 0.6 | DF12: =LOOKUP(DF6,'Operating Inputs'!86:86,'Operating Inputs'!87:87)*DF8 -> 0.6 | DG12: =LOOKUP(DG6,'Operating Inputs'!86:86,'Operating Inputs'!87:87)*DG8 -> 0.6 | DH12: =LOOKUP(DH6,'Operating Inputs'!86:86,'Operating Inputs'!87:87)*DH8 -> 0.6 | DI12: =LOOKUP(DI6,'Operating Inputs'!86:86,'Operating Inputs'!87:87)*DI8 -> 0.6 | DJ12: =LOOKUP(DJ6,'Operating Inputs'!86:86,'Operating Inputs'!87:87)*DJ8 -> 0.6 | DK12: =LOOKUP(DK6,'Operating Inputs'!86:86,'Operating Inputs'!87:87)*DK8 -> 0.6 | DL12: =LOOKUP(DL6,'Operating Inputs'!86:86,'Operating Inputs'!87:87)*DL8 -> 0.6 | DM12: =LOOKUP(DM6,'Operating Inputs'!86:86,'Operating Inputs'!87:87)*DM8 -> 0.6 | DN12: =LOOKUP(DN6,'Operating Inputs'!86:86,'Operating Inputs'!87:87)*DN8 -> 0.6 | DO12: =LOOKUP(DO6,'Operating Inputs'!86:86,'Operating Inputs'!87:87)*DO8 -> 0.6 | DP12: =LOOKUP(DP6,'Operating Inputs'!86:86,'Operating Inputs'!87:87)*DP8 -> 0.6 | DQ12: =LOOKUP(DQ6,'Operating Inputs'!86:86,'Operating Inputs'!87:87)*DQ8 -> 0.6 | DR12: =LOOKUP(DR6,'Operating Inputs'!86:86,'Operating Inputs'!87:87)*DR8 -> 0.6 | DS12: =LOOKUP(DS6,'Operating Inputs'!86:86,'Operating Inputs'!87:87)*DS8 -> 0.6 | DT12: =LOOKUP(DT6,'Operating Inputs'!86:86,'Operating Inputs'!87:87)*DT8 -> 0.6 | DU12: =LOOKUP(DU6,'Operating Inputs'!86:86,'Operating Inputs'!87:87)*DU8 -> 0.6 | DV12: =LOOKUP(DV6,'Operating Inputs'!86:86,'Operating Inputs'!87:87)*DV8 -> 0.6 | DW12: =LOOKUP(DW6,'Operating Inputs'!86:86,'Operating Inputs'!87:87)*DW8 -> 0.6 | DX12: =LOOKUP(DX6,'Operating Inputs'!86:86,'Operating Inputs'!87:87)*DX8 -> 0.6 | DY12: =LOOKUP(DY6,'Operating Inputs'!86:86,'Operating Inputs'!87:87)*DY8 -> 0.6 | DZ12: =LOOKUP(DZ6,'Operating Inputs'!86:86,'Operating Inputs'!87:87)*DZ8 -> 0.6 | EA12: =LOOKUP(EA6,'Operating Inputs'!86:86,'Operating Inputs'!87:87)*EA8 -> 0 | EB12: =LOOKUP(EB6,'Operating Inputs'!86:86,'Operating Inputs'!87:87)*EB8 -> 0 | EC12: =LOOKUP(EC6,'Operating Inputs'!86:86,'Operating Inputs'!87:87)*EC8 -> 0 | ED12: =LOOKUP(ED6,'Operating Inputs'!86:86,'Operating Inputs'!87:87)*ED8 -> 0 | EE12: =LOOKUP(EE6,'Operating Inputs'!86:86,'Operating Inputs'!87:87)*EE8 -> 0 | EF12: =LOOKUP(EF6,'Operating Inputs'!86:86,'Operating Inputs'!87:87)*EF8 -> 0 | EG12: =LOOKUP(EG6,'Operating Inputs'!86:86,'Operating Inputs'!87:87)*EG8 -> 0 | EH12: =LOOKUP(EH6,'Operating Inputs'!86:86,'Operating Inputs'!87:87)*EH8 -> 0 | EI12: =LOOKUP(EI6,'Operating Inputs'!86:86,'Operating Inputs'!87:87)*EI8 -> 0 | EJ12: =LOOKUP(EJ6,'Operating Inputs'!86:86,'Operating Inputs'!87:87)*EJ8 -> 0 | EK12: =LOOKUP(EK6,'Operating Inputs'!86:86,'Operating Inputs'!87:87)*EK8 -> 0 | EL12: =LOOKUP(EL6,'Operating Inputs'!86:86,'Operating Inputs'!87:87)*EL8 -> 0 | EM12: =LOOKUP(EM6,'Operating Inputs'!86:86,'Operating Inputs'!87:87)*EM8 -> 0 | EN12: =LOOKUP(EN6,'Operating Inputs'!86:86,'Operating Inputs'!87:87)*EN8 -> 0 | EO12: =LOOKUP(EO6,'Operating Inputs'!86:86,'Operating Inputs'!87:87)*EO8 -> 0 | EP12: =LOOKUP(EP6,'Operating Inputs'!86:86,'Operating Inputs'!87:87)*EP8 -> 0 | EQ12: =LOOKUP(EQ6,'Operating Inputs'!86:86,'Operating Inputs'!87:87)*EQ8 -> 0 | ER12: =LOOKUP(ER6,'Operating Inputs'!86:86,'Operating Inputs'!87:87)*ER8 -> 0 | ES12: =LOOKUP(ES6,'Operating Inputs'!86:86,'Operating Inputs'!87:87)*ES8 -> 0 | ET12: =LOOKUP(ET6,'Operating Inputs'!86:86,'Operating Inputs'!87:87)*ET8 -> 0 | EU12: =LOOKUP(EU6,'Operating Inputs'!86:86,'Operating Inputs'!87:87)*EU8 -> 0 | EV12: =LOOKUP(EV6,'Operating Inputs'!86:86,'Operating Inputs'!87:87)*EV8 -> 0 | EW12: =LOOKUP(EW6,'Operating Inputs'!86:86,'Operating Inputs'!87:87)*EW8 -> 0 | EX12: =LOOKUP(EX6,'Operating Inputs'!86:86,'Operating Inputs'!87:87)*EX8 -> 0 | EY12: =LOOKUP(EY6,'Operating Inputs'!86:86,'Operating Inputs'!87:87)*EY8 -> 0 | EZ12: =LOOKUP(EZ6,'Operating Inputs'!86:86,'Operating Inputs'!87:87)*EZ8 -> 0 | FA12: =LOOKUP(FA6,'Operating Inputs'!86:86,'Operating Inputs'!87:87)*FA8 -> 0 | FB12: =LOOKUP(FB6,'Operating Inputs'!86:86,'Operating Inputs'!87:87)*FB8 -> 0 | FC12: =LOOKUP(FC6,'Operating Inputs'!86:86,'Operating Inputs'!87:87)*FC8 -> 0 | FD12: =LOOKUP(FD6,'Operating Inputs'!86:86,'Operating Inputs'!87:87)*FD8 -> 0 | FE12: =LOOKUP(FE6,'Operating Inputs'!86:86,'Operating Inputs'!87:87)*FE8 -> 0 | FF12: =LOOKUP(FF6,'Operating Inputs'!86:86,'Operating Inputs'!87:87)*FF8 -> 0 | FG12: =LOOKUP(FG6,'Operating Inputs'!86:86,'Operating Inputs'!87:87)*FG8 -> 0
C13: Days in period | F13: days | N13: =N7-N6+1 -> 31 | O13: 30 | P13: 31 | Q13: 30 | R13: 31 | S13: 31 | T13: 30 | U13: 31 | V13: 30 | W13: 31 | X13: 31 | Y13: 28 | Z13: 31 | AA13: 30 | AB13: 31 | AC13: 30 | AD13: 31 | AE13: 31 | AF13: 30 | AG13: 31 | AH13: 30 | AI13: 31 | AJ13: 31 | AK13: 28 | AL13: 31 | AM13: 30 | AN13: 31 | AO13: 30 | AP13: 31 | AQ13: 31 | AR13: 30 | AS13: 31 | AT13: =AT7-AT6+1 -> 30 | AU13: 31 | AV13: 31 | AW13: 28 | AX13: 31 | AY13: 30 | AZ13: 31 | BA13: 30 | BB13: 31 | BC13: 31 | BD13: 30 | BE13: 31 | BF13: 30 | BG13: 31 | BH13: 31 | BI13: 182 | BJ13: 184 | BK13: 181 | BL13: 184 | BM13: 181 | BN13: 184 | BO13: 181 | BP13: 184 | BQ13: 182 | BR13: 184 | BS13: 181 | BT13: 184 | BU13: 181 | BV13: 184 | BW13: 181 | BX13: 184 | BY13: 182 | BZ13: =BZ7-BZ6+1 -> 184 | CA13: 181 | CB13: 184 | CC13: 181 | CD13: 184 | CE13: 181 | CF13: 184 | CG13: 182 | CH13: 184 | CI13: 181 | CJ13: 184 | CK13: 181 | CL13: 184 | CM13: 181 | CN13: 184 | CO13: 182 | CP13: 184 | CQ13: 181 | CR13: 184 | CS13: 181 | CT13: 184 | CU13: 181 | CV13: 184 | CW13: 182 | CX13: 184 | CY13: 181 | CZ13: 184 | DA13: 181 | DB13: 184 | DC13: 181 | DD13: 184 | DE13: 182 | DF13: =DF7-DF6+1 -> 184 | DG13: 181 | DH13: 184 | DI13: 181 | DJ13: 184 | DK13: 181 | DL13: 184 | DM13: 182 | DN13: 184 | DO13: 181 | DP13: 184 | DQ13: 181 | DR13: 184 | DS13: 181 | DT13: 184 | DU13: 182 | DV13: 184 | DW13: 181 | DX13: 184 | DY13: 181 | DZ13: 184 | EA13: 181 | EB13: 184 | EC13: 182 | ED13: 184 | EE13: 181 | EF13: 184 | EG13: 181 | EH13: 184 | EI13: 181 | EJ13: 184 | EK13: 182 | EL13: =EL7-EL6+1 -> 184 | EM13: 181 | EN13: 184 | EO13: 181 | EP13: 184 | EQ13: 181 | ER13: 184 | ES13: 182 | ET13: 184 | EU13: 181 | EV13: 184 | EW13: 181 | EX13: 184 | EY13: 181 | EZ13: 184 | FA13: 182 | FB13: 184 | FC13: 181 | FD13: 184 | FE13: 181 | FF13: 184 | FG13: 181
C14: Hours in period | F14: hours | N14: =N13*Hours_per_day -> 744 | O14: 720 | P14: 744 | Q14: 720 | R14: 744 | S14: 744 | T14: 720 | U14: 744 | V14: 720 | W14: 744 | X14: 744 | Y14: 672 | Z14: 744 | AA14: 720 | AB14: 744 | AC14: 720 | AD14: 744 | AE14: 744 | AF14: 720 | AG14: 744 | AH14: 720 | AI14: 744 | AJ14: 744 | AK14: 672 | AL14: 744 | AM14: 720 | AN14: 744 | AO14: 720 | AP14: 744 | AQ14: 744 | AR14: 720 | AS14: 744 | AT14: =AT13*Hours_per_day -> 720 | AU14: 744 | AV14: 744 | AW14: 672 | AX14: 744 | AY14: 720 | AZ14: 744 | BA14: 720 | BB14: 744 | BC14: 744 | BD14: 720 | BE14: 744 | BF14: 720 | BG14: 744 | BH14: 744 | BI14: 4368 | BJ14: 4416 | BK14: 4344 | BL14: 4416 | BM14: 4344 | BN14: 4416 | BO14: 4344 | BP14: 4416 | BQ14: 4368 | BR14: 4416 | BS14: 4344 | BT14: 4416 | BU14: 4344 | BV14: 4416 | BW14: 4344 | BX14: 4416 | BY14: 4368 | BZ14: =BZ13*Hours_per_day -> 4416 | CA14: 4344 | CB14: 4416 | CC14: 4344 | CD14: 4416 | CE14: 4344 | CF14: 4416 | CG14: 4368 | CH14: 4416 | CI14: 4344 | CJ14: 4416 | CK14: 4344 | CL14: 4416 | CM14: 4344 | CN14: 4416 | CO14: 4368 | CP14: 4416 | CQ14: 4344 | CR14: 4416 | CS14: 4344 | CT14: 4416 | CU14: 4344 | CV14: 4416 | CW14: 4368 | CX14: 4416 | CY14: 4344 | CZ14: 4416 | DA14: 4344 | DB14: 4416 | DC14: 4344 | DD14: 4416 | DE14: 4368 | DF14: =DF13*Hours_per_day -> 4416 | DG14: 4344 | DH14: 4416 | DI14: 4344 | DJ14: 4416 | DK14: 4344 | DL14: 4416 | DM14: 4368 | DN14: 4416 | DO14: 4344 | DP14: 4416 | DQ14: 4344 | DR14: 4416 | DS14: 4344 | DT14: 4416 | DU14: 4368 | DV14: 4416 | DW14: 4344 | DX14: 4416 | DY14: 4344 | DZ14: 4416 | EA14: 4344 | EB14: 4416 | EC14: 4368 | ED14: 4416 | EE14: 4344 | EF14: 4416 | EG14: 4344 | EH14: 4416 | EI14: 4344 | EJ14: 4416 | EK14: 4368 | EL14: =EL13*Hours_per_day -> 4416 | EM14: 4344 | EN14: 4416 | EO14: 4344 | EP14: 4416 | EQ14: 4344 | ER14: 4416 | ES14: 4368 | ET14: 4416 | EU14: 4344 | EV14: 4416 | EW14: 4344 | EX14: 4416 | EY14: 4344 | EZ14: 4416 | FA14: 4368 | FB14: 4416 | FC14: 4344 | FD14: 4416 | FE14: 4344 | FF14: 4416 | FG14: 4344
C15: Generation | F15: mwh | G15: ='Control Page'!G15 -> 1.01 | N15: =N11*N14*N12*$G$15 -> 0 | O15: =O11*O14*O12*$G$15 -> 0 | P15: 0 | Q15: 0 | R15: 0 | S15: 0 | T15: 0 | U15: 0 | V15: 0 | W15: 0 | X15: 0 | Y15: 0 | Z15: 0 | AA15: 0 | AB15: 0 | AC15: 0 | AD15: 0 | AE15: 0 | AF15: 0 | AG15: 0 | AH15: 0 | AI15: 0 | AJ15: 0 | AK15: 0 | AL15: 0 | AM15: 0 | AN15: 0 | AO15: 0 | AP15: 0 | AQ15: 0 | AR15: 0 | AS15: 0 | AT15: 0 | AU15: 0 | AV15: 0 | AW15: 0 | AX15: 0 | AY15: 0 | AZ15: 0 | BA15: 0 | BB15: 0 | BC15: 0 | BD15: 0 | BE15: 0 | BF15: 0 | BG15: 0 | BH15: 0 | BI15: 4852848 | BJ15: 5173785.6 | BK15: 5264928 | BL15: 5352192 | BM15: 5264928 | BN15: 5352192 | BO15: 5264928 | BP15: 5352192 | BQ15: 5294016 | BR15: 5352192 | BS15: 5264928 | BT15: 5352192 | BU15: 5264928 | BV15: 5352192 | BW15: 5264928 | BX15: 5352192 | BY15: 5294016 | BZ15: 5352192 | CA15: =CA11*CA14*CA12*$G$15 -> 5264928 | CB15: 5352192 | CC15: 5264928 | CD15: 5352192 | CE15: 5264928 | CF15: 5352192 | CG15: 5294016 | CH15: 5352192 | CI15: 5264928 | CJ15: 5352192 | CK15: 5264928 | CL15: 5352192 | CM15: 5264928 | CN15: 5352192 | CO15: 5294016 | CP15: 5352192 | CQ15: 5264928 | CR15: 5352192 | CS15: 5264928 | CT15: 5352192 | CU15: 5264928 | CV15: 5352192 | CW15: 5294016 | CX15: 5352192 | CY15: 5264928 | CZ15: 5352192 | DA15: 5264928 | DB15: 5352192 | DC15: 5264928 | DD15: 5352192 | DE15: 5294016 | DF15: 5352192 | DG15: 5264928 | DH15: 5352192 | DI15: 5264928 | DJ15: 5352192 | DK15: 5264928 | DL15: 5352192 | DM15: 5294016 | DN15: 5352192 | DO15: 5264928 | DP15: 5352192 | DQ15: 5264928 | DR15: 5352192 | DS15: 5264928 | DT15: 5352192 | DU15: 5294016 | DV15: 5352192 | DW15: 5264928 | DX15: 5352192 | DY15: 5264928 | DZ15: 5352192 | EA15: 0 | EB15: 0 | EC15: 0 | ED15: 0 | EE15: 0 | EF15: 0 | EG15: 0 | EH15: 0 | EI15: 0 | EJ15: 0 | EK15: 0 | EL15: 0 | EM15: =EM11*EM14*EM12*$G$15 -> 0 | EN15: 0 | EO15: 0 | EP15: 0 | EQ15: 0 | ER15: 0 | ES15: 0 | ET15: 0 | EU15: 0 | EV15: 0 | EW15: 0 | EX15: 0 | EY15: 0 | EZ15: 0 | FA15: 0 | FB15: 0 | FC15: 0 | FD15: 0 | FE15: 0 | FF15: 0 | FG15: 0
B17: CAPEX
C18: Development period | F18: flag | G18: =Model_Start_Date -> 2020-03-01 | I18: =FC_date -> 2021-02-01 | K18: =SUM(N18:FG18) -> 11 | N18: =AND(N$6>=$G18,N$6<$I18)*1 -> 1 | O18: 1 | P18: 1 | Q18: 1 | R18: 1 | S18: 1 | T18: 1 | U18: 1 | V18: 1 | W18: 1 | X18: 1 | Y18: 0 | Z18: 0 | AA18: 0 | AB18: 0 | AC18: 0 | AD18: 0 | AE18: 0 | AF18: 0 | AG18: 0 | AH18: 0 | AI18: 0 | AJ18: 0 | AK18: 0 | AL18: 0 | AM18: 0 | AN18: 0 | AO18: 0 | AP18: 0 | AQ18: 0 | AR18: 0 | AS18: 0 | AT18: =AND(AT$6>=$G18,AT$6<$I18)*1 -> 0 | AU18: 0 | AV18: 0 | AW18: 0 | AX18: 0 | AY18: 0 | AZ18: 0 | BA18: 0 | BB18: 0 | BC18: 0 | BD18: 0 | BE18: 0 | BF18: 0 | BG18: 0 | BH18: 0 | BI18: 0 | BJ18: 0 | BK18: 0 | BL18: 0 | BM18: 0 | BN18: 0 | BO18: 0 | BP18: 0 | BQ18: 0 | BR18: 0 | BS18: 0 | BT18: 0 | BU18: 0 | BV18: 0 | BW18: 0 | BX18: 0 | BY18: 0 | BZ18: =AND(BZ$6>=$G18,BZ$6<$I18)*1 -> 0 | CA18: 0 | CB18: 0 | CC18: 0 | CD18: 0 | CE18: 0 | CF18: 0 | CG18: 0 | CH18: 0 | CI18: 0 | CJ18: 0 | CK18: 0 | CL18: 0 | CM18: 0 | CN18: 0 | CO18: 0 | CP18: 0 | CQ18: 0 | CR18: 0 | CS18: 0 | CT18: 0 | CU18: 0 | CV18: 0 | CW18: 0 | CX18: 0 | CY18: 0 | CZ18: 0 | DA18: 0 | DB18: 0 | DC18: 0 | DD18: 0 | DE18: 0 | DF18: =AND(DF$6>=$G18,DF$6<$I18)*1 -> 0 | DG18: 0 | DH18: 0 | DI18: 0 | DJ18: 0 | DK18: 0 | DL18: 0 | DM18: 0 | DN18: 0 | DO18: 0 | DP18: 0 | DQ18: 0 | DR18: 0 | DS18: 0 | DT18: 0 | DU18: 0 | DV18: 0 | DW18: 0 | DX18: 0 | DY18: 0 | DZ18: 0 | EA18: 0 | EB18: 0 | EC18: 0 | ED18: 0 | EE18: 0 | EF18: 0 | EG18: 0 | EH18: 0 | EI18: 0 | EJ18: 0 | EK18: 0 | EL18: =AND(EL$6>=$G18,EL$6<$I18)*1 -> 0 | EM18: 0 | EN18: 0 | EO18: 0 | EP18: 0 | EQ18: 0 | ER18: 0 | ES18: 0 | ET18: 0 | EU18: 0 | EV18: 0 | EW18: 0 | EX18: 0 | EY18: 0 | EZ18: 0 | FA18: 0 | FB18: 0 | FC18: 0 | FD18: 0 | FE18: 0 | FF18: 0 | FG18: 0
C19: Development expenditure | F19: KUSD | G19: ='Operating Inputs'!H27 -> 100000 | I19: ='Operating Inputs'!H7 -> 11 | K19: =SUM(N19:FG19) -> 100000 | N19: =$G19/$I19*N18 -> 9090.909091 | O19: 9090.909091 | P19: 9090.909091 | Q19: 9090.909091 | R19: 9090.909091 | S19: 9090.909091 | T19: 9090.909091 | U19: 9090.909091 | V19: 9090.909091 | W19: 9090.909091 | X19: 9090.909091 | Y19: 0 | Z19: 0 | AA19: 0 | AB19: 0 | AC19: 0 | AD19: 0 | AE19: 0 | AF19: 0 | AG19: 0 | AH19: 0 | AI19: 0 | AJ19: 0 | AK19: 0 | AL19: 0 | AM19: 0 | AN19: 0 | AO19: 0 | AP19: 0 | AQ19: 0 | AR19: 0 | AS19: 0 | AT19: =$G19/$I19*AT18 -> 0 | AU19: 0 | AV19: 0 | AW19: 0 | AX19: 0 | AY19: 0 | AZ19: 0 | BA19: 0 | BB19: 0 | BC19: 0 | BD19: 0 | BE19: 0 | BF19: 0 | BG19: 0 | BH19: 0 | BI19: 0 | BJ19: 0 | BK19: 0 | BL19: 0 | BM19: 0 | BN19: 0 | BO19: 0 | BP19: 0 | BQ19: 0 | BR19: 0 | BS19: 0 | BT19: 0 | BU19: 0 | BV19: 0 | BW19: 0 | BX19: 0 | BY19: 0 | BZ19: =$G19/$I19*BZ18 -> 0 | CA19: 0 | CB19: 0 | CC19: 0 | CD19: 0 | CE19: 0 | CF19: 0 | CG19: 0 | CH19: 0 | CI19: 0 | CJ19: 0 | CK19: 0 | CL19: 0 | CM19: 0 | CN19: 0 | CO19: 0 | CP19: 0 | CQ19: 0 | CR19: 0 | CS19: 0 | CT19: 0 | CU19: 0 | CV19: 0 | CW19: 0 | CX19: 0 | CY19: 0 | CZ19: 0 | DA19: 0 | DB19: 0 | DC19: 0 | DD19: 0 | DE19: 0 | DF19: =$G19/$I19*DF18 -> 0 | DG19: 0 | DH19: 0 | DI19: 0 | DJ19: 0 | DK19: 0 | DL19: 0 | DM19: 0 | DN19: 0 | DO19: 0 | DP19: 0 | DQ19: 0 | DR19: 0 | DS19: 0 | DT19: 0 | DU19: 0 | DV19: 0 | DW19: 0 | DX19: 0 | DY19: 0 | DZ19: 0 | EA19: 0 | EB19: 0 | EC19: 0 | ED19: 0 | EE19: 0 | EF19: 0 | EG19: 0 | EH19: 0 | EI19: 0 | EJ19: 0 | EK19: 0 | EL19: =$G19/$I19*EL18 -> 0 | EM19: 0 | EN19: 0 | EO19: 0 | EP19: 0 | EQ19: 0 | ER19: 0 | ES19: 0 | ET19: 0 | EU19: 0 | EV19: 0 | EW19: 0 | EX19: 0 | EY19: 0 | EZ19: 0 | FA19: 0 | FB19: 0 | FC19: 0 | FD19: 0 | FE19: 0 | FF19: 0 | FG19: 0
C20: Construction period | F20: flag
C21: CAPEX/kw | F21: usd/kw | G21: ='Operating Inputs'!H33*I21 -> 1870 | I21: ='Control Page'!E36/100 -> 1.1 | N21: =$G$21*N4 -> 1870 | O21: 1870 | P21: 1870 | Q21: 1870 | R21: 1870 | S21: 1870 | T21: 1870 | U21: 1870 | V21: 1870 | W21: 1870 | X21: 1870 | Y21: 1870 | Z21: 1870 | AA21: 1870 | AB21: 1870 | AC21: 1870 | AD21: 1870 | AE21: 1870 | AF21: 1870 | AG21: 1870 | AH21: 1870 | AI21: 1870 | AJ21: 1870 | AK21: 1870 | AL21: 1870 | AM21: 1870 | AN21: 1870 | AO21: 1870 | AP21: 1870 | AQ21: 1870 | AR21: 1870 | AS21: 1870 | AT21: =$G$21*AT4 -> 1870 | AU21: 1870 | AV21: 1870 | AW21: 1870 | AX21: 1870 | AY21: 1870 | AZ21: 1870 | BA21: 1870 | BB21: 1870 | BC21: 1870 | BD21: 1870 | BE21: 1870 | BF21: 1870 | BG21: 1870 | BH21: 1870 | BI21: 0 | BJ21: 0 | BK21: 0 | BL21: 0 | BM21: 0 | BN21: 0 | BO21: 0 | BP21: 0 | BQ21: 0 | BR21: 0 | BS21: 0 | BT21: 0 | BU21: 0 | BV21: 0 | BW21: 0 | BX21: 0 | BY21: 0 | BZ21: =$G$21*BZ4 -> 0 | CA21: 0 | CB21: 0 | CC21: 0 | CD21: 0 | CE21: 0 | CF21: 0 | CG21: 0 | CH21: 0 | CI21: 0 | CJ21: 0 | CK21: 0 | CL21: 0 | CM21: 0 | CN21: 0 | CO21: 0 | CP21: 0 | CQ21: 0 | CR21: 0 | CS21: 0 | CT21: 0 | CU21: 0 | CV21: 0 | CW21: 0 | CX21: 0 | CY21: 0 | CZ21: 0 | DA21: 0 | DB21: 0 | DC21: 0 | DD21: 0 | DE21: 0 | DF21: =$G$21*DF4 -> 0 | DG21: 0 | DH21: 0 | DI21: 0 | DJ21: 0 | DK21: 0 | DL21: 0 | DM21: 0 | DN21: 0 | DO21: 0 | DP21: 0 | DQ21: 0 | DR21: 0 | DS21: 0 | DT21: 0 | DU21: 0 | DV21: 0 | DW21: 0 | DX21: 0 | DY21: 0 | DZ21: 0 | EA21: 0 | EB21: 0 | EC21: 0 | ED21: 0 | EE21: 0 | EF21: 0 | EG21: 0 | EH21: 0 | EI21: 0 | EJ21: 0 | EK21: 0 | EL21: =$G$21*EL4 -> 0 | EM21: 0 | EN21: 0 | EO21: 0 | EP21: 0 | EQ21: 0 | ER21: 0 | ES21: 0 | ET21: 0 | EU21: 0 | EV21: 0 | EW21: 0 | EX21: 0 | EY21: 0 | EZ21: 0 | FA21: 0 | FB21: 0 | FC21: 0 | FD21: 0 | FE21: 0 | FF21: 0 | FG21: 0
C22: Total CAPEX | F22: KUSD | G22: =G21*G11 -> 3740000 | K22: =SUM(N22:FG22) -> 175780000 | N22: =$G$22*N4 -> 3740000 | O22: 3740000 | P22: 3740000 | Q22: 3740000 | R22: 3740000 | S22: 3740000 | T22: 3740000 | U22: 3740000 | V22: 3740000 | W22: 3740000 | X22: 3740000 | Y22: 3740000 | Z22: 3740000 | AA22: 3740000 | AB22: 3740000 | AC22: 3740000 | AD22: 3740000 | AE22: 3740000 | AF22: 3740000 | AG22: 3740000 | AH22: 3740000 | AI22: 3740000 | AJ22: 3740000 | AK22: 3740000 | AL22: 3740000 | AM22: 3740000 | AN22: 3740000 | AO22: 3740000 | AP22: 3740000 | AQ22: 3740000 | AR22: 3740000 | AS22: 3740000 | AT22: =$G$22*AT4 -> 3740000 | AU22: 3740000 | AV22: 3740000 | AW22: 3740000 | AX22: 3740000 | AY22: 3740000 | AZ22: 3740000 | BA22: 3740000 | BB22: 3740000 | BC22: 3740000 | BD22: 3740000 | BE22: 3740000 | BF22: 3740000 | BG22: 3740000 | BH22: 3740000 | BI22: 0 | BJ22: 0 | BK22: 0 | BL22: 0 | BM22: 0 | BN22: 0 | BO22: 0 | BP22: 0 | BQ22: 0 | BR22: 0 | BS22: 0 | BT22: 0 | BU22: 0 | BV22: 0 | BW22: 0 | BX22: 0 | BY22: 0 | BZ22: =$G$22*BZ4 -> 0 | CA22: 0 | CB22: 0 | CC22: 0 | CD22: 0 | CE22: 0 | CF22: 0 | CG22: 0 | CH22: 0 | CI22: 0 | CJ22: 0 | CK22: 0 | CL22: 0 | CM22: 0 | CN22: 0 | CO22: 0 | CP22: 0 | CQ22: 0 | CR22: 0 | CS22: 0 | CT22: 0 | CU22: 0 | CV22: 0 | CW22: 0 | CX22: 0 | CY22: 0 | CZ22: 0 | DA22: 0 | DB22: 0 | DC22: 0 | DD22: 0 | DE22: 0 | DF22: =$G$22*DF4 -> 0 | DG22: 0 | DH22: 0 | DI22: 0 | DJ22: 0 | DK22: 0 | DL22: 0 | DM22: 0 | DN22: 0 | DO22: 0 | DP22: 0 | DQ22: 0 | DR22: 0 | DS22: 0 | DT22: 0 | DU22: 0 | DV22: 0 | DW22: 0 | DX22: 0 | DY22: 0 | DZ22: 0 | EA22: 0 | EB22: 0 | EC22: 0 | ED22: 0 | EE22: 0 | EF22: 0 | EG22: 0 | EH22: 0 | EI22: 0 | EJ22: 0 | EK22: 0 | EL22: =$G$22*EL4 -> 0 | EM22: 0 | EN22: 0 | EO22: 0 | EP22: 0 | EQ22: 0 | ER22: 0 | ES22: 0 | ET22: 0 | EU22: 0 | EV22: 0 | EW22: 0 | EX22: 0 | EY22: 0 | EZ22: 0 | FA22: 0 | FB22: 0 | FC22: 0 | FD22: 0 | FE22: 0 | FF22: 0 | FG22: 0
C23: S-curve | F23: % | K23: =SUM(N23:FG23) -> 1 | L23: =K23=1 -> TRUE | N23: =LOOKUP(N6,'Operating Inputs'!45:45,'Operating Inputs'!48:48) -> 0 | O23: =LOOKUP(O6,'Operating Inputs'!45:45,'Operating Inputs'!48:48) -> 0 | P23: =LOOKUP(P6,'Operating Inputs'!45:45,'Operating Inputs'!48:48) -> 0 | Q23: =LOOKUP(Q6,'Operating Inputs'!45:45,'Operating Inputs'!48:48) -> 0 | R23: =LOOKUP(R6,'Operating Inputs'!45:45,'Operating Inputs'!48:48) -> 0 | S23: =LOOKUP(S6,'Operating Inputs'!45:45,'Operating Inputs'!48:48) -> 0 | T23: =LOOKUP(T6,'Operating Inputs'!45:45,'Operating Inputs'!48:48) -> 0 | U23: =LOOKUP(U6,'Operating Inputs'!45:45,'Operating Inputs'!48:48) -> 0 | V23: =LOOKUP(V6,'Operating Inputs'!45:45,'Operating Inputs'!48:48) -> 0 | W23: =LOOKUP(W6,'Operating Inputs'!45:45,'Operating Inputs'!48:48) -> 0 | X23: =LOOKUP(X6,'Operating Inputs'!45:45,'Operating Inputs'!48:48) -> 0 | Y23: =LOOKUP(Y6,'Operating Inputs'!45:45,'Operating Inputs'!48:48) -> 0.001205234732 | Z23: =LOOKUP(Z6,'Operating Inputs'!45:45,'Operating Inputs'!48:48) -> 0.001906001667 | AA23: =LOOKUP(AA6,'Operating Inputs'!45:45,'Operating Inputs'!48:48) -> 0.002931643641 | AB23: =LOOKUP(AB6,'Operating Inputs'!45:45,'Operating Inputs'!48:48) -> 0.004385663883 | AC23: =LOOKUP(AC6,'Operating Inputs'!45:45,'Operating Inputs'!48:48) -> 0.006381103298 | AD23: =LOOKUP(AD6,'Operating Inputs'!45:45,'Operating Inputs'!48:48) -> 0.009030098137 | AE23: =LOOKUP(AE6,'Operating Inputs'!45:45,'Operating Inputs'!48:48) -> 0.01242869211 | AF23: =LOOKUP(AF6,'Operating Inputs'!45:45,'Operating Inputs'!48:48) -> 0.01663775227 | AG23: =LOOKUP(AG6,'Operating Inputs'!45:45,'Operating Inputs'!48:48) -> 0.02166207932 | AH23: =LOOKUP(AH6,'Operating Inputs'!45:45,'Operating Inputs'!48:48) -> 0.02743101607 | AI23: =LOOKUP(AI6,'Operating Inputs'!45:45,'Operating Inputs'!48:48) -> 0.03378468792 | AJ23: =LOOKUP(AJ6,'Operating Inputs'!45:45,'Operating Inputs'!48:48) -> 0.04047009213 | AK23: =LOOKUP(AK6,'Operating Inputs'!45:45,'Operating Inputs'!48:48) -> 0.04715033024 | AL23: =LOOKUP(AL6,'Operating Inputs'!45:45,'Operating Inputs'!48:48) -> 0.05342832377 | AM23: =LOOKUP(AM6,'Operating Inputs'!45:45,'Operating Inputs'!48:48) -> 0.05888363659 | AN23: =LOOKUP(AN6,'Operating Inputs'!45:45,'Operating Inputs'!48:48) -> 0.06311810663 | AO23: =LOOKUP(AO6,'Operating Inputs'!45:45,'Operating Inputs'!48:48) -> 0.06580358673 | AP23: =LOOKUP(AP6,'Operating Inputs'!45:45,'Operating Inputs'!48:48) -> 0.06672390172 | AQ23: =LOOKUP(AQ6,'Operating Inputs'!45:45,'Operating Inputs'!48:48) -> 0.06580358673 | AR23: =LOOKUP(AR6,'Operating Inputs'!45:45,'Operating Inputs'!48:48) -> 0.06311810663 | AS23: =LOOKUP(AS6,'Operating Inputs'!45:45,'Operating Inputs'!48:48) -> 0.05888363659 | AT23: =LOOKUP(AT6,'Operating Inputs'!45:45,'Operating Inputs'!48:48) -> 0.05342832377 | AU23: =LOOKUP(AU6,'Operating Inputs'!45:45,'Operating Inputs'!48:48) -> 0.04715033024 | AV23: =LOOKUP(AV6,'Operating Inputs'!45:45,'Operating Inputs'!48:48) -> 0.04047009213 | AW23: =LOOKUP(AW6,'Operating Inputs'!45:45,'Operating Inputs'!48:48) -> 0.03378468792 | AX23: =LOOKUP(AX6,'Operating Inputs'!45:45,'Operating Inputs'!48:48) -> 0.02743101607 | AY23: =LOOKUP(AY6,'Operating Inputs'!45:45,'Operating Inputs'!48:48) -> 0.02166207932 | AZ23: =LOOKUP(AZ6,'Operating Inputs'!45:45,'Operating Inputs'!48:48) -> 0.01663775227 | BA23: =LOOKUP(BA6,'Operating Inputs'!45:45,'Operating Inputs'!48:48) -> 0.01242869211 | BB23: =LOOKUP(BB6,'Operating Inputs'!45:45,'Operating Inputs'!48:48) -> 0.009030098137 | BC23: =LOOKUP(BC6,'Operating Inputs'!45:45,'Operating Inputs'!48:48) -> 0.006381103298 | BD23: =LOOKUP(BD6,'Operating Inputs'!45:45,'Operating Inputs'!48:48) -> 0.004385663883 | BE23: =LOOKUP(BE6,'Operating Inputs'!45:45,'Operating Inputs'!48:48) -> 0.002931643641 | BF23: =LOOKUP(BF6,'Operating Inputs'!45:45,'Operating Inputs'!48:48) -> 0.001906001667 | BG23: =LOOKUP(BG6,'Operating Inputs'!45:45,'Operating Inputs'!48:48) -> 0.001205234732 | BH23: =LOOKUP(BH6,'Operating Inputs'!45:45,'Operating Inputs'!48:48) -> 0 | BI23: =LOOKUP(BI6,'Operating Inputs'!45:45,'Operating Inputs'!48:48) -> 0 | BJ23: =LOOKUP(BJ6,'Operating Inputs'!45:45,'Operating Inputs'!48:48) -> 0 | BK23: =LOOKUP(BK6,'Operating Inputs'!45:45,'Operating Inputs'!48:48) -> 0 | BL23: =LOOKUP(BL6,'Operating Inputs'!45:45,'Operating Inputs'!48:48) -> 0 | BM23: =LOOKUP(BM6,'Operating Inputs'!45:45,'Operating Inputs'!48:48) -> 0 | BN23: =LOOKUP(BN6,'Operating Inputs'!45:45,'Operating Inputs'!48:48) -> 0 | BO23: =LOOKUP(BO6,'Operating Inputs'!45:45,'Operating Inputs'!48:48) -> 0 | BP23: =LOOKUP(BP6,'Operating Inputs'!45:45,'Operating Inputs'!48:48) -> 0 | BQ23: =LOOKUP(BQ6,'Operating Inputs'!45:45,'Operating Inputs'!48:48) -> 0 | BR23: =LOOKUP(BR6,'Operating Inputs'!45:45,'Operating Inputs'!48:48) -> 0 | BS23: =LOOKUP(BS6,'Operating Inputs'!45:45,'Operating Inputs'!48:48) -> 0 | BT23: =LOOKUP(BT6,'Operating Inputs'!45:45,'Operating Inputs'!48:48) -> 0 | BU23: =LOOKUP(BU6,'Operating Inputs'!45:45,'Operating Inputs'!48:48) -> 0 | BV23: =LOOKUP(BV6,'Operating Inputs'!45:45,'Operating Inputs'!48:48) -> 0 | BW23: =LOOKUP(BW6,'Operating Inputs'!45:45,'Operating Inputs'!48:48) -> 0 | BX23: =LOOKUP(BX6,'Operating Inputs'!45:45,'Operating Inputs'!48:48) -> 0 | BY23: =LOOKUP(BY6,'Operating Inputs'!45:45,'Operating Inputs'!48:48) -> 0 | BZ23: =LOOKUP(BZ6,'Operating Inputs'!45:45,'Operating Inputs'!48:48) -> 0 | CA23: =LOOKUP(CA6,'Operating Inputs'!45:45,'Operating Inputs'!48:48) -> 0 | CB23: =LOOKUP(CB6,'Operating Inputs'!45:45,'Operating Inputs'!48:48) -> 0 | CC23: =LOOKUP(CC6,'Operating Inputs'!45:45,'Operating Inputs'!48:48) -> 0 | CD23: =LOOKUP(CD6,'Operating Inputs'!45:45,'Operating Inputs'!48:48) -> 0 | CE23: =LOOKUP(CE6,'Operating Inputs'!45:45,'Operating Inputs'!48:48) -> 0 | CF23: =LOOKUP(CF6,'Operating Inputs'!45:45,'Operating Inputs'!48:48) -> 0 | CG23: =LOOKUP(CG6,'Operating Inputs'!45:45,'Operating Inputs'!48:48) -> 0 | CH23: =LOOKUP(CH6,'Operating Inputs'!45:45,'Operating Inputs'!48:48) -> 0 | CI23: =LOOKUP(CI6,'Operating Inputs'!45:45,'Operating Inputs'!48:48) -> 0 | CJ23: =LOOKUP(CJ6,'Operating Inputs'!45:45,'Operating Inputs'!48:48) -> 0 | CK23: =LOOKUP(CK6,'Operating Inputs'!45:45,'Operating Inputs'!48:48) -> 0 | CL23: =LOOKUP(CL6,'Operating Inputs'!45:45,'Operating Inputs'!48:48) -> 0 | CM23: =LOOKUP(CM6,'Operating Inputs'!45:45,'Operating Inputs'!48:48) -> 0 | CN23: =LOOKUP(CN6,'Operating Inputs'!45:45,'Operating Inputs'!48:48) -> 0 | CO23: =LOOKUP(CO6,'Operating Inputs'!45:45,'Operating Inputs'!48:48) -> 0 | CP23: =LOOKUP(CP6,'Operating Inputs'!45:45,'Operating Inputs'!48:48) -> 0 | CQ23: =LOOKUP(CQ6,'Operating Inputs'!45:45,'Operating Inputs'!48:48) -> 0 | CR23: =LOOKUP(CR6,'Operating Inputs'!45:45,'Operating Inputs'!48:48) -> 0 | CS23: =LOOKUP(CS6,'Operating Inputs'!45:45,'Operating Inputs'!48:48) -> 0 | CT23: =LOOKUP(CT6,'Operating Inputs'!45:45,'Operating Inputs'!48:48) -> 0 | CU23: =LOOKUP(CU6,'Operating Inputs'!45:45,'Operating Inputs'!48:48) -> 0 | CV23: =LOOKUP(CV6,'Operating Inputs'!45:45,'Operating Inputs'!48:48) -> 0 | CW23: =LOOKUP(CW6,'Operating Inputs'!45:45,'Operating Inputs'!48:48) -> 0 | CX23: =LOOKUP(CX6,'Operating Inputs'!45:45,'Operating Inputs'!48:48) -> 0 | CY23: =LOOKUP(CY6,'Operating Inputs'!45:45,'Operating Inputs'!48:48) -> 0 | CZ23: =LOOKUP(CZ6,'Operating Inputs'!45:45,'Operating Inputs'!48:48) -> 0 | DA23: =LOOKUP(DA6,'Operating Inputs'!45:45,'Operating Inputs'!48:48) -> 0 | DB23: =LOOKUP(DB6,'Operating Inputs'!45:45,'Operating Inputs'!48:48) -> 0 | DC23: =LOOKUP(DC6,'Operating Inputs'!45:45,'Operating Inputs'!48:48) -> 0 | DD23: =LOOKUP(DD6,'Operating Inputs'!45:45,'Operating Inputs'!48:48) -> 0 | DE23: =LOOKUP(DE6,'Operating Inputs'!45:45,'Operating Inputs'!48:48) -> 0 | DF23: =LOOKUP(DF6,'Operating Inputs'!45:45,'Operating Inputs'!48:48) -> 0 | DG23: =LOOKUP(DG6,'Operating Inputs'!45:45,'Operating Inputs'!48:48) -> 0 | DH23: =LOOKUP(DH6,'Operating Inputs'!45:45,'Operating Inputs'!48:48) -> 0 | DI23: =LOOKUP(DI6,'Operating Inputs'!45:45,'Operating Inputs'!48:48) -> 0 | DJ23: =LOOKUP(DJ6,'Operating Inputs'!45:45,'Operating Inputs'!48:48) -> 0 | DK23: =LOOKUP(DK6,'Operating Inputs'!45:45,'Operating Inputs'!48:48) -> 0 | DL23: =LOOKUP(DL6,'Operating Inputs'!45:45,'Operating Inputs'!48:48) -> 0 | DM23: =LOOKUP(DM6,'Operating Inputs'!45:45,'Operating Inputs'!48:48) -> 0 | DN23: =LOOKUP(DN6,'Operating Inputs'!45:45,'Operating Inputs'!48:48) -> 0 | DO23: =LOOKUP(DO6,'Operating Inputs'!45:45,'Operating Inputs'!48:48) -> 0 | DP23: =LOOKUP(DP6,'Operating Inputs'!45:45,'Operating Inputs'!48:48) -> 0 | DQ23: =LOOKUP(DQ6,'Operating Inputs'!45:45,'Operating Inputs'!48:48) -> 0 | DR23: =LOOKUP(DR6,'Operating Inputs'!45:45,'Operating Inputs'!48:48) -> 0 | DS23: =LOOKUP(DS6,'Operating Inputs'!45:45,'Operating Inputs'!48:48) -> 0 | DT23: =LOOKUP(DT6,'Operating Inputs'!45:45,'Operating Inputs'!48:48) -> 0 | DU23: =LOOKUP(DU6,'Operating Inputs'!45:45,'Operating Inputs'!48:48) -> 0 | DV23: =LOOKUP(DV6,'Operating Inputs'!45:45,'Operating Inputs'!48:48) -> 0 | DW23: =LOOKUP(DW6,'Operating Inputs'!45:45,'Operating Inputs'!48:48) -> 0 | DX23: =LOOKUP(DX6,'Operating Inputs'!45:45,'Operating Inputs'!48:48) -> 0 | DY23: =LOOKUP(DY6,'Operating Inputs'!45:45,'Operating Inputs'!48:48) -> 0 | DZ23: =LOOKUP(DZ6,'Operating Inputs'!45:45,'Operating Inputs'!48:48) -> 0 | EA23: =LOOKUP(EA6,'Operating Inputs'!45:45,'Operating Inputs'!48:48) -> 0 | EB23: =LOOKUP(EB6,'Operating Inputs'!45:45,'Operating Inputs'!48:48) -> 0 | EC23: =LOOKUP(EC6,'Operating Inputs'!45:45,'Operating Inputs'!48:48) -> 0 | ED23: =LOOKUP(ED6,'Operating Inputs'!45:45,'Operating Inputs'!48:48) -> 0 | EE23: =LOOKUP(EE6,'Operating Inputs'!45:45,'Operating Inputs'!48:48) -> 0 | EF23: =LOOKUP(EF6,'Operating Inputs'!45:45,'Operating Inputs'!48:48) -> 0 | EG23: =LOOKUP(EG6,'Operating Inputs'!45:45,'Operating Inputs'!48:48) -> 0 | EH23: =LOOKUP(EH6,'Operating Inputs'!45:45,'Operating Inputs'!48:48) -> 0 | EI23: =LOOKUP(EI6,'Operating Inputs'!45:45,'Operating Inputs'!48:48) -> 0 | EJ23: =LOOKUP(EJ6,'Operating Inputs'!45:45,'Operating Inputs'!48:48) -> 0 | EK23: =LOOKUP(EK6,'Operating Inputs'!45:45,'Operating Inputs'!48:48) -> 0 | EL23: =LOOKUP(EL6,'Operating Inputs'!45:45,'Operating Inputs'!48:48) -> 0 | EM23: =LOOKUP(EM6,'Operating Inputs'!45:45,'Operating Inputs'!48:48) -> 0 | EN23: =LOOKUP(EN6,'Operating Inputs'!45:45,'Operating Inputs'!48:48) -> 0 | EO23: =LOOKUP(EO6,'Operating Inputs'!45:45,'Operating Inputs'!48:48) -> 0 | EP23: =LOOKUP(EP6,'Operating Inputs'!45:45,'Operating Inputs'!48:48) -> 0 | EQ23: =LOOKUP(EQ6,'Operating Inputs'!45:45,'Operating Inputs'!48:48) -> 0 | ER23: =LOOKUP(ER6,'Operating Inputs'!45:45,'Operating Inputs'!48:48) -> 0 | ES23: =LOOKUP(ES6,'Operating Inputs'!45:45,'Operating Inputs'!48:48) -> 0 | ET23: =LOOKUP(ET6,'Operating Inputs'!45:45,'Operating Inputs'!48:48) -> 0 | EU23: =LOOKUP(EU6,'Operating Inputs'!45:45,'Operating Inputs'!48:48) -> 0 | EV23: =LOOKUP(EV6,'Operating Inputs'!45:45,'Operating Inputs'!48:48) -> 0 | EW23: =LOOKUP(EW6,'Operating Inputs'!45:45,'Operating Inputs'!48:48) -> 0 | EX23: =LOOKUP(EX6,'Operating Inputs'!45:45,'Operating Inputs'!48:48) -> 0 | EY23: =LOOKUP(EY6,'Operating Inputs'!45:45,'Operating Inputs'!48:48) -> 0 | EZ23: =LOOKUP(EZ6,'Operating Inputs'!45:45,'Operating Inputs'!48:48) -> 0 | FA23: =LOOKUP(FA6,'Operating Inputs'!45:45,'Operating Inputs'!48:48) -> 0 | FB23: =LOOKUP(FB6,'Operating Inputs'!45:45,'Operating Inputs'!48:48) -> 0 | FC23: =LOOKUP(FC6,'Operating Inputs'!45:45,'Operating Inputs'!48:48) -> 0 | FD23: =LOOKUP(FD6,'Operating Inputs'!45:45,'Operating Inputs'!48:48) -> 0 | FE23: =LOOKUP(FE6,'Operating Inputs'!45:45,'Operating Inputs'!48:48) -> 0 | FF23: =LOOKUP(FF6,'Operating Inputs'!45:45,'Operating Inputs'!48:48) -> 0 | FG23: =LOOKUP(FG6,'Operating Inputs'!45:45,'Operating Inputs'!48:48) -> 0
C24: Periodic CAPEX | F24: KUSD | K24: =SUM(N24:FG24) -> 3740000 | L24: =K24=G22 -> TRUE | N24: =N22*N23 -> 0 | O24: 0 | P24: 0 | Q24: 0 | R24: 0 | S24: 0 | T24: 0 | U24: 0 | V24: 0 | W24: 0 | X24: 0 | Y24: 4507.577898 | Z24: 7128.446234 | AA24: 10964.34722 | AB24: 16402.38292 | AC24: 23865.32633 | AD24: 33772.56703 | AE24: 46483.3085 | AF24: 62225.19349 | AG24: 81016.17667 | AH24: 102592.0001 | AI24: 126354.7328 | AJ24: 151358.1446 | AK24: 176342.2351 | AL24: 199821.9309 | AM24: 220224.8009 | AN24: 236061.7188 | AO24: 246105.4144 | AP24: 249547.3924 | AQ24: 246105.4144 | AR24: 236061.7188 | AS24: 220224.8009 | AT24: =AT22*AT23 -> 199821.9309 | AU24: 176342.2351 | AV24: 151358.1446 | AW24: 126354.7328 | AX24: 102592.0001 | AY24: 81016.17667 | AZ24: 62225.19349 | BA24: 46483.3085 | BB24: 33772.56703 | BC24: 23865.32633 | BD24: 16402.38292 | BE24: 10964.34722 | BF24: 7128.446234 | BG24: 4507.577898 | BH24: 0 | BI24: 0 | BJ24: 0 | BK24: 0 | BL24: 0 | BM24: 0 | BN24: 0 | BO24: 0 | BP24: 0 | BQ24: 0 | BR24: 0 | BS24: 0 | BT24: 0 | BU24: 0 | BV24: 0 | BW24: 0 | BX24: 0 | BY24: 0 | BZ24: =BZ22*BZ23 -> 0 | CA24: 0 | CB24: 0 | CC24: 0 | CD24: 0 | CE24: 0 | CF24: 0 | CG24: 0 | CH24: 0 | CI24: 0 | CJ24: 0 | CK24: 0 | CL24: 0 | CM24: 0 | CN24: 0 | CO24: 0 | CP24: 0 | CQ24: 0 | CR24: 0 | CS24: 0 | CT24: 0 | CU24: 0 | CV24: 0 | CW24: 0 | CX24: 0 | CY24: 0 | CZ24: 0 | DA24: 0 | DB24: 0 | DC24: 0 | DD24: 0 | DE24: 0 | DF24: =DF22*DF23 -> 0 | DG24: 0 | DH24: 0 | DI24: 0 | DJ24: 0 | DK24: 0 | DL24: 0 | DM24: 0 | DN24: 0 | DO24: 0 | DP24: 0 | DQ24: 0 | DR24: 0 | DS24: 0 | DT24: 0 | DU24: 0 | DV24: 0 | DW24: 0 | DX24: 0 | DY24: 0 | DZ24: 0 | EA24: 0 | EB24: 0 | EC24: 0 | ED24: 0 | EE24: 0 | EF24: 0 | EG24: 0 | EH24: 0 | EI24: 0 | EJ24: 0 | EK24: 0 | EL24: =EL22*EL23 -> 0 | EM24: 0 | EN24: 0 | EO24: 0 | EP24: 0 | EQ24: 0 | ER24: 0 | ES24: 0 | ET24: 0 | EU24: 0 | EV24: 0 | EW24: 0 | EX24: 0 | EY24: 0 | EZ24: 0 | FA24: 0 | FB24: 0 | FC24: 0 | FD24: 0 | FE24: 0 | FF24: 0 | FG24: 0
C26: EPC Fee | F26: kUSD | G26: ='Operating Inputs'!H34 -> 0.03 | K26: =SUM(N26:FG26) -> 112200 | N26: =N24*$G$26 -> 0 | O26: =O24*$G$26 -> 0 | P26: 0 | Q26: 0 | R26: 0 | S26: 0 | T26: 0 | U26: 0 | V26: 0 | W26: 0 | X26: 0 | Y26: 135.2273369 | Z26: 213.853387 | AA26: 328.9304165 | AB26: 492.0714877 | AC26: 715.95979 | AD26: 1013.177011 | AE26: 1394.499255 | AF26: 1866.755805 | AG26: 2430.4853 | AH26: 3077.760003 | AI26: 3790.641985 | AJ26: 4540.744337 | AK26: 5290.267053 | AL26: 5994.657927 | AM26: 6606.744026 | AN26: 7081.851564 | AO26: 7383.162431 | AP26: 7486.421773 | AQ26: 7383.162431 | AR26: 7081.851564 | AS26: 6606.744026 | AT26: 5994.657927 | AU26: 5290.267053 | AV26: 4540.744337 | AW26: 3790.641985 | AX26: 3077.760003 | AY26: 2430.4853 | AZ26: 1866.755805 | BA26: 1394.499255 | BB26: 1013.177011 | BC26: 715.95979 | BD26: 492.0714877 | BE26: 328.9304165 | BF26: 213.853387 | BG26: 135.2273369 | BH26: 0 | BI26: 0 | BJ26: 0 | BK26: 0 | BL26: 0 | BM26: 0 | BN26: 0 | BO26: 0 | BP26: 0 | BQ26: 0 | BR26: 0 | BS26: 0 | BT26: 0 | BU26: 0 | BV26: 0 | BW26: 0 | BX26: 0 | BY26: 0 | BZ26: 0 | CA26: =CA24*$G$26 -> 0 | CB26: 0 | CC26: 0 | CD26: 0 | CE26: 0 | CF26: 0 | CG26: 0 | CH26: 0 | CI26: 0 | CJ26: 0 | CK26: 0 | CL26: 0 | CM26: 0 | CN26: 0 | CO26: 0 | CP26: 0 | CQ26: 0 | CR26: 0 | CS26: 0 | CT26: 0 | CU26: 0 | CV26: 0 | CW26: 0 | CX26: 0 | CY26: 0 | CZ26: 0 | DA26: 0 | DB26: 0 | DC26: 0 | DD26: 0 | DE26: 0 | DF26: 0 | DG26: 0 | DH26: 0 | DI26: 0 | DJ26: 0 | DK26: 0 | DL26: 0 | DM26: 0 | DN26: 0 | DO26: 0 | DP26: 0 | DQ26: 0 | DR26: 0 | DS26: 0 | DT26: 0 | DU26: 0 | DV26: 0 | DW26: 0 | DX26: 0 | DY26: 0 | DZ26: 0 | EA26: 0 | EB26: 0 | EC26: 0 | ED26: 0 | EE26: 0 | EF26: 0 | EG26: 0 | EH26: 0 | EI26: 0 | EJ26: 0 | EK26: 0 | EL26: 0 | EM26: =EM24*$G$26 -> 0 | EN26: 0 | EO26: 0 | EP26: 0 | EQ26: 0 | ER26: 0 | ES26: 0 | ET26: 0 | EU26: 0 | EV26: 0 | EW26: 0 | EX26: 0 | EY26: 0 | EZ26: 0 | FA26: 0 | FB26: 0 | FC26: 0 | FD26: 0 | FE26: 0 | FF26: 0 | FG26: 0
B28: O&M
C29: Inflation period | F29: flag | G29: =Inflation_start_date -> 2022-01-01 | N29: =IF(N6>=$G$29,1,0) -> 0 | O29: 0 | P29: 0 | Q29: 0 | R29: 0 | S29: 0 | T29: 0 | U29: 0 | V29: 0 | W29: 0 | X29: 0 | Y29: 0 | Z29: 0 | AA29: 0 | AB29: 0 | AC29: 0 | AD29: 0 | AE29: 0 | AF29: 0 | AG29: 0 | AH29: 0 | AI29: 0 | AJ29: 1 | AK29: 1 | AL29: 1 | AM29: 1 | AN29: 1 | AO29: 1 | AP29: 1 | AQ29: 1 | AR29: 1 | AS29: 1 | AT29: =IF(AT6>=$G$29,1,0) -> 1 | AU29: 1 | AV29: 1 | AW29: 1 | AX29: 1 | AY29: 1 | AZ29: 1 | BA29: 1 | BB29: 1 | BC29: 1 | BD29: 1 | BE29: 1 | BF29: 1 | BG29: 1 | BH29: 1 | BI29: 1 | BJ29: 1 | BK29: 1 | BL29: 1 | BM29: 1 | BN29: 1 | BO29: 1 | BP29: 1 | BQ29: 1 | BR29: 1 | BS29: 1 | BT29: 1 | BU29: 1 | BV29: 1 | BW29: 1 | BX29: 1 | BY29: 1 | BZ29: =IF(BZ6>=$G$29,1,0) -> 1 | CA29: 1 | CB29: 1 | CC29: 1 | CD29: 1 | CE29: 1 | CF29: 1 | CG29: 1 | CH29: 1 | CI29: 1 | CJ29: 1 | CK29: 1 | CL29: 1 | CM29: 1 | CN29: 1 | CO29: 1 | CP29: 1 | CQ29: 1 | CR29: 1 | CS29: 1 | CT29: 1 | CU29: 1 | CV29: 1 | CW29: 1 | CX29: 1 | CY29: 1 | CZ29: 1 | DA29: 1 | DB29: 1 | DC29: 1 | DD29: 1 | DE29: 1 | DF29: =IF(DF6>=$G$29,1,0) -> 1 | DG29: 1 | DH29: 1 | DI29: 1 | DJ29: 1 | DK29: 1 | DL29: 1 | DM29: 1 | DN29: 1 | DO29: 1 | DP29: 1 | DQ29: 1 | DR29: 1 | DS29: 1 | DT29: 1 | DU29: 1 | DV29: 1 | DW29: 1 | DX29: 1 | DY29: 1 | DZ29: 1 | EA29: 1 | EB29: 1 | EC29: 1 | ED29: 1 | EE29: 1 | EF29: 1 | EG29: 1 | EH29: 1 | EI29: 1 | EJ29: 1 | EK29: 1 | EL29: =IF(EL6>=$G$29,1,0) -> 1 | EM29: 1 | EN29: 1 | EO29: 1 | EP29: 1 | EQ29: 1 | ER29: 1 | ES29: 1 | ET29: 1 | EU29: 1 | EV29: 1 | EW29: 1 | EX29: 1 | EY29: 1 | EZ29: 1 | FA29: 1 | FB29: 1 | FC29: 1 | FD29: 1 | FE29: 1 | FF29: 1 | FG29: 1
C30: Annual Inflation Rate | F30: % | N30: =LOOKUP(N9,'Operating Inputs'!21:21,'Operating Inputs'!22:22) -> 0.015 | O30: =LOOKUP(O9,'Operating Inputs'!21:21,'Operating Inputs'!22:22) -> 0.015 | P30: =LOOKUP(P9,'Operating Inputs'!21:21,'Operating Inputs'!22:22) -> 0.015 | Q30: =LOOKUP(Q9,'Operating Inputs'!21:21,'Operating Inputs'!22:22) -> 0.015 | R30: =LOOKUP(R9,'Operating Inputs'!21:21,'Operating Inputs'!22:22) -> 0.015 | S30: =LOOKUP(S9,'Operating Inputs'!21:21,'Operating Inputs'!22:22) -> 0.015 | T30: =LOOKUP(T9,'Operating Inputs'!21:21,'Operating Inputs'!22:22) -> 0.015 | U30: =LOOKUP(U9,'Operating Inputs'!21:21,'Operating Inputs'!22:22) -> 0.015 | V30: =LOOKUP(V9,'Operating Inputs'!21:21,'Operating Inputs'!22:22) -> 0.015 | W30: =LOOKUP(W9,'Operating Inputs'!21:21,'Operating Inputs'!22:22) -> 0.015 | X30: =LOOKUP(X9,'Operating Inputs'!21:21,'Operating Inputs'!22:22) -> 0.015 | Y30: =LOOKUP(Y9,'Operating Inputs'!21:21,'Operating Inputs'!22:22) -> 0.015 | Z30: =LOOKUP(Z9,'Operating Inputs'!21:21,'Operating Inputs'!22:22) -> 0.015 | AA30: =LOOKUP(AA9,'Operating Inputs'!21:21,'Operating Inputs'!22:22) -> 0.015 | AB30: =LOOKUP(AB9,'Operating Inputs'!21:21,'Operating Inputs'!22:22) -> 0.015 | AC30: =LOOKUP(AC9,'Operating Inputs'!21:21,'Operating Inputs'!22:22) -> 0.015 | AD30: =LOOKUP(AD9,'Operating Inputs'!21:21,'Operating Inputs'!22:22) -> 0.015 | AE30: =LOOKUP(AE9,'Operating Inputs'!21:21,'Operating Inputs'!22:22) -> 0.015 | AF30: =LOOKUP(AF9,'Operating Inputs'!21:21,'Operating Inputs'!22:22) -> 0.015 | AG30: =LOOKUP(AG9,'Operating Inputs'!21:21,'Operating Inputs'!22:22) -> 0.015 | AH30: =LOOKUP(AH9,'Operating Inputs'!21:21,'Operating Inputs'!22:22) -> 0.015 | AI30: =LOOKUP(AI9,'Operating Inputs'!21:21,'Operating Inputs'!22:22) -> 0.015 | AJ30: =LOOKUP(AJ9,'Operating Inputs'!21:21,'Operating Inputs'!22:22) -> 0.015 | AK30: =LOOKUP(AK9,'Operating Inputs'!21:21,'Operating Inputs'!22:22) -> 0.015 | AL30: =LOOKUP(AL9,'Operating Inputs'!21:21,'Operating Inputs'!22:22) -> 0.015 | AM30: =LOOKUP(AM9,'Operating Inputs'!21:21,'Operating Inputs'!22:22) -> 0.015 | AN30: =LOOKUP(AN9,'Operating Inputs'!21:21,'Operating Inputs'!22:22) -> 0.015 | AO30: =LOOKUP(AO9,'Operating Inputs'!21:21,'Operating Inputs'!22:22) -> 0.015 | AP30: =LOOKUP(AP9,'Operating Inputs'!21:21,'Operating Inputs'!22:22) -> 0.015 | AQ30: =LOOKUP(AQ9,'Operating Inputs'!21:21,'Operating Inputs'!22:22) -> 0.015 | AR30: =LOOKUP(AR9,'Operating Inputs'!21:21,'Operating Inputs'!22:22) -> 0.015 | AS30: =LOOKUP(AS9,'Operating Inputs'!21:21,'Operating Inputs'!22:22) -> 0.015 | AT30: =LOOKUP(AT9,'Operating Inputs'!21:21,'Operating Inputs'!22:22) -> 0.015 | AU30: =LOOKUP(AU9,'Operating Inputs'!21:21,'Operating Inputs'!22:22) -> 0.015 | AV30: =LOOKUP(AV9,'Operating Inputs'!21:21,'Operating Inputs'!22:22) -> 0.015 | AW30: =LOOKUP(AW9,'Operating Inputs'!21:21,'Operating Inputs'!22:22) -> 0.015 | AX30: =LOOKUP(AX9,'Operating Inputs'!21:21,'Operating Inputs'!22:22) -> 0.015 | AY30: =LOOKUP(AY9,'Operating Inputs'!21:21,'Operating Inputs'!22:22) -> 0.015 | AZ30: =LOOKUP(AZ9,'Operating Inputs'!21:21,'Operating Inputs'!22:22) -> 0.015 | BA30: =LOOKUP(BA9,'Operating Inputs'!21:21,'Operating Inputs'!22:22) -> 0.015 | BB30: =LOOKUP(BB9,'Operating Inputs'!21:21,'Operating Inputs'!22:22) -> 0.015 | BC30: =LOOKUP(BC9,'Operating Inputs'!21:21,'Operating Inputs'!22:22) -> 0.015 | BD30: =LOOKUP(BD9,'Operating Inputs'!21:21,'Operating Inputs'!22:22) -> 0.015 | BE30: =LOOKUP(BE9,'Operating Inputs'!21:21,'Operating Inputs'!22:22) -> 0.015 | BF30: =LOOKUP(BF9,'Operating Inputs'!21:21,'Operating Inputs'!22:22) -> 0.015 | BG30: =LOOKUP(BG9,'Operating Inputs'!21:21,'Operating Inputs'!22:22) -> 0.015 | BH30: =LOOKUP(BH9,'Operating Inputs'!21:21,'Operating Inputs'!22:22) -> 0.015 | BI30: =LOOKUP(BI9,'Operating Inputs'!21:21,'Operating Inputs'!22:22) -> 0.015 | BJ30: =LOOKUP(BJ9,'Operating Inputs'!21:21,'Operating Inputs'!22:22) -> 0.015 | BK30: =LOOKUP(BK9,'Operating Inputs'!21:21,'Operating Inputs'!22:22) -> 0.015 | BL30: =LOOKUP(BL9,'Operating Inputs'!21:21,'Operating Inputs'!22:22) -> 0.015 | BM30: =LOOKUP(BM9,'Operating Inputs'!21:21,'Operating Inputs'!22:22) -> 0.015 | BN30: =LOOKUP(BN9,'Operating Inputs'!21:21,'Operating Inputs'!22:22) -> 0.015 | BO30: =LOOKUP(BO9,'Operating Inputs'!21:21,'Operating Inputs'!22:22) -> 0.015 | BP30: =LOOKUP(BP9,'Operating Inputs'!21:21,'Operating Inputs'!22:22) -> 0.015 | BQ30: =LOOKUP(BQ9,'Operating Inputs'!21:21,'Operating Inputs'!22:22) -> 0.015 | BR30: =LOOKUP(BR9,'Operating Inputs'!21:21,'Operating Inputs'!22:22) -> 0.015 | BS30: =LOOKUP(BS9,'Operating Inputs'!21:21,'Operating Inputs'!22:22) -> 0.015 | BT30: =LOOKUP(BT9,'Operating Inputs'!21:21,'Operating Inputs'!22:22) -> 0.015 | BU30: =LOOKUP(BU9,'Operating Inputs'!21:21,'Operating Inputs'!22:22) -> 0.015 | BV30: =LOOKUP(BV9,'Operating Inputs'!21:21,'Operating Inputs'!22:22) -> 0.015 | BW30: =LOOKUP(BW9,'Operating Inputs'!21:21,'Operating Inputs'!22:22) -> 0.015 | BX30: =LOOKUP(BX9,'Operating Inputs'!21:21,'Operating Inputs'!22:22) -> 0.015 | BY30: =LOOKUP(BY9,'Operating Inputs'!21:21,'Operating Inputs'!22:22) -> 0.015 | BZ30: =LOOKUP(BZ9,'Operating Inputs'!21:21,'Operating Inputs'!22:22) -> 0.015 | CA30: =LOOKUP(CA9,'Operating Inputs'!21:21,'Operating Inputs'!22:22) -> 0.015 | CB30: =LOOKUP(CB9,'Operating Inputs'!21:21,'Operating Inputs'!22:22) -> 0.015 | CC30: =LOOKUP(CC9,'Operating Inputs'!21:21,'Operating Inputs'!22:22) -> 0.015 | CD30: =LOOKUP(CD9,'Operating Inputs'!21:21,'Operating Inputs'!22:22) -> 0.015 | CE30: =LOOKUP(CE9,'Operating Inputs'!21:21,'Operating Inputs'!22:22) -> 0.015 | CF30: =LOOKUP(CF9,'Operating Inputs'!21:21,'Operating Inputs'!22:22) -> 0.015 | CG30: =LOOKUP(CG9,'Operating Inputs'!21:21,'Operating Inputs'!22:22) -> 0.015 | CH30: =LOOKUP(CH9,'Operating Inputs'!21:21,'Operating Inputs'!22:22) -> 0.015 | CI30: =LOOKUP(CI9,'Operating Inputs'!21:21,'Operating Inputs'!22:22) -> 0.015 | CJ30: =LOOKUP(CJ9,'Operating Inputs'!21:21,'Operating Inputs'!22:22) -> 0.015 | CK30: =LOOKUP(CK9,'Operating Inputs'!21:21,'Operating Inputs'!22:22) -> 0.015 | CL30: =LOOKUP(CL9,'Operating Inputs'!21:21,'Operating Inputs'!22:22) -> 0.015 | CM30: =LOOKUP(CM9,'Operating Inputs'!21:21,'Operating Inputs'!22:22) -> 0.015 | CN30: =LOOKUP(CN9,'Operating Inputs'!21:21,'Operating Inputs'!22:22) -> 0.015 | CO30: =LOOKUP(CO9,'Operating Inputs'!21:21,'Operating Inputs'!22:22) -> 0.015 | CP30: =LOOKUP(CP9,'Operating Inputs'!21:21,'Operating Inputs'!22:22) -> 0.015 | CQ30: =LOOKUP(CQ9,'Operating Inputs'!21:21,'Operating Inputs'!22:22) -> 0.015 | CR30: =LOOKUP(CR9,'Operating Inputs'!21:21,'Operating Inputs'!22:22) -> 0.015 | CS30: =LOOKUP(CS9,'Operating Inputs'!21:21,'Operating Inputs'!22:22) -> 0.015 | CT30: =LOOKUP(CT9,'Operating Inputs'!21:21,'Operating Inputs'!22:22) -> 0.015 | CU30: =LOOKUP(CU9,'Operating Inputs'!21:21,'Operating Inputs'!22:22) -> 0.015 | CV30: =LOOKUP(CV9,'Operating Inputs'!21:21,'Operating Inputs'!22:22) -> 0.015 | CW30: =LOOKUP(CW9,'Operating Inputs'!21:21,'Operating Inputs'!22:22) -> 0.015 | CX30: =LOOKUP(CX9,'Operating Inputs'!21:21,'Operating Inputs'!22:22) -> 0.015 | CY30: =LOOKUP(CY9,'Operating Inputs'!21:21,'Operating Inputs'!22:22) -> 0.015 | CZ30: =LOOKUP(CZ9,'Operating Inputs'!21:21,'Operating Inputs'!22:22) -> 0.015 | DA30: =LOOKUP(DA9,'Operating Inputs'!21:21,'Operating Inputs'!22:22) -> 0.015 | DB30: =LOOKUP(DB9,'Operating Inputs'!21:21,'Operating Inputs'!22:22) -> 0.015 | DC30: =LOOKUP(DC9,'Operating Inputs'!21:21,'Operating Inputs'!22:22) -> 0.015 | DD30: =LOOKUP(DD9,'Operating Inputs'!21:21,'Operating Inputs'!22:22) -> 0.015 | DE30: =LOOKUP(DE9,'Operating Inputs'!21:21,'Operating Inputs'!22:22) -> 0.015 | DF30: =LOOKUP(DF9,'Operating Inputs'!21:21,'Operating Inputs'!22:22) -> 0.015 | DG30: =LOOKUP(DG9,'Operating Inputs'!21:21,'Operating Inputs'!22:22) -> 0.015 | DH30: =LOOKUP(DH9,'Operating Inputs'!21:21,'Operating Inputs'!22:22) -> 0.015 | DI30: =LOOKUP(DI9,'Operating Inputs'!21:21,'Operating Inputs'!22:22) -> 0.015 | DJ30: =LOOKUP(DJ9,'Operating Inputs'!21:21,'Operating Inputs'!22:22) -> 0.015 | DK30: =LOOKUP(DK9,'Operating Inputs'!21:21,'Operating Inputs'!22:22) -> 0.015 | DL30: =LOOKUP(DL9,'Operating Inputs'!21:21,'Operating Inputs'!22:22) -> 0.015 | DM30: =LOOKUP(DM9,'Operating Inputs'!21:21,'Operating Inputs'!22:22) -> 0.015 | DN30: =LOOKUP(DN9,'Operating Inputs'!21:21,'Operating Inputs'!22:22) -> 0.015 | DO30: =LOOKUP(DO9,'Operating Inputs'!21:21,'Operating Inputs'!22:22) -> 0.015 | DP30: =LOOKUP(DP9,'Operating Inputs'!21:21,'Operating Inputs'!22:22) -> 0.015 | DQ30: =LOOKUP(DQ9,'Operating Inputs'!21:21,'Operating Inputs'!22:22) -> 0.015 | DR30: =LOOKUP(DR9,'Operating Inputs'!21:21,'Operating Inputs'!22:22) -> 0.015 | DS30: =LOOKUP(DS9,'Operating Inputs'!21:21,'Operating Inputs'!22:22) -> 0.015 | DT30: =LOOKUP(DT9,'Operating Inputs'!21:21,'Operating Inputs'!22:22) -> 0.015 | DU30: =LOOKUP(DU9,'Operating Inputs'!21:21,'Operating Inputs'!22:22) -> 0.015 | DV30: =LOOKUP(DV9,'Operating Inputs'!21:21,'Operating Inputs'!22:22) -> 0.015 | DW30: =LOOKUP(DW9,'Operating Inputs'!21:21,'Operating Inputs'!22:22) -> 0.015 | DX30: =LOOKUP(DX9,'Operating Inputs'!21:21,'Operating Inputs'!22:22) -> 0.015 | DY30: =LOOKUP(DY9,'Operating Inputs'!21:21,'Operating Inputs'!22:22) -> 0.015 | DZ30: =LOOKUP(DZ9,'Operating Inputs'!21:21,'Operating Inputs'!22:22) -> 0.015 | EA30: =LOOKUP(EA9,'Operating Inputs'!21:21,'Operating Inputs'!22:22) -> 0.015 | EB30: =LOOKUP(EB9,'Operating Inputs'!21:21,'Operating Inputs'!22:22) -> 0.015 | EC30: =LOOKUP(EC9,'Operating Inputs'!21:21,'Operating Inputs'!22:22) -> 0.015 | ED30: =LOOKUP(ED9,'Operating Inputs'!21:21,'Operating Inputs'!22:22) -> 0.015 | EE30: =LOOKUP(EE9,'Operating Inputs'!21:21,'Operating Inputs'!22:22) -> 0.015 | EF30: =LOOKUP(EF9,'Operating Inputs'!21:21,'Operating Inputs'!22:22) -> 0.015 | EG30: =LOOKUP(EG9,'Operating Inputs'!21:21,'Operating Inputs'!22:22) -> 0.015 | EH30: =LOOKUP(EH9,'Operating Inputs'!21:21,'Operating Inputs'!22:22) -> 0.015 | EI30: =LOOKUP(EI9,'Operating Inputs'!21:21,'Operating Inputs'!22:22) -> 0.015 | EJ30: =LOOKUP(EJ9,'Operating Inputs'!21:21,'Operating Inputs'!22:22) -> 0.015 | EK30: =LOOKUP(EK9,'Operating Inputs'!21:21,'Operating Inputs'!22:22) -> 0.015 | EL30: =LOOKUP(EL9,'Operating Inputs'!21:21,'Operating Inputs'!22:22) -> 0.015 | EM30: =LOOKUP(EM9,'Operating Inputs'!21:21,'Operating Inputs'!22:22) -> 0.015 | EN30: =LOOKUP(EN9,'Operating Inputs'!21:21,'Operating Inputs'!22:22) -> 0.015 | EO30: =LOOKUP(EO9,'Operating Inputs'!21:21,'Operating Inputs'!22:22) -> 0.015 | EP30: =LOOKUP(EP9,'Operating Inputs'!21:21,'Operating Inputs'!22:22) -> 0.015 | EQ30: =LOOKUP(EQ9,'Operating Inputs'!21:21,'Operating Inputs'!22:22) -> 0.015 | ER30: =LOOKUP(ER9,'Operating Inputs'!21:21,'Operating Inputs'!22:22) -> 0.015 | ES30: =LOOKUP(ES9,'Operating Inputs'!21:21,'Operating Inputs'!22:22) -> 0.015 | ET30: =LOOKUP(ET9,'Operating Inputs'!21:21,'Operating Inputs'!22:22) -> 0.015 | EU30: =LOOKUP(EU9,'Operating Inputs'!21:21,'Operating Inputs'!22:22) -> 0.015 | EV30: =LOOKUP(EV9,'Operating Inputs'!21:21,'Operating Inputs'!22:22) -> 0.015 | EW30: =LOOKUP(EW9,'Operating Inputs'!21:21,'Operating Inputs'!22:22) -> 0.015 | EX30: =LOOKUP(EX9,'Operating Inputs'!21:21,'Operating Inputs'!22:22) -> 0.015 | EY30: =LOOKUP(EY9,'Operating Inputs'!21:21,'Operating Inputs'!22:22) -> 0.015 | EZ30: =LOOKUP(EZ9,'Operating Inputs'!21:21,'Operating Inputs'!22:22) -> 0.015 | FA30: =LOOKUP(FA9,'Operating Inputs'!21:21,'Operating Inputs'!22:22) -> 0.015 | FB30: =LOOKUP(FB9,'Operating Inputs'!21:21,'Operating Inputs'!22:22) -> 0.015 | FC30: =LOOKUP(FC9,'Operating Inputs'!21:21,'Operating Inputs'!22:22) -> 0.015 | FD30: =LOOKUP(FD9,'Operating Inputs'!21:21,'Operating Inputs'!22:22) -> 0.015 | FE30: =LOOKUP(FE9,'Operating Inputs'!21:21,'Operating Inputs'!22:22) -> 0.015 | FF30: =LOOKUP(FF9,'Operating Inputs'!21:21,'Operating Inputs'!22:22) -> 0.015 | FG30: =LOOKUP(FG9,'Operating Inputs'!21:21,'Operating Inputs'!22:22) -> 0.015
C31: Periodic inflation rate | F31: % | N31: =(1+N30)^(N5/12)-1 -> 0.001241487716 | O31: 0.001241487716 | P31: 0.001241487716 | Q31: 0.001241487716 | R31: 0.001241487716 | S31: 0.001241487716 | T31: 0.001241487716 | U31: 0.001241487716 | V31: 0.001241487716 | W31: 0.001241487716 | X31: 0.001241487716 | Y31: 0.001241487716 | Z31: 0.001241487716 | AA31: 0.001241487716 | AB31: 0.001241487716 | AC31: 0.001241487716 | AD31: 0.001241487716 | AE31: 0.001241487716 | AF31: 0.001241487716 | AG31: 0.001241487716 | AH31: 0.001241487716 | AI31: 0.001241487716 | AJ31: 0.001241487716 | AK31: 0.001241487716 | AL31: 0.001241487716 | AM31: 0.001241487716 | AN31: 0.001241487716 | AO31: 0.001241487716 | AP31: 0.001241487716 | AQ31: 0.001241487716 | AR31: 0.001241487716 | AS31: 0.001241487716 | AT31: =(1+AT30)^(AT5/12)-1 -> 0.001241487716 | AU31: 0.001241487716 | AV31: 0.001241487716 | AW31: 0.001241487716 | AX31: 0.001241487716 | AY31: 0.001241487716 | AZ31: 0.001241487716 | BA31: 0.001241487716 | BB31: 0.001241487716 | BC31: 0.001241487716 | BD31: 0.001241487716 | BE31: 0.001241487716 | BF31: 0.001241487716 | BG31: 0.001241487716 | BH31: 0.001241487716 | BI31: 0.00747208398 | BJ31: 0.00747208398 | BK31: 0.00747208398 | BL31: 0.00747208398 | BM31: 0.00747208398 | BN31: 0.00747208398 | BO31: 0.00747208398 | BP31: 0.00747208398 | BQ31: 0.00747208398 | BR31: 0.00747208398 | BS31: 0.00747208398 | BT31: 0.00747208398 | BU31: 0.00747208398 | BV31: 0.00747208398 | BW31: 0.00747208398 | BX31: 0.00747208398 | BY31: 0.00747208398 | BZ31: =(1+BZ30)^(BZ5/12)-1 -> 0.00747208398 | CA31: 0.00747208398 | CB31: 0.00747208398 | CC31: 0.00747208398 | CD31: 0.00747208398 | CE31: 0.00747208398 | CF31: 0.00747208398 | CG31: 0.00747208398 | CH31: 0.00747208398 | CI31: 0.00747208398 | CJ31: 0.00747208398 | CK31: 0.00747208398 | CL31: 0.00747208398 | CM31: 0.00747208398 | CN31: 0.00747208398 | CO31: 0.00747208398 | CP31: 0.00747208398 | CQ31: 0.00747208398 | CR31: 0.00747208398 | CS31: 0.00747208398 | CT31: 0.00747208398 | CU31: 0.00747208398 | CV31: 0.00747208398 | CW31: 0.00747208398 | CX31: 0.00747208398 | CY31: 0.00747208398 | CZ31: 0.00747208398 | DA31: 0.00747208398 | DB31: 0.00747208398 | DC31: 0.00747208398 | DD31: 0.00747208398 | DE31: 0.00747208398 | DF31: =(1+DF30)^(DF5/12)-1 -> 0.00747208398 | DG31: 0.00747208398 | DH31: 0.00747208398 | DI31: 0.00747208398 | DJ31: 0.00747208398 | DK31: 0.00747208398 | DL31: 0.00747208398 | DM31: 0.00747208398 | DN31: 0.00747208398 | DO31: 0.00747208398 | DP31: 0.00747208398 | DQ31: 0.00747208398 | DR31: 0.00747208398 | DS31: 0.00747208398 | DT31: 0.00747208398 | DU31: 0.00747208398 | DV31: 0.00747208398 | DW31: 0.00747208398 | DX31: 0.00747208398 | DY31: 0.00747208398 | DZ31: 0.00747208398 | EA31: 0.00747208398 | EB31: 0.00747208398 | EC31: 0.00747208398 | ED31: 0.00747208398 | EE31: 0.00747208398 | EF31: 0.00747208398 | EG31: 0.00747208398 | EH31: 0.00747208398 | EI31: 0.00747208398 | EJ31: 0.00747208398 | EK31: 0.00747208398 | EL31: =(1+EL30)^(EL5/12)-1 -> 0.00747208398 | EM31: 0.00747208398 | EN31: 0.00747208398 | EO31: 0.00747208398 | EP31: 0.00747208398 | EQ31: 0.00747208398 | ER31: 0.00747208398 | ES31: 0.00747208398 | ET31: 0.00747208398 | EU31: 0.00747208398 | EV31: 0.00747208398 | EW31: 0.00747208398 | EX31: 0.00747208398 | EY31: 0.00747208398 | EZ31: 0.00747208398 | FA31: 0.00747208398 | FB31: 0.00747208398 | FC31: 0.00747208398 | FD31: 0.00747208398 | FE31: 0.00747208398 | FF31: 0.00747208398 | FG31: 0.00747208398
C32: Inflation Index | F32: decimal | M32: 1 | N32: =M32*(1+N31*N29) -> 1 | O32: 1 | P32: 1 | Q32: 1 | R32: 1 | S32: 1 | T32: 1 | U32: 1 | V32: 1 | W32: 1 | X32: 1 | Y32: 1 | Z32: 1 | AA32: 1 | AB32: 1 | AC32: 1 | AD32: 1 | AE32: 1 | AF32: 1 | AG32: 1 | AH32: 1 | AI32: 1 | AJ32: 1.001241488 | AK32: 1.002484517 | AL32: 1.003729089 | AM32: 1.004975206 | AN32: 1.006222871 | AO32: 1.007472084 | AP32: 1.008722848 | AQ32: 1.009975165 | AR32: 1.011229037 | AS32: 1.012484465 | AT32: =AS32*(1+AT31*AT29) -> 1.013741452 | AU32: 1.015 | AV32: 1.01626011 | AW32: 1.017521784 | AX32: 1.018785025 | AY32: 1.020049834 | AZ32: 1.021316214 | BA32: 1.022584165 | BB32: 1.023853691 | BC32: 1.025124793 | BD32: 1.026397473 | BE32: 1.027671732 | BF32: 1.028947574 | BG32: 1.030225 | BH32: 1.031504012 | BI32: 1.039211496 | BJ32: 1.046976572 | BK32: 1.054799669 | BL32: 1.06268122 | BM32: 1.070621664 | BN32: 1.078621439 | BO32: 1.086680989 | BP32: 1.09480076 | BQ32: 1.102981204 | BR32: 1.111222772 | BS32: 1.119525922 | BT32: 1.127891113 | BU32: 1.13631881 | BV32: 1.14480948 | BW32: 1.153363593 | BX32: 1.161981622 | BY32: 1.170664046 | BZ32: =BY32*(1+BZ31*BZ29) -> 1.179411347 | CA32: 1.188224007 | CB32: 1.197102517 | CC32: 1.206047367 | CD32: 1.215059054 | CE32: 1.224138078 | CF32: 1.23328494 | CG32: 1.242500149 | CH32: 1.251784214 | CI32: 1.261137651 | CJ32: 1.270560978 | CK32: 1.280054716 | CL32: 1.289619392 | CM32: 1.299255537 | CN32: 1.308963683 | CO32: 1.31874437 | CP32: 1.328598138 | CQ32: 1.338525535 | CR32: 1.34852711 | CS32: 1.358603418 | CT32: 1.368755017 | CU32: 1.37898247 | CV32: 1.389286342 | CW32: 1.399667207 | CX32: 1.410125638 | CY32: 1.420662215 | CZ32: 1.431277522 | DA32: 1.441972148 | DB32: 1.452746685 | DC32: 1.46360173 | DD32: 1.474537885 | DE32: 1.485555756 | DF32: =DE32*(1+DF31*DF29) -> 1.496655953 | DG32: 1.507839092 | DH32: 1.519105793 | DI32: 1.530456679 | DJ32: 1.54189238 | DK32: 1.553413529 | DL32: 1.565020765 | DM32: 1.576714732 | DN32: 1.588496077 | DO32: 1.600365453 | DP32: 1.612323518 | DQ32: 1.624370935 | DR32: 1.636508371 | DS32: 1.648736499 | DT32: 1.661055996 | DU32: 1.673467546 | DV32: 1.685971836 | DW32: 1.698569559 | DX32: 1.711261414 | DY32: 1.724048103 | DZ32: 1.736930335 | EA32: 1.749908824 | EB32: 1.76298429 | EC32: 1.776157457 | ED32: 1.789429054 | EE32: 1.802799819 | EF32: 1.81627049 | EG32: 1.829841816 | EH32: 1.843514548 | EI32: 1.857289443 | EJ32: 1.871167266 | EK32: 1.885148785 | EL32: =EK32*(1+EL31*EL29) -> 1.899234775 | EM32: 1.913426017 | EN32: 1.927723296 | EO32: 1.942127407 | EP32: 1.956639146 | EQ32: 1.971259318 | ER32: 1.985988733 | ES32: 2.000828208 | ET32: 2.015778564 | EU32: 2.030840631 | EV32: 2.046015243 | EW32: 2.06130324 | EX32: 2.076705471 | EY32: 2.092222789 | EZ32: 2.107856053 | FA32: 2.123606131 | FB32: 2.139473894 | FC32: 2.155460223 | FD32: 2.171566002 | FE32: 2.187792126 | FF32: 2.204139492 | FG32: 2.220609008
C33: Turbine O&M Variable - Real | F33: KUSD | G33: ='Operating Inputs'!H79 -> 2 | H33: usd/mwh | K33: =SUM(N33:FG33) -> 742482.8352 | N33: =$G33*N$15/1000 -> 0 | O33: 0 | P33: 0 | Q33: 0 | R33: 0 | S33: 0 | T33: 0 | U33: 0 | V33: 0 | W33: 0 | X33: 0 | Y33: 0 | Z33: 0 | AA33: 0 | AB33: 0 | AC33: 0 | AD33: 0 | AE33: 0 | AF33: 0 | AG33: 0 | AH33: 0 | AI33: 0 | AJ33: 0 | AK33: 0 | AL33: 0 | AM33: 0 | AN33: 0 | AO33: 0 | AP33: 0 | AQ33: 0 | AR33: 0 | AS33: 0 | AT33: 0 | AU33: 0 | AV33: 0 | AW33: 0 | AX33: 0 | AY33: 0 | AZ33: 0 | BA33: 0 | BB33: 0 | BC33: 0 | BD33: 0 | BE33: 0 | BF33: 0 | BG33: 0 | BH33: 0 | BI33: 9705.696 | BJ33: 10347.5712 | BK33: 10529.856 | BL33: 10704.384 | BM33: 10529.856 | BN33: 10704.384 | BO33: 10529.856 | BP33: 10704.384 | BQ33: 10588.032 | BR33: 10704.384 | BS33: 10529.856 | BT33: 10704.384 | BU33: 10529.856 | BV33: 10704.384 | BW33: 10529.856 | BX33: 10704.384 | BY33: 10588.032 | BZ33: =$G33*BZ$15/1000 -> 10704.384 | CA33: 10529.856 | CB33: 10704.384 | CC33: 10529.856 | CD33: 10704.384 | CE33: 10529.856 | CF33: 10704.384 | CG33: 10588.032 | CH33: 10704.384 | CI33: 10529.856 | CJ33: 10704.384 | CK33: 10529.856 | CL33: 10704.384 | CM33: 10529.856 | CN33: 10704.384 | CO33: 10588.032 | CP33: 10704.384 | CQ33: 10529.856 | CR33: 10704.384 | CS33: 10529.856 | CT33: 10704.384 | CU33: 10529.856 | CV33: 10704.384 | CW33: 10588.032 | CX33: 10704.384 | CY33: 10529.856 | CZ33: 10704.384 | DA33: 10529.856 | DB33: 10704.384 | DC33: 10529.856 | DD33: 10704.384 | DE33: 10588.032 | DF33: 10704.384 | DG33: 10529.856 | DH33: 10704.384 | DI33: 10529.856 | DJ33: 10704.384 | DK33: 10529.856 | DL33: 10704.384 | DM33: 10588.032 | DN33: 10704.384 | DO33: 10529.856 | DP33: 10704.384 | DQ33: 10529.856 | DR33: 10704.384 | DS33: 10529.856 | DT33: 10704.384 | DU33: 10588.032 | DV33: 10704.384 | DW33: 10529.856 | DX33: 10704.384 | DY33: 10529.856 | DZ33: 10704.384 | EA33: 0 | EB33: 0 | EC33: 0 | ED33: 0 | EE33: 0 | EF33: 0 | EG33: 0 | EH33: 0 | EI33: 0 | EJ33: 0 | EK33: 0 | EL33: =$G33*EL$15/1000 -> 0 | EM33: 0 | EN33: 0 | EO33: 0 | EP33: 0 | EQ33: 0 | ER33: 0 | ES33: 0 | ET33: 0 | EU33: 0 | EV33: 0 | EW33: 0 | EX33: 0 | EY33: 0 | EZ33: 0 | FA33: 0 | FB33: 0 | FC33: 0 | FD33: 0 | FE33: 0 | FF33: 0 | FG33: 0
C34: Turbine O&M Fixed - Real | F34: KUSD | G34: ='Operating Inputs'!H80 -> 40 | H34: usd/kw year | K34: 5600000 | N34: =$G34*N$11 -> 0 | O34: 0 | P34: 0 | Q34: 0 | R34: 0 | S34: 0 | T34: 0 | U34: 0 | V34: 0 | W34: 0 | X34: 0 | Y34: 0 | Z34: 0 | AA34: 0 | AB34: 0 | AC34: 0 | AD34: 0 | AE34: 0 | AF34: 0 | AG34: 0 | AH34: 0 | AI34: 0 | AJ34: 0 | AK34: 0 | AL34: 0 | AM34: 0 | AN34: 0 | AO34: 0 | AP34: 0 | AQ34: 0 | AR34: 0 | AS34: 0 | AT34: 0 | AU34: 0 | AV34: 0 | AW34: 0 | AX34: 0 | AY34: 0 | AZ34: 0 | BA34: 0 | BB34: 0 | BC34: 0 | BD34: 0 | BE34: 0 | BF34: 0 | BG34: 0 | BH34: 0 | BI34: 80000 | BJ34: 80000 | BK34: 80000 | BL34: 80000 | BM34: 80000 | BN34: 80000 | BO34: 80000 | BP34: 80000 | BQ34: 80000 | BR34: 80000 | BS34: 80000 | BT34: 80000 | BU34: 80000 | BV34: 80000 | BW34: 80000 | BX34: 80000 | BY34: 80000 | BZ34: =$G34*BZ$11 -> 80000 | CA34: 80000 | CB34: 80000 | CC34: 80000 | CD34: 80000 | CE34: 80000 | CF34: 80000 | CG34: 80000 | CH34: 80000 | CI34: 80000 | CJ34: 80000 | CK34: 80000 | CL34: 80000 | CM34: 80000 | CN34: 80000 | CO34: 80000 | CP34: 80000 | CQ34: 80000 | CR34: 80000 | CS34: 80000 | CT34: 80000 | CU34: 80000 | CV34: 80000 | CW34: 80000 | CX34: 80000 | CY34: 80000 | CZ34: 80000 | DA34: 80000 | DB34: 80000 | DC34: 80000 | DD34: 80000 | DE34: 80000 | DF34: 80000 | DG34: 80000 | DH34: 80000 | DI34: 80000 | DJ34: 80000 | DK34: 80000 | DL34: 80000 | DM34: 80000 | DN34: 80000 | DO34: 80000 | DP34: 80000 | DQ34: 80000 | DR34: 80000 | DS34: 80000 | DT34: 80000 | DU34: 80000 | DV34: 80000 | DW34: 80000 | DX34: 80000 | DY34: 80000 | DZ34: 80000 | EA34: 0 | EB34: 0 | EC34: 0 | ED34: 0 | EE34: 0 | EF34: 0 | EG34: 0 | EH34: 0 | EI34: 0 | EJ34: 0 | EK34: 0 | EL34: =$G34*EL$11 -> 0 | EM34: 0 | EN34: 0 | EO34: 0 | EP34: 0 | EQ34: 0 | ER34: 0 | ES34: 0 | ET34: 0 | EU34: 0 | EV34: 0 | EW34: 0 | EX34: 0 | EY34: 0 | EZ34: 0 | FA34: 0 | FB34: 0 | FC34: 0 | FD34: 0 | FE34: 0 | FF34: 0 | FG34: 0
C35: Turbine O&M Variable - Nominal | F35: KUSD | K35: 1009272.296 | N35: =N33*N32 -> 0 | O35: 0 | P35: 0 | Q35: 0 | R35: 0 | S35: 0 | T35: 0 | U35: 0 | V35: 0 | W35: 0 | X35: 0 | Y35: 0 | Z35: 0 | AA35: 0 | AB35: 0 | AC35: 0 | AD35: 0 | AE35: 0 | AF35: 0 | AG35: 0 | AH35: 0 | AI35: 0 | AJ35: 0 | AK35: 0 | AL35: 0 | AM35: 0 | AN35: 0 | AO35: 0 | AP35: 0 | AQ35: 0 | AR35: 0 | AS35: 0 | AT35: 0 | AU35: 0 | AV35: 0 | AW35: 0 | AX35: 0 | AY35: 0 | AZ35: 0 | BA35: 0 | BB35: 0 | BC35: 0 | BD35: 0 | BE35: 0 | BF35: 0 | BG35: 0 | BH35: 0 | BI35: 10086.27086 | BJ35: 10833.66462 | BK35: 11106.88862 | BL35: 11375.34785 | BM35: 11273.49195 | BN35: 11545.97807 | BO35: 11442.59433 | BP35: 11719.16774 | BQ35: 11678.40028 | BR35: 11894.95526 | BS35: 11788.44674 | BT35: 12073.37959 | BU35: 11965.27344 | BV35: 12254.48028 | BW35: 12144.75255 | BX35: 12438.29749 | BY35: 12395.02839 | BZ35: =BZ33*BZ32 -> 12624.87195 | CA35: 12511.82769 | CB35: 12814.24503 | CC35: 12699.50511 | CD35: 13006.4587 | CE35: 12889.99768 | CF35: 13201.55558 | CG35: 13155.63134 | CH35: 13399.57892 | CI35: 13279.59786 | CJ35: 13600.5726 | CK35: 13478.79183 | CL35: 13804.58119 | CM35: 13680.97371 | CN35: 14011.64991 | CO35: 13962.90759 | CP35: 14221.82466 | CQ35: 14094.48114 | CR35: 14435.15203 | CS35: 14305.89836 | CT35: 14651.67931 | CU35: 14520.48683 | CV35: 14871.4545 | CW35: 14819.72117 | CX35: 15094.52631 | CY35: 14959.36855 | CZ35: 15320.94421 | DA35: 15183.75907 | DB35: 15550.75837 | DC35: 15411.51546 | DD35: 15784.01975 | DE35: 15729.11188 | DF35: 16020.78004 | DG35: 15877.32851 | DH35: 16261.09174 | DI35: 16115.48844 | DJ35: 16505.00812 | DK35: 16357.22077 | DL35: 16752.58324 | DM35: 16694.30604 | DN35: 17003.87199 | DO35: 16851.61777 | DP35: 17258.93007 | DQ35: 17104.39203 | DR35: 17517.81402 | DS35: 17360.95791 | DT35: 17780.58123 | DU35: 17718.72793 | DV35: 18047.28995 | DW35: 17885.69287 | DX35: 18317.9993 | DY35: 18153.97826 | DZ35: 18592.76929 | EA35: 0 | EB35: 0 | EC35: 0 | ED35: 0 | EE35: 0 | EF35: 0 | EG35: 0 | EH35: 0 | EI35: 0 | EJ35: 0 | EK35: 0 | EL35: =EL33*EL32 -> 0 | EM35: 0 | EN35: 0 | EO35: 0 | EP35: 0 | EQ35: 0 | ER35: 0 | ES35: 0 | ET35: 0 | EU35: 0 | EV35: 0 | EW35: 0 | EX35: 0 | EY35: 0 | EZ35: 0 | FA35: 0 | FB35: 0 | FC35: 0 | FD35: 0 | FE35: 0 | FF35: 0 | FG35: 0
C36: Turbine O&M Fixed - Nominal | F36: KUSD | K36: 7609093.58 | N36: =N34*N32 -> 0 | O36: 0 | P36: 0 | Q36: 0 | R36: 0 | S36: 0 | T36: 0 | U36: 0 | V36: 0 | W36: 0 | X36: 0 | Y36: 0 | Z36: 0 | AA36: 0 | AB36: 0 | AC36: 0 | AD36: 0 | AE36: 0 | AF36: 0 | AG36: 0 | AH36: 0 | AI36: 0 | AJ36: 0 | AK36: 0 | AL36: 0 | AM36: 0 | AN36: 0 | AO36: 0 | AP36: 0 | AQ36: 0 | AR36: 0 | AS36: 0 | AT36: 0 | AU36: 0 | AV36: 0 | AW36: 0 | AX36: 0 | AY36: 0 | AZ36: 0 | BA36: 0 | BB36: 0 | BC36: 0 | BD36: 0 | BE36: 0 | BF36: 0 | BG36: 0 | BH36: 0 | BI36: 83136.9197 | BJ36: 83758.12575 | BK36: 84383.9735 | BL36: 85014.49763 | BM36: 85649.7331 | BN36: 86289.7151 | BO36: 86934.4791 | BP36: 87584.06083 | BQ36: 88238.49628 | BR36: 88897.82174 | BS36: 89562.07373 | BT36: 90231.28906 | BU36: 90905.50483 | BV36: 91584.7584 | BW36: 92269.08741 | BX36: 92958.52978 | BY36: 93653.12372 | BZ36: =BZ34*BZ32 -> 94352.90772 | CA36: 95057.92057 | CB36: 95768.20134 | CC36: 96483.78938 | CD36: 97204.72436 | CE36: 97931.04622 | CF36: 98662.79522 | CG36: 99400.01192 | CH36: 100142.7372 | CI36: 100891.0121 | CJ36: 101644.8782 | CK36: 102404.3773 | CL36: 103169.5514 | CM36: 103940.4429 | CN36: 104717.0947 | CO36: 105499.5496 | CP36: 106287.8511 | CQ36: 107082.0428 | CR36: 107882.1688 | CS36: 108688.2735 | CT36: 109500.4014 | CU36: 110318.5976 | CV36: 111142.9074 | CW36: 111973.3765 | CX36: 112810.051 | CY36: 113652.9772 | CZ36: 114502.2018 | DA36: 115357.7718 | DB36: 116219.7348 | DC36: 117088.1384 | DD36: 117963.0308 | DE36: 118844.4605 | DF36: 119732.4763 | DG36: 120627.1274 | DH36: 121528.4634 | DI36: 122436.5343 | DJ36: 123351.3904 | DK36: 124273.0823 | DL36: 125201.6612 | DM36: 126137.1786 | DN36: 127079.6861 | DO36: 128029.2362 | DP36: 128985.8814 | DQ36: 129949.6748 | DR36: 130920.6697 | DS36: 131898.9199 | DT36: 132884.4797 | DU36: 133877.4037 | DV36: 134877.7469 | DW36: 135885.5648 | DX36: 136900.9131 | DY36: 137923.8482 | DZ36: 138954.4268 | EA36: 0 | EB36: 0 | EC36: 0 | ED36: 0 | EE36: 0 | EF36: 0 | EG36: 0 | EH36: 0 | EI36: 0 | EJ36: 0 | EK36: 0 | EL36: =EL34*EL32 -> 0 | EM36: 0 | EN36: 0 | EO36: 0 | EP36: 0 | EQ36: 0 | ER36: 0 | ES36: 0 | ET36: 0 | EU36: 0 | EV36: 0 | EW36: 0 | EX36: 0 | EY36: 0 | EZ36: 0 | FA36: 0 | FB36: 0 | FC36: 0 | FD36: 0 | FE36: 0 | FF36: 0 | FG36: 0
C37: Other | F37: KUSD | G37: ='Operating Inputs'!H81 -> 10000 | H37: KUSD/period | K37: 951136.6975 | N37: =$G37*N32*N8 -> 0 | O37: 0 | P37: 0 | Q37: 0 | R37: 0 | S37: 0 | T37: 0 | U37: 0 | V37: 0 | W37: 0 | X37: 0 | Y37: 0 | Z37: 0 | AA37: 0 | AB37: 0 | AC37: 0 | AD37: 0 | AE37: 0 | AF37: 0 | AG37: 0 | AH37: 0 | AI37: 0 | AJ37: 0 | AK37: 0 | AL37: 0 | AM37: 0 | AN37: 0 | AO37: 0 | AP37: 0 | AQ37: 0 | AR37: 0 | AS37: 0 | AT37: =$G37*AT32*AT8 -> 0 | AU37: 0 | AV37: 0 | AW37: 0 | AX37: 0 | AY37: 0 | AZ37: 0 | BA37: 0 | BB37: 0 | BC37: 0 | BD37: 0 | BE37: 0 | BF37: 0 | BG37: 0 | BH37: 0 | BI37: 10392.11496 | BJ37: 10469.76572 | BK37: 10547.99669 | BL37: 10626.8122 | BM37: 10706.21664 | BN37: 10786.21439 | BO37: 10866.80989 | BP37: 10948.0076 | BQ37: 11029.81204 | BR37: 11112.22772 | BS37: 11195.25922 | BT37: 11278.91113 | BU37: 11363.1881 | BV37: 11448.0948 | BW37: 11533.63593 | BX37: 11619.81622 | BY37: 11706.64046 | BZ37: =$G37*BZ32*BZ8 -> 11794.11347 | CA37: 11882.24007 | CB37: 11971.02517 | CC37: 12060.47367 | CD37: 12150.59054 | CE37: 12241.38078 | CF37: 12332.8494 | CG37: 12425.00149 | CH37: 12517.84214 | CI37: 12611.37651 | CJ37: 12705.60978 | CK37: 12800.54716 | CL37: 12896.19392 | CM37: 12992.55537 | CN37: 13089.63683 | CO37: 13187.4437 | CP37: 13285.98138 | CQ37: 13385.25535 | CR37: 13485.2711 | CS37: 13586.03418 | CT37: 13687.55017 | CU37: 13789.8247 | CV37: 13892.86342 | CW37: 13996.67207 | CX37: 14101.25638 | CY37: 14206.62215 | CZ37: 14312.77522 | DA37: 14419.72148 | DB37: 14527.46685 | DC37: 14636.0173 | DD37: 14745.37885 | DE37: 14855.55756 | DF37: =$G37*DF32*DF8 -> 14966.55953 | DG37: 15078.39092 | DH37: 15191.05793 | DI37: 15304.56679 | DJ37: 15418.9238 | DK37: 15534.13529 | DL37: 15650.20765 | DM37: 15767.14732 | DN37: 15884.96077 | DO37: 16003.65453 | DP37: 16123.23518 | DQ37: 16243.70935 | DR37: 16365.08371 | DS37: 16487.36499 | DT37: 16610.55996 | DU37: 16734.67546 | DV37: 16859.71836 | DW37: 16985.69559 | DX37: 17112.61414 | DY37: 17240.48103 | DZ37: 17369.30335 | EA37: 0 | EB37: 0 | EC37: 0 | ED37: 0 | EE37: 0 | EF37: 0 | EG37: 0 | EH37: 0 | EI37: 0 | EJ37: 0 | EK37: 0 | EL37: =$G37*EL32*EL8 -> 0 | EM37: 0 | EN37: 0 | EO37: 0 | EP37: 0 | EQ37: 0 | ER37: 0 | ES37: 0 | ET37: 0 | EU37: 0 | EV37: 0 | EW37: 0 | EX37: 0 | EY37: 0 | EZ37: 0 | FA37: 0 | FB37: 0 | FC37: 0 | FD37: 0 | FE37: 0 | FF37: 0 | FG37: 0
C38: Total | F38: KUSD | K38: 9569502.574 | N38: =SUM(N35:N37) -> 0 | O38: 0 | P38: 0 | Q38: 0 | R38: 0 | S38: 0 | T38: 0 | U38: 0 | V38: 0 | W38: 0 | X38: 0 | Y38: 0 | Z38: 0 | AA38: 0 | AB38: 0 | AC38: 0 | AD38: 0 | AE38: 0 | AF38: 0 | AG38: 0 | AH38: 0 | AI38: 0 | AJ38: 0 | AK38: 0 | AL38: 0 | AM38: 0 | AN38: 0 | AO38: 0 | AP38: 0 | AQ38: 0 | AR38: 0 | AS38: 0 | AT38: 0 | AU38: 0 | AV38: 0 | AW38: 0 | AX38: 0 | AY38: 0 | AZ38: 0 | BA38: 0 | BB38: 0 | BC38: 0 | BD38: 0 | BE38: 0 | BF38: 0 | BG38: 0 | BH38: 0 | BI38: 103615.3055 | BJ38: 105061.5561 | BK38: 106038.8588 | BL38: 107016.6577 | BM38: 107629.4417 | BN38: 108621.9076 | BO38: 109243.8833 | BP38: 110251.2362 | BQ38: 110946.7086 | BR38: 111905.0047 | BS38: 112545.7797 | BT38: 113583.5798 | BU38: 114233.9664 | BV38: 115287.3335 | BW38: 115947.4759 | BX38: 117016.6435 | BY38: 117754.7926 | BZ38: =SUM(BZ35:BZ37) -> 118771.8931 | CA38: 119451.9883 | CB38: 120553.4715 | CC38: 121243.7682 | CD38: 122361.7736 | CE38: 123062.4247 | CF38: 124197.2002 | CG38: 124980.6447 | CH38: 126060.1582 | CI38: 126781.9865 | CJ38: 127951.0606 | CK38: 128683.7163 | CL38: 129870.3265 | CM38: 130613.972 | CN38: 131818.3814 | CO38: 132649.9009 | CP38: 133795.6571 | CQ38: 134561.7793 | CR38: 135802.592 | CS38: 136580.206 | CT38: 137839.6308 | CU38: 138628.9091 | CV38: 139907.2253 | CW38: 140789.7698 | CX38: 142005.8337 | CY38: 142818.9679 | CZ38: 144135.9212 | DA38: 144961.2524 | DB38: 146297.96 | DC38: 147135.6712 | DD38: 148492.4294 | DE38: 149429.1299 | DF38: 150719.8159 | DG38: 151582.8468 | DH38: 152980.6131 | DI38: 153856.5895 | DJ38: 155275.3223 | DK38: 156164.4384 | DL38: 157604.4521 | DM38: 158598.6319 | DN38: 159968.5189 | DO38: 160884.5085 | DP38: 162368.0467 | DQ38: 163297.7762 | DR38: 164803.5674 | DS38: 165747.2428 | DT38: 167275.6209 | DU38: 168330.8071 | DV38: 169784.7552 | DW38: 170756.9532 | DX38: 172331.5265 | DY38: 173318.3075 | DZ38: 174916.4994 | EA38: 0 | EB38: 0 | EC38: 0 | ED38: 0 | EE38: 0 | EF38: 0 | EG38: 0 | EH38: 0 | EI38: 0 | EJ38: 0 | EK38: 0 | EL38: =SUM(EL35:EL37) -> 0 | EM38: 0 | EN38: 0 | EO38: 0 | EP38: 0 | EQ38: 0 | ER38: 0 | ES38: 0 | ET38: 0 | EU38: 0 | EV38: 0 | EW38: 0 | EX38: 0 | EY38: 0 | EZ38: 0 | FA38: 0 | FB38: 0 | FC38: 0 | FD38: 0 | FE38: 0 | FF38: 0 | FG38: 0
B40: Revenue
C41: PPA flag | F41: flag | G41: ='Operating Inputs'!$H$57 -> 2044-02-01 | K41: =SUM(N41:FG41) -> 40 | N41: =AND(N6<$G$41, N8) *1 -> 0 | O41: 0 | P41: 0 | Q41: 0 | R41: 0 | S41: 0 | T41: 0 | U41: 0 | V41: 0 | W41: 0 | X41: 0 | Y41: 0 | Z41: 0 | AA41: 0 | AB41: 0 | AC41: 0 | AD41: 0 | AE41: 0 | AF41: 0 | AG41: 0 | AH41: 0 | AI41: 0 | AJ41: 0 | AK41: 0 | AL41: 0 | AM41: 0 | AN41: 0 | AO41: 0 | AP41: 0 | AQ41: 0 | AR41: 0 | AS41: 0 | AT41: =AND(AT6<$G$41, AT8) *1 -> 0 | AU41: 0 | AV41: 0 | AW41: 0 | AX41: 0 | AY41: 0 | AZ41: 0 | BA41: 0 | BB41: 0 | BC41: 0 | BD41: 0 | BE41: 0 | BF41: 0 | BG41: 0 | BH41: 0 | BI41: 1 | BJ41: 1 | BK41: 1 | BL41: 1 | BM41: 1 | BN41: 1 | BO41: 1 | BP41: 1 | BQ41: 1 | BR41: 1 | BS41: 1 | BT41: 1 | BU41: 1 | BV41: 1 | BW41: 1 | BX41: 1 | BY41: 1 | BZ41: =AND(BZ6<$G$41, BZ8) *1 -> 1 | CA41: 1 | CB41: 1 | CC41: 1 | CD41: 1 | CE41: 1 | CF41: 1 | CG41: 1 | CH41: 1 | CI41: 1 | CJ41: 1 | CK41: 1 | CL41: 1 | CM41: 1 | CN41: 1 | CO41: 1 | CP41: 1 | CQ41: 1 | CR41: 1 | CS41: 1 | CT41: 1 | CU41: 1 | CV41: 1 | CW41: 0 | CX41: 0 | CY41: 0 | CZ41: 0 | DA41: 0 | DB41: 0 | DC41: 0 | DD41: 0 | DE41: 0 | DF41: =AND(DF6<$G$41, DF8) *1 -> 0 | DG41: 0 | DH41: 0 | DI41: 0 | DJ41: 0 | DK41: 0 | DL41: 0 | DM41: 0 | DN41: 0 | DO41: 0 | DP41: 0 | DQ41: 0 | DR41: 0 | DS41: 0 | DT41: 0 | DU41: 0 | DV41: 0 | DW41: 0 | DX41: 0 | DY41: 0 | DZ41: 0 | EA41: 0 | EB41: 0 | EC41: 0 | ED41: 0 | EE41: 0 | EF41: 0 | EG41: 0 | EH41: 0 | EI41: 0 | EJ41: 0 | EK41: 0 | EL41: =AND(EL6<$G$41, EL8) *1 -> 0 | EM41: 0 | EN41: 0 | EO41: 0 | EP41: 0 | EQ41: 0 | ER41: 0 | ES41: 0 | ET41: 0 | EU41: 0 | EV41: 0 | EW41: 0 | EX41: 0 | EY41: 0 | EZ41: 0 | FA41: 0 | FB41: 0 | FC41: 0 | FD41: 0 | FE41: 0 | FF41: 0 | FG41: 0
C42: PPA Price | F42: usd/mwh | G42: ='Operating Inputs'!$H$52 -> 51.19163427 | I42: ='Operating Inputs'!H55 -> TRUE | L42: ='Control Page'!$F$36/100 -> 1 | N42: =IF($I$42,$G$42*N32, $G42)*$L42 -> 51.19163427 | O42: 51.19163427 | P42: 51.19163427 | Q42: 51.19163427 | R42: 51.19163427 | S42: 51.19163427 | T42: 51.19163427 | U42: 51.19163427 | V42: 51.19163427 | W42: 51.19163427 | X42: 51.19163427 | Y42: 51.19163427 | Z42: 51.19163427 | AA42: 51.19163427 | AB42: 51.19163427 | AC42: 51.19163427 | AD42: 51.19163427 | AE42: 51.19163427 | AF42: 51.19163427 | AG42: 51.19163427 | AH42: 51.19163427 | AI42: 51.19163427 | AJ42: 51.25518805 | AK42: 51.31882074 | AL42: 51.38253243 | AM42: 51.44632321 | AN42: 51.51019319 | AO42: 51.57414246 | AP42: 51.63817112 | AQ42: 51.70227928 | AR42: 51.76646702 | AS42: 51.83073446 | AT42: =IF($I$42,$G$42*AT32, $G42)*$L42 -> 51.89508168 | AU42: 51.95950878 | AV42: 52.02401587 | AW42: 52.08860305 | AX42: 52.15327041 | AY42: 52.21801806 | AZ42: 52.28284608 | BA42: 52.3477546 | BB42: 52.41274369 | BC42: 52.47781347 | BD42: 52.54296403 | BE42: 52.60819547 | BF42: 52.6735079 | BG42: 52.73890141 | BH42: 52.80437611 | BI42: 53.19893485 | BJ42: 53.59644175 | BK42: 53.99691887 | BL42: 54.40038838 | BM42: 54.80687265 | BN42: 55.21639421 | BO42: 55.62897574 | BP42: 56.04464012 | BQ42: 56.46341038 | BR42: 56.88530972 | BS42: 57.31036153 | BT42: 57.73858937 | BU42: 58.17001696 | BV42: 58.60466821 | BW42: 59.04256721 | BX42: 59.48373823 | BY42: 59.92820572 | BZ42: =IF($I$42,$G$42*BZ32, $G42)*$L42 -> 60.3759943 | CA42: 60.8271288 | CB42: 61.28163422 | CC42: 61.73953574 | CD42: 62.20085873 | CE42: 62.66562877 | CF42: 63.13387161 | CG42: 63.6056132 | CH42: 64.08087969 | CI42: 64.5596974 | CJ42: 65.04209288 | CK42: 65.52809286 | CL42: 66.01772428 | CM42: 66.51101426 | CN42: 67.00799014 | CO42: 67.50867947 | CP42: 68.01310999 | CQ42: 68.52130966 | CR42: 69.03330664 | CS42: 69.54912931 | CT42: 70.06880624 | CU42: 70.59236625 | CV42: 71.11983833 | CW42: 71.65125174 | CX42: 72.18663591 | CY42: 72.72602052 | CZ42: 73.26943545 | DA42: 73.81691082 | DB42: 74.36847698 | DC42: 74.92416449 | DD42: 75.48400414 | DE42: 76.04802695 | DF42: =IF($I$42,$G$42*DF32, $G42)*$L42 -> 76.6162642 | DG42: 77.18874736 | DH42: 77.76550816 | DI42: 78.34657857 | DJ42: 78.93199078 | DK42: 79.52177725 | DL42: 80.11597064 | DM42: 80.7146039 | DN42: 81.3177102 | DO42: 81.92532296 | DP42: 82.53747586 | DQ42: 83.15420281 | DR42: 83.77553799 | DS42: 84.40151585 | DT42: 85.03217106 | DU42: 85.66753859 | DV42: 86.30765363 | DW42: 86.95255167 | DX42: 87.60226844 | DY42: 88.25683994 | DZ42: 88.91630246 | EA42: 89.58069254 | EB42: 90.250047 | EC42: 90.92440293 | ED42: 91.6037977 | EE42: 92.28826897 | EF42: 92.97785467 | EG42: 93.67259301 | EH42: 94.37252249 | EI42: 95.0776819 | EJ42: 95.78811033 | EK42: 96.50384713 | EL42: =IF($I$42,$G$42*EL32, $G42)*$L42 -> 97.22493198 | EM42: 97.95140484 | EN42: 98.68330596 | EO42: 99.42067591 | EP42: 100.1635556 | EQ42: 100.911986 | ER42: 101.6660089 | ES42: 102.4256658 | ET42: 103.190999 | EU42: 103.9620508 | EV42: 104.738864 | EW42: 105.5214816 | EX42: 106.309947 | EY42: 107.1043038 | EZ42: 107.9045962 | FA42: 108.7108684 | FB42: 109.5231651 | FC42: 110.3415314 | FD42: 111.1660126 | FE42: 111.9966544 | FF42: 112.8335028 | FG42: 113.6766042
C43: PPA Generation | G43: ='Operating Inputs'!H58 -> 0.75 | N43: =N15*$G43*N$41 -> 0 | O43: 0 | P43: 0 | Q43: 0 | R43: 0 | S43: 0 | T43: 0 | U43: 0 | V43: 0 | W43: 0 | X43: 0 | Y43: 0 | Z43: 0 | AA43: 0 | AB43: 0 | AC43: 0 | AD43: 0 | AE43: 0 | AF43: 0 | AG43: 0 | AH43: 0 | AI43: 0 | AJ43: 0 | AK43: 0 | AL43: 0 | AM43: 0 | AN43: 0 | AO43: 0 | AP43: 0 | AQ43: 0 | AR43: 0 | AS43: 0 | AT43: =AT15*$G43*AT$41 -> 0 | AU43: 0 | AV43: 0 | AW43: 0 | AX43: 0 | AY43: 0 | AZ43: 0 | BA43: 0 | BB43: 0 | BC43: 0 | BD43: 0 | BE43: 0 | BF43: 0 | BG43: 0 | BH43: 0 | BI43: 3639636 | BJ43: 3880339.2 | BK43: 3948696 | BL43: 4014144 | BM43: 3948696 | BN43: 4014144 | BO43: 3948696 | BP43: 4014144 | BQ43: 3970512 | BR43: 4014144 | BS43: 3948696 | BT43: 4014144 | BU43: 3948696 | BV43: 4014144 | BW43: 3948696 | BX43: 4014144 | BY43: 3970512 | BZ43: =BZ15*$G43*BZ$41 -> 4014144 | CA43: 3948696 | CB43: 4014144 | CC43: 3948696 | CD43: 4014144 | CE43: 3948696 | CF43: 4014144 | CG43: 3970512 | CH43: 4014144 | CI43: 3948696 | CJ43: 4014144 | CK43: 3948696 | CL43: 4014144 | CM43: 3948696 | CN43: 4014144 | CO43: 3970512 | CP43: 4014144 | CQ43: 3948696 | CR43: 4014144 | CS43: 3948696 | CT43: 4014144 | CU43: 3948696 | CV43: 4014144 | CW43: 0 | CX43: 0 | CY43: 0 | CZ43: 0 | DA43: 0 | DB43: 0 | DC43: 0 | DD43: 0 | DE43: 0 | DF43: =DF15*$G43*DF$41 -> 0 | DG43: 0 | DH43: 0 | DI43: 0 | DJ43: 0 | DK43: 0 | DL43: 0 | DM43: 0 | DN43: 0 | DO43: 0 | DP43: 0 | DQ43: 0 | DR43: 0 | DS43: 0 | DT43: 0 | DU43: 0 | DV43: 0 | DW43: 0 | DX43: 0 | DY43: 0 | DZ43: 0 | EA43: 0 | EB43: 0 | EC43: 0 | ED43: 0 | EE43: 0 | EF43: 0 | EG43: 0 | EH43: 0 | EI43: 0 | EJ43: 0 | EK43: 0 | EL43: =EL15*$G43*EL$41 -> 0 | EM43: 0 | EN43: 0 | EO43: 0 | EP43: 0 | EQ43: 0 | ER43: 0 | ES43: 0 | ET43: 0 | EU43: 0 | EV43: 0 | EW43: 0 | EX43: 0 | EY43: 0 | EZ43: 0 | FA43: 0 | FB43: 0 | FC43: 0 | FD43: 0 | FE43: 0 | FF43: 0 | FG43: 0
C44: Merchant Price | N44: =LOOKUP(N9,'Operating Inputs'!$62:$62,'Operating Inputs'!$63:$63) -> 40 | O44: =LOOKUP(O9,'Operating Inputs'!$62:$62,'Operating Inputs'!$63:$63) -> 40 | P44: =LOOKUP(P9,'Operating Inputs'!$62:$62,'Operating Inputs'!$63:$63) -> 40 | Q44: =LOOKUP(Q9,'Operating Inputs'!$62:$62,'Operating Inputs'!$63:$63) -> 40 | R44: =LOOKUP(R9,'Operating Inputs'!$62:$62,'Operating Inputs'!$63:$63) -> 40 | S44: =LOOKUP(S9,'Operating Inputs'!$62:$62,'Operating Inputs'!$63:$63) -> 40 | T44: =LOOKUP(T9,'Operating Inputs'!$62:$62,'Operating Inputs'!$63:$63) -> 40 | U44: =LOOKUP(U9,'Operating Inputs'!$62:$62,'Operating Inputs'!$63:$63) -> 40 | V44: =LOOKUP(V9,'Operating Inputs'!$62:$62,'Operating Inputs'!$63:$63) -> 40 | W44: =LOOKUP(W9,'Operating Inputs'!$62:$62,'Operating Inputs'!$63:$63) -> 40 | X44: =LOOKUP(X9,'Operating Inputs'!$62:$62,'Operating Inputs'!$63:$63) -> 41 | Y44: =LOOKUP(Y9,'Operating Inputs'!$62:$62,'Operating Inputs'!$63:$63) -> 41 | Z44: =LOOKUP(Z9,'Operating Inputs'!$62:$62,'Operating Inputs'!$63:$63) -> 41 | AA44: =LOOKUP(AA9,'Operating Inputs'!$62:$62,'Operating Inputs'!$63:$63) -> 41 | AB44: =LOOKUP(AB9,'Operating Inputs'!$62:$62,'Operating Inputs'!$63:$63) -> 41 | AC44: =LOOKUP(AC9,'Operating Inputs'!$62:$62,'Operating Inputs'!$63:$63) -> 41 | AD44: =LOOKUP(AD9,'Operating Inputs'!$62:$62,'Operating Inputs'!$63:$63) -> 41 | AE44: =LOOKUP(AE9,'Operating Inputs'!$62:$62,'Operating Inputs'!$63:$63) -> 41 | AF44: =LOOKUP(AF9,'Operating Inputs'!$62:$62,'Operating Inputs'!$63:$63) -> 41 | AG44: =LOOKUP(AG9,'Operating Inputs'!$62:$62,'Operating Inputs'!$63:$63) -> 41 | AH44: =LOOKUP(AH9,'Operating Inputs'!$62:$62,'Operating Inputs'!$63:$63) -> 41 | AI44: =LOOKUP(AI9,'Operating Inputs'!$62:$62,'Operating Inputs'!$63:$63) -> 41 | AJ44: =LOOKUP(AJ9,'Operating Inputs'!$62:$62,'Operating Inputs'!$63:$63) -> 42 | AK44: =LOOKUP(AK9,'Operating Inputs'!$62:$62,'Operating Inputs'!$63:$63) -> 42 | AL44: =LOOKUP(AL9,'Operating Inputs'!$62:$62,'Operating Inputs'!$63:$63) -> 42 | AM44: =LOOKUP(AM9,'Operating Inputs'!$62:$62,'Operating Inputs'!$63:$63) -> 42 | AN44: =LOOKUP(AN9,'Operating Inputs'!$62:$62,'Operating Inputs'!$63:$63) -> 42 | AO44: =LOOKUP(AO9,'Operating Inputs'!$62:$62,'Operating Inputs'!$63:$63) -> 42 | AP44: =LOOKUP(AP9,'Operating Inputs'!$62:$62,'Operating Inputs'!$63:$63) -> 42 | AQ44: =LOOKUP(AQ9,'Operating Inputs'!$62:$62,'Operating Inputs'!$63:$63) -> 42 | AR44: =LOOKUP(AR9,'Operating Inputs'!$62:$62,'Operating Inputs'!$63:$63) -> 42 | AS44: =LOOKUP(AS9,'Operating Inputs'!$62:$62,'Operating Inputs'!$63:$63) -> 42 | AT44: =LOOKUP(AT9,'Operating Inputs'!$62:$62,'Operating Inputs'!$63:$63) -> 42 | AU44: =LOOKUP(AU9,'Operating Inputs'!$62:$62,'Operating Inputs'!$63:$63) -> 42 | AV44: =LOOKUP(AV9,'Operating Inputs'!$62:$62,'Operating Inputs'!$63:$63) -> 43 | AW44: =LOOKUP(AW9,'Operating Inputs'!$62:$62,'Operating Inputs'!$63:$63) -> 43 | AX44: =LOOKUP(AX9,'Operating Inputs'!$62:$62,'Operating Inputs'!$63:$63) -> 43 | AY44: =LOOKUP(AY9,'Operating Inputs'!$62:$62,'Operating Inputs'!$63:$63) -> 43 | AZ44: =LOOKUP(AZ9,'Operating Inputs'!$62:$62,'Operating Inputs'!$63:$63) -> 43 | BA44: =LOOKUP(BA9,'Operating Inputs'!$62:$62,'Operating Inputs'!$63:$63) -> 43 | BB44: =LOOKUP(BB9,'Operating Inputs'!$62:$62,'Operating Inputs'!$63:$63) -> 43 | BC44: =LOOKUP(BC9,'Operating Inputs'!$62:$62,'Operating Inputs'!$63:$63) -> 43 | BD44: =LOOKUP(BD9,'Operating Inputs'!$62:$62,'Operating Inputs'!$63:$63) -> 43 | BE44: =LOOKUP(BE9,'Operating Inputs'!$62:$62,'Operating Inputs'!$63:$63) -> 43 | BF44: =LOOKUP(BF9,'Operating Inputs'!$62:$62,'Operating Inputs'!$63:$63) -> 43 | BG44: =LOOKUP(BG9,'Operating Inputs'!$62:$62,'Operating Inputs'!$63:$63) -> 43 | BH44: =LOOKUP(BH9,'Operating Inputs'!$62:$62,'Operating Inputs'!$63:$63) -> 44 | BI44: =LOOKUP(BI9,'Operating Inputs'!$62:$62,'Operating Inputs'!$63:$63) -> 44 | BJ44: =LOOKUP(BJ9,'Operating Inputs'!$62:$62,'Operating Inputs'!$63:$63) -> 45 | BK44: =LOOKUP(BK9,'Operating Inputs'!$62:$62,'Operating Inputs'!$63:$63) -> 45 | BL44: =LOOKUP(BL9,'Operating Inputs'!$62:$62,'Operating Inputs'!$63:$63) -> 46 | BM44: =LOOKUP(BM9,'Operating Inputs'!$62:$62,'Operating Inputs'!$63:$63) -> 46 | BN44: =LOOKUP(BN9,'Operating Inputs'!$62:$62,'Operating Inputs'!$63:$63) -> 47 | BO44: =LOOKUP(BO9,'Operating Inputs'!$62:$62,'Operating Inputs'!$63:$63) -> 47 | BP44: =LOOKUP(BP9,'Operating Inputs'!$62:$62,'Operating Inputs'!$63:$63) -> 48 | BQ44: =LOOKUP(BQ9,'Operating Inputs'!$62:$62,'Operating Inputs'!$63:$63) -> 48 | BR44: =LOOKUP(BR9,'Operating Inputs'!$62:$62,'Operating Inputs'!$63:$63) -> 49 | BS44: =LOOKUP(BS9,'Operating Inputs'!$62:$62,'Operating Inputs'!$63:$63) -> 49 | BT44: =LOOKUP(BT9,'Operating Inputs'!$62:$62,'Operating Inputs'!$63:$63) -> 50 | BU44: =LOOKUP(BU9,'Operating Inputs'!$62:$62,'Operating Inputs'!$63:$63) -> 50 | BV44: =LOOKUP(BV9,'Operating Inputs'!$62:$62,'Operating Inputs'!$63:$63) -> 51 | BW44: =LOOKUP(BW9,'Operating Inputs'!$62:$62,'Operating Inputs'!$63:$63) -> 51 | BX44: =LOOKUP(BX9,'Operating Inputs'!$62:$62,'Operating Inputs'!$63:$63) -> 51 | BY44: =LOOKUP(BY9,'Operating Inputs'!$62:$62,'Operating Inputs'!$63:$63) -> 51 | BZ44: =LOOKUP(BZ9,'Operating Inputs'!$62:$62,'Operating Inputs'!$63:$63) -> 51 | CA44: =LOOKUP(CA9,'Operating Inputs'!$62:$62,'Operating Inputs'!$63:$63) -> 51 | CB44: =LOOKUP(CB9,'Operating Inputs'!$62:$62,'Operating Inputs'!$63:$63) -> 51 | CC44: =LOOKUP(CC9,'Operating Inputs'!$62:$62,'Operating Inputs'!$63:$63) -> 51 | CD44: =LOOKUP(CD9,'Operating Inputs'!$62:$62,'Operating Inputs'!$63:$63) -> 51 | CE44: =LOOKUP(CE9,'Operating Inputs'!$62:$62,'Operating Inputs'!$63:$63) -> 51 | CF44: =LOOKUP(CF9,'Operating Inputs'!$62:$62,'Operating Inputs'!$63:$63) -> 51 | CG44: =LOOKUP(CG9,'Operating Inputs'!$62:$62,'Operating Inputs'!$63:$63) -> 51 | CH44: =LOOKUP(CH9,'Operating Inputs'!$62:$62,'Operating Inputs'!$63:$63) -> 51 | CI44: =LOOKUP(CI9,'Operating Inputs'!$62:$62,'Operating Inputs'!$63:$63) -> 51 | CJ44: =LOOKUP(CJ9,'Operating Inputs'!$62:$62,'Operating Inputs'!$63:$63) -> 51 | CK44: =LOOKUP(CK9,'Operating Inputs'!$62:$62,'Operating Inputs'!$63:$63) -> 51 | CL44: =LOOKUP(CL9,'Operating Inputs'!$62:$62,'Operating Inputs'!$63:$63) -> 51 | CM44: =LOOKUP(CM9,'Operating Inputs'!$62:$62,'Operating Inputs'!$63:$63) -> 51 | CN44: =LOOKUP(CN9,'Operating Inputs'!$62:$62,'Operating Inputs'!$63:$63) -> 51 | CO44: =LOOKUP(CO9,'Operating Inputs'!$62:$62,'Operating Inputs'!$63:$63) -> 51 | CP44: =LOOKUP(CP9,'Operating Inputs'!$62:$62,'Operating Inputs'!$63:$63) -> 51 | CQ44: =LOOKUP(CQ9,'Operating Inputs'!$62:$62,'Operating Inputs'!$63:$63) -> 51 | CR44: =LOOKUP(CR9,'Operating Inputs'!$62:$62,'Operating Inputs'!$63:$63) -> 51 | CS44: =LOOKUP(CS9,'Operating Inputs'!$62:$62,'Operating Inputs'!$63:$63) -> 51 | CT44: =LOOKUP(CT9,'Operating Inputs'!$62:$62,'Operating Inputs'!$63:$63) -> 51 | CU44: =LOOKUP(CU9,'Operating Inputs'!$62:$62,'Operating Inputs'!$63:$63) -> 51 | CV44: =LOOKUP(CV9,'Operating Inputs'!$62:$62,'Operating Inputs'!$63:$63) -> 51 | CW44: =LOOKUP(CW9,'Operating Inputs'!$62:$62,'Operating Inputs'!$63:$63) -> 51 | CX44: =LOOKUP(CX9,'Operating Inputs'!$62:$62,'Operating Inputs'!$63:$63) -> 51 | CY44: =LOOKUP(CY9,'Operating Inputs'!$62:$62,'Operating Inputs'!$63:$63) -> 51 | CZ44: =LOOKUP(CZ9,'Operating Inputs'!$62:$62,'Operating Inputs'!$63:$63) -> 51 | DA44: =LOOKUP(DA9,'Operating Inputs'!$62:$62,'Operating Inputs'!$63:$63) -> 51 | DB44: =LOOKUP(DB9,'Operating Inputs'!$62:$62,'Operating Inputs'!$63:$63) -> 51 | DC44: =LOOKUP(DC9,'Operating Inputs'!$62:$62,'Operating Inputs'!$63:$63) -> 51 | DD44: =LOOKUP(DD9,'Operating Inputs'!$62:$62,'Operating Inputs'!$63:$63) -> 51 | DE44: =LOOKUP(DE9,'Operating Inputs'!$62:$62,'Operating Inputs'!$63:$63) -> 51 | DF44: =LOOKUP(DF9,'Operating Inputs'!$62:$62,'Operating Inputs'!$63:$63) -> 51 | DG44: =LOOKUP(DG9,'Operating Inputs'!$62:$62,'Operating Inputs'!$63:$63) -> 51 | DH44: =LOOKUP(DH9,'Operating Inputs'!$62:$62,'Operating Inputs'!$63:$63) -> 51 | DI44: =LOOKUP(DI9,'Operating Inputs'!$62:$62,'Operating Inputs'!$63:$63) -> 51 | DJ44: =LOOKUP(DJ9,'Operating Inputs'!$62:$62,'Operating Inputs'!$63:$63) -> 51 | DK44: =LOOKUP(DK9,'Operating Inputs'!$62:$62,'Operating Inputs'!$63:$63) -> 51 | DL44: =LOOKUP(DL9,'Operating Inputs'!$62:$62,'Operating Inputs'!$63:$63) -> 51 | DM44: =LOOKUP(DM9,'Operating Inputs'!$62:$62,'Operating Inputs'!$63:$63) -> 51 | DN44: =LOOKUP(DN9,'Operating Inputs'!$62:$62,'Operating Inputs'!$63:$63) -> 51 | DO44: =LOOKUP(DO9,'Operating Inputs'!$62:$62,'Operating Inputs'!$63:$63) -> 51 | DP44: =LOOKUP(DP9,'Operating Inputs'!$62:$62,'Operating Inputs'!$63:$63) -> 51 | DQ44: =LOOKUP(DQ9,'Operating Inputs'!$62:$62,'Operating Inputs'!$63:$63) -> 51 | DR44: =LOOKUP(DR9,'Operating Inputs'!$62:$62,'Operating Inputs'!$63:$63) -> 51 | DS44: =LOOKUP(DS9,'Operating Inputs'!$62:$62,'Operating Inputs'!$63:$63) -> 51 | DT44: =LOOKUP(DT9,'Operating Inputs'!$62:$62,'Operating Inputs'!$63:$63) -> 51 | DU44: =LOOKUP(DU9,'Operating Inputs'!$62:$62,'Operating Inputs'!$63:$63) -> 51 | DV44: =LOOKUP(DV9,'Operating Inputs'!$62:$62,'Operating Inputs'!$63:$63) -> 51 | DW44: =LOOKUP(DW9,'Operating Inputs'!$62:$62,'Operating Inputs'!$63:$63) -> 51 | DX44: =LOOKUP(DX9,'Operating Inputs'!$62:$62,'Operating Inputs'!$63:$63) -> 51 | DY44: =LOOKUP(DY9,'Operating Inputs'!$62:$62,'Operating Inputs'!$63:$63) -> 51 | DZ44: =LOOKUP(DZ9,'Operating Inputs'!$62:$62,'Operating Inputs'!$63:$63) -> 51 | EA44: =LOOKUP(EA9,'Operating Inputs'!$62:$62,'Operating Inputs'!$63:$63) -> 51 | EB44: =LOOKUP(EB9,'Operating Inputs'!$62:$62,'Operating Inputs'!$63:$63) -> 51 | EC44: =LOOKUP(EC9,'Operating Inputs'!$62:$62,'Operating Inputs'!$63:$63) -> 51 | ED44: =LOOKUP(ED9,'Operating Inputs'!$62:$62,'Operating Inputs'!$63:$63) -> 51 | EE44: =LOOKUP(EE9,'Operating Inputs'!$62:$62,'Operating Inputs'!$63:$63) -> 51 | EF44: =LOOKUP(EF9,'Operating Inputs'!$62:$62,'Operating Inputs'!$63:$63) -> 51 | EG44: =LOOKUP(EG9,'Operating Inputs'!$62:$62,'Operating Inputs'!$63:$63) -> 51 | EH44: =LOOKUP(EH9,'Operating Inputs'!$62:$62,'Operating Inputs'!$63:$63) -> 51 | EI44: =LOOKUP(EI9,'Operating Inputs'!$62:$62,'Operating Inputs'!$63:$63) -> 51 | EJ44: =LOOKUP(EJ9,'Operating Inputs'!$62:$62,'Operating Inputs'!$63:$63) -> 51 | EK44: =LOOKUP(EK9,'Operating Inputs'!$62:$62,'Operating Inputs'!$63:$63) -> 51 | EL44: =LOOKUP(EL9,'Operating Inputs'!$62:$62,'Operating Inputs'!$63:$63) -> 51 | EM44: =LOOKUP(EM9,'Operating Inputs'!$62:$62,'Operating Inputs'!$63:$63) -> 51 | EN44: =LOOKUP(EN9,'Operating Inputs'!$62:$62,'Operating Inputs'!$63:$63) -> 51 | EO44: =LOOKUP(EO9,'Operating Inputs'!$62:$62,'Operating Inputs'!$63:$63) -> 51 | EP44: =LOOKUP(EP9,'Operating Inputs'!$62:$62,'Operating Inputs'!$63:$63) -> 51 | EQ44: =LOOKUP(EQ9,'Operating Inputs'!$62:$62,'Operating Inputs'!$63:$63) -> 51 | ER44: =LOOKUP(ER9,'Operating Inputs'!$62:$62,'Operating Inputs'!$63:$63) -> 51 | ES44: =LOOKUP(ES9,'Operating Inputs'!$62:$62,'Operating Inputs'!$63:$63) -> 51 | ET44: =LOOKUP(ET9,'Operating Inputs'!$62:$62,'Operating Inputs'!$63:$63) -> 51 | EU44: =LOOKUP(EU9,'Operating Inputs'!$62:$62,'Operating Inputs'!$63:$63) -> 51 | EV44: =LOOKUP(EV9,'Operating Inputs'!$62:$62,'Operating Inputs'!$63:$63) -> 51 | EW44: =LOOKUP(EW9,'Operating Inputs'!$62:$62,'Operating Inputs'!$63:$63) -> 51 | EX44: =LOOKUP(EX9,'Operating Inputs'!$62:$62,'Operating Inputs'!$63:$63) -> 51 | EY44: =LOOKUP(EY9,'Operating Inputs'!$62:$62,'Operating Inputs'!$63:$63) -> 51 | EZ44: =LOOKUP(EZ9,'Operating Inputs'!$62:$62,'Operating Inputs'!$63:$63) -> 51 | FA44: =LOOKUP(FA9,'Operating Inputs'!$62:$62,'Operating Inputs'!$63:$63) -> 51 | FB44: =LOOKUP(FB9,'Operating Inputs'!$62:$62,'Operating Inputs'!$63:$63) -> 51 | FC44: =LOOKUP(FC9,'Operating Inputs'!$62:$62,'Operating Inputs'!$63:$63) -> 51 | FD44: =LOOKUP(FD9,'Operating Inputs'!$62:$62,'Operating Inputs'!$63:$63) -> 51 | FE44: =LOOKUP(FE9,'Operating Inputs'!$62:$62,'Operating Inputs'!$63:$63) -> 51 | FF44: =LOOKUP(FF9,'Operating Inputs'!$62:$62,'Operating Inputs'!$63:$63) -> 51 | FG44: =LOOKUP(FG9,'Operating Inputs'!$62:$62,'Operating Inputs'!$63:$63) -> 51
C45: Merchant Generation | G45: =1-G43 -> 0.25 | N45: =N15-N43 -> 0 | O45: 0 | P45: 0 | Q45: 0 | R45: 0 | S45: 0 | T45: 0 | U45: 0 | V45: 0 | W45: 0 | X45: 0 | Y45: 0 | Z45: 0 | AA45: 0 | AB45: 0 | AC45: 0 | AD45: 0 | AE45: 0 | AF45: 0 | AG45: 0 | AH45: 0 | AI45: 0 | AJ45: 0 | AK45: 0 | AL45: 0 | AM45: 0 | AN45: 0 | AO45: 0 | AP45: 0 | AQ45: 0 | AR45: 0 | AS45: 0 | AT45: =AT15-AT43 -> 0 | AU45: 0 | AV45: 0 | AW45: 0 | AX45: 0 | AY45: 0 | AZ45: 0 | BA45: 0 | BB45: 0 | BC45: 0 | BD45: 0 | BE45: 0 | BF45: 0 | BG45: 0 | BH45: 0 | BI45: 1213212 | BJ45: 1293446.4 | BK45: 1316232 | BL45: 1338048 | BM45: 1316232 | BN45: 1338048 | BO45: 1316232 | BP45: 1338048 | BQ45: 1323504 | BR45: 1338048 | BS45: 1316232 | BT45: 1338048 | BU45: 1316232 | BV45: 1338048 | BW45: 1316232 | BX45: 1338048 | BY45: 1323504 | BZ45: =BZ15-BZ43 -> 1338048 | CA45: 1316232 | CB45: 1338048 | CC45: 1316232 | CD45: 1338048 | CE45: 1316232 | CF45: 1338048 | CG45: 1323504 | CH45: 1338048 | CI45: 1316232 | CJ45: 1338048 | CK45: 1316232 | CL45: 1338048 | CM45: 1316232 | CN45: 1338048 | CO45: 1323504 | CP45: 1338048 | CQ45: 1316232 | CR45: 1338048 | CS45: 1316232 | CT45: 1338048 | CU45: 1316232 | CV45: 1338048 | CW45: 5294016 | CX45: 5352192 | CY45: 5264928 | CZ45: 5352192 | DA45: 5264928 | DB45: 5352192 | DC45: 5264928 | DD45: 5352192 | DE45: 5294016 | DF45: =DF15-DF43 -> 5352192 | DG45: 5264928 | DH45: 5352192 | DI45: 5264928 | DJ45: 5352192 | DK45: 5264928 | DL45: 5352192 | DM45: 5294016 | DN45: 5352192 | DO45: 5264928 | DP45: 5352192 | DQ45: 5264928 | DR45: 5352192 | DS45: 5264928 | DT45: 5352192 | DU45: 5294016 | DV45: 5352192 | DW45: 5264928 | DX45: 5352192 | DY45: 5264928 | DZ45: 5352192 | EA45: 0 | EB45: 0 | EC45: 0 | ED45: 0 | EE45: 0 | EF45: 0 | EG45: 0 | EH45: 0 | EI45: 0 | EJ45: 0 | EK45: 0 | EL45: =EL15-EL43 -> 0 | EM45: 0 | EN45: 0 | EO45: 0 | EP45: 0 | EQ45: 0 | ER45: 0 | ES45: 0 | ET45: 0 | EU45: 0 | EV45: 0 | EW45: 0 | EX45: 0 | EY45: 0 | EZ45: 0 | FA45: 0 | FB45: 0 | FC45: 0 | FD45: 0 | FE45: 0 | FF45: 0 | FG45: 0
C46: Total Revenue | F46: KUSD | K46: =SUM(N46:FG46) -> 20579571.45 | N46: =((N43*N42)+(N44*N45))/1000 -> 0 | O46: 0 | P46: 0 | Q46: 0 | R46: 0 | S46: 0 | T46: 0 | U46: 0 | V46: 0 | W46: 0 | X46: 0 | Y46: 0 | Z46: 0 | AA46: 0 | AB46: 0 | AC46: 0 | AD46: 0 | AE46: 0 | AF46: 0 | AG46: 0 | AH46: 0 | AI46: 0 | AJ46: 0 | AK46: 0 | AL46: 0 | AM46: 0 | AN46: 0 | AO46: 0 | AP46: 0 | AQ46: 0 | AR46: 0 | AS46: 0 | AT46: =((AT43*AT42)+(AT44*AT45))/1000 -> 0 | AU46: 0 | AV46: 0 | AW46: 0 | AX46: 0 | AY46: 0 | AZ46: 0 | BA46: 0 | BB46: 0 | BC46: 0 | BD46: 0 | BE46: 0 | BF46: 0 | BG46: 0 | BH46: 0 | BI46: 247006.0864 | BJ46: 266177.4619 | BK46: 272447.8575 | BL46: 279921.2006 | BM46: 276962.3508 | BN46: 284534.8135 | BO46: 281524.818 | BP46: 289197.5599 | BQ46: 287716.8405 | BR46: 293910.1767 | BS46: 290796.5633 | BT46: 298673.4121 | BU46: 295507.3133 | BV46: 303488.0253 | BW46: 300268.981 | BX46: 307016.7389 | BY46: 305444.3639 | BZ46: =((BZ43*BZ42)+(BZ44*BZ45))/1000 -> 310598.3833 | CA46: 307315.6722 | CB46: 314233.7523 | CC46: 310918.4898 | CD46: 317923.6519 | CE46: 314575.3497 | CF46: 321668.8999 | CG46: 320045.5545 | CH46: 325470.3267 | CI46: 322054.4509 | CJ46: 329328.7749 | CK46: 325878.3502 | CL46: 333245.0998 | CM46: 329759.6079 | CN46: 337220.1696 | CO46: 335542.7259 | CP46: 341254.8654 | CQ46: 337697.6534 | CR46: 345350.0817 | CS46: 341756.2007 | CT46: 349506.7262 | CU46: 345875.6262 | CV46: 353725.7203 | CW46: 269994.816 | CX46: 272961.792 | CY46: 268511.328 | CZ46: 272961.792 | DA46: 268511.328 | DB46: 272961.792 | DC46: 268511.328 | DD46: 272961.792 | DE46: 269994.816 | DF46: =((DF43*DF42)+(DF44*DF45))/1000 -> 272961.792 | DG46: 268511.328 | DH46: 272961.792 | DI46: 268511.328 | DJ46: 272961.792 | DK46: 268511.328 | DL46: 272961.792 | DM46: 269994.816 | DN46: 272961.792 | DO46: 268511.328 | DP46: 272961.792 | DQ46: 268511.328 | DR46: 272961.792 | DS46: 268511.328 | DT46: 272961.792 | DU46: 269994.816 | DV46: 272961.792 | DW46: 268511.328 | DX46: 272961.792 | DY46: 268511.328 | DZ46: 272961.792 | EA46: 0 | EB46: 0 | EC46: 0 | ED46: 0 | EE46: 0 | EF46: 0 | EG46: 0 | EH46: 0 | EI46: 0 | EJ46: 0 | EK46: 0 | EL46: =((EL43*EL42)+(EL44*EL45))/1000 -> 0 | EM46: 0 | EN46: 0 | EO46: 0 | EP46: 0 | EQ46: 0 | ER46: 0 | ES46: 0 | ET46: 0 | EU46: 0 | EV46: 0 | EW46: 0 | EX46: 0 | EY46: 0 | EZ46: 0 | FA46: 0 | FB46: 0 | FC46: 0 | FD46: 0 | FE46: 0 | FF46: 0 | FG46: 0
B48: Operating Cash Flow
C49: EBITDA | N49: =N46-N38 -> 0 | O49: =O46-O38 -> 0 | P49: 0 | Q49: 0 | R49: 0 | S49: 0 | T49: 0 | U49: 0 | V49: 0 | W49: 0 | X49: 0 | Y49: 0 | Z49: 0 | AA49: 0 | AB49: 0 | AC49: 0 | AD49: 0 | AE49: 0 | AF49: 0 | AG49: 0 | AH49: 0 | AI49: 0 | AJ49: 0 | AK49: 0 | AL49: 0 | AM49: 0 | AN49: 0 | AO49: 0 | AP49: 0 | AQ49: 0 | AR49: 0 | AS49: 0 | AT49: 0 | AU49: 0 | AV49: 0 | AW49: 0 | AX49: 0 | AY49: 0 | AZ49: 0 | BA49: 0 | BB49: 0 | BC49: 0 | BD49: 0 | BE49: 0 | BF49: 0 | BG49: 0 | BH49: 0 | BI49: 143390.7809 | BJ49: 161115.9058 | BK49: 166408.9987 | BL49: 172904.5429 | BM49: 169332.9091 | BN49: 175912.9059 | BO49: 172280.9347 | BP49: 178946.3237 | BQ49: 176770.1319 | BR49: 182005.172 | BS49: 178250.7837 | BT49: 185089.8323 | BU49: 181273.3469 | BV49: 188200.6918 | BW49: 184321.5051 | BX49: 190000.0954 | BY49: 187689.5714 | BZ49: 191826.4901 | CA49: =CA46-CA38 -> 187863.6839 | CB49: 193680.2808 | CC49: 189674.7216 | CD49: 195561.8783 | CE49: 191512.925 | CF49: 197471.6997 | CG49: 195064.9097 | CH49: 199410.1685 | CI49: 195272.4644 | CJ49: 201377.7143 | CK49: 197194.6339 | CL49: 203374.7733 | CM49: 199145.6359 | CN49: 205401.7882 | CO49: 202892.8251 | CP49: 207459.2083 | CQ49: 203135.8741 | CR49: 209547.4897 | CS49: 205175.9947 | CT49: 211667.0953 | CU49: 207246.7171 | CV49: 213818.495 | CW49: 129205.0462 | CX49: 130955.9583 | CY49: 125692.3601 | CZ49: 128825.8708 | DA49: 123550.0756 | DB49: 126663.832 | DC49: 121375.6568 | DD49: 124469.3626 | DE49: 120565.6861 | DF49: 122241.9761 | DG49: 116928.4812 | DH49: 119981.1789 | DI49: 114654.7385 | DJ49: 117686.4697 | DK49: 112346.8896 | DL49: 115357.3399 | DM49: 111396.1841 | DN49: 112993.2731 | DO49: 107626.8195 | DP49: 110593.7453 | DQ49: 105213.5518 | DR49: 108158.2246 | DS49: 102764.0852 | DT49: 105686.1711 | DU49: 101664.0089 | DV49: 103177.0368 | DW49: 97754.37478 | DX49: 100630.2655 | DY49: 95193.02048 | DZ49: 98045.29256 | EA49: 0 | EB49: 0 | EC49: 0 | ED49: 0 | EE49: 0 | EF49: 0 | EG49: 0 | EH49: 0 | EI49: 0 | EJ49: 0 | EK49: 0 | EL49: 0 | EM49: =EM46-EM38 -> 0 | EN49: 0 | EO49: 0 | EP49: 0 | EQ49: 0 | ER49: 0 | ES49: 0 | ET49: 0 | EU49: 0 | EV49: 0 | EW49: 0 | EX49: 0 | EY49: 0 | EZ49: 0 | FA49: 0 | FB49: 0 | FC49: 0 | FD49: 0 | FE49: 0 | FF49: 0 | FG49: 0
C50: CAPEX | N50: =-SUM(N24,N19) -> -9090.909091 | O50: -9090.909091 | P50: -9090.909091 | Q50: -9090.909091 | R50: -9090.909091 | S50: -9090.909091 | T50: -9090.909091 | U50: -9090.909091 | V50: -9090.909091 | W50: -9090.909091 | X50: -9090.909091 | Y50: -4507.577898 | Z50: -7128.446234 | AA50: -10964.34722 | AB50: -16402.38292 | AC50: -23865.32633 | AD50: -33772.56703 | AE50: -46483.3085 | AF50: -62225.19349 | AG50: -81016.17667 | AH50: -102592.0001 | AI50: -126354.7328 | AJ50: -151358.1446 | AK50: -176342.2351 | AL50: -199821.9309 | AM50: -220224.8009 | AN50: -236061.7188 | AO50: -246105.4144 | AP50: -249547.3924 | AQ50: -246105.4144 | AR50: -236061.7188 | AS50: -220224.8009 | AT50: =-SUM(AT24,AT19) -> -199821.9309 | AU50: -176342.2351 | AV50: -151358.1446 | AW50: -126354.7328 | AX50: -102592.0001 | AY50: -81016.17667 | AZ50: -62225.19349 | BA50: -46483.3085 | BB50: -33772.56703 | BC50: -23865.32633 | BD50: -16402.38292 | BE50: -10964.34722 | BF50: -7128.446234 | BG50: -4507.577898 | BH50: 0 | BI50: 0 | BJ50: 0 | BK50: 0 | BL50: 0 | BM50: 0 | BN50: 0 | BO50: 0 | BP50: 0 | BQ50: 0 | BR50: 0 | BS50: 0 | BT50: 0 | BU50: 0 | BV50: 0 | BW50: 0 | BX50: 0 | BY50: 0 | BZ50: =-SUM(BZ24,BZ19) -> 0 | CA50: 0 | CB50: 0 | CC50: 0 | CD50: 0 | CE50: 0 | CF50: 0 | CG50: 0 | CH50: 0 | CI50: 0 | CJ50: 0 | CK50: 0 | CL50: 0 | CM50: 0 | CN50: 0 | CO50: 0 | CP50: 0 | CQ50: 0 | CR50: 0 | CS50: 0 | CT50: 0 | CU50: 0 | CV50: 0 | CW50: 0 | CX50: 0 | CY50: 0 | CZ50: 0 | DA50: 0 | DB50: 0 | DC50: 0 | DD50: 0 | DE50: 0 | DF50: =-SUM(DF24,DF19) -> 0 | DG50: 0 | DH50: 0 | DI50: 0 | DJ50: 0 | DK50: 0 | DL50: 0 | DM50: 0 | DN50: 0 | DO50: 0 | DP50: 0 | DQ50: 0 | DR50: 0 | DS50: 0 | DT50: 0 | DU50: 0 | DV50: 0 | DW50: 0 | DX50: 0 | DY50: 0 | DZ50: 0 | EA50: 0 | EB50: 0 | EC50: 0 | ED50: 0 | EE50: 0 | EF50: 0 | EG50: 0 | EH50: 0 | EI50: 0 | EJ50: 0 | EK50: 0 | EL50: =-SUM(EL24,EL19) -> 0 | EM50: 0 | EN50: 0 | EO50: 0 | EP50: 0 | EQ50: 0 | ER50: 0 | ES50: 0 | ET50: 0 | EU50: 0 | EV50: 0 | EW50: 0 | EX50: 0 | EY50: 0 | EZ50: 0 | FA50: 0 | FB50: 0 | FC50: 0 | FD50: 0 | FE50: 0 | FF50: 0 | FG50: 0
C51: Pre-tax Cash Flow | N51: =SUM(N49:N50)-0.001 -> -9090.910091 | O51: =SUM(O49:O50) -> -9090.909091 | P51: -9090.909091 | Q51: -9090.909091 | R51: -9090.909091 | S51: -9090.909091 | T51: -9090.909091 | U51: -9090.909091 | V51: -9090.909091 | W51: -9090.909091 | X51: -9090.909091 | Y51: -4507.577898 | Z51: -7128.446234 | AA51: -10964.34722 | AB51: -16402.38292 | AC51: -23865.32633 | AD51: -33772.56703 | AE51: -46483.3085 | AF51: -62225.19349 | AG51: -81016.17667 | AH51: -102592.0001 | AI51: -126354.7328 | AJ51: -151358.1446 | AK51: -176342.2351 | AL51: -199821.9309 | AM51: -220224.8009 | AN51: -236061.7188 | AO51: -246105.4144 | AP51: -249547.3924 | AQ51: -246105.4144 | AR51: -236061.7188 | AS51: -220224.8009 | AT51: =SUM(AT49:AT50) -> -199821.9309 | AU51: -176342.2351 | AV51: -151358.1446 | AW51: -126354.7328 | AX51: -102592.0001 | AY51: -81016.17667 | AZ51: -62225.19349 | BA51: -46483.3085 | BB51: -33772.56703 | BC51: -23865.32633 | BD51: -16402.38292 | BE51: -10964.34722 | BF51: -7128.446234 | BG51: -4507.577898 | BH51: 0 | BI51: 143390.7809 | BJ51: 161115.9058 | BK51: 166408.9987 | BL51: 172904.5429 | BM51: 169332.9091 | BN51: 175912.9059 | BO51: 172280.9347 | BP51: 178946.3237 | BQ51: 176770.1319 | BR51: 182005.172 | BS51: 178250.7837 | BT51: 185089.8323 | BU51: 181273.3469 | BV51: 188200.6918 | BW51: 184321.5051 | BX51: 190000.0954 | BY51: 187689.5714 | BZ51: =SUM(BZ49:BZ50) -> 191826.4901 | CA51: 187863.6839 | CB51: 193680.2808 | CC51: 189674.7216 | CD51: 195561.8783 | CE51: 191512.925 | CF51: 197471.6997 | CG51: 195064.9097 | CH51: 199410.1685 | CI51: 195272.4644 | CJ51: 201377.7143 | CK51: 197194.6339 | CL51: 203374.7733 | CM51: 199145.6359 | CN51: 205401.7882 | CO51: 202892.8251 | CP51: 207459.2083 | CQ51: 203135.8741 | CR51: 209547.4897 | CS51: 205175.9947 | CT51: 211667.0953 | CU51: 207246.7171 | CV51: 213818.495 | CW51: 129205.0462 | CX51: 130955.9583 | CY51: 125692.3601 | CZ51: 128825.8708 | DA51: 123550.0756 | DB51: 126663.832 | DC51: 121375.6568 | DD51: 124469.3626 | DE51: 120565.6861 | DF51: =SUM(DF49:DF50) -> 122241.9761 | DG51: 116928.4812 | DH51: 119981.1789 | DI51: 114654.7385 | DJ51: 117686.4697 | DK51: 112346.8896 | DL51: 115357.3399 | DM51: 111396.1841 | DN51: 112993.2731 | DO51: 107626.8195 | DP51: 110593.7453 | DQ51: 105213.5518 | DR51: 108158.2246 | DS51: 102764.0852 | DT51: 105686.1711 | DU51: 101664.0089 | DV51: 103177.0368 | DW51: 97754.37478 | DX51: 100630.2655 | DY51: 95193.02048 | DZ51: 98045.29256 | EA51: 0 | EB51: 0 | EC51: 0 | ED51: 0 | EE51: 0 | EF51: 0 | EG51: 0 | EH51: 0 | EI51: 0 | EJ51: 0 | EK51: 0 | EL51: =SUM(EL49:EL50) -> 0 | EM51: 0 | EN51: 0 | EO51: 0 | EP51: 0 | EQ51: 0 | ER51: 0 | ES51: 0 | ET51: 0 | EU51: 0 | EV51: 0 | EW51: 0 | EX51: 0 | EY51: 0 | EZ51: 0 | FA51: 0 | FB51: 0 | FC51: 0 | FD51: 0 | FE51: 0 | FF51: 0 | FG51: 0
C52: Pre-tax Project IRR | G52: =XIRR(N51:FG51,$N$7:$FG$7) -> 0.07527823746
B54: Income Tax & Depreciation
C55: Depreciation rate | G55: ='Operating Inputs'!H91 -> 15.25 | N55: =1/$G55/Months_per_year*N$5*N$8 -> 0 | O55: 0 | P55: 0 | Q55: 0 | R55: 0 | S55: 0 | T55: 0 | U55: 0 | V55: 0 | W55: 0 | X55: 0 | Y55: 0 | Z55: 0 | AA55: 0 | AB55: 0 | AC55: 0 | AD55: 0 | AE55: 0 | AF55: 0 | AG55: 0 | AH55: 0 | AI55: 0 | AJ55: 0 | AK55: 0 | AL55: 0 | AM55: 0 | AN55: 0 | AO55: 0 | AP55: 0 | AQ55: 0 | AR55: 0 | AS55: 0 | AT55: =1/$G55/Months_per_year*AT$5*AT$8 -> 0 | AU55: 0 | AV55: 0 | AW55: 0 | AX55: 0 | AY55: 0 | AZ55: 0 | BA55: 0 | BB55: 0 | BC55: 0 | BD55: 0 | BE55: 0 | BF55: 0 | BG55: 0 | BH55: 0 | BI55: 0.03278688525 | BJ55: 0.03278688525 | BK55: 0.03278688525 | BL55: 0.03278688525 | BM55: 0.03278688525 | BN55: 0.03278688525 | BO55: 0.03278688525 | BP55: 0.03278688525 | BQ55: 0.03278688525 | BR55: 0.03278688525 | BS55: 0.03278688525 | BT55: 0.03278688525 | BU55: 0.03278688525 | BV55: 0.03278688525 | BW55: 0.03278688525 | BX55: 0.03278688525 | BY55: 0.03278688525 | BZ55: =1/$G55/Months_per_year*BZ$5*BZ$8 -> 0.03278688525 | CA55: 0.03278688525 | CB55: 0.03278688525 | CC55: 0.03278688525 | CD55: 0.03278688525 | CE55: 0.03278688525 | CF55: 0.03278688525 | CG55: 0.03278688525 | CH55: 0.03278688525 | CI55: 0.03278688525 | CJ55: 0.03278688525 | CK55: 0.03278688525 | CL55: 0.03278688525 | CM55: 0.03278688525 | CN55: 0.03278688525 | CO55: 0.03278688525 | CP55: 0.03278688525 | CQ55: 0.03278688525 | CR55: 0.03278688525 | CS55: 0.03278688525 | CT55: 0.03278688525 | CU55: 0.03278688525 | CV55: 0.03278688525 | CW55: 0.03278688525 | CX55: 0.03278688525 | CY55: 0.03278688525 | CZ55: 0.03278688525 | DA55: 0.03278688525 | DB55: 0.03278688525 | DC55: 0.03278688525 | DD55: 0.03278688525 | DE55: 0.03278688525 | DF55: =1/$G55/Months_per_year*DF$5*DF$8 -> 0.03278688525 | DG55: 0.03278688525 | DH55: 0.03278688525 | DI55: 0.03278688525 | DJ55: 0.03278688525 | DK55: 0.03278688525 | DL55: 0.03278688525 | DM55: 0.03278688525 | DN55: 0.03278688525 | DO55: 0.03278688525 | DP55: 0.03278688525 | DQ55: 0.03278688525 | DR55: 0.03278688525 | DS55: 0.03278688525 | DT55: 0.03278688525 | DU55: 0.03278688525 | DV55: 0.03278688525 | DW55: 0.03278688525 | DX55: 0.03278688525 | DY55: 0.03278688525 | DZ55: 0.03278688525 | EA55: 0 | EB55: 0 | EC55: 0 | ED55: 0 | EE55: 0 | EF55: 0 | EG55: 0 | EH55: 0 | EI55: 0 | EJ55: 0 | EK55: 0 | EL55: =1/$G55/Months_per_year*EL$5*EL$8 -> 0 | EM55: 0 | EN55: 0 | EO55: 0 | EP55: 0 | EQ55: 0 | ER55: 0 | ES55: 0 | ET55: 0 | EU55: 0 | EV55: 0 | EW55: 0 | EX55: 0 | EY55: 0 | EZ55: 0 | FA55: 0 | FB55: 0 | FC55: 0 | FD55: 0 | FE55: 0 | FF55: 0 | FG55: 0
C56: Accumulated Depreciation rate | M56: 0 | N56: =M56+N57 -> 0 | O56: =N56+O57 -> 0 | P56: 0 | Q56: 0 | R56: 0 | S56: 0 | T56: 0 | U56: 0 | V56: 0 | W56: 0 | X56: 0 | Y56: 0 | Z56: 0 | AA56: 0 | AB56: 0 | AC56: 0 | AD56: 0 | AE56: 0 | AF56: 0 | AG56: 0 | AH56: 0 | AI56: 0 | AJ56: 0 | AK56: 0 | AL56: 0 | AM56: 0 | AN56: 0 | AO56: 0 | AP56: 0 | AQ56: 0 | AR56: 0 | AS56: 0 | AT56: 0 | AU56: 0 | AV56: 0 | AW56: 0 | AX56: 0 | AY56: 0 | AZ56: 0 | BA56: 0 | BB56: 0 | BC56: 0 | BD56: 0 | BE56: 0 | BF56: 0 | BG56: 0 | BH56: 0 | BI56: 0.03278688525 | BJ56: 0.06557377049 | BK56: 0.09836065574 | BL56: 0.131147541 | BM56: 0.1639344262 | BN56: 0.1967213115 | BO56: 0.2295081967 | BP56: 0.262295082 | BQ56: 0.2950819672 | BR56: 0.3278688525 | BS56: 0.3606557377 | BT56: 0.393442623 | BU56: 0.4262295082 | BV56: 0.4590163934 | BW56: 0.4918032787 | BX56: 0.5245901639 | BY56: 0.5573770492 | BZ56: 0.5901639344 | CA56: =BZ56+CA57 -> 0.6229508197 | CB56: 0.6557377049 | CC56: 0.6885245902 | CD56: 0.7213114754 | CE56: 0.7540983607 | CF56: 0.7868852459 | CG56: 0.8196721311 | CH56: 0.8524590164 | CI56: 0.8852459016 | CJ56: 0.9180327869 | CK56: 0.9508196721 | CL56: 0.9836065574 | CM56: 1 | CN56: 1 | CO56: 1 | CP56: 1 | CQ56: 1 | CR56: 1 | CS56: 1 | CT56: 1 | CU56: 1 | CV56: 1 | CW56: 1 | CX56: 1 | CY56: 1 | CZ56: 1 | DA56: 1 | DB56: 1 | DC56: 1 | DD56: 1 | DE56: 1 | DF56: 1 | DG56: 1 | DH56: 1 | DI56: 1 | DJ56: 1 | DK56: 1 | DL56: 1 | DM56: 1 | DN56: 1 | DO56: 1 | DP56: 1 | DQ56: 1 | DR56: 1 | DS56: 1 | DT56: 1 | DU56: 1 | DV56: 1 | DW56: 1 | DX56: 1 | DY56: 1 | DZ56: 1 | EA56: 1 | EB56: 1 | EC56: 1 | ED56: 1 | EE56: 1 | EF56: 1 | EG56: 1 | EH56: 1 | EI56: 1 | EJ56: 1 | EK56: 1 | EL56: 1 | EM56: =EL56+EM57 -> 1 | EN56: 1 | EO56: 1 | EP56: 1 | EQ56: 1 | ER56: 1 | ES56: 1 | ET56: 1 | EU56: 1 | EV56: 1 | EW56: 1 | EX56: 1 | EY56: 1 | EZ56: 1 | FA56: 1 | FB56: 1 | FC56: 1 | FD56: 1 | FE56: 1 | FF56: 1 | FG56: 1
C57: Adj. Depreciation rate | L57: =SUM(N57:FG57) -> 1 | N57: =MIN(N55,1 - M56) -> 0 | O57: =MIN(O55,1 - N56) -> 0 | P57: 0 | Q57: 0 | R57: 0 | S57: 0 | T57: 0 | U57: 0 | V57: 0 | W57: 0 | X57: 0 | Y57: 0 | Z57: 0 | AA57: 0 | AB57: 0 | AC57: 0 | AD57: 0 | AE57: 0 | AF57: 0 | AG57: 0 | AH57: 0 | AI57: 0 | AJ57: 0 | AK57: 0 | AL57: 0 | AM57: 0 | AN57: 0 | AO57: 0 | AP57: 0 | AQ57: 0 | AR57: 0 | AS57: 0 | AT57: 0 | AU57: 0 | AV57: 0 | AW57: 0 | AX57: 0 | AY57: 0 | AZ57: 0 | BA57: 0 | BB57: 0 | BC57: 0 | BD57: 0 | BE57: 0 | BF57: 0 | BG57: 0 | BH57: 0 | BI57: 0.03278688525 | BJ57: 0.03278688525 | BK57: 0.03278688525 | BL57: 0.03278688525 | BM57: 0.03278688525 | BN57: 0.03278688525 | BO57: 0.03278688525 | BP57: 0.03278688525 | BQ57: 0.03278688525 | BR57: 0.03278688525 | BS57: 0.03278688525 | BT57: 0.03278688525 | BU57: 0.03278688525 | BV57: 0.03278688525 | BW57: 0.03278688525 | BX57: 0.03278688525 | BY57: 0.03278688525 | BZ57: 0.03278688525 | CA57: =MIN(CA55,1 - BZ56) -> 0.03278688525 | CB57: 0.03278688525 | CC57: 0.03278688525 | CD57: 0.03278688525 | CE57: 0.03278688525 | CF57: 0.03278688525 | CG57: 0.03278688525 | CH57: 0.03278688525 | CI57: 0.03278688525 | CJ57: 0.03278688525 | CK57: 0.03278688525 | CL57: 0.03278688525 | CM57: 0.01639344262 | CN57: 0 | CO57: 0 | CP57: 0 | CQ57: 0 | CR57: 0 | CS57: 0 | CT57: 0 | CU57: 0 | CV57: 0 | CW57: 0 | CX57: 0 | CY57: 0 | CZ57: 0 | DA57: 0 | DB57: 0 | DC57: 0 | DD57: 0 | DE57: 0 | DF57: 0 | DG57: 0 | DH57: 0 | DI57: 0 | DJ57: 0 | DK57: 0 | DL57: 0 | DM57: 0 | DN57: 0 | DO57: 0 | DP57: 0 | DQ57: 0 | DR57: 0 | DS57: 0 | DT57: 0 | DU57: 0 | DV57: 0 | DW57: 0 | DX57: 0 | DY57: 0 | DZ57: 0 | EA57: 0 | EB57: 0 | EC57: 0 | ED57: 0 | EE57: 0 | EF57: 0 | EG57: 0 | EH57: 0 | EI57: 0 | EJ57: 0 | EK57: 0 | EL57: 0 | EM57: =MIN(EM55,1 - EL56) -> 0 | EN57: 0 | EO57: 0 | EP57: 0 | EQ57: 0 | ER57: 0 | ES57: 0 | ET57: 0 | EU57: 0 | EV57: 0 | EW57: 0 | EX57: 0 | EY57: 0 | EZ57: 0 | FA57: 0 | FB57: 0 | FC57: 0 | FD57: 0 | FE57: 0 | FF57: 0 | FG57: 0
C59: Depreciation on CAPEX | G59: =G22 -> 3740000 | N59: =$G59*N57 -> 0 | O59: =$G59*O57 -> 0 | P59: 0 | Q59: 0 | R59: 0 | S59: 0 | T59: 0 | U59: 0 | V59: 0 | W59: 0 | X59: 0 | Y59: 0 | Z59: 0 | AA59: 0 | AB59: 0 | AC59: 0 | AD59: 0 | AE59: 0 | AF59: 0 | AG59: 0 | AH59: 0 | AI59: 0 | AJ59: 0 | AK59: 0 | AL59: 0 | AM59: 0 | AN59: 0 | AO59: 0 | AP59: 0 | AQ59: 0 | AR59: 0 | AS59: 0 | AT59: 0 | AU59: 0 | AV59: 0 | AW59: 0 | AX59: 0 | AY59: 0 | AZ59: 0 | BA59: 0 | BB59: 0 | BC59: 0 | BD59: 0 | BE59: 0 | BF59: 0 | BG59: 0 | BH59: 0 | BI59: 122622.9508 | BJ59: 122622.9508 | BK59: 122622.9508 | BL59: 122622.9508 | BM59: 122622.9508 | BN59: 122622.9508 | BO59: 122622.9508 | BP59: 122622.9508 | BQ59: 122622.9508 | BR59: 122622.9508 | BS59: 122622.9508 | BT59: 122622.9508 | BU59: 122622.9508 | BV59: 122622.9508 | BW59: 122622.9508 | BX59: 122622.9508 | BY59: 122622.9508 | BZ59: 122622.9508 | CA59: =$G59*CA57 -> 122622.9508 | CB59: 122622.9508 | CC59: 122622.9508 | CD59: 122622.9508 | CE59: 122622.9508 | CF59: 122622.9508 | CG59: 122622.9508 | CH59: 122622.9508 | CI59: 122622.9508 | CJ59: 122622.9508 | CK59: 122622.9508 | CL59: 122622.9508 | CM59: 61311.47541 | CN59: 0 | CO59: 0 | CP59: 0 | CQ59: 0 | CR59: 0 | CS59: 0 | CT59: 0 | CU59: 0 | CV59: 0 | CW59: 0 | CX59: 0 | CY59: 0 | CZ59: 0 | DA59: 0 | DB59: 0 | DC59: 0 | DD59: 0 | DE59: 0 | DF59: 0 | DG59: 0 | DH59: 0 | DI59: 0 | DJ59: 0 | DK59: 0 | DL59: 0 | DM59: 0 | DN59: 0 | DO59: 0 | DP59: 0 | DQ59: 0 | DR59: 0 | DS59: 0 | DT59: 0 | DU59: 0 | DV59: 0 | DW59: 0 | DX59: 0 | DY59: 0 | DZ59: 0 | EA59: 0 | EB59: 0 | EC59: 0 | ED59: 0 | EE59: 0 | EF59: 0 | EG59: 0 | EH59: 0 | EI59: 0 | EJ59: 0 | EK59: 0 | EL59: 0 | EM59: =$G59*EM57 -> 0 | EN59: 0 | EO59: 0 | EP59: 0 | EQ59: 0 | ER59: 0 | ES59: 0 | ET59: 0 | EU59: 0 | EV59: 0 | EW59: 0 | EX59: 0 | EY59: 0 | EZ59: 0 | FA59: 0 | FB59: 0 | FC59: 0 | FD59: 0 | FE59: 0 | FF59: 0 | FG59: 0
C60: EBIT | L60: =SUM(N60:FG60) -> 7270068.875 | N60: =N49-N59 -> 0 | O60: 0 | P60: 0 | Q60: 0 | R60: 0 | S60: 0 | T60: 0 | U60: 0 | V60: 0 | W60: 0 | X60: 0 | Y60: 0 | Z60: 0 | AA60: 0 | AB60: 0 | AC60: 0 | AD60: 0 | AE60: 0 | AF60: 0 | AG60: 0 | AH60: 0 | AI60: 0 | AJ60: 0 | AK60: 0 | AL60: 0 | AM60: 0 | AN60: 0 | AO60: 0 | AP60: 0 | AQ60: 0 | AR60: 0 | AS60: 0 | AT60: =AT49-AT59 -> 0 | AU60: 0 | AV60: 0 | AW60: 0 | AX60: 0 | AY60: 0 | AZ60: 0 | BA60: 0 | BB60: 0 | BC60: 0 | BD60: 0 | BE60: 0 | BF60: 0 | BG60: 0 | BH60: 0 | BI60: 20767.83008 | BJ60: 38492.95501 | BK60: 43786.04792 | BL60: 50281.5921 | BM60: 46709.9583 | BN60: 53289.95513 | BO60: 49657.98386 | BP60: 56323.37288 | BQ60: 54147.18105 | BR60: 59382.22117 | BS60: 55627.83284 | BT60: 62466.88147 | BU60: 58650.39607 | BV60: 65577.74096 | BW60: 61698.55427 | BX60: 67377.14461 | BY60: 65066.62056 | BZ60: =BZ49-BZ59 -> 69203.53932 | CA60: 65240.73304 | CB60: 71057.32996 | CC60: 67051.77082 | CD60: 72938.92745 | CE60: 68889.97417 | CF60: 74848.7489 | CG60: 72441.95893 | CH60: 76787.21768 | CI60: 72649.5136 | CJ60: 78754.76349 | CK60: 74571.68309 | CL60: 80751.82248 | CM60: 137834.1605 | CN60: 205401.7882 | CO60: 202892.8251 | CP60: 207459.2083 | CQ60: 203135.8741 | CR60: 209547.4897 | CS60: 205175.9947 | CT60: 211667.0953 | CU60: 207246.7171 | CV60: 213818.495 | CW60: 129205.0462 | CX60: 130955.9583 | CY60: 125692.3601 | CZ60: 128825.8708 | DA60: 123550.0756 | DB60: 126663.832 | DC60: 121375.6568 | DD60: 124469.3626 | DE60: 120565.6861 | DF60: =DF49-DF59 -> 122241.9761 | DG60: 116928.4812 | DH60: 119981.1789 | DI60: 114654.7385 | DJ60: 117686.4697 | DK60: 112346.8896 | DL60: 115357.3399 | DM60: 111396.1841 | DN60: 112993.2731 | DO60: 107626.8195 | DP60: 110593.7453 | DQ60: 105213.5518 | DR60: 108158.2246 | DS60: 102764.0852 | DT60: 105686.1711 | DU60: 101664.0089 | DV60: 103177.0368 | DW60: 97754.37478 | DX60: 100630.2655 | DY60: 95193.02048 | DZ60: 98045.29256 | EA60: 0 | EB60: 0 | EC60: 0 | ED60: 0 | EE60: 0 | EF60: 0 | EG60: 0 | EH60: 0 | EI60: 0 | EJ60: 0 | EK60: 0 | EL60: =EL49-EL59 -> 0 | EM60: 0 | EN60: 0 | EO60: 0 | EP60: 0 | EQ60: 0 | ER60: 0 | ES60: 0 | ET60: 0 | EU60: 0 | EV60: 0 | EW60: 0 | EX60: 0 | EY60: 0 | EZ60: 0 | FA60: 0 | FB60: 0 | FC60: 0 | FD60: 0 | FE60: 0 | FF60: 0 | FG60: 0
C61: NOL Opening Bal | N61: =M64 -> 0 | O61: =N64 -> 0 | P61: 0 | Q61: 0 | R61: 0 | S61: 0 | T61: 0 | U61: 0 | V61: 0 | W61: 0 | X61: 0 | Y61: 0 | Z61: 0 | AA61: 0 | AB61: 0 | AC61: 0 | AD61: 0 | AE61: 0 | AF61: 0 | AG61: 0 | AH61: 0 | AI61: 0 | AJ61: 0 | AK61: 0 | AL61: 0 | AM61: 0 | AN61: 0 | AO61: 0 | AP61: 0 | AQ61: 0 | AR61: 0 | AS61: 0 | AT61: 0 | AU61: 0 | AV61: 0 | AW61: 0 | AX61: 0 | AY61: 0 | AZ61: 0 | BA61: 0 | BB61: 0 | BC61: 0 | BD61: 0 | BE61: 0 | BF61: 0 | BG61: 0 | BH61: 0 | BI61: 0 | BJ61: 0 | BK61: 0 | BL61: 0 | BM61: 0 | BN61: 0 | BO61: 0 | BP61: 0 | BQ61: 0 | BR61: 0 | BS61: 0 | BT61: 0 | BU61: 0 | BV61: 0 | BW61: 0 | BX61: 0 | BY61: 0 | BZ61: 0 | CA61: =BZ64 -> 0 | CB61: 0 | CC61: 0 | CD61: 0 | CE61: 0 | CF61: 0 | CG61: 0 | CH61: 0 | CI61: 0 | CJ61: 0 | CK61: 0 | CL61: 0 | CM61: 0 | CN61: 0 | CO61: 0 | CP61: 0 | CQ61: 0 | CR61: 0 | CS61: 0 | CT61: 0 | CU61: 0 | CV61: 0 | CW61: 0 | CX61: 0 | CY61: 0 | CZ61: 0 | DA61: 0 | DB61: 0 | DC61: 0 | DD61: 0 | DE61: 0 | DF61: 0 | DG61: 0 | DH61: 0 | DI61: 0 | DJ61: 0 | DK61: 0 | DL61: 0 | DM61: 0 | DN61: 0 | DO61: 0 | DP61: 0 | DQ61: 0 | DR61: 0 | DS61: 0 | DT61: 0 | DU61: 0 | DV61: 0 | DW61: 0 | DX61: 0 | DY61: 0 | DZ61: 0 | EA61: 0 | EB61: 0 | EC61: 0 | ED61: 0 | EE61: 0 | EF61: 0 | EG61: 0 | EH61: 0 | EI61: 0 | EJ61: 0 | EK61: 0 | EL61: 0 | EM61: =EL64 -> 0 | EN61: 0 | EO61: 0 | EP61: 0 | EQ61: 0 | ER61: 0 | ES61: 0 | ET61: 0 | EU61: 0 | EV61: 0 | EW61: 0 | EX61: 0 | EY61: 0 | EZ61: 0 | FA61: 0 | FB61: 0 | FC61: 0 | FD61: 0 | FE61: 0 | FF61: 0 | FG61: 0
C62: Add: Losses c/f | N62: =MAX(-N60, 0) -> 0 | O62: 0 | P62: 0 | Q62: 0 | R62: 0 | S62: 0 | T62: 0 | U62: 0 | V62: 0 | W62: 0 | X62: 0 | Y62: 0 | Z62: 0 | AA62: 0 | AB62: 0 | AC62: 0 | AD62: 0 | AE62: 0 | AF62: 0 | AG62: 0 | AH62: 0 | AI62: 0 | AJ62: 0 | AK62: 0 | AL62: 0 | AM62: 0 | AN62: 0 | AO62: 0 | AP62: 0 | AQ62: 0 | AR62: 0 | AS62: 0 | AT62: =MAX(-AT60, 0) -> 0 | AU62: 0 | AV62: 0 | AW62: 0 | AX62: 0 | AY62: 0 | AZ62: 0 | BA62: 0 | BB62: 0 | BC62: 0 | BD62: 0 | BE62: 0 | BF62: 0 | BG62: 0 | BH62: 0 | BI62: 0 | BJ62: 0 | BK62: 0 | BL62: 0 | BM62: 0 | BN62: 0 | BO62: 0 | BP62: 0 | BQ62: 0 | BR62: 0 | BS62: 0 | BT62: 0 | BU62: 0 | BV62: 0 | BW62: 0 | BX62: 0 | BY62: 0 | BZ62: =MAX(-BZ60, 0) -> 0 | CA62: 0 | CB62: 0 | CC62: 0 | CD62: 0 | CE62: 0 | CF62: 0 | CG62: 0 | CH62: 0 | CI62: 0 | CJ62: 0 | CK62: 0 | CL62: 0 | CM62: 0 | CN62: 0 | CO62: 0 | CP62: 0 | CQ62: 0 | CR62: 0 | CS62: 0 | CT62: 0 | CU62: 0 | CV62: 0 | CW62: 0 | CX62: 0 | CY62: 0 | CZ62: 0 | DA62: 0 | DB62: 0 | DC62: 0 | DD62: 0 | DE62: 0 | DF62: =MAX(-DF60, 0) -> 0 | DG62: 0 | DH62: 0 | DI62: 0 | DJ62: 0 | DK62: 0 | DL62: 0 | DM62: 0 | DN62: 0 | DO62: 0 | DP62: 0 | DQ62: 0 | DR62: 0 | DS62: 0 | DT62: 0 | DU62: 0 | DV62: 0 | DW62: 0 | DX62: 0 | DY62: 0 | DZ62: 0 | EA62: 0 | EB62: 0 | EC62: 0 | ED62: 0 | EE62: 0 | EF62: 0 | EG62: 0 | EH62: 0 | EI62: 0 | EJ62: 0 | EK62: 0 | EL62: =MAX(-EL60, 0) -> 0 | EM62: 0 | EN62: 0 | EO62: 0 | EP62: 0 | EQ62: 0 | ER62: 0 | ES62: 0 | ET62: 0 | EU62: 0 | EV62: 0 | EW62: 0 | EX62: 0 | EY62: 0 | EZ62: 0 | FA62: 0 | FB62: 0 | FC62: 0 | FD62: 0 | FE62: 0 | FF62: 0 | FG62: 0
C63: Less: NOL used | N63: =MIN(MAX(N60, 0),N61) -> 0 | O63: 0 | P63: 0 | Q63: 0 | R63: 0 | S63: 0 | T63: 0 | U63: 0 | V63: 0 | W63: 0 | X63: 0 | Y63: 0 | Z63: 0 | AA63: 0 | AB63: 0 | AC63: 0 | AD63: 0 | AE63: 0 | AF63: 0 | AG63: 0 | AH63: 0 | AI63: 0 | AJ63: 0 | AK63: 0 | AL63: 0 | AM63: 0 | AN63: 0 | AO63: 0 | AP63: 0 | AQ63: 0 | AR63: 0 | AS63: 0 | AT63: =MIN(MAX(AT60, 0),AT61) -> 0 | AU63: 0 | AV63: 0 | AW63: 0 | AX63: 0 | AY63: 0 | AZ63: 0 | BA63: 0 | BB63: 0 | BC63: 0 | BD63: 0 | BE63: 0 | BF63: 0 | BG63: 0 | BH63: 0 | BI63: 0 | BJ63: 0 | BK63: 0 | BL63: 0 | BM63: 0 | BN63: 0 | BO63: 0 | BP63: 0 | BQ63: 0 | BR63: 0 | BS63: 0 | BT63: 0 | BU63: 0 | BV63: 0 | BW63: 0 | BX63: 0 | BY63: 0 | BZ63: =MIN(MAX(BZ60, 0),BZ61) -> 0 | CA63: 0 | CB63: 0 | CC63: 0 | CD63: 0 | CE63: 0 | CF63: 0 | CG63: 0 | CH63: 0 | CI63: 0 | CJ63: 0 | CK63: 0 | CL63: 0 | CM63: 0 | CN63: 0 | CO63: 0 | CP63: 0 | CQ63: 0 | CR63: 0 | CS63: 0 | CT63: 0 | CU63: 0 | CV63: 0 | CW63: 0 | CX63: 0 | CY63: 0 | CZ63: 0 | DA63: 0 | DB63: 0 | DC63: 0 | DD63: 0 | DE63: 0 | DF63: =MIN(MAX(DF60, 0),DF61) -> 0 | DG63: 0 | DH63: 0 | DI63: 0 | DJ63: 0 | DK63: 0 | DL63: 0 | DM63: 0 | DN63: 0 | DO63: 0 | DP63: 0 | DQ63: 0 | DR63: 0 | DS63: 0 | DT63: 0 | DU63: 0 | DV63: 0 | DW63: 0 | DX63: 0 | DY63: 0 | DZ63: 0 | EA63: 0 | EB63: 0 | EC63: 0 | ED63: 0 | EE63: 0 | EF63: 0 | EG63: 0 | EH63: 0 | EI63: 0 | EJ63: 0 | EK63: 0 | EL63: =MIN(MAX(EL60, 0),EL61) -> 0 | EM63: 0 | EN63: 0 | EO63: 0 | EP63: 0 | EQ63: 0 | ER63: 0 | ES63: 0 | ET63: 0 | EU63: 0 | EV63: 0 | EW63: 0 | EX63: 0 | EY63: 0 | EZ63: 0 | FA63: 0 | FB63: 0 | FC63: 0 | FD63: 0 | FE63: 0 | FF63: 0 | FG63: 0
C64: NOL Closing Bal | N64: =N61+N62-N63 -> 0 | O64: =O61+O62-O63 -> 0 | P64: 0 | Q64: 0 | R64: 0 | S64: 0 | T64: 0 | U64: 0 | V64: 0 | W64: 0 | X64: 0 | Y64: 0 | Z64: 0 | AA64: 0 | AB64: 0 | AC64: 0 | AD64: 0 | AE64: 0 | AF64: 0 | AG64: 0 | AH64: 0 | AI64: 0 | AJ64: 0 | AK64: 0 | AL64: 0 | AM64: 0 | AN64: 0 | AO64: 0 | AP64: 0 | AQ64: 0 | AR64: 0 | AS64: 0 | AT64: 0 | AU64: 0 | AV64: 0 | AW64: 0 | AX64: 0 | AY64: 0 | AZ64: 0 | BA64: 0 | BB64: 0 | BC64: 0 | BD64: 0 | BE64: 0 | BF64: 0 | BG64: 0 | BH64: 0 | BI64: 0 | BJ64: 0 | BK64: 0 | BL64: 0 | BM64: 0 | BN64: 0 | BO64: 0 | BP64: 0 | BQ64: 0 | BR64: 0 | BS64: 0 | BT64: 0 | BU64: 0 | BV64: 0 | BW64: 0 | BX64: 0 | BY64: 0 | BZ64: 0 | CA64: =CA61+CA62-CA63 -> 0 | CB64: 0 | CC64: 0 | CD64: 0 | CE64: 0 | CF64: 0 | CG64: 0 | CH64: 0 | CI64: 0 | CJ64: 0 | CK64: 0 | CL64: 0 | CM64: 0 | CN64: 0 | CO64: 0 | CP64: 0 | CQ64: 0 | CR64: 0 | CS64: 0 | CT64: 0 | CU64: 0 | CV64: 0 | CW64: 0 | CX64: 0 | CY64: 0 | CZ64: 0 | DA64: 0 | DB64: 0 | DC64: 0 | DD64: 0 | DE64: 0 | DF64: 0 | DG64: 0 | DH64: 0 | DI64: 0 | DJ64: 0 | DK64: 0 | DL64: 0 | DM64: 0 | DN64: 0 | DO64: 0 | DP64: 0 | DQ64: 0 | DR64: 0 | DS64: 0 | DT64: 0 | DU64: 0 | DV64: 0 | DW64: 0 | DX64: 0 | DY64: 0 | DZ64: 0 | EA64: 0 | EB64: 0 | EC64: 0 | ED64: 0 | EE64: 0 | EF64: 0 | EG64: 0 | EH64: 0 | EI64: 0 | EJ64: 0 | EK64: 0 | EL64: 0 | EM64: =EM61+EM62-EM63 -> 0 | EN64: 0 | EO64: 0 | EP64: 0 | EQ64: 0 | ER64: 0 | ES64: 0 | ET64: 0 | EU64: 0 | EV64: 0 | EW64: 0 | EX64: 0 | EY64: 0 | EZ64: 0 | FA64: 0 | FB64: 0 | FC64: 0 | FD64: 0 | FE64: 0 | FF64: 0 | FG64: 0
C65: Adj. EBT for NOL | L65: =SUM(N65:FG65) -> 7270068.875 | N65: =N60+N62-N63 -> 0 | O65: 0 | P65: 0 | Q65: 0 | R65: 0 | S65: 0 | T65: 0 | U65: 0 | V65: 0 | W65: 0 | X65: 0 | Y65: 0 | Z65: 0 | AA65: 0 | AB65: 0 | AC65: 0 | AD65: 0 | AE65: 0 | AF65: 0 | AG65: 0 | AH65: 0 | AI65: 0 | AJ65: 0 | AK65: 0 | AL65: 0 | AM65: 0 | AN65: 0 | AO65: 0 | AP65: 0 | AQ65: 0 | AR65: 0 | AS65: 0 | AT65: =AT60+AT62-AT63 -> 0 | AU65: 0 | AV65: 0 | AW65: 0 | AX65: 0 | AY65: 0 | AZ65: 0 | BA65: 0 | BB65: 0 | BC65: 0 | BD65: 0 | BE65: 0 | BF65: 0 | BG65: 0 | BH65: 0 | BI65: 20767.83008 | BJ65: 38492.95501 | BK65: 43786.04792 | BL65: 50281.5921 | BM65: 46709.9583 | BN65: 53289.95513 | BO65: 49657.98386 | BP65: 56323.37288 | BQ65: 54147.18105 | BR65: 59382.22117 | BS65: 55627.83284 | BT65: 62466.88147 | BU65: 58650.39607 | BV65: 65577.74096 | BW65: 61698.55427 | BX65: 67377.14461 | BY65: 65066.62056 | BZ65: =BZ60+BZ62-BZ63 -> 69203.53932 | CA65: 65240.73304 | CB65: 71057.32996 | CC65: 67051.77082 | CD65: 72938.92745 | CE65: 68889.97417 | CF65: 74848.7489 | CG65: 72441.95893 | CH65: 76787.21768 | CI65: 72649.5136 | CJ65: 78754.76349 | CK65: 74571.68309 | CL65: 80751.82248 | CM65: 137834.1605 | CN65: 205401.7882 | CO65: 202892.8251 | CP65: 207459.2083 | CQ65: 203135.8741 | CR65: 209547.4897 | CS65: 205175.9947 | CT65: 211667.0953 | CU65: 207246.7171 | CV65: 213818.495 | CW65: 129205.0462 | CX65: 130955.9583 | CY65: 125692.3601 | CZ65: 128825.8708 | DA65: 123550.0756 | DB65: 126663.832 | DC65: 121375.6568 | DD65: 124469.3626 | DE65: 120565.6861 | DF65: =DF60+DF62-DF63 -> 122241.9761 | DG65: 116928.4812 | DH65: 119981.1789 | DI65: 114654.7385 | DJ65: 117686.4697 | DK65: 112346.8896 | DL65: 115357.3399 | DM65: 111396.1841 | DN65: 112993.2731 | DO65: 107626.8195 | DP65: 110593.7453 | DQ65: 105213.5518 | DR65: 108158.2246 | DS65: 102764.0852 | DT65: 105686.1711 | DU65: 101664.0089 | DV65: 103177.0368 | DW65: 97754.37478 | DX65: 100630.2655 | DY65: 95193.02048 | DZ65: 98045.29256 | EA65: 0 | EB65: 0 | EC65: 0 | ED65: 0 | EE65: 0 | EF65: 0 | EG65: 0 | EH65: 0 | EI65: 0 | EJ65: 0 | EK65: 0 | EL65: =EL60+EL62-EL63 -> 0 | EM65: 0 | EN65: 0 | EO65: 0 | EP65: 0 | EQ65: 0 | ER65: 0 | ES65: 0 | ET65: 0 | EU65: 0 | EV65: 0 | EW65: 0 | EX65: 0 | EY65: 0 | EZ65: 0 | FA65: 0 | FB65: 0 | FC65: 0 | FD65: 0 | FE65: 0 | FF65: 0 | FG65: 0
C66: Taxes on EBIT | G66: ='Operating Inputs'!H92 -> 0 | L66: =SUM(N66:FG66) -> 0 | N66: =N65*$G66 -> 0 | O66: =O65*$G66 -> 0 | P66: 0 | Q66: 0 | R66: 0 | S66: 0 | T66: 0 | U66: 0 | V66: 0 | W66: 0 | X66: 0 | Y66: 0 | Z66: 0 | AA66: 0 | AB66: 0 | AC66: 0 | AD66: 0 | AE66: 0 | AF66: 0 | AG66: 0 | AH66: 0 | AI66: 0 | AJ66: 0 | AK66: 0 | AL66: 0 | AM66: 0 | AN66: 0 | AO66: 0 | AP66: 0 | AQ66: 0 | AR66: 0 | AS66: 0 | AT66: 0 | AU66: 0 | AV66: 0 | AW66: 0 | AX66: 0 | AY66: 0 | AZ66: 0 | BA66: 0 | BB66: 0 | BC66: 0 | BD66: 0 | BE66: 0 | BF66: 0 | BG66: 0 | BH66: 0 | BI66: 0 | BJ66: 0 | BK66: 0 | BL66: 0 | BM66: 0 | BN66: 0 | BO66: 0 | BP66: 0 | BQ66: 0 | BR66: 0 | BS66: 0 | BT66: 0 | BU66: 0 | BV66: 0 | BW66: 0 | BX66: 0 | BY66: 0 | BZ66: 0 | CA66: =CA65*$G66 -> 0 | CB66: 0 | CC66: 0 | CD66: 0 | CE66: 0 | CF66: 0 | CG66: 0 | CH66: 0 | CI66: 0 | CJ66: 0 | CK66: 0 | CL66: 0 | CM66: 0 | CN66: 0 | CO66: 0 | CP66: 0 | CQ66: 0 | CR66: 0 | CS66: 0 | CT66: 0 | CU66: 0 | CV66: 0 | CW66: 0 | CX66: 0 | CY66: 0 | CZ66: 0 | DA66: 0 | DB66: 0 | DC66: 0 | DD66: 0 | DE66: 0 | DF66: 0 | DG66: 0 | DH66: 0 | DI66: 0 | DJ66: 0 | DK66: 0 | DL66: 0 | DM66: 0 | DN66: 0 | DO66: 0 | DP66: 0 | DQ66: 0 | DR66: 0 | DS66: 0 | DT66: 0 | DU66: 0 | DV66: 0 | DW66: 0 | DX66: 0 | DY66: 0 | DZ66: 0 | EA66: 0 | EB66: 0 | EC66: 0 | ED66: 0 | EE66: 0 | EF66: 0 | EG66: 0 | EH66: 0 | EI66: 0 | EJ66: 0 | EK66: 0 | EL66: 0 | EM66: =EM65*$G66 -> 0 | EN66: 0 | EO66: 0 | EP66: 0 | EQ66: 0 | ER66: 0 | ES66: 0 | ET66: 0 | EU66: 0 | EV66: 0 | EW66: 0 | EX66: 0 | EY66: 0 | EZ66: 0 | FA66: 0 | FB66: 0 | FC66: 0 | FD66: 0 | FE66: 0 | FF66: 0 | FG66: 0
C68: Pre-tax Cash Flow | N68: =N51 -> -9090.910091 | O68: -9090.909091 | P68: -9090.909091 | Q68: -9090.909091 | R68: -9090.909091 | S68: -9090.909091 | T68: -9090.909091 | U68: -9090.909091 | V68: -9090.909091 | W68: -9090.909091 | X68: -9090.909091 | Y68: -4507.577898 | Z68: -7128.446234 | AA68: -10964.34722 | AB68: -16402.38292 | AC68: -23865.32633 | AD68: -33772.56703 | AE68: -46483.3085 | AF68: -62225.19349 | AG68: -81016.17667 | AH68: -102592.0001 | AI68: -126354.7328 | AJ68: -151358.1446 | AK68: -176342.2351 | AL68: -199821.9309 | AM68: -220224.8009 | AN68: -236061.7188 | AO68: -246105.4144 | AP68: -249547.3924 | AQ68: -246105.4144 | AR68: -236061.7188 | AS68: -220224.8009 | AT68: =AT51 -> -199821.9309 | AU68: -176342.2351 | AV68: -151358.1446 | AW68: -126354.7328 | AX68: -102592.0001 | AY68: -81016.17667 | AZ68: -62225.19349 | BA68: -46483.3085 | BB68: -33772.56703 | BC68: -23865.32633 | BD68: -16402.38292 | BE68: -10964.34722 | BF68: -7128.446234 | BG68: -4507.577898 | BH68: 0 | BI68: 143390.7809 | BJ68: 161115.9058 | BK68: 166408.9987 | BL68: 172904.5429 | BM68: 169332.9091 | BN68: 175912.9059 | BO68: 172280.9347 | BP68: 178946.3237 | BQ68: 176770.1319 | BR68: 182005.172 | BS68: 178250.7837 | BT68: 185089.8323 | BU68: 181273.3469 | BV68: 188200.6918 | BW68: 184321.5051 | BX68: 190000.0954 | BY68: 187689.5714 | BZ68: =BZ51 -> 191826.4901 | CA68: 187863.6839 | CB68: 193680.2808 | CC68: 189674.7216 | CD68: 195561.8783 | CE68: 191512.925 | CF68: 197471.6997 | CG68: 195064.9097 | CH68: 199410.1685 | CI68: 195272.4644 | CJ68: 201377.7143 | CK68: 197194.6339 | CL68: 203374.7733 | CM68: 199145.6359 | CN68: 205401.7882 | CO68: 202892.8251 | CP68: 207459.2083 | CQ68: 203135.8741 | CR68: 209547.4897 | CS68: 205175.9947 | CT68: 211667.0953 | CU68: 207246.7171 | CV68: 213818.495 | CW68: 129205.0462 | CX68: 130955.9583 | CY68: 125692.3601 | CZ68: 128825.8708 | DA68: 123550.0756 | DB68: 126663.832 | DC68: 121375.6568 | DD68: 124469.3626 | DE68: 120565.6861 | DF68: =DF51 -> 122241.9761 | DG68: 116928.4812 | DH68: 119981.1789 | DI68: 114654.7385 | DJ68: 117686.4697 | DK68: 112346.8896 | DL68: 115357.3399 | DM68: 111396.1841 | DN68: 112993.2731 | DO68: 107626.8195 | DP68: 110593.7453 | DQ68: 105213.5518 | DR68: 108158.2246 | DS68: 102764.0852 | DT68: 105686.1711 | DU68: 101664.0089 | DV68: 103177.0368 | DW68: 97754.37478 | DX68: 100630.2655 | DY68: 95193.02048 | DZ68: 98045.29256 | EA68: 0 | EB68: 0 | EC68: 0 | ED68: 0 | EE68: 0 | EF68: 0 | EG68: 0 | EH68: 0 | EI68: 0 | EJ68: 0 | EK68: 0 | EL68: =EL51 -> 0 | EM68: 0 | EN68: 0 | EO68: 0 | EP68: 0 | EQ68: 0 | ER68: 0 | ES68: 0 | ET68: 0 | EU68: 0 | EV68: 0 | EW68: 0 | EX68: 0 | EY68: 0 | EZ68: 0 | FA68: 0 | FB68: 0 | FC68: 0 | FD68: 0 | FE68: 0 | FF68: 0 | FG68: 0
C69: (-) Taxes | N69: =N66 -> 0 | O69: =O66 -> 0 | P69: 0 | Q69: 0 | R69: 0 | S69: 0 | T69: 0 | U69: 0 | V69: 0 | W69: 0 | X69: 0 | Y69: 0 | Z69: 0 | AA69: 0 | AB69: 0 | AC69: 0 | AD69: 0 | AE69: 0 | AF69: 0 | AG69: 0 | AH69: 0 | AI69: 0 | AJ69: 0 | AK69: 0 | AL69: 0 | AM69: 0 | AN69: 0 | AO69: 0 | AP69: 0 | AQ69: 0 | AR69: 0 | AS69: 0 | AT69: 0 | AU69: 0 | AV69: 0 | AW69: 0 | AX69: 0 | AY69: 0 | AZ69: 0 | BA69: 0 | BB69: 0 | BC69: 0 | BD69: 0 | BE69: 0 | BF69: 0 | BG69: 0 | BH69: 0 | BI69: 0 | BJ69: 0 | BK69: 0 | BL69: 0 | BM69: 0 | BN69: 0 | BO69: 0 | BP69: 0 | BQ69: 0 | BR69: 0 | BS69: 0 | BT69: 0 | BU69: 0 | BV69: 0 | BW69: 0 | BX69: 0 | BY69: 0 | BZ69: 0 | CA69: =CA66 -> 0 | CB69: 0 | CC69: 0 | CD69: 0 | CE69: 0 | CF69: 0 | CG69: 0 | CH69: 0 | CI69: 0 | CJ69: 0 | CK69: 0 | CL69: 0 | CM69: 0 | CN69: 0 | CO69: 0 | CP69: 0 | CQ69: 0 | CR69: 0 | CS69: 0 | CT69: 0 | CU69: 0 | CV69: 0 | CW69: 0 | CX69: 0 | CY69: 0 | CZ69: 0 | DA69: 0 | DB69: 0 | DC69: 0 | DD69: 0 | DE69: 0 | DF69: 0 | DG69: 0 | DH69: 0 | DI69: 0 | DJ69: 0 | DK69: 0 | DL69: 0 | DM69: 0 | DN69: 0 | DO69: 0 | DP69: 0 | DQ69: 0 | DR69: 0 | DS69: 0 | DT69: 0 | DU69: 0 | DV69: 0 | DW69: 0 | DX69: 0 | DY69: 0 | DZ69: 0 | EA69: 0 | EB69: 0 | EC69: 0 | ED69: 0 | EE69: 0 | EF69: 0 | EG69: 0 | EH69: 0 | EI69: 0 | EJ69: 0 | EK69: 0 | EL69: 0 | EM69: =EM66 -> 0 | EN69: 0 | EO69: 0 | EP69: 0 | EQ69: 0 | ER69: 0 | ES69: 0 | ET69: 0 | EU69: 0 | EV69: 0 | EW69: 0 | EX69: 0 | EY69: 0 | EZ69: 0 | FA69: 0 | FB69: 0 | FC69: 0 | FD69: 0 | FE69: 0 | FF69: 0 | FG69: 0
C70: Free Cash Flow to the Firm | N70: =N68-N69-0.000001 -> -9090.910092 | O70: =O68-O69 -> -9090.909091 | P70: -9090.909091 | Q70: -9090.909091 | R70: -9090.909091 | S70: -9090.909091 | T70: -9090.909091 | U70: -9090.909091 | V70: -9090.909091 | W70: -9090.909091 | X70: -9090.909091 | Y70: -4507.577898 | Z70: -7128.446234 | AA70: -10964.34722 | AB70: -16402.38292 | AC70: -23865.32633 | AD70: -33772.56703 | AE70: -46483.3085 | AF70: -62225.19349 | AG70: -81016.17667 | AH70: -102592.0001 | AI70: -126354.7328 | AJ70: -151358.1446 | AK70: -176342.2351 | AL70: -199821.9309 | AM70: -220224.8009 | AN70: -236061.7188 | AO70: -246105.4144 | AP70: -249547.3924 | AQ70: -246105.4144 | AR70: -236061.7188 | AS70: -220224.8009 | AT70: -199821.9309 | AU70: -176342.2351 | AV70: -151358.1446 | AW70: -126354.7328 | AX70: -102592.0001 | AY70: -81016.17667 | AZ70: -62225.19349 | BA70: -46483.3085 | BB70: -33772.56703 | BC70: -23865.32633 | BD70: -16402.38292 | BE70: -10964.34722 | BF70: -7128.446234 | BG70: -4507.577898 | BH70: 0 | BI70: 143390.7809 | BJ70: 161115.9058 | BK70: 166408.9987 | BL70: 172904.5429 | BM70: 169332.9091 | BN70: 175912.9059 | BO70: 172280.9347 | BP70: 178946.3237 | BQ70: 176770.1319 | BR70: 182005.172 | BS70: 178250.7837 | BT70: 185089.8323 | BU70: 181273.3469 | BV70: 188200.6918 | BW70: 184321.5051 | BX70: 190000.0954 | BY70: 187689.5714 | BZ70: 191826.4901 | CA70: =CA68-CA69 -> 187863.6839 | CB70: 193680.2808 | CC70: 189674.7216 | CD70: 195561.8783 | CE70: 191512.925 | CF70: 197471.6997 | CG70: 195064.9097 | CH70: 199410.1685 | CI70: 195272.4644 | CJ70: 201377.7143 | CK70: 197194.6339 | CL70: 203374.7733 | CM70: 199145.6359 | CN70: 205401.7882 | CO70: 202892.8251 | CP70: 207459.2083 | CQ70: 203135.8741 | CR70: 209547.4897 | CS70: 205175.9947 | CT70: 211667.0953 | CU70: 207246.7171 | CV70: 213818.495 | CW70: 129205.0462 | CX70: 130955.9583 | CY70: 125692.3601 | CZ70: 128825.8708 | DA70: 123550.0756 | DB70: 126663.832 | DC70: 121375.6568 | DD70: 124469.3626 | DE70: 120565.6861 | DF70: 122241.9761 | DG70: 116928.4812 | DH70: 119981.1789 | DI70: 114654.7385 | DJ70: 117686.4697 | DK70: 112346.8896 | DL70: 115357.3399 | DM70: 111396.1841 | DN70: 112993.2731 | DO70: 107626.8195 | DP70: 110593.7453 | DQ70: 105213.5518 | DR70: 108158.2246 | DS70: 102764.0852 | DT70: 105686.1711 | DU70: 101664.0089 | DV70: 103177.0368 | DW70: 97754.37478 | DX70: 100630.2655 | DY70: 95193.02048 | DZ70: 98045.29256 | EA70: 0 | EB70: 0 | EC70: 0 | ED70: 0 | EE70: 0 | EF70: 0 | EG70: 0 | EH70: 0 | EI70: 0 | EJ70: 0 | EK70: 0 | EL70: 0 | EM70: =EM68-EM69 -> 0 | EN70: 0 | EO70: 0 | EP70: 0 | EQ70: 0 | ER70: 0 | ES70: 0 | ET70: 0 | EU70: 0 | EV70: 0 | EW70: 0 | EX70: 0 | EY70: 0 | EZ70: 0 | FA70: 0 | FB70: 0 | FC70: 0 | FD70: 0 | FE70: 0 | FF70: 0 | FG70: 0
C71: Project IRR | G71: =XIRR(N70:FG70,$N$7:$FG$7) -> 0.07527823746
B74: LD Analysis
C75: Basis of LD Calculations
D76: Flag for Original Construction Schedule | G76: =FC_date -> 2021-02-01 | I76: ='Operating Inputs'!H37 -> 2024-02-01 | N76: =AND(N6>=$G$76,N6<$I$76)*1 -> 0 | O76: =AND(O6>=$G$76,O6<$I$76)*1 -> 0 | P76: 0 | Q76: 0 | R76: 0 | S76: 0 | T76: 0 | U76: 0 | V76: 0 | W76: 0 | X76: 0 | Y76: 1 | Z76: 1 | AA76: 1 | AB76: 1 | AC76: 1 | AD76: 1 | AE76: 1 | AF76: 1 | AG76: 1 | AH76: 1 | AI76: 1 | AJ76: 1 | AK76: 1 | AL76: 1 | AM76: 1 | AN76: 1 | AO76: 1 | AP76: 1 | AQ76: 1 | AR76: 1 | AS76: 1 | AT76: 1 | AU76: 1 | AV76: 1 | AW76: 1 | AX76: 1 | AY76: 1 | AZ76: 1 | BA76: 1 | BB76: 1 | BC76: 1 | BD76: 1 | BE76: 1 | BF76: 1 | BG76: 1 | BH76: 1 | BI76: 0 | BJ76: 0 | BK76: 0 | BL76: 0 | BM76: 0 | BN76: 0 | BO76: 0 | BP76: 0 | BQ76: 0 | BR76: 0 | BS76: 0 | BT76: 0 | BU76: 0 | BV76: 0 | BW76: 0 | BX76: 0 | BY76: 0 | BZ76: 0 | CA76: =AND(CA6>=$G$76,CA6<$I$76)*1 -> 0 | CB76: 0 | CC76: 0 | CD76: 0 | CE76: 0 | CF76: 0 | CG76: 0 | CH76: 0 | CI76: 0 | CJ76: 0 | CK76: 0 | CL76: 0 | CM76: 0 | CN76: 0 | CO76: 0 | CP76: 0 | CQ76: 0 | CR76: 0 | CS76: 0 | CT76: 0 | CU76: 0 | CV76: 0 | CW76: 0 | CX76: 0 | CY76: 0 | CZ76: 0 | DA76: 0 | DB76: 0 | DC76: 0 | DD76: 0 | DE76: 0 | DF76: 0 | DG76: 0 | DH76: 0 | DI76: 0 | DJ76: 0 | DK76: 0 | DL76: 0 | DM76: 0 | DN76: 0 | DO76: 0 | DP76: 0 | DQ76: 0 | DR76: 0 | DS76: 0 | DT76: 0 | DU76: 0 | DV76: 0 | DW76: 0 | DX76: 0 | DY76: 0 | DZ76: 0 | EA76: 0 | EB76: 0 | EC76: 0 | ED76: 0 | EE76: 0 | EF76: 0 | EG76: 0 | EH76: 0 | EI76: 0 | EJ76: 0 | EK76: 0 | EL76: 0 | EM76: =AND(EM6>=$G$76,EM6<$I$76)*1 -> 0 | EN76: 0 | EO76: 0 | EP76: 0 | EQ76: 0 | ER76: 0 | ES76: 0 | ET76: 0 | EU76: 0 | EV76: 0 | EW76: 0 | EX76: 0 | EY76: 0 | EZ76: 0 | FA76: 0 | FB76: 0 | FC76: 0 | FD76: 0 | FE76: 0 | FF76: 0 | FG76: 0
D77: Actual Construction Schedule | G77: =FC_date -> 2021-02-01 | I77: =COD_date -> 2024-02-01 | K77: ='Operating Inputs'!H9 -> 36 | N77: =AND(N6>=$G$77,N6<$I$77)*1 -> 0 | O77: =AND(O6>=$G$77,O6<$I$77)*1 -> 0 | P77: 0 | Q77: 0 | R77: 0 | S77: 0 | T77: 0 | U77: 0 | V77: 0 | W77: 0 | X77: 0 | Y77: 1 | Z77: 1 | AA77: 1 | AB77: 1 | AC77: 1 | AD77: 1 | AE77: 1 | AF77: 1 | AG77: 1 | AH77: 1 | AI77: 1 | AJ77: 1 | AK77: 1 | AL77: 1 | AM77: 1 | AN77: 1 | AO77: 1 | AP77: 1 | AQ77: 1 | AR77: 1 | AS77: 1 | AT77: 1 | AU77: 1 | AV77: 1 | AW77: 1 | AX77: 1 | AY77: 1 | AZ77: 1 | BA77: 1 | BB77: 1 | BC77: 1 | BD77: 1 | BE77: 1 | BF77: 1 | BG77: 1 | BH77: 1 | BI77: 0 | BJ77: 0 | BK77: 0 | BL77: 0 | BM77: 0 | BN77: 0 | BO77: 0 | BP77: 0 | BQ77: 0 | BR77: 0 | BS77: 0 | BT77: 0 | BU77: 0 | BV77: 0 | BW77: 0 | BX77: 0 | BY77: 0 | BZ77: 0 | CA77: =AND(CA6>=$G$77,CA6<$I$77)*1 -> 0 | CB77: 0 | CC77: 0 | CD77: 0 | CE77: 0 | CF77: 0 | CG77: 0 | CH77: 0 | CI77: 0 | CJ77: 0 | CK77: 0 | CL77: 0 | CM77: 0 | CN77: 0 | CO77: 0 | CP77: 0 | CQ77: 0 | CR77: 0 | CS77: 0 | CT77: 0 | CU77: 0 | CV77: 0 | CW77: 0 | CX77: 0 | CY77: 0 | CZ77: 0 | DA77: 0 | DB77: 0 | DC77: 0 | DD77: 0 | DE77: 0 | DF77: 0 | DG77: 0 | DH77: 0 | DI77: 0 | DJ77: 0 | DK77: 0 | DL77: 0 | DM77: 0 | DN77: 0 | DO77: 0 | DP77: 0 | DQ77: 0 | DR77: 0 | DS77: 0 | DT77: 0 | DU77: 0 | DV77: 0 | DW77: 0 | DX77: 0 | DY77: 0 | DZ77: 0 | EA77: 0 | EB77: 0 | EC77: 0 | ED77: 0 | EE77: 0 | EF77: 0 | EG77: 0 | EH77: 0 | EI77: 0 | EJ77: 0 | EK77: 0 | EL77: 0 | EM77: =AND(EM6>=$G$77,EM6<$I$77)*1 -> 0 | EN77: 0 | EO77: 0 | EP77: 0 | EQ77: 0 | ER77: 0 | ES77: 0 | ET77: 0 | EU77: 0 | EV77: 0 | EW77: 0 | EX77: 0 | EY77: 0 | EZ77: 0 | FA77: 0 | FB77: 0 | FC77: 0 | FD77: 0 | FE77: 0 | FF77: 0 | FG77: 0
D78: Delay Period | K78: =SUM(N78:FG78) -> 0 | N78: =(N77<>N76)*1 -> 0 | O78: =(O77<>O76)*1 -> 0 | P78: 0 | Q78: 0 | R78: 0 | S78: 0 | T78: 0 | U78: 0 | V78: 0 | W78: 0 | X78: 0 | Y78: 0 | Z78: 0 | AA78: 0 | AB78: 0 | AC78: 0 | AD78: 0 | AE78: 0 | AF78: 0 | AG78: 0 | AH78: 0 | AI78: 0 | AJ78: 0 | AK78: 0 | AL78: 0 | AM78: 0 | AN78: 0 | AO78: 0 | AP78: 0 | AQ78: 0 | AR78: 0 | AS78: 0 | AT78: 0 | AU78: 0 | AV78: 0 | AW78: 0 | AX78: 0 | AY78: 0 | AZ78: 0 | BA78: 0 | BB78: 0 | BC78: 0 | BD78: 0 | BE78: 0 | BF78: 0 | BG78: 0 | BH78: 0 | BI78: 0 | BJ78: 0 | BK78: 0 | BL78: 0 | BM78: 0 | BN78: 0 | BO78: 0 | BP78: 0 | BQ78: 0 | BR78: 0 | BS78: 0 | BT78: 0 | BU78: 0 | BV78: 0 | BW78: 0 | BX78: 0 | BY78: 0 | BZ78: 0 | CA78: =(CA77<>CA76)*1 -> 0 | CB78: 0 | CC78: 0 | CD78: 0 | CE78: 0 | CF78: 0 | CG78: 0 | CH78: 0 | CI78: 0 | CJ78: 0 | CK78: 0 | CL78: 0 | CM78: 0 | CN78: 0 | CO78: 0 | CP78: 0 | CQ78: 0 | CR78: 0 | CS78: 0 | CT78: 0 | CU78: 0 | CV78: 0 | CW78: 0 | CX78: 0 | CY78: 0 | CZ78: 0 | DA78: 0 | DB78: 0 | DC78: 0 | DD78: 0 | DE78: 0 | DF78: 0 | DG78: 0 | DH78: 0 | DI78: 0 | DJ78: 0 | DK78: 0 | DL78: 0 | DM78: 0 | DN78: 0 | DO78: 0 | DP78: 0 | DQ78: 0 | DR78: 0 | DS78: 0 | DT78: 0 | DU78: 0 | DV78: 0 | DW78: 0 | DX78: 0 | DY78: 0 | DZ78: 0 | EA78: 0 | EB78: 0 | EC78: 0 | ED78: 0 | EE78: 0 | EF78: 0 | EG78: 0 | EH78: 0 | EI78: 0 | EJ78: 0 | EK78: 0 | EL78: 0 | EM78: =(EM77<>EM76)*1 -> 0 | EN78: 0 | EO78: 0 | EP78: 0 | EQ78: 0 | ER78: 0 | ES78: 0 | ET78: 0 | EU78: 0 | EV78: 0 | EW78: 0 | EX78: 0 | EY78: 0 | EZ78: 0 | FA78: 0 | FB78: 0 | FC78: 0 | FD78: 0 | FE78: 0 | FF78: 0 | FG78: 0
D80: Capacity | F80: MW | G80: ='Operating Inputs'!H26 -> 2000 | N80: =$G$80*N78 -> 0 | O80: =$G$80*O78 -> 0 | P80: 0 | Q80: 0 | R80: 0 | S80: 0 | T80: 0 | U80: 0 | V80: 0 | W80: 0 | X80: 0 | Y80: 0 | Z80: 0 | AA80: 0 | AB80: 0 | AC80: 0 | AD80: 0 | AE80: 0 | AF80: 0 | AG80: 0 | AH80: 0 | AI80: 0 | AJ80: 0 | AK80: 0 | AL80: 0 | AM80: 0 | AN80: 0 | AO80: 0 | AP80: 0 | AQ80: 0 | AR80: 0 | AS80: 0 | AT80: 0 | AU80: 0 | AV80: 0 | AW80: 0 | AX80: 0 | AY80: 0 | AZ80: 0 | BA80: 0 | BB80: 0 | BC80: 0 | BD80: 0 | BE80: 0 | BF80: 0 | BG80: 0 | BH80: 0 | BI80: 0 | BJ80: 0 | BK80: 0 | BL80: 0 | BM80: 0 | BN80: 0 | BO80: 0 | BP80: 0 | BQ80: 0 | BR80: 0 | BS80: 0 | BT80: 0 | BU80: 0 | BV80: 0 | BW80: 0 | BX80: 0 | BY80: 0 | BZ80: 0 | CA80: =$G$80*CA78 -> 0 | CB80: 0 | CC80: 0 | CD80: 0 | CE80: 0 | CF80: 0 | CG80: 0 | CH80: 0 | CI80: 0 | CJ80: 0 | CK80: 0 | CL80: 0 | CM80: 0 | CN80: 0 | CO80: 0 | CP80: 0 | CQ80: 0 | CR80: 0 | CS80: 0 | CT80: 0 | CU80: 0 | CV80: 0 | CW80: 0 | CX80: 0 | CY80: 0 | CZ80: 0 | DA80: 0 | DB80: 0 | DC80: 0 | DD80: 0 | DE80: 0 | DF80: 0 | DG80: 0 | DH80: 0 | DI80: 0 | DJ80: 0 | DK80: 0 | DL80: 0 | DM80: 0 | DN80: 0 | DO80: 0 | DP80: 0 | DQ80: 0 | DR80: 0 | DS80: 0 | DT80: 0 | DU80: 0 | DV80: 0 | DW80: 0 | DX80: 0 | DY80: 0 | DZ80: 0 | EA80: 0 | EB80: 0 | EC80: 0 | ED80: 0 | EE80: 0 | EF80: 0 | EG80: 0 | EH80: 0 | EI80: 0 | EJ80: 0 | EK80: 0 | EL80: 0 | EM80: =$G$80*EM78 -> 0 | EN80: 0 | EO80: 0 | EP80: 0 | EQ80: 0 | ER80: 0 | ES80: 0 | ET80: 0 | EU80: 0 | EV80: 0 | EW80: 0 | EX80: 0 | EY80: 0 | EZ80: 0 | FA80: 0 | FB80: 0 | FC80: 0 | FD80: 0 | FE80: 0 | FF80: 0 | FG80: 0
D81: Days of Delay | F81: Days | K81: =SUM(N81:FG81) -> 0 | N81: =(N7-N6)*N78 -> 0 | O81: =(O7-O6)*O78 -> 0 | P81: 0 | Q81: 0 | R81: 0 | S81: 0 | T81: 0 | U81: 0 | V81: 0 | W81: 0 | X81: 0 | Y81: 0 | Z81: 0 | AA81: 0 | AB81: 0 | AC81: 0 | AD81: 0 | AE81: 0 | AF81: 0 | AG81: 0 | AH81: 0 | AI81: 0 | AJ81: 0 | AK81: 0 | AL81: 0 | AM81: 0 | AN81: 0 | AO81: 0 | AP81: 0 | AQ81: 0 | AR81: 0 | AS81: 0 | AT81: 0 | AU81: 0 | AV81: 0 | AW81: 0 | AX81: 0 | AY81: 0 | AZ81: 0 | BA81: 0 | BB81: 0 | BC81: 0 | BD81: 0 | BE81: 0 | BF81: 0 | BG81: 0 | BH81: 0 | BI81: 0 | BJ81: 0 | BK81: 0 | BL81: 0 | BM81: 0 | BN81: 0 | BO81: 0 | BP81: 0 | BQ81: 0 | BR81: 0 | BS81: 0 | BT81: 0 | BU81: 0 | BV81: 0 | BW81: 0 | BX81: 0 | BY81: 0 | BZ81: 0 | CA81: =(CA7-CA6)*CA78 -> 0 | CB81: 0 | CC81: 0 | CD81: 0 | CE81: 0 | CF81: 0 | CG81: 0 | CH81: 0 | CI81: 0 | CJ81: 0 | CK81: 0 | CL81: 0 | CM81: 0 | CN81: 0 | CO81: 0 | CP81: 0 | CQ81: 0 | CR81: 0 | CS81: 0 | CT81: 0 | CU81: 0 | CV81: 0 | CW81: 0 | CX81: 0 | CY81: 0 | CZ81: 0 | DA81: 0 | DB81: 0 | DC81: 0 | DD81: 0 | DE81: 0 | DF81: 0 | DG81: 0 | DH81: 0 | DI81: 0 | DJ81: 0 | DK81: 0 | DL81: 0 | DM81: 0 | DN81: 0 | DO81: 0 | DP81: 0 | DQ81: 0 | DR81: 0 | DS81: 0 | DT81: 0 | DU81: 0 | DV81: 0 | DW81: 0 | DX81: 0 | DY81: 0 | DZ81: 0 | EA81: 0 | EB81: 0 | EC81: 0 | ED81: 0 | EE81: 0 | EF81: 0 | EG81: 0 | EH81: 0 | EI81: 0 | EJ81: 0 | EK81: 0 | EL81: 0 | EM81: =(EM7-EM6)*EM78 -> 0 | EN81: 0 | EO81: 0 | EP81: 0 | EQ81: 0 | ER81: 0 | ES81: 0 | ET81: 0 | EU81: 0 | EV81: 0 | EW81: 0 | EX81: 0 | EY81: 0 | EZ81: 0 | FA81: 0 | FB81: 0 | FC81: 0 | FD81: 0 | FE81: 0 | FF81: 0 | FG81: 0
D83: MW Days of Delay | K83: =SUM(N83:FG83) -> 0 | N83: =N80*N81 -> 0 | O83: =O80*O81 -> 0 | P83: 0 | Q83: 0 | R83: 0 | S83: 0 | T83: 0 | U83: 0 | V83: 0 | W83: 0 | X83: 0 | Y83: 0 | Z83: 0 | AA83: 0 | AB83: 0 | AC83: 0 | AD83: 0 | AE83: 0 | AF83: 0 | AG83: 0 | AH83: 0 | AI83: 0 | AJ83: 0 | AK83: 0 | AL83: 0 | AM83: 0 | AN83: 0 | AO83: 0 | AP83: 0 | AQ83: 0 | AR83: 0 | AS83: 0 | AT83: 0 | AU83: 0 | AV83: 0 | AW83: 0 | AX83: 0 | AY83: 0 | AZ83: 0 | BA83: 0 | BB83: 0 | BC83: 0 | BD83: 0 | BE83: 0 | BF83: 0 | BG83: 0 | BH83: 0 | BI83: 0 | BJ83: 0 | BK83: 0 | BL83: 0 | BM83: 0 | BN83: 0 | BO83: 0 | BP83: 0 | BQ83: 0 | BR83: 0 | BS83: 0 | BT83: 0 | BU83: 0 | BV83: 0 | BW83: 0 | BX83: 0 | BY83: 0 | BZ83: 0 | CA83: =CA80*CA81 -> 0 | CB83: 0 | CC83: 0 | CD83: 0 | CE83: 0 | CF83: 0 | CG83: 0 | CH83: 0 | CI83: 0 | CJ83: 0 | CK83: 0 | CL83: 0 | CM83: 0 | CN83: 0 | CO83: 0 | CP83: 0 | CQ83: 0 | CR83: 0 | CS83: 0 | CT83: 0 | CU83: 0 | CV83: 0 | CW83: 0 | CX83: 0 | CY83: 0 | CZ83: 0 | DA83: 0 | DB83: 0 | DC83: 0 | DD83: 0 | DE83: 0 | DF83: 0 | DG83: 0 | DH83: 0 | DI83: 0 | DJ83: 0 | DK83: 0 | DL83: 0 | DM83: 0 | DN83: 0 | DO83: 0 | DP83: 0 | DQ83: 0 | DR83: 0 | DS83: 0 | DT83: 0 | DU83: 0 | DV83: 0 | DW83: 0 | DX83: 0 | DY83: 0 | DZ83: 0 | EA83: 0 | EB83: 0 | EC83: 0 | ED83: 0 | EE83: 0 | EF83: 0 | EG83: 0 | EH83: 0 | EI83: 0 | EJ83: 0 | EK83: 0 | EL83: 0 | EM83: =EM80*EM81 -> 0 | EN83: 0 | EO83: 0 | EP83: 0 | EQ83: 0 | ER83: 0 | ES83: 0 | ET83: 0 | EU83: 0 | EV83: 0 | EW83: 0 | EX83: 0 | EY83: 0 | EZ83: 0 | FA83: 0 | FB83: 0 | FC83: 0 | FD83: 0 | FE83: 0 | FF83: 0 | FG83: 0
D84: LD Computed on PPA | F84: kUSD | G84: ='Operating Inputs'!H61 -> 100 | K84: =SUM(N84:FG84) -> 0 | N84: =$G$84*N83/1000 -> 0 | O84: =$G$84*O83/1000 -> 0 | P84: 0 | Q84: 0 | R84: 0 | S84: 0 | T84: 0 | U84: 0 | V84: 0 | W84: 0 | X84: 0 | Y84: 0 | Z84: 0 | AA84: 0 | AB84: 0 | AC84: 0 | AD84: 0 | AE84: 0 | AF84: 0 | AG84: 0 | AH84: 0 | AI84: 0 | AJ84: 0 | AK84: 0 | AL84: 0 | AM84: 0 | AN84: 0 | AO84: 0 | AP84: 0 | AQ84: 0 | AR84: 0 | AS84: 0 | AT84: 0 | AU84: 0 | AV84: 0 | AW84: 0 | AX84: 0 | AY84: 0 | AZ84: 0 | BA84: 0 | BB84: 0 | BC84: 0 | BD84: 0 | BE84: 0 | BF84: 0 | BG84: 0 | BH84: 0 | BI84: 0 | BJ84: 0 | BK84: 0 | BL84: 0 | BM84: 0 | BN84: 0 | BO84: 0 | BP84: 0 | BQ84: 0 | BR84: 0 | BS84: 0 | BT84: 0 | BU84: 0 | BV84: 0 | BW84: 0 | BX84: 0 | BY84: 0 | BZ84: 0 | CA84: =$G$84*CA83/1000 -> 0 | CB84: 0 | CC84: 0 | CD84: 0 | CE84: 0 | CF84: 0 | CG84: 0 | CH84: 0 | CI84: 0 | CJ84: 0 | CK84: 0 | CL84: 0 | CM84: 0 | CN84: 0 | CO84: 0 | CP84: 0 | CQ84: 0 | CR84: 0 | CS84: 0 | CT84: 0 | CU84: 0 | CV84: 0 | CW84: 0 | CX84: 0 | CY84: 0 | CZ84: 0 | DA84: 0 | DB84: 0 | DC84: 0 | DD84: 0 | DE84: 0 | DF84: 0 | DG84: 0 | DH84: 0 | DI84: 0 | DJ84: 0 | DK84: 0 | DL84: 0 | DM84: 0 | DN84: 0 | DO84: 0 | DP84: 0 | DQ84: 0 | DR84: 0 | DS84: 0 | DT84: 0 | DU84: 0 | DV84: 0 | DW84: 0 | DX84: 0 | DY84: 0 | DZ84: 0 | EA84: 0 | EB84: 0 | EC84: 0 | ED84: 0 | EE84: 0 | EF84: 0 | EG84: 0 | EH84: 0 | EI84: 0 | EJ84: 0 | EK84: 0 | EL84: 0 | EM84: =$G$84*EM83/1000 -> 0 | EN84: 0 | EO84: 0 | EP84: 0 | EQ84: 0 | ER84: 0 | ES84: 0 | ET84: 0 | EU84: 0 | EV84: 0 | EW84: 0 | EX84: 0 | EY84: 0 | EZ84: 0 | FA84: 0 | FB84: 0 | FC84: 0 | FD84: 0 | FE84: 0 | FF84: 0 | FG84: 0
C86: LD Paid to Offtaker
D87: COD - 1 Date Flag | F87: Flag | G87: =EDATE(COD_date,-1) -> 2024-01-01 | K87: =SUM(N87:FG87) -> 1 | N87: =(N6=$G$87)*1 -> 0 | O87: =(O6=$G$87)*1 -> 0 | P87: 0 | Q87: 0 | R87: 0 | S87: 0 | T87: 0 | U87: 0 | V87: 0 | W87: 0 | X87: 0 | Y87: 0 | Z87: 0 | AA87: 0 | AB87: 0 | AC87: 0 | AD87: 0 | AE87: 0 | AF87: 0 | AG87: 0 | AH87: 0 | AI87: 0 | AJ87: 0 | AK87: 0 | AL87: 0 | AM87: 0 | AN87: 0 | AO87: 0 | AP87: 0 | AQ87: 0 | AR87: 0 | AS87: 0 | AT87: 0 | AU87: 0 | AV87: 0 | AW87: 0 | AX87: 0 | AY87: 0 | AZ87: 0 | BA87: 0 | BB87: 0 | BC87: 0 | BD87: 0 | BE87: 0 | BF87: 0 | BG87: 0 | BH87: 1 | BI87: 0 | BJ87: 0 | BK87: 0 | BL87: 0 | BM87: 0 | BN87: 0 | BO87: 0 | BP87: 0 | BQ87: 0 | BR87: 0 | BS87: 0 | BT87: 0 | BU87: 0 | BV87: 0 | BW87: 0 | BX87: 0 | BY87: 0 | BZ87: 0 | CA87: =(CA6=$G$87)*1 -> 0 | CB87: 0 | CC87: 0 | CD87: 0 | CE87: 0 | CF87: 0 | CG87: 0 | CH87: 0 | CI87: 0 | CJ87: 0 | CK87: 0 | CL87: 0 | CM87: 0 | CN87: 0 | CO87: 0 | CP87: 0 | CQ87: 0 | CR87: 0 | CS87: 0 | CT87: 0 | CU87: 0 | CV87: 0 | CW87: 0 | CX87: 0 | CY87: 0 | CZ87: 0 | DA87: 0 | DB87: 0 | DC87: 0 | DD87: 0 | DE87: 0 | DF87: 0 | DG87: 0 | DH87: 0 | DI87: 0 | DJ87: 0 | DK87: 0 | DL87: 0 | DM87: 0 | DN87: 0 | DO87: 0 | DP87: 0 | DQ87: 0 | DR87: 0 | DS87: 0 | DT87: 0 | DU87: 0 | DV87: 0 | DW87: 0 | DX87: 0 | DY87: 0 | DZ87: 0 | EA87: 0 | EB87: 0 | EC87: 0 | ED87: 0 | EE87: 0 | EF87: 0 | EG87: 0 | EH87: 0 | EI87: 0 | EJ87: 0 | EK87: 0 | EL87: 0 | EM87: =(EM6=$G$87)*1 -> 0 | EN87: 0 | EO87: 0 | EP87: 0 | EQ87: 0 | ER87: 0 | ES87: 0 | ET87: 0 | EU87: 0 | EV87: 0 | EW87: 0 | EX87: 0 | EY87: 0 | EZ87: 0 | FA87: 0 | FB87: 0 | FC87: 0 | FD87: 0 | FE87: 0 | FF87: 0 | FG87: 0
D88: LD Paid to Offtaker | F88: KUSD | G88: =K84 -> 0 | K88: =SUM(N88:FG88) -> 0 | N88: =$G$88*N87 -> 0 | O88: =$G$88*O87 -> 0 | P88: 0 | Q88: 0 | R88: 0 | S88: 0 | T88: 0 | U88: 0 | V88: 0 | W88: 0 | X88: 0 | Y88: 0 | Z88: 0 | AA88: 0 | AB88: 0 | AC88: 0 | AD88: 0 | AE88: 0 | AF88: 0 | AG88: 0 | AH88: 0 | AI88: 0 | AJ88: 0 | AK88: 0 | AL88: 0 | AM88: 0 | AN88: 0 | AO88: 0 | AP88: 0 | AQ88: 0 | AR88: 0 | AS88: 0 | AT88: 0 | AU88: 0 | AV88: 0 | AW88: 0 | AX88: 0 | AY88: 0 | AZ88: 0 | BA88: 0 | BB88: 0 | BC88: 0 | BD88: 0 | BE88: 0 | BF88: 0 | BG88: 0 | BH88: 0 | BI88: 0 | BJ88: 0 | BK88: 0 | BL88: 0 | BM88: 0 | BN88: 0 | BO88: 0 | BP88: 0 | BQ88: 0 | BR88: 0 | BS88: 0 | BT88: 0 | BU88: 0 | BV88: 0 | BW88: 0 | BX88: 0 | BY88: 0 | BZ88: 0 | CA88: =$G$88*CA87 -> 0 | CB88: 0 | CC88: 0 | CD88: 0 | CE88: 0 | CF88: 0 | CG88: 0 | CH88: 0 | CI88: 0 | CJ88: 0 | CK88: 0 | CL88: 0 | CM88: 0 | CN88: 0 | CO88: 0 | CP88: 0 | CQ88: 0 | CR88: 0 | CS88: 0 | CT88: 0 | CU88: 0 | CV88: 0 | CW88: 0 | CX88: 0 | CY88: 0 | CZ88: 0 | DA88: 0 | DB88: 0 | DC88: 0 | DD88: 0 | DE88: 0 | DF88: 0 | DG88: 0 | DH88: 0 | DI88: 0 | DJ88: 0 | DK88: 0 | DL88: 0 | DM88: 0 | DN88: 0 | DO88: 0 | DP88: 0 | DQ88: 0 | DR88: 0 | DS88: 0 | DT88: 0 | DU88: 0 | DV88: 0 | DW88: 0 | DX88: 0 | DY88: 0 | DZ88: 0 | EA88: 0 | EB88: 0 | EC88: 0 | ED88: 0 | EE88: 0 | EF88: 0 | EG88: 0 | EH88: 0 | EI88: 0 | EJ88: 0 | EK88: 0 | EL88: 0 | EM88: =$G$88*EM87 -> 0 | EN88: 0 | EO88: 0 | EP88: 0 | EQ88: 0 | ER88: 0 | ES88: 0 | ET88: 0 | EU88: 0 | EV88: 0 | EW88: 0 | EX88: 0 | EY88: 0 | EZ88: 0 | FA88: 0 | FB88: 0 | FC88: 0 | FD88: 0 | FE88: 0 | FF88: 0 | FG88: 0
C90: LD Received from EPC
D91: MW Days at COD | F91: Days | G91: =K83 -> 0 | K91: =SUM(N91:FG91) -> 0 | N91: =N87*$G$91 -> 0 | O91: =O87*$G$91 -> 0 | P91: 0 | Q91: 0 | R91: 0 | S91: 0 | T91: 0 | U91: 0 | V91: 0 | W91: 0 | X91: 0 | Y91: 0 | Z91: 0 | AA91: 0 | AB91: 0 | AC91: 0 | AD91: 0 | AE91: 0 | AF91: 0 | AG91: 0 | AH91: 0 | AI91: 0 | AJ91: 0 | AK91: 0 | AL91: 0 | AM91: 0 | AN91: 0 | AO91: 0 | AP91: 0 | AQ91: 0 | AR91: 0 | AS91: 0 | AT91: 0 | AU91: 0 | AV91: 0 | AW91: 0 | AX91: 0 | AY91: 0 | AZ91: 0 | BA91: 0 | BB91: 0 | BC91: 0 | BD91: 0 | BE91: 0 | BF91: 0 | BG91: 0 | BH91: 0 | BI91: 0 | BJ91: 0 | BK91: 0 | BL91: 0 | BM91: 0 | BN91: 0 | BO91: 0 | BP91: 0 | BQ91: 0 | BR91: 0 | BS91: 0 | BT91: 0 | BU91: 0 | BV91: 0 | BW91: 0 | BX91: 0 | BY91: 0 | BZ91: 0 | CA91: =CA87*$G$91 -> 0 | CB91: 0 | CC91: 0 | CD91: 0 | CE91: 0 | CF91: 0 | CG91: 0 | CH91: 0 | CI91: 0 | CJ91: 0 | CK91: 0 | CL91: 0 | CM91: 0 | CN91: 0 | CO91: 0 | CP91: 0 | CQ91: 0 | CR91: 0 | CS91: 0 | CT91: 0 | CU91: 0 | CV91: 0 | CW91: 0 | CX91: 0 | CY91: 0 | CZ91: 0 | DA91: 0 | DB91: 0 | DC91: 0 | DD91: 0 | DE91: 0 | DF91: 0 | DG91: 0 | DH91: 0 | DI91: 0 | DJ91: 0 | DK91: 0 | DL91: 0 | DM91: 0 | DN91: 0 | DO91: 0 | DP91: 0 | DQ91: 0 | DR91: 0 | DS91: 0 | DT91: 0 | DU91: 0 | DV91: 0 | DW91: 0 | DX91: 0 | DY91: 0 | DZ91: 0 | EA91: 0 | EB91: 0 | EC91: 0 | ED91: 0 | EE91: 0 | EF91: 0 | EG91: 0 | EH91: 0 | EI91: 0 | EJ91: 0 | EK91: 0 | EL91: 0 | EM91: =EM87*$G$91 -> 0 | EN91: 0 | EO91: 0 | EP91: 0 | EQ91: 0 | ER91: 0 | ES91: 0 | ET91: 0 | EU91: 0 | EV91: 0 | EW91: 0 | EX91: 0 | EY91: 0 | EZ91: 0 | FA91: 0 | FB91: 0 | FC91: 0 | FD91: 0 | FE91: 0 | FF91: 0 | FG91: 0
D92: LD Received (back to back) | F92: Flag | G92: ='Operating Inputs'!H38 -> TRUE | I92: ='Operating Inputs'!H40 -> 100 | K92: =SUM(N92:FG92) -> 0 | N92: =$I$92*$G$92*N91/1000 -> 0 | O92: 0 | P92: 0 | Q92: 0 | R92: 0 | S92: 0 | T92: 0 | U92: 0 | V92: 0 | W92: 0 | X92: 0 | Y92: 0 | Z92: 0 | AA92: 0 | AB92: 0 | AC92: 0 | AD92: 0 | AE92: 0 | AF92: 0 | AG92: 0 | AH92: 0 | AI92: 0 | AJ92: 0 | AK92: 0 | AL92: 0 | AM92: 0 | AN92: 0 | AO92: 0 | AP92: 0 | AQ92: 0 | AR92: 0 | AS92: 0 | AT92: =$I$92*$G$92*AT91/1000 -> 0 | AU92: 0 | AV92: 0 | AW92: 0 | AX92: 0 | AY92: 0 | AZ92: 0 | BA92: 0 | BB92: 0 | BC92: 0 | BD92: 0 | BE92: 0 | BF92: 0 | BG92: 0 | BH92: 0 | BI92: 0 | BJ92: 0 | BK92: 0 | BL92: 0 | BM92: 0 | BN92: 0 | BO92: 0 | BP92: 0 | BQ92: 0 | BR92: 0 | BS92: 0 | BT92: 0 | BU92: 0 | BV92: 0 | BW92: 0 | BX92: 0 | BY92: 0 | BZ92: =$I$92*$G$92*BZ91/1000 -> 0 | CA92: 0 | CB92: 0 | CC92: 0 | CD92: 0 | CE92: 0 | CF92: 0 | CG92: 0 | CH92: 0 | CI92: 0 | CJ92: 0 | CK92: 0 | CL92: 0 | CM92: 0 | CN92: 0 | CO92: 0 | CP92: 0 | CQ92: 0 | CR92: 0 | CS92: 0 | CT92: 0 | CU92: 0 | CV92: 0 | CW92: 0 | CX92: 0 | CY92: 0 | CZ92: 0 | DA92: 0 | DB92: 0 | DC92: 0 | DD92: 0 | DE92: 0 | DF92: =$I$92*$G$92*DF91/1000 -> 0 | DG92: 0 | DH92: 0 | DI92: 0 | DJ92: 0 | DK92: 0 | DL92: 0 | DM92: 0 | DN92: 0 | DO92: 0 | DP92: 0 | DQ92: 0 | DR92: 0 | DS92: 0 | DT92: 0 | DU92: 0 | DV92: 0 | DW92: 0 | DX92: 0 | DY92: 0 | DZ92: 0 | EA92: 0 | EB92: 0 | EC92: 0 | ED92: 0 | EE92: 0 | EF92: 0 | EG92: 0 | EH92: 0 | EI92: 0 | EJ92: 0 | EK92: 0 | EL92: =$I$92*$G$92*EL91/1000 -> 0 | EM92: 0 | EN92: 0 | EO92: 0 | EP92: 0 | EQ92: 0 | ER92: 0 | ES92: 0 | ET92: 0 | EU92: 0 | EV92: 0 | EW92: 0 | EX92: 0 | EY92: 0 | EZ92: 0 | FA92: 0 | FB92: 0 | FC92: 0 | FD92: 0 | FE92: 0 | FF92: 0 | FG92: 0
D94: IDC over Delay Period | F94: KUSD | K94: =SUM(N94:FG94) -> 0 | N94: =('Financing Model'!N115+'Financing Model'!N117)*N78 -> 0 | O94: =('Financing Model'!O115+'Financing Model'!O117)*O78 -> 0 | P94: =('Financing Model'!P115+'Financing Model'!P117)*P78 -> 0 | Q94: =('Financing Model'!Q115+'Financing Model'!Q117)*Q78 -> 0 | R94: =('Financing Model'!R115+'Financing Model'!R117)*R78 -> 0 | S94: =('Financing Model'!S115+'Financing Model'!S117)*S78 -> 0 | T94: =('Financing Model'!T115+'Financing Model'!T117)*T78 -> 0 | U94: =('Financing Model'!U115+'Financing Model'!U117)*U78 -> 0 | V94: =('Financing Model'!V115+'Financing Model'!V117)*V78 -> 0 | W94: =('Financing Model'!W115+'Financing Model'!W117)*W78 -> 0 | X94: =('Financing Model'!X115+'Financing Model'!X117)*X78 -> 0 | Y94: =('Financing Model'!Y115+'Financing Model'!Y117)*Y78 -> 0 | Z94: =('Financing Model'!Z115+'Financing Model'!Z117)*Z78 -> 0 | AA94: =('Financing Model'!AA115+'Financing Model'!AA117)*AA78 -> 0 | AB94: =('Financing Model'!AB115+'Financing Model'!AB117)*AB78 -> 0 | AC94: =('Financing Model'!AC115+'Financing Model'!AC117)*AC78 -> 0 | AD94: =('Financing Model'!AD115+'Financing Model'!AD117)*AD78 -> 0 | AE94: =('Financing Model'!AE115+'Financing Model'!AE117)*AE78 -> 0 | AF94: =('Financing Model'!AF115+'Financing Model'!AF117)*AF78 -> 0 | AG94: =('Financing Model'!AG115+'Financing Model'!AG117)*AG78 -> 0 | AH94: =('Financing Model'!AH115+'Financing Model'!AH117)*AH78 -> 0 | AI94: =('Financing Model'!AI115+'Financing Model'!AI117)*AI78 -> 0 | AJ94: =('Financing Model'!AJ115+'Financing Model'!AJ117)*AJ78 -> 0 | AK94: =('Financing Model'!AK115+'Financing Model'!AK117)*AK78 -> 0 | AL94: =('Financing Model'!AL115+'Financing Model'!AL117)*AL78 -> 0 | AM94: =('Financing Model'!AM115+'Financing Model'!AM117)*AM78 -> 0 | AN94: =('Financing Model'!AN115+'Financing Model'!AN117)*AN78 -> 0 | AO94: =('Financing Model'!AO115+'Financing Model'!AO117)*AO78 -> 0 | AP94: =('Financing Model'!AP115+'Financing Model'!AP117)*AP78 -> 0 | AQ94: =('Financing Model'!AQ115+'Financing Model'!AQ117)*AQ78 -> 0 | AR94: =('Financing Model'!AR115+'Financing Model'!AR117)*AR78 -> 0 | AS94: =('Financing Model'!AS115+'Financing Model'!AS117)*AS78 -> 0 | AT94: =('Financing Model'!AT115+'Financing Model'!AT117)*AT78 -> 0 | AU94: =('Financing Model'!AU115+'Financing Model'!AU117)*AU78 -> 0 | AV94: =('Financing Model'!AV115+'Financing Model'!AV117)*AV78 -> 0 | AW94: =('Financing Model'!AW115+'Financing Model'!AW117)*AW78 -> 0 | AX94: =('Financing Model'!AX115+'Financing Model'!AX117)*AX78 -> 0 | AY94: =('Financing Model'!AY115+'Financing Model'!AY117)*AY78 -> 0 | AZ94: =('Financing Model'!AZ115+'Financing Model'!AZ117)*AZ78 -> 0 | BA94: =('Financing Model'!BA115+'Financing Model'!BA117)*BA78 -> 0 | BB94: =('Financing Model'!BB115+'Financing Model'!BB117)*BB78 -> 0 | BC94: =('Financing Model'!BC115+'Financing Model'!BC117)*BC78 -> 0 | BD94: =('Financing Model'!BD115+'Financing Model'!BD117)*BD78 -> 0 | BE94: =('Financing Model'!BE115+'Financing Model'!BE117)*BE78 -> 0 | BF94: =('Financing Model'!BF115+'Financing Model'!BF117)*BF78 -> 0 | BG94: =('Financing Model'!BG115+'Financing Model'!BG117)*BG78 -> 0 | BH94: =('Financing Model'!BH115+'Financing Model'!BH117)*BH78 -> 0 | BI94: =('Financing Model'!BI115+'Financing Model'!BI117)*BI78 -> 0 | BJ94: =('Financing Model'!BJ115+'Financing Model'!BJ117)*BJ78 -> 0 | BK94: =('Financing Model'!BK115+'Financing Model'!BK117)*BK78 -> 0 | BL94: =('Financing Model'!BL115+'Financing Model'!BL117)*BL78 -> 0 | BM94: =('Financing Model'!BM115+'Financing Model'!BM117)*BM78 -> 0 | BN94: =('Financing Model'!BN115+'Financing Model'!BN117)*BN78 -> 0 | BO94: =('Financing Model'!BO115+'Financing Model'!BO117)*BO78 -> 0 | BP94: =('Financing Model'!BP115+'Financing Model'!BP117)*BP78 -> 0 | BQ94: =('Financing Model'!BQ115+'Financing Model'!BQ117)*BQ78 -> 0 | BR94: =('Financing Model'!BR115+'Financing Model'!BR117)*BR78 -> 0 | BS94: =('Financing Model'!BS115+'Financing Model'!BS117)*BS78 -> 0 | BT94: =('Financing Model'!BT115+'Financing Model'!BT117)*BT78 -> 0 | BU94: =('Financing Model'!BU115+'Financing Model'!BU117)*BU78 -> 0 | BV94: =('Financing Model'!BV115+'Financing Model'!BV117)*BV78 -> 0 | BW94: =('Financing Model'!BW115+'Financing Model'!BW117)*BW78 -> 0 | BX94: =('Financing Model'!BX115+'Financing Model'!BX117)*BX78 -> 0 | BY94: =('Financing Model'!BY115+'Financing Model'!BY117)*BY78 -> 0 | BZ94: =('Financing Model'!BZ115+'Financing Model'!BZ117)*BZ78 -> 0 | CA94: =('Financing Model'!CA115+'Financing Model'!CA117)*CA78 -> 0 | CB94: =('Financing Model'!CB115+'Financing Model'!CB117)*CB78 -> 0 | CC94: =('Financing Model'!CC115+'Financing Model'!CC117)*CC78 -> 0 | CD94: =('Financing Model'!CD115+'Financing Model'!CD117)*CD78 -> 0 | CE94: =('Financing Model'!CE115+'Financing Model'!CE117)*CE78 -> 0 | CF94: =('Financing Model'!CF115+'Financing Model'!CF117)*CF78 -> 0 | CG94: =('Financing Model'!CG115+'Financing Model'!CG117)*CG78 -> 0 | CH94: =('Financing Model'!CH115+'Financing Model'!CH117)*CH78 -> 0 | CI94: =('Financing Model'!CI115+'Financing Model'!CI117)*CI78 -> 0 | CJ94: =('Financing Model'!CJ115+'Financing Model'!CJ117)*CJ78 -> 0 | CK94: =('Financing Model'!CK115+'Financing Model'!CK117)*CK78 -> 0 | CL94: =('Financing Model'!CL115+'Financing Model'!CL117)*CL78 -> 0 | CM94: =('Financing Model'!CM115+'Financing Model'!CM117)*CM78 -> 0 | CN94: =('Financing Model'!CN115+'Financing Model'!CN117)*CN78 -> 0 | CO94: =('Financing Model'!CO115+'Financing Model'!CO117)*CO78 -> 0 | CP94: =('Financing Model'!CP115+'Financing Model'!CP117)*CP78 -> 0 | CQ94: =('Financing Model'!CQ115+'Financing Model'!CQ117)*CQ78 -> 0 | CR94: =('Financing Model'!CR115+'Financing Model'!CR117)*CR78 -> 0 | CS94: =('Financing Model'!CS115+'Financing Model'!CS117)*CS78 -> 0 | CT94: =('Financing Model'!CT115+'Financing Model'!CT117)*CT78 -> 0 | CU94: =('Financing Model'!CU115+'Financing Model'!CU117)*CU78 -> 0 | CV94: =('Financing Model'!CV115+'Financing Model'!CV117)*CV78 -> 0 | CW94: =('Financing Model'!CW115+'Financing Model'!CW117)*CW78 -> 0 | CX94: =('Financing Model'!CX115+'Financing Model'!CX117)*CX78 -> 0 | CY94: =('Financing Model'!CY115+'Financing Model'!CY117)*CY78 -> 0 | CZ94: =('Financing Model'!CZ115+'Financing Model'!CZ117)*CZ78 -> 0 | DA94: =('Financing Model'!DA115+'Financing Model'!DA117)*DA78 -> 0 | DB94: =('Financing Model'!DB115+'Financing Model'!DB117)*DB78 -> 0 | DC94: =('Financing Model'!DC115+'Financing Model'!DC117)*DC78 -> 0 | DD94: =('Financing Model'!DD115+'Financing Model'!DD117)*DD78 -> 0 | DE94: =('Financing Model'!DE115+'Financing Model'!DE117)*DE78 -> 0 | DF94: =('Financing Model'!DF115+'Financing Model'!DF117)*DF78 -> 0 | DG94: =('Financing Model'!DG115+'Financing Model'!DG117)*DG78 -> 0 | DH94: =('Financing Model'!DH115+'Financing Model'!DH117)*DH78 -> 0 | DI94: =('Financing Model'!DI115+'Financing Model'!DI117)*DI78 -> 0 | DJ94: =('Financing Model'!DJ115+'Financing Model'!DJ117)*DJ78 -> 0 | DK94: =('Financing Model'!DK115+'Financing Model'!DK117)*DK78 -> 0 | DL94: =('Financing Model'!DL115+'Financing Model'!DL117)*DL78 -> 0 | DM94: =('Financing Model'!DM115+'Financing Model'!DM117)*DM78 -> 0 | DN94: =('Financing Model'!DN115+'Financing Model'!DN117)*DN78 -> 0 | DO94: =('Financing Model'!DO115+'Financing Model'!DO117)*DO78 -> 0 | DP94: =('Financing Model'!DP115+'Financing Model'!DP117)*DP78 -> 0 | DQ94: =('Financing Model'!DQ115+'Financing Model'!DQ117)*DQ78 -> 0 | DR94: =('Financing Model'!DR115+'Financing Model'!DR117)*DR78 -> 0 | DS94: =('Financing Model'!DS115+'Financing Model'!DS117)*DS78 -> 0 | DT94: =('Financing Model'!DT115+'Financing Model'!DT117)*DT78 -> 0 | DU94: =('Financing Model'!DU115+'Financing Model'!DU117)*DU78 -> 0 | DV94: =('Financing Model'!DV115+'Financing Model'!DV117)*DV78 -> 0 | DW94: =('Financing Model'!DW115+'Financing Model'!DW117)*DW78 -> 0 | DX94: =('Financing Model'!DX115+'Financing Model'!DX117)*DX78 -> 0 | DY94: =('Financing Model'!DY115+'Financing Model'!DY117)*DY78 -> 0 | DZ94: =('Financing Model'!DZ115+'Financing Model'!DZ117)*DZ78 -> 0 | EA94: =('Financing Model'!EA115+'Financing Model'!EA117)*EA78 -> 0 | EB94: =('Financing Model'!EB115+'Financing Model'!EB117)*EB78 -> 0 | EC94: =('Financing Model'!EC115+'Financing Model'!EC117)*EC78 -> 0 | ED94: =('Financing Model'!ED115+'Financing Model'!ED117)*ED78 -> 0 | EE94: =('Financing Model'!EE115+'Financing Model'!EE117)*EE78 -> 0 | EF94: =('Financing Model'!EF115+'Financing Model'!EF117)*EF78 -> 0 | EG94: =('Financing Model'!EG115+'Financing Model'!EG117)*EG78 -> 0 | EH94: =('Financing Model'!EH115+'Financing Model'!EH117)*EH78 -> 0 | EI94: =('Financing Model'!EI115+'Financing Model'!EI117)*EI78 -> 0 | EJ94: =('Financing Model'!EJ115+'Financing Model'!EJ117)*EJ78 -> 0 | EK94: =('Financing Model'!EK115+'Financing Model'!EK117)*EK78 -> 0 | EL94: =('Financing Model'!EL115+'Financing Model'!EL117)*EL78 -> 0 | EM94: =('Financing Model'!EM115+'Financing Model'!EM117)*EM78 -> 0 | EN94: =('Financing Model'!EN115+'Financing Model'!EN117)*EN78 -> 0 | EO94: =('Financing Model'!EO115+'Financing Model'!EO117)*EO78 -> 0 | EP94: =('Financing Model'!EP115+'Financing Model'!EP117)*EP78 -> 0 | EQ94: =('Financing Model'!EQ115+'Financing Model'!EQ117)*EQ78 -> 0 | ER94: =('Financing Model'!ER115+'Financing Model'!ER117)*ER78 -> 0 | ES94: =('Financing Model'!ES115+'Financing Model'!ES117)*ES78 -> 0 | ET94: =('Financing Model'!ET115+'Financing Model'!ET117)*ET78 -> 0 | EU94: =('Financing Model'!EU115+'Financing Model'!EU117)*EU78 -> 0 | EV94: =('Financing Model'!EV115+'Financing Model'!EV117)*EV78 -> 0 | EW94: =('Financing Model'!EW115+'Financing Model'!EW117)*EW78 -> 0 | EX94: =('Financing Model'!EX115+'Financing Model'!EX117)*EX78 -> 0 | EY94: =('Financing Model'!EY115+'Financing Model'!EY117)*EY78 -> 0 | EZ94: =('Financing Model'!EZ115+'Financing Model'!EZ117)*EZ78 -> 0 | FA94: =('Financing Model'!FA115+'Financing Model'!FA117)*FA78 -> 0 | FB94: =('Financing Model'!FB115+'Financing Model'!FB117)*FB78 -> 0 | FC94: =('Financing Model'!FC115+'Financing Model'!FC117)*FC78 -> 0 | FD94: =('Financing Model'!FD115+'Financing Model'!FD117)*FD78 -> 0 | FE94: =('Financing Model'!FE115+'Financing Model'!FE117)*FE78 -> 0 | FF94: =('Financing Model'!FF115+'Financing Model'!FF117)*FF78 -> 0 | FG94: =('Financing Model'!FG115+'Financing Model'!FG117)*FG78 -> 0
D95: IDC Moved to COD | F95: KUSD | G95: =K94 -> 0 | I95: ='Operating Inputs'!H39 -> TRUE | N95: =$G$95*N87*$I$95 -> 0 | O95: =$G$95*O87*$I$95 -> 0 | P95: 0 | Q95: 0 | R95: 0 | S95: 0 | T95: 0 | U95: 0 | V95: 0 | W95: 0 | X95: 0 | Y95: 0 | Z95: 0 | AA95: 0 | AB95: 0 | AC95: 0 | AD95: 0 | AE95: 0 | AF95: 0 | AG95: 0 | AH95: 0 | AI95: 0 | AJ95: 0 | AK95: 0 | AL95: 0 | AM95: 0 | AN95: 0 | AO95: 0 | AP95: 0 | AQ95: 0 | AR95: 0 | AS95: 0 | AT95: 0 | AU95: 0 | AV95: 0 | AW95: 0 | AX95: 0 | AY95: 0 | AZ95: 0 | BA95: 0 | BB95: 0 | BC95: 0 | BD95: 0 | BE95: 0 | BF95: 0 | BG95: 0 | BH95: 0 | BI95: 0 | BJ95: 0 | BK95: 0 | BL95: 0 | BM95: 0 | BN95: 0 | BO95: 0 | BP95: 0 | BQ95: 0 | BR95: 0 | BS95: 0 | BT95: 0 | BU95: 0 | BV95: 0 | BW95: 0 | BX95: 0 | BY95: 0 | BZ95: 0 | CA95: =$G$95*CA87*$I$95 -> 0 | CB95: 0 | CC95: 0 | CD95: 0 | CE95: 0 | CF95: 0 | CG95: 0 | CH95: 0 | CI95: 0 | CJ95: 0 | CK95: 0 | CL95: 0 | CM95: 0 | CN95: 0 | CO95: 0 | CP95: 0 | CQ95: 0 | CR95: 0 | CS95: 0 | CT95: 0 | CU95: 0 | CV95: 0 | CW95: 0 | CX95: 0 | CY95: 0 | CZ95: 0 | DA95: 0 | DB95: 0 | DC95: 0 | DD95: 0 | DE95: 0 | DF95: 0 | DG95: 0 | DH95: 0 | DI95: 0 | DJ95: 0 | DK95: 0 | DL95: 0 | DM95: 0 | DN95: 0 | DO95: 0 | DP95: 0 | DQ95: 0 | DR95: 0 | DS95: 0 | DT95: 0 | DU95: 0 | DV95: 0 | DW95: 0 | DX95: 0 | DY95: 0 | DZ95: 0 | EA95: 0 | EB95: 0 | EC95: 0 | ED95: 0 | EE95: 0 | EF95: 0 | EG95: 0 | EH95: 0 | EI95: 0 | EJ95: 0 | EK95: 0 | EL95: 0 | EM95: =$G$95*EM87*$I$95 -> 0 | EN95: 0 | EO95: 0 | EP95: 0 | EQ95: 0 | ER95: 0 | ES95: 0 | ET95: 0 | EU95: 0 | EV95: 0 | EW95: 0 | EX95: 0 | EY95: 0 | EZ95: 0 | FA95: 0 | FB95: 0 | FC95: 0 | FD95: 0 | FE95: 0 | FF95: 0 | FG95: 0
D96: Total LD Received | E96: Total LD Received | N96: =N95+N92 -> 0 | O96: =O95+O92 -> 0 | P96: 0 | Q96: 0 | R96: 0 | S96: 0 | T96: 0 | U96: 0 | V96: 0 | W96: 0 | X96: 0 | Y96: 0 | Z96: 0 | AA96: 0 | AB96: 0 | AC96: 0 | AD96: 0 | AE96: 0 | AF96: 0 | AG96: 0 | AH96: 0 | AI96: 0 | AJ96: 0 | AK96: 0 | AL96: 0 | AM96: 0 | AN96: 0 | AO96: 0 | AP96: 0 | AQ96: 0 | AR96: 0 | AS96: 0 | AT96: 0 | AU96: 0 | AV96: 0 | AW96: 0 | AX96: 0 | AY96: 0 | AZ96: 0 | BA96: 0 | BB96: 0 | BC96: 0 | BD96: 0 | BE96: 0 | BF96: 0 | BG96: 0 | BH96: 0 | BI96: 0 | BJ96: 0 | BK96: 0 | BL96: 0 | BM96: 0 | BN96: 0 | BO96: 0 | BP96: 0 | BQ96: 0 | BR96: 0 | BS96: 0 | BT96: 0 | BU96: 0 | BV96: 0 | BW96: 0 | BX96: 0 | BY96: 0 | BZ96: 0 | CA96: =CA95+CA92 -> 0 | CB96: 0 | CC96: 0 | CD96: 0 | CE96: 0 | CF96: 0 | CG96: 0 | CH96: 0 | CI96: 0 | CJ96: 0 | CK96: 0 | CL96: 0 | CM96: 0 | CN96: 0 | CO96: 0 | CP96: 0 | CQ96: 0 | CR96: 0 | CS96: 0 | CT96: 0 | CU96: 0 | CV96: 0 | CW96: 0 | CX96: 0 | CY96: 0 | CZ96: 0 | DA96: 0 | DB96: 0 | DC96: 0 | DD96: 0 | DE96: 0 | DF96: 0 | DG96: 0 | DH96: 0 | DI96: 0 | DJ96: 0 | DK96: 0 | DL96: 0 | DM96: 0 | DN96: 0 | DO96: 0 | DP96: 0 | DQ96: 0 | DR96: 0 | DS96: 0 | DT96: 0 | DU96: 0 | DV96: 0 | DW96: 0 | DX96: 0 | DY96: 0 | DZ96: 0 | EA96: 0 | EB96: 0 | EC96: 0 | ED96: 0 | EE96: 0 | EF96: 0 | EG96: 0 | EH96: 0 | EI96: 0 | EJ96: 0 | EK96: 0 | EL96: 0 | EM96: =EM95+EM92 -> 0 | EN96: 0 | EO96: 0 | EP96: 0 | EQ96: 0 | ER96: 0 | ES96: 0 | ET96: 0 | EU96: 0 | EV96: 0 | EW96: 0 | EX96: 0 | EY96: 0 | EZ96: 0 | FA96: 0 | FB96: 0 | FC96: 0 | FD96: 0 | FE96: 0 | FF96: 0 | FG96: 0

Sheet Financing Model
F1: Units | G1: Driver | H1: Description | I1: Driver | J1: Description | K1: Sum | L1: Test | M1: Initial | O1: Cash IRR | P1: =I250 -> 0.1581948578
B2: Timeline | O2: Econ IRR | P2: =I259 -> 0.1366752207
C3: Period no. | N3: 1 | O3: 2 | P3: 3 | Q3: 4 | R3: 5 | S3: 6 | T3: 7 | U3: 8 | V3: 9 | W3: 10 | X3: 11 | Y3: 12 | Z3: 13 | AA3: 14 | AB3: 15 | AC3: 16 | AD3: 17 | AE3: 18 | AF3: 19 | AG3: 20 | AH3: 21 | AI3: 22 | AJ3: 23 | AK3: 24 | AL3: 25 | AM3: 26 | AN3: 27 | AO3: 28 | AP3: 29 | AQ3: 30 | AR3: 31 | AS3: 32 | AT3: 33 | AU3: 34 | AV3: 35 | AW3: 36 | AX3: 37 | AY3: 38 | AZ3: 39 | BA3: 40 | BB3: 41 | BC3: 42 | BD3: 43 | BE3: 44 | BF3: 45 | BG3: 46 | BH3: 47 | BI3: 48 | BJ3: 49 | BK3: 50 | BL3: 51 | BM3: 52 | BN3: 53 | BO3: 54 | BP3: 55 | BQ3: 56 | BR3: 57 | BS3: 58 | BT3: 59 | BU3: 60 | BV3: 61 | BW3: 62 | BX3: 63 | BY3: 64 | BZ3: 65 | CA3: 66 | CB3: 67 | CC3: 68 | CD3: 69 | CE3: 70 | CF3: 71 | CG3: 72 | CH3: 73 | CI3: 74 | CJ3: 75 | CK3: 76 | CL3: 77 | CM3: 78 | CN3: 79 | CO3: 80 | CP3: 81 | CQ3: 82 | CR3: 83 | CS3: 84 | CT3: 85 | CU3: 86 | CV3: 87 | CW3: 88 | CX3: 89 | CY3: 90 | CZ3: 91 | DA3: 92 | DB3: 93 | DC3: 94 | DD3: 95 | DE3: 96 | DF3: 97 | DG3: 98 | DH3: 99 | DI3: 100 | DJ3: 101 | DK3: 102 | DL3: 103 | DM3: 104 | DN3: 105 | DO3: 106 | DP3: 107 | DQ3: 108 | DR3: 109 | DS3: 110 | DT3: 111 | DU3: 112 | DV3: 113 | DW3: 114 | DX3: 115 | DY3: 116 | DZ3: 117 | EA3: 118 | EB3: 119 | EC3: 120 | ED3: 121 | EE3: 122 | EF3: 123 | EG3: 124 | EH3: 125 | EI3: 126 | EJ3: 127 | EK3: 128 | EL3: 129 | EM3: 130 | EN3: 131 | EO3: 132 | EP3: 133 | EQ3: 134 | ER3: 135 | ES3: 136 | ET3: 137 | EU3: 138 | EV3: 139 | EW3: 140 | EX3: 141 | EY3: 142 | EZ3: 143 | FA3: 144 | FB3: 145 | FC3: 146 | FD3: 147 | FE3: 148 | FF3: 149 | FG3: 150
C4: Pre-COD flag | F4: flag | G4: ='Operating Inputs'!$H$16 -> 47 | N4: =IF(N3<=$G4,1,0) -> 1 | O4: =IF(O3<=$G4,1,0) -> 1 | P4: 1 | Q4: 1 | R4: 1 | S4: 1 | T4: 1 | U4: 1 | V4: 1 | W4: 1 | X4: 1 | Y4: 1 | Z4: 1 | AA4: 1 | AB4: 1 | AC4: 1 | AD4: 1 | AE4: 1 | AF4: 1 | AG4: 1 | AH4: 1 | AI4: 1 | AJ4: 1 | AK4: 1 | AL4: 1 | AM4: 1 | AN4: 1 | AO4: 1 | AP4: 1 | AQ4: 1 | AR4: 1 | AS4: 1 | AT4: 1 | AU4: 1 | AV4: 1 | AW4: 1 | AX4: 1 | AY4: 1 | AZ4: 1 | BA4: 1 | BB4: 1 | BC4: 1 | BD4: 1 | BE4: 1 | BF4: 1 | BG4: 1 | BH4: 1 | BI4: 0 | BJ4: 0 | BK4: 0 | BL4: 0 | BM4: 0 | BN4: 0 | BO4: 0 | BP4: 0 | BQ4: 0 | BR4: 0 | BS4: 0 | BT4: 0 | BU4: 0 | BV4: 0 | BW4: 0 | BX4: 0 | BY4: 0 | BZ4: 0 | CA4: =IF(CA3<=$G4,1,0) -> 0 | CB4: 0 | CC4: 0 | CD4: 0 | CE4: 0 | CF4: 0 | CG4: 0 | CH4: 0 | CI4: 0 | CJ4: 0 | CK4: 0 | CL4: 0 | CM4: 0 | CN4: 0 | CO4: 0 | CP4: 0 | CQ4: 0 | CR4: 0 | CS4: 0 | CT4: 0 | CU4: 0 | CV4: 0 | CW4: 0 | CX4: 0 | CY4: 0 | CZ4: 0 | DA4: 0 | DB4: 0 | DC4: 0 | DD4: 0 | DE4: 0 | DF4: 0 | DG4: 0 | DH4: 0 | DI4: 0 | DJ4: 0 | DK4: 0 | DL4: 0 | DM4: 0 | DN4: 0 | DO4: 0 | DP4: 0 | DQ4: 0 | DR4: 0 | DS4: 0 | DT4: 0 | DU4: 0 | DV4: 0 | DW4: 0 | DX4: 0 | DY4: 0 | DZ4: 0 | EA4: 0 | EB4: 0 | EC4: 0 | ED4: 0 | EE4: 0 | EF4: 0 | EG4: 0 | EH4: 0 | EI4: 0 | EJ4: 0 | EK4: 0 | EL4: 0 | EM4: =IF(EM3<=$G4,1,0) -> 0 | EN4: 0 | EO4: 0 | EP4: 0 | EQ4: 0 | ER4: 0 | ES4: 0 | ET4: 0 | EU4: 0 | EV4: 0 | EW4: 0 | EX4: 0 | EY4: 0 | EZ4: 0 | FA4: 0 | FB4: 0 | FC4: 0 | FD4: 0 | FE4: 0 | FF4: 0 | FG4: 0
C5: Months in period | F5: months | G5: ='Operating Inputs'!$H$14 -> 1 | H5: ='Operating Inputs'!E14 -> Months per period pre-COD | I5: ='Operating Inputs'!$H$15 -> 6 | J5: ='Operating Inputs'!E15 -> Months per period post-COD | N5: =IF(N4,$G5,$I5) -> 1 | O5: =IF(O4,$G5,$I5) -> 1 | P5: 1 | Q5: 1 | R5: 1 | S5: 1 | T5: 1 | U5: 1 | V5: 1 | W5: 1 | X5: 1 | Y5: 1 | Z5: 1 | AA5: 1 | AB5: 1 | AC5: 1 | AD5: 1 | AE5: 1 | AF5: 1 | AG5: 1 | AH5: 1 | AI5: 1 | AJ5: 1 | AK5: 1 | AL5: 1 | AM5: 1 | AN5: 1 | AO5: 1 | AP5: 1 | AQ5: 1 | AR5: 1 | AS5: 1 | AT5: 1 | AU5: 1 | AV5: 1 | AW5: 1 | AX5: 1 | AY5: 1 | AZ5: 1 | BA5: 1 | BB5: 1 | BC5: 1 | BD5: 1 | BE5: 1 | BF5: 1 | BG5: 1 | BH5: 1 | BI5: 6 | BJ5: 6 | BK5: 6 | BL5: 6 | BM5: 6 | BN5: 6 | BO5: 6 | BP5: 6 | BQ5: 6 | BR5: 6 | BS5: 6 | BT5: 6 | BU5: 6 | BV5: 6 | BW5: 6 | BX5: 6 | BY5: 6 | BZ5: 6 | CA5: =IF(CA4,$G5,$I5) -> 6 | CB5: 6 | CC5: 6 | CD5: 6 | CE5: 6 | CF5: 6 | CG5: 6 | CH5: 6 | CI5: 6 | CJ5: 6 | CK5: 6 | CL5: 6 | CM5: 6 | CN5: 6 | CO5: 6 | CP5: 6 | CQ5: 6 | CR5: 6 | CS5: 6 | CT5: 6 | CU5: 6 | CV5: 6 | CW5: 6 | CX5: 6 | CY5: 6 | CZ5: 6 | DA5: 6 | DB5: 6 | DC5: 6 | DD5: 6 | DE5: 6 | DF5: 6 | DG5: 6 | DH5: 6 | DI5: 6 | DJ5: 6 | DK5: 6 | DL5: 6 | DM5: 6 | DN5: 6 | DO5: 6 | DP5: 6 | DQ5: 6 | DR5: 6 | DS5: 6 | DT5: 6 | DU5: 6 | DV5: 6 | DW5: 6 | DX5: 6 | DY5: 6 | DZ5: 6 | EA5: 6 | EB5: 6 | EC5: 6 | ED5: 6 | EE5: 6 | EF5: 6 | EG5: 6 | EH5: 6 | EI5: 6 | EJ5: 6 | EK5: 6 | EL5: 6 | EM5: =IF(EM4,$G5,$I5) -> 6 | EN5: 6 | EO5: 6 | EP5: 6 | EQ5: 6 | ER5: 6 | ES5: 6 | ET5: 6 | EU5: 6 | EV5: 6 | EW5: 6 | EX5: 6 | EY5: 6 | EZ5: 6 | FA5: 6 | FB5: 6 | FC5: 6 | FD5: 6 | FE5: 6 | FF5: 6 | FG5: 6
C6: Start of period | F6: date | N6: =M7+1 -> 2020-03-01 | O6: =N7+1 -> 2020-04-01 | P6: 2020-05-01 | Q6: 2020-06-01 | R6: 2020-07-01 | S6: 2020-08-01 | T6: 2020-09-01 | U6: 2020-10-01 | V6: 2020-11-01 | W6: 2020-12-01 | X6: 2021-01-01 | Y6: 2021-02-01 | Z6: 2021-03-01 | AA6: 2021-04-01 | AB6: 2021-05-01 | AC6: 2021-06-01 | AD6: 2021-07-01 | AE6: 2021-08-01 | AF6: 2021-09-01 | AG6: 2021-10-01 | AH6: 2021-11-01 | AI6: 2021-12-01 | AJ6: 2022-01-01 | AK6: 2022-02-01 | AL6: 2022-03-01 | AM6: 2022-04-01 | AN6: 2022-05-01 | AO6: 2022-06-01 | AP6: 2022-07-01 | AQ6: 2022-08-01 | AR6: 2022-09-01 | AS6: 2022-10-01 | AT6: 2022-11-01 | AU6: 2022-12-01 | AV6: 2023-01-01 | AW6: 2023-02-01 | AX6: 2023-03-01 | AY6: 2023-04-01 | AZ6: 2023-05-01 | BA6: 2023-06-01 | BB6: 2023-07-01 | BC6: 2023-08-01 | BD6: 2023-09-01 | BE6: 2023-10-01 | BF6: 2023-11-01 | BG6: 2023-12-01 | BH6: 2024-01-01 | BI6: 2024-02-01 | BJ6: 2024-08-01 | BK6: 2025-02-01 | BL6: 2025-08-01 | BM6: 2026-02-01 | BN6: 2026-08-01 | BO6: 2027-02-01 | BP6: 2027-08-01 | BQ6: 2028-02-01 | BR6: 2028-08-01 | BS6: 2029-02-01 | BT6: 2029-08-01 | BU6: 2030-02-01 | BV6: 2030-08-01 | BW6: 2031-02-01 | BX6: 2031-08-01 | BY6: 2032-02-01 | BZ6: 2032-08-01 | CA6: =BZ7+1 -> 2033-02-01 | CB6: 2033-08-01 | CC6: 2034-02-01 | CD6: 2034-08-01 | CE6: 2035-02-01 | CF6: 2035-08-01 | CG6: 2036-02-01 | CH6: 2036-08-01 | CI6: 2037-02-01 | CJ6: 2037-08-01 | CK6: 2038-02-01 | CL6: 2038-08-01 | CM6: 2039-02-01 | CN6: 2039-08-01 | CO6: 2040-02-01 | CP6: 2040-08-01 | CQ6: 2041-02-01 | CR6: 2041-08-01 | CS6: 2042-02-01 | CT6: 2042-08-01 | CU6: 2043-02-01 | CV6: 2043-08-01 | CW6: 2044-02-01 | CX6: 2044-08-01 | CY6: 2045-02-01 | CZ6: 2045-08-01 | DA6: 2046-02-01 | DB6: 2046-08-01 | DC6: 2047-02-01 | DD6: 2047-08-01 | DE6: 2048-02-01 | DF6: 2048-08-01 | DG6: 2049-02-01 | DH6: 2049-08-01 | DI6: 2050-02-01 | DJ6: 2050-08-01 | DK6: 2051-02-01 | DL6: 2051-08-01 | DM6: 2052-02-01 | DN6: 2052-08-01 | DO6: 2053-02-01 | DP6: 2053-08-01 | DQ6: 2054-02-01 | DR6: 2054-08-01 | DS6: 2055-02-01 | DT6: 2055-08-01 | DU6: 2056-02-01 | DV6: 2056-08-01 | DW6: 2057-02-01 | DX6: 2057-08-01 | DY6: 2058-02-01 | DZ6: 2058-08-01 | EA6: 2059-02-01 | EB6: 2059-08-01 | EC6: 2060-02-01 | ED6: 2060-08-01 | EE6: 2061-02-01 | EF6: 2061-08-01 | EG6: 2062-02-01 | EH6: 2062-08-01 | EI6: 2063-02-01 | EJ6: 2063-08-01 | EK6: 2064-02-01 | EL6: 2064-08-01 | EM6: =EL7+1 -> 2065-02-01 | EN6: 2065-08-01 | EO6: 2066-02-01 | EP6: 2066-08-01 | EQ6: 2067-02-01 | ER6: 2067-08-01 | ES6: 2068-02-01 | ET6: 2068-08-01 | EU6: 2069-02-01 | EV6: 2069-08-01 | EW6: 2070-02-01 | EX6: 2070-08-01 | EY6: 2071-02-01 | EZ6: 2071-08-01 | FA6: 2072-02-01 | FB6: 2072-08-01 | FC6: 2073-02-01 | FD6: 2073-08-01 | FE6: 2074-02-01 | FF6: 2074-08-01 | FG6: 2075-02-01
C7: End of period | F7: date | M7: ='Operating Inputs'!H6-1 -> 2020-02-29 | N7: =EDATE(N6,N5)-1 -> 2020-03-31 | O7: =EDATE(O6,O5)-1 -> 2020-04-30 | P7: 2020-05-31 | Q7: 2020-06-30 | R7: 2020-07-31 | S7: 2020-08-31 | T7: 2020-09-30 | U7: 2020-10-31 | V7: 2020-11-30 | W7: 2020-12-31 | X7: 2021-01-31 | Y7: 2021-02-28 | Z7: 2021-03-31 | AA7: 2021-04-30 | AB7: 2021-05-31 | AC7: 2021-06-30 | AD7: 2021-07-31 | AE7: 2021-08-31 | AF7: 2021-09-30 | AG7: 2021-10-31 | AH7: 2021-11-30 | AI7: 2021-12-31 | AJ7: 2022-01-31 | AK7: 2022-02-28 | AL7: 2022-03-31 | AM7: 2022-04-30 | AN7: 2022-05-31 | AO7: 2022-06-30 | AP7: 2022-07-31 | AQ7: 2022-08-31 | AR7: 2022-09-30 | AS7: 2022-10-31 | AT7: 2022-11-30 | AU7: 2022-12-31 | AV7: 2023-01-31 | AW7: 2023-02-28 | AX7: 2023-03-31 | AY7: 2023-04-30 | AZ7: 2023-05-31 | BA7: 2023-06-30 | BB7: 2023-07-31 | BC7: 2023-08-31 | BD7: 2023-09-30 | BE7: 2023-10-31 | BF7: 2023-11-30 | BG7: 2023-12-31 | BH7: 2024-01-31 | BI7: 2024-07-31 | BJ7: 2025-01-31 | BK7: 2025-07-31 | BL7: 2026-01-31 | BM7: 2026-07-31 | BN7: 2027-01-31 | BO7: 2027-07-31 | BP7: 2028-01-31 | BQ7: 2028-07-31 | BR7: 2029-01-31 | BS7: 2029-07-31 | BT7: 2030-01-31 | BU7: 2030-07-31 | BV7: 2031-01-31 | BW7: 2031-07-31 | BX7: 2032-01-31 | BY7: 2032-07-31 | BZ7: 2033-01-31 | CA7: =EDATE(CA6,CA5)-1 -> 2033-07-31 | CB7: 2034-01-31 | CC7: 2034-07-31 | CD7: 2035-01-31 | CE7: 2035-07-31 | CF7: 2036-01-31 | CG7: 2036-07-31 | CH7: 2037-01-31 | CI7: 2037-07-31 | CJ7: 2038-01-31 | CK7: 2038-07-31 | CL7: 2039-01-31 | CM7: 2039-07-31 | CN7: 2040-01-31 | CO7: 2040-07-31 | CP7: 2041-01-31 | CQ7: 2041-07-31 | CR7: 2042-01-31 | CS7: 2042-07-31 | CT7: 2043-01-31 | CU7: 2043-07-31 | CV7: 2044-01-31 | CW7: 2044-07-31 | CX7: 2045-01-31 | CY7: 2045-07-31 | CZ7: 2046-01-31 | DA7: 2046-07-31 | DB7: 2047-01-31 | DC7: 2047-07-31 | DD7: 2048-01-31 | DE7: 2048-07-31 | DF7: 2049-01-31 | DG7: 2049-07-31 | DH7: 2050-01-31 | DI7: 2050-07-31 | DJ7: 2051-01-31 | DK7: 2051-07-31 | DL7: 2052-01-31 | DM7: 2052-07-31 | DN7: 2053-01-31 | DO7: 2053-07-31 | DP7: 2054-01-31 | DQ7: 2054-07-31 | DR7: 2055-01-31 | DS7: 2055-07-31 | DT7: 2056-01-31 | DU7: 2056-07-31 | DV7: 2057-01-31 | DW7: 2057-07-31 | DX7: 2058-01-31 | DY7: 2058-07-31 | DZ7: 2059-01-31 | EA7: 2059-07-31 | EB7: 2060-01-31 | EC7: 2060-07-31 | ED7: 2061-01-31 | EE7: 2061-07-31 | EF7: 2062-01-31 | EG7: 2062-07-31 | EH7: 2063-01-31 | EI7: 2063-07-31 | EJ7: 2064-01-31 | EK7: 2064-07-31 | EL7: 2065-01-31 | EM7: =EDATE(EM6,EM5)-1 -> 2065-07-31 | EN7: 2066-01-31 | EO7: 2066-07-31 | EP7: 2067-01-31 | EQ7: 2067-07-31 | ER7: 2068-01-31 | ES7: 2068-07-31 | ET7: 2069-01-31 | EU7: 2069-07-31 | EV7: 2070-01-31 | EW7: 2070-07-31 | EX7: 2071-01-31 | EY7: 2071-07-31 | EZ7: 2072-01-31 | FA7: 2072-07-31 | FB7: 2073-01-31 | FC7: 2073-07-31 | FD7: 2074-01-31 | FE7: 2074-07-31 | FF7: 2075-01-31 | FG7: 2075-07-31
C8: Operating flag | F8: flag | G8: ='Operating Inputs'!$H$10 -> 2024-02-01 | I8: ='Operating Inputs'!$H$12 -> 2059-02-01 | K8: =SUM(N8:FG8) -> 70 | N8: =AND(N6>=$G8,N6<$I8)*1 -> 0 | O8: =AND(O6>=$G8,O6<$I8)*1 -> 0 | P8: 0 | Q8: 0 | R8: 0 | S8: 0 | T8: 0 | U8: 0 | V8: 0 | W8: 0 | X8: 0 | Y8: 0 | Z8: 0 | AA8: 0 | AB8: 0 | AC8: 0 | AD8: 0 | AE8: 0 | AF8: 0 | AG8: 0 | AH8: 0 | AI8: 0 | AJ8: 0 | AK8: 0 | AL8: 0 | AM8: 0 | AN8: 0 | AO8: 0 | AP8: 0 | AQ8: 0 | AR8: 0 | AS8: 0 | AT8: 0 | AU8: 0 | AV8: 0 | AW8: 0 | AX8: 0 | AY8: 0 | AZ8: 0 | BA8: 0 | BB8: 0 | BC8: 0 | BD8: 0 | BE8: 0 | BF8: 0 | BG8: 0 | BH8: 0 | BI8: 1 | BJ8: 1 | BK8: 1 | BL8: 1 | BM8: 1 | BN8: 1 | BO8: 1 | BP8: 1 | BQ8: 1 | BR8: 1 | BS8: 1 | BT8: 1 | BU8: 1 | BV8: 1 | BW8: 1 | BX8: 1 | BY8: 1 | BZ8: 1 | CA8: =AND(CA6>=$G8,CA6<$I8)*1 -> 1 | CB8: 1 | CC8: 1 | CD8: 1 | CE8: 1 | CF8: 1 | CG8: 1 | CH8: 1 | CI8: 1 | CJ8: 1 | CK8: 1 | CL8: 1 | CM8: 1 | CN8: 1 | CO8: 1 | CP8: 1 | CQ8: 1 | CR8: 1 | CS8: 1 | CT8: 1 | CU8: 1 | CV8: 1 | CW8: 1 | CX8: 1 | CY8: 1 | CZ8: 1 | DA8: 1 | DB8: 1 | DC8: 1 | DD8: 1 | DE8: 1 | DF8: 1 | DG8: 1 | DH8: 1 | DI8: 1 | DJ8: 1 | DK8: 1 | DL8: 1 | DM8: 1 | DN8: 1 | DO8: 1 | DP8: 1 | DQ8: 1 | DR8: 1 | DS8: 1 | DT8: 1 | DU8: 1 | DV8: 1 | DW8: 1 | DX8: 1 | DY8: 1 | DZ8: 1 | EA8: 0 | EB8: 0 | EC8: 0 | ED8: 0 | EE8: 0 | EF8: 0 | EG8: 0 | EH8: 0 | EI8: 0 | EJ8: 0 | EK8: 0 | EL8: 0 | EM8: =AND(EM6>=$G8,EM6<$I8)*1 -> 0 | EN8: 0 | EO8: 0 | EP8: 0 | EQ8: 0 | ER8: 0 | ES8: 0 | ET8: 0 | EU8: 0 | EV8: 0 | EW8: 0 | EX8: 0 | EY8: 0 | EZ8: 0 | FA8: 0 | FB8: 0 | FC8: 0 | FD8: 0 | FE8: 0 | FF8: 0 | FG8: 0
B11: Summary Sources and Uses | F11: Copy and Paste Method
F12: ='Operating Inputs'!$G$99 -> 2
C13: Uses of funds | F13: Spend | G13: Reimbursable | I13: Borrowing Base | L13: Fixed | M13: UDF | N13: Calculated | O13: Difference | P13: UDF Difference
D14: Capital Expenditures and Development Cost | F14: ='Operation Model'!$K$24 -> 3740000 | I14: ='Operation Model'!$K$24 -> 3740000 | L14: =I14 -> 3740000 | M14: ='UDF Output'!I32 -> 3740000 | N14: =L14 -> 3740000
D15: Development Cost Incurred | F15: ='Operation Model'!$K$19 -> 100000 | G15: ='Financing Inputs'!F20 -> 0.9 | I15: =F15*G15 -> 90000 | L15: =I15 -> 90000 | M15: ='UDF Output'!I31 -> 90000 | N15: =L15 -> 90000
D16: EPC Fee to Sponsor | F16: =$K$111 -> 112200 | G16: ='Financing Inputs'!F24 -> 1 | I16: =F16*G16 -> 112200 | L16: =I16 -> 112200 | M16: ='UDF Output'!I33 -> 112200 | N16: =L16 -> 112200
D17: Development Fee from Probability | F17: =I17/G17 -> 128625.0835 | G17: ='Financing Inputs'!F23 -> 0.85 | I17: =IF(F12=1,FixedDev,'UDF Output'!I9) -> 109331.321 | L17: 371436.3814 | M17: ='UDF Output'!I9 -> 109331.321 | N17: =K109 -> 109331.321 | O17: =CalcDev-I17 -> 0 | P17: =M17-I17 -> 0
D18: LD Paid at COD -1 | F18: ='Operation Model'!K88 -> 0 | I18: =K112 -> 0 | P18: =M18-I18 -> 0
D19: LD Received - Direct | F19: ='Operation Model'!K92 -> 0 | I19: =FixedLD -> 0 | L19: 0 | N19: =K114 -> 0 | O19: =N19-FixedLD -> 0 | P19: =M19-I19 -> 0
D20: LD Received - IDC | F20: ='Operation Model'!K94 -> 0 | L20: 0
D21: IDC Paid | F21: =IF($F$12=2,M21,FixedIDC) -> 138311.9478 | I21: =F21 -> 138311.9478 | L21: 155475.7832 | M21: ='UDF Output'!I10 -> 138311.9478 | N21: =K115 -> 138311.9478 | O21: =CalcIDC-F21 -> 0 | P21: =M21-I21 -> 0
D22: Upfront Fees | F22: =IF($F$12=2,M22,FixedUpfront) -> 34065.67216 | I22: =F22 -> 34065.67216 | L22: 36400.76538 | M22: ='UDF Output'!I11 -> 34065.67216 | N22: =K116 -> 34065.67216 | O22: =F22-CalcUpfront -> 0 | P22: =M22-I22 -> 0
D23: Commitment Fees | F23: =IF($F$12=2,M23,FixedCommitment) -> 34300.07943 | I23: =F23 -> 34300.07943 | L23: 34582.7426 | M23: ='UDF Output'!I12 -> 34300.07943 | N23: =K117 -> 34300.07943 | O23: =CalcCommitment-F23 -> 0 | P23: =M23-I23 -> 0
D24: DSRA | I24: =L24 -> 0 | J24: ='Financing Inputs'!F49 -> FALSE | L24: 0 | N24: =G202 -> 0 | O24: =N24-L24 -> 0 | P24: =M24-I24 -> 0
E25: Total | F25: =SUM(F14:F24) -> 4287502.783 | I25: =SUM(I14:I24) -> 4258209.02 | L25: =SUM(L14:L24) -> 4540095.673 | M25: =SUM(M14:M24) -> 4258209.02 | N25: =SUM(N14:N24) -> 4258209.02 | O25: =SUM(O19:O24)+K223+K125 -> 0 | P25: =SUM(P21:P24) -> 0
C27: Debt Sizing | I27: DSCR Driven | L27: Debt-capital | N27: Minimum | O27: Choice | P27: UDF Output
I28: =$G$75 -> 3406567.216 | L28: =G30*I25 -> 3406567.216 | N28: =MIN(L28,I28) -> 3406567.216 | O28: ='Financing Inputs'!$F$12 -> 2 | P28: ='UDF Output'!I32 -> 3740000
C29: Sources of Funds
D30: Debt | F30: =I30 -> 3406567.216 | G30: ='Financing Inputs'!F6 -> 0.8 | I30: =CHOOSE(O28,I28,L28,N28) -> 3406567.216 | N30: ='UDF Output'!I35 -> 0
D31: Equity - Non EBL | F31: =F25-F30 -> 880935.5666 | G31: =F31/F33 -> 0.205465888 | I31: =I25-I30 -> 851641.8041 | N31: ='UDF Output'!I37 -> 0
D32: EBL
E33: Total | F33: =F30+F31+F32 -> 4287502.783 | I33: =SUM(I30:I32) -> 4258209.02
D35: Equity Up-front | G35: ='Financing Inputs'!F15 -> 0 | I35: =G35*I31 -> 0
D36: Equity Pro-rata | I36: =I31-I35 -> 851641.8041
D37: Total Debt | I37: =I30 -> 3406567.216
D38: Total Pro-rata | I38: =I37+I36 -> 4258209.02
D40: Equity Pro-rata % | I40: =I36/I38 -> 0.2
D41: Debt Pro-rata | I41: =I37/I38 -> 0.8
B43: Debt-sizing from DSCR
C44: CFADS
D45: EBITDA | N45: ='Operation Model'!N49 -> 0 | O45: ='Operation Model'!O49 -> 0 | P45: ='Operation Model'!P49 -> 0 | Q45: ='Operation Model'!Q49 -> 0 | R45: ='Operation Model'!R49 -> 0 | S45: ='Operation Model'!S49 -> 0 | T45: ='Operation Model'!T49 -> 0 | U45: ='Operation Model'!U49 -> 0 | V45: ='Operation Model'!V49 -> 0 | W45: ='Operation Model'!W49 -> 0 | X45: ='Operation Model'!X49 -> 0 | Y45: ='Operation Model'!Y49 -> 0 | Z45: ='Operation Model'!Z49 -> 0 | AA45: ='Operation Model'!AA49 -> 0 | AB45: ='Operation Model'!AB49 -> 0 | AC45: ='Operation Model'!AC49 -> 0 | AD45: ='Operation Model'!AD49 -> 0 | AE45: ='Operation Model'!AE49 -> 0 | AF45: ='Operation Model'!AF49 -> 0 | AG45: ='Operation Model'!AG49 -> 0 | AH45: ='Operation Model'!AH49 -> 0 | AI45: ='Operation Model'!AI49 -> 0 | AJ45: ='Operation Model'!AJ49 -> 0 | AK45: ='Operation Model'!AK49 -> 0 | AL45: ='Operation Model'!AL49 -> 0 | AM45: ='Operation Model'!AM49 -> 0 | AN45: ='Operation Model'!AN49 -> 0 | AO45: ='Operation Model'!AO49 -> 0 | AP45: ='Operation Model'!AP49 -> 0 | AQ45: ='Operation Model'!AQ49 -> 0 | AR45: ='Operation Model'!AR49 -> 0 | AS45: ='Operation Model'!AS49 -> 0 | AT45: ='Operation Model'!AT49 -> 0 | AU45: ='Operation Model'!AU49 -> 0 | AV45: ='Operation Model'!AV49 -> 0 | AW45: ='Operation Model'!AW49 -> 0 | AX45: ='Operation Model'!AX49 -> 0 | AY45: ='Operation Model'!AY49 -> 0 | AZ45: ='Operation Model'!AZ49 -> 0 | BA45: ='Operation Model'!BA49 -> 0 | BB45: ='Operation Model'!BB49 -> 0 | BC45: ='Operation Model'!BC49 -> 0 | BD45: ='Operation Model'!BD49 -> 0 | BE45: ='Operation Model'!BE49 -> 0 | BF45: ='Operation Model'!BF49 -> 0 | BG45: ='Operation Model'!BG49 -> 0 | BH45: ='Operation Model'!BH49 -> 0 | BI45: ='Operation Model'!BI49 -> 143390.7809 | BJ45: ='Operation Model'!BJ49 -> 161115.9058 | BK45: ='Operation Model'!BK49 -> 166408.9987 | BL45: ='Operation Model'!BL49 -> 172904.5429 | BM45: ='Operation Model'!BM49 -> 169332.9091 | BN45: ='Operation Model'!BN49 -> 175912.9059 | BO45: ='Operation Model'!BO49 -> 172280.9347 | BP45: ='Operation Model'!BP49 -> 178946.3237 | BQ45: ='Operation Model'!BQ49 -> 176770.1319 | BR45: ='Operation Model'!BR49 -> 182005.172 | BS45: ='Operation Model'!BS49 -> 178250.7837 | BT45: ='Operation Model'!BT49 -> 185089.8323 | BU45: ='Operation Model'!BU49 -> 181273.3469 | BV45: ='Operation Model'!BV49 -> 188200.6918 | BW45: ='Operation Model'!BW49 -> 184321.5051 | BX45: ='Operation Model'!BX49 -> 190000.0954 | BY45: ='Operation Model'!BY49 -> 187689.5714 | BZ45: ='Operation Model'!BZ49 -> 191826.4901 | CA45: ='Operation Model'!CA49 -> 187863.6839 | CB45: ='Operation Model'!CB49 -> 193680.2808 | CC45: ='Operation Model'!CC49 -> 189674.7216 | CD45: ='Operation Model'!CD49 -> 195561.8783 | CE45: ='Operation Model'!CE49 -> 191512.925 | CF45: ='Operation Model'!CF49 -> 197471.6997 | CG45: ='Operation Model'!CG49 -> 195064.9097 | CH45: ='Operation Model'!CH49 -> 199410.1685 | CI45: ='Operation Model'!CI49 -> 195272.4644 | CJ45: ='Operation Model'!CJ49 -> 201377.7143 | CK45: ='Operation Model'!CK49 -> 197194.6339 | CL45: ='Operation Model'!CL49 -> 203374.7733 | CM45: ='Operation Model'!CM49 -> 199145.6359 | CN45: ='Operation Model'!CN49 -> 205401.7882 | CO45: ='Operation Model'!CO49 -> 202892.8251 | CP45: ='Operation Model'!CP49 -> 207459.2083 | CQ45: ='Operation Model'!CQ49 -> 203135.8741 | CR45: ='Operation Model'!CR49 -> 209547.4897 | CS45: ='Operation Model'!CS49 -> 205175.9947 | CT45: ='Operation Model'!CT49 -> 211667.0953 | CU45: ='Operation Model'!CU49 -> 207246.7171 | CV45: ='Operation Model'!CV49 -> 213818.495 | CW45: ='Operation Model'!CW49 -> 129205.0462 | CX45: ='Operation Model'!CX49 -> 130955.9583 | CY45: ='Operation Model'!CY49 -> 125692.3601 | CZ45: ='Operation Model'!CZ49 -> 128825.8708 | DA45: ='Operation Model'!DA49 -> 123550.0756 | DB45: ='Operation Model'!DB49 -> 126663.832 | DC45: ='Operation Model'!DC49 -> 121375.6568 | DD45: ='Operation Model'!DD49 -> 124469.3626 | DE45: ='Operation Model'!DE49 -> 120565.6861 | DF45: ='Operation Model'!DF49 -> 122241.9761 | DG45: ='Operation Model'!DG49 -> 116928.4812 | DH45: ='Operation Model'!DH49 -> 119981.1789 | DI45: ='Operation Model'!DI49 -> 114654.7385 | DJ45: ='Operation Model'!DJ49 -> 117686.4697 | DK45: ='Operation Model'!DK49 -> 112346.8896 | DL45: ='Operation Model'!DL49 -> 115357.3399 | DM45: ='Operation Model'!DM49 -> 111396.1841 | DN45: ='Operation Model'!DN49 -> 112993.2731 | DO45: ='Operation Model'!DO49 -> 107626.8195 | DP45: ='Operation Model'!DP49 -> 110593.7453 | DQ45: ='Operation Model'!DQ49 -> 105213.5518 | DR45: ='Operation Model'!DR49 -> 108158.2246 | DS45: ='Operation Model'!DS49 -> 102764.0852 | DT45: ='Operation Model'!DT49 -> 105686.1711 | DU45: ='Operation Model'!DU49 -> 101664.0089 | DV45: ='Operation Model'!DV49 -> 103177.0368 | DW45: ='Operation Model'!DW49 -> 97754.37478 | DX45: ='Operation Model'!DX49 -> 100630.2655 | DY45: ='Operation Model'!DY49 -> 95193.02048 | DZ45: ='Operation Model'!DZ49 -> 98045.29256 | EA45: ='Operation Model'!EA49 -> 0 | EB45: ='Operation Model'!EB49 -> 0 | EC45: ='Operation Model'!EC49 -> 0 | ED45: ='Operation Model'!ED49 -> 0 | EE45: ='Operation Model'!EE49 -> 0 | EF45: ='Operation Model'!EF49 -> 0 | EG45: ='Operation Model'!EG49 -> 0 | EH45: ='Operation Model'!EH49 -> 0 | EI45: ='Operation Model'!EI49 -> 0 | EJ45: ='Operation Model'!EJ49 -> 0 | EK45: ='Operation Model'!EK49 -> 0 | EL45: ='Operation Model'!EL49 -> 0 | EM45: ='Operation Model'!EM49 -> 0 | EN45: ='Operation Model'!EN49 -> 0 | EO45: ='Operation Model'!EO49 -> 0 | EP45: ='Operation Model'!EP49 -> 0 | EQ45: ='Operation Model'!EQ49 -> 0 | ER45: ='Operation Model'!ER49 -> 0 | ES45: ='Operation Model'!ES49 -> 0 | ET45: ='Operation Model'!ET49 -> 0 | EU45: ='Operation Model'!EU49 -> 0 | EV45: ='Operation Model'!EV49 -> 0 | EW45: ='Operation Model'!EW49 -> 0 | EX45: ='Operation Model'!EX49 -> 0 | EY45: ='Operation Model'!EY49 -> 0 | EZ45: ='Operation Model'!EZ49 -> 0 | FA45: ='Operation Model'!FA49 -> 0 | FB45: ='Operation Model'!FB49 -> 0 | FC45: ='Operation Model'!FC49 -> 0 | FD45: ='Operation Model'!FD49 -> 0 | FE45: ='Operation Model'!FE49 -> 0 | FF45: ='Operation Model'!FF49 -> 0 | FG45: ='Operation Model'!FG49 -> 0
D46: (-) Taxes | N46: =N222 -> 0 | O46: =O222 -> 0 | P46: 0 | Q46: 0 | R46: 0 | S46: 0 | T46: 0 | U46: 0 | V46: 0 | W46: 0 | X46: 0 | Y46: 0 | Z46: 0 | AA46: 0 | AB46: 0 | AC46: 0 | AD46: 0 | AE46: 0 | AF46: 0 | AG46: 0 | AH46: 0 | AI46: 0 | AJ46: 0 | AK46: 0 | AL46: 0 | AM46: 0 | AN46: 0 | AO46: 0 | AP46: 0 | AQ46: 0 | AR46: 0 | AS46: 0 | AT46: 0 | AU46: 0 | AV46: 0 | AW46: 0 | AX46: 0 | AY46: 0 | AZ46: 0 | BA46: 0 | BB46: 0 | BC46: 0 | BD46: 0 | BE46: 0 | BF46: 0 | BG46: 0 | BH46: 0 | BI46: 0 | BJ46: 0 | BK46: 0 | BL46: 0 | BM46: 0 | BN46: 0 | BO46: 0 | BP46: 0 | BQ46: 0 | BR46: 0 | BS46: 0 | BT46: 0 | BU46: 0 | BV46: 0 | BW46: 0 | BX46: 0 | BY46: 0 | BZ46: 0 | CA46: =CA222 -> 0 | CB46: 0 | CC46: 0 | CD46: 0 | CE46: 0 | CF46: 0 | CG46: 0 | CH46: 0 | CI46: 0 | CJ46: 0 | CK46: 0 | CL46: 0 | CM46: 0 | CN46: 0 | CO46: 0 | CP46: 0 | CQ46: 0 | CR46: 0 | CS46: 0 | CT46: 0 | CU46: 0 | CV46: 0 | CW46: 0 | CX46: 0 | CY46: 0 | CZ46: 0 | DA46: 0 | DB46: 0 | DC46: 0 | DD46: 0 | DE46: 0 | DF46: 0 | DG46: 0 | DH46: 0 | DI46: 0 | DJ46: 0 | DK46: 0 | DL46: 0 | DM46: 0 | DN46: 0 | DO46: 0 | DP46: 0 | DQ46: 0 | DR46: 0 | DS46: 0 | DT46: 0 | DU46: 0 | DV46: 0 | DW46: 0 | DX46: 0 | DY46: 0 | DZ46: 0 | EA46: 0 | EB46: 0 | EC46: 0 | ED46: 0 | EE46: 0 | EF46: 0 | EG46: 0 | EH46: 0 | EI46: 0 | EJ46: 0 | EK46: 0 | EL46: 0 | EM46: =EM222 -> 0 | EN46: 0 | EO46: 0 | EP46: 0 | EQ46: 0 | ER46: 0 | ES46: 0 | ET46: 0 | EU46: 0 | EV46: 0 | EW46: 0 | EX46: 0 | EY46: 0 | EZ46: 0 | FA46: 0 | FB46: 0 | FC46: 0 | FD46: 0 | FE46: 0 | FF46: 0 | FG46: 0
D47: (-) Fees on LC
D48: (-) Working capital changes
D49: Total CFADS - Computed | K49: =SUM(CFADS_C) -> 11010068.88 | M49: CFADS_C | N49: =N45-N46-N47-N48 -> 0 | O49: =O45-O46-O47-O48 -> 0 | P49: 0 | Q49: 0 | R49: 0 | S49: 0 | T49: 0 | U49: 0 | V49: 0 | W49: 0 | X49: 0 | Y49: 0 | Z49: 0 | AA49: 0 | AB49: 0 | AC49: 0 | AD49: 0 | AE49: 0 | AF49: 0 | AG49: 0 | AH49: 0 | AI49: 0 | AJ49: 0 | AK49: 0 | AL49: 0 | AM49: 0 | AN49: 0 | AO49: 0 | AP49: 0 | AQ49: 0 | AR49: 0 | AS49: 0 | AT49: 0 | AU49: 0 | AV49: 0 | AW49: 0 | AX49: 0 | AY49: 0 | AZ49: 0 | BA49: 0 | BB49: 0 | BC49: 0 | BD49: 0 | BE49: 0 | BF49: 0 | BG49: 0 | BH49: 0 | BI49: 143390.7809 | BJ49: 161115.9058 | BK49: 166408.9987 | BL49: 172904.5429 | BM49: 169332.9091 | BN49: 175912.9059 | BO49: 172280.9347 | BP49: 178946.3237 | BQ49: 176770.1319 | BR49: 182005.172 | BS49: 178250.7837 | BT49: 185089.8323 | BU49: 181273.3469 | BV49: 188200.6918 | BW49: 184321.5051 | BX49: 190000.0954 | BY49: 187689.5714 | BZ49: 191826.4901 | CA49: =CA45-CA46-CA47-CA48 -> 187863.6839 | CB49: 193680.2808 | CC49: 189674.7216 | CD49: 195561.8783 | CE49: 191512.925 | CF49: 197471.6997 | CG49: 195064.9097 | CH49: 199410.1685 | CI49: 195272.4644 | CJ49: 201377.7143 | CK49: 197194.6339 | CL49: 203374.7733 | CM49: 199145.6359 | CN49: 205401.7882 | CO49: 202892.8251 | CP49: 207459.2083 | CQ49: 203135.8741 | CR49: 209547.4897 | CS49: 205175.9947 | CT49: 211667.0953 | CU49: 207246.7171 | CV49: 213818.495 | CW49: 129205.0462 | CX49: 130955.9583 | CY49: 125692.3601 | CZ49: 128825.8708 | DA49: 123550.0756 | DB49: 126663.832 | DC49: 121375.6568 | DD49: 124469.3626 | DE49: 120565.6861 | DF49: 122241.9761 | DG49: 116928.4812 | DH49: 119981.1789 | DI49: 114654.7385 | DJ49: 117686.4697 | DK49: 112346.8896 | DL49: 115357.3399 | DM49: 111396.1841 | DN49: 112993.2731 | DO49: 107626.8195 | DP49: 110593.7453 | DQ49: 105213.5518 | DR49: 108158.2246 | DS49: 102764.0852 | DT49: 105686.1711 | DU49: 101664.0089 | DV49: 103177.0368 | DW49: 97754.37478 | DX49: 100630.2655 | DY49: 95193.02048 | DZ49: 98045.29256 | EA49: 0 | EB49: 0 | EC49: 0 | ED49: 0 | EE49: 0 | EF49: 0 | EG49: 0 | EH49: 0 | EI49: 0 | EJ49: 0 | EK49: 0 | EL49: 0 | EM49: =EM45-EM46-EM47-EM48 -> 0 | EN49: 0 | EO49: 0 | EP49: 0 | EQ49: 0 | ER49: 0 | ES49: 0 | ET49: 0 | EU49: 0 | EV49: 0 | EW49: 0 | EX49: 0 | EY49: 0 | EZ49: 0 | FA49: 0 | FB49: 0 | FC49: 0 | FD49: 0 | FE49: 0 | FF49: 0 | FG49: 0
D50: Total CFADS - Fixed | K50: =SUM(CFADS_F) -> 11010068.88 | M50: CFADS_F | N50: 0 | O50: 0 | P50: 0 | Q50: 0 | R50: 0 | S50: 0 | T50: 0 | U50: 0 | V50: 0 | W50: 0 | X50: 0 | Y50: 0 | Z50: 0 | AA50: 0 | AB50: 0 | AC50: 0 | AD50: 0 | AE50: 0 | AF50: 0 | AG50: 0 | AH50: 0 | AI50: 0 | AJ50: 0 | AK50: 0 | AL50: 0 | AM50: 0 | AN50: 0 | AO50: 0 | AP50: 0 | AQ50: 0 | AR50: 0 | AS50: 0 | AT50: 0 | AU50: 0 | AV50: 0 | AW50: 0 | AX50: 0 | AY50: 0 | AZ50: 0 | BA50: 0 | BB50: 0 | BC50: 0 | BD50: 0 | BE50: 0 | BF50: 0 | BG50: 0 | BH50: 0 | BI50: 143390.7809 | BJ50: 161115.9058 | BK50: 166408.9987 | BL50: 172904.5429 | BM50: 169332.9091 | BN50: 175912.9059 | BO50: 172280.9347 | BP50: 178946.3237 | BQ50: 176770.1319 | BR50: 182005.172 | BS50: 178250.7837 | BT50: 185089.8323 | BU50: 181273.3469 | BV50: 188200.6918 | BW50: 184321.5051 | BX50: 190000.0954 | BY50: 187689.5714 | BZ50: 191826.4901 | CA50: 187863.6839 | CB50: 193680.2808 | CC50: 189674.7216 | CD50: 195561.8783 | CE50: 191512.925 | CF50: 197471.6997 | CG50: 195064.9097 | CH50: 199410.1685 | CI50: 195272.4644 | CJ50: 201377.7143 | CK50: 197194.6339 | CL50: 203374.7733 | CM50: 199145.6359 | CN50: 205401.7882 | CO50: 202892.8251 | CP50: 207459.2083 | CQ50: 203135.8741 | CR50: 209547.4897 | CS50: 205175.9947 | CT50: 211667.0953 | CU50: 207246.7171 | CV50: 213818.495 | CW50: 129205.0462 | CX50: 130955.9583 | CY50: 125692.3601 | CZ50: 128825.8708 | DA50: 123550.0756 | DB50: 126663.832 | DC50: 121375.6568 | DD50: 124469.3626 | DE50: 120565.6861 | DF50: 122241.9761 | DG50: 116928.4812 | DH50: 119981.1789 | DI50: 114654.7385 | DJ50: 117686.4697 | DK50: 112346.8896 | DL50: 115357.3399 | DM50: 111396.1841 | DN50: 112993.2731 | DO50: 107626.8195 | DP50: 110593.7453 | DQ50: 105213.5518 | DR50: 108158.2246 | DS50: 102764.0852 | DT50: 105686.1711 | DU50: 101664.0089 | DV50: 103177.0368 | DW50: 97754.37478 | DX50: 100630.2655 | DY50: 95193.02048 | DZ50: 98045.29256 | EA50: 0 | EB50: 0 | EC50: 0 | ED50: 0 | EE50: 0 | EF50: 0 | EG50: 0 | EH50: 0 | EI50: 0 | EJ50: 0 | EK50: 0 | EL50: 0 | EM50: 0 | EN50: 0 | EO50: 0 | EP50: 0 | EQ50: 0 | ER50: 0 | ES50: 0 | ET50: 0 | EU50: 0 | EV50: 0 | EW50: 0 | EX50: 0 | EY50: 0 | EZ50: 0 | FA50: 0 | FB50: 0 | FC50: 0 | FD50: 0 | FE50: 0 | FF50: 0 | FG50: 0
D51: Difference | K51: =SUM(CFADS_D) -> 0 | M51: CFADS_D | N51: =N49-N50 -> 0 | O51: =O49-O50 -> 0 | P51: 0 | Q51: 0 | R51: 0 | S51: 0 | T51: 0 | U51: 0 | V51: 0 | W51: 0 | X51: 0 | Y51: 0 | Z51: 0 | AA51: 0 | AB51: 0 | AC51: 0 | AD51: 0 | AE51: 0 | AF51: 0 | AG51: 0 | AH51: 0 | AI51: 0 | AJ51: 0 | AK51: 0 | AL51: 0 | AM51: 0 | AN51: 0 | AO51: 0 | AP51: 0 | AQ51: 0 | AR51: 0 | AS51: 0 | AT51: 0 | AU51: 0 | AV51: 0 | AW51: 0 | AX51: 0 | AY51: 0 | AZ51: 0 | BA51: 0 | BB51: 0 | BC51: 0 | BD51: 0 | BE51: 0 | BF51: 0 | BG51: 0 | BH51: 0 | BI51: 0 | BJ51: 0 | BK51: 0 | BL51: 0 | BM51: 0 | BN51: 0 | BO51: 0 | BP51: 0 | BQ51: 0 | BR51: 0 | BS51: 0 | BT51: 0 | BU51: 0 | BV51: 0 | BW51: 0 | BX51: 0 | BY51: 0 | BZ51: 0 | CA51: =CA49-CA50 -> 0 | CB51: 0 | CC51: 0 | CD51: 0 | CE51: 0 | CF51: 0 | CG51: 0 | CH51: 0 | CI51: 0 | CJ51: 0 | CK51: 0 | CL51: 0 | CM51: 0 | CN51: 0 | CO51: 0 | CP51: 0 | CQ51: 0 | CR51: 0 | CS51: 0 | CT51: 0 | CU51: 0 | CV51: 0 | CW51: 0 | CX51: 0 | CY51: 0 | CZ51: 0 | DA51: 0 | DB51: 0 | DC51: 0 | DD51: 0 | DE51: 0 | DF51: 0 | DG51: 0 | DH51: 0 | DI51: 0 | DJ51: 0 | DK51: 0 | DL51: 0 | DM51: 0 | DN51: 0 | DO51: 0 | DP51: 0 | DQ51: 0 | DR51: 0 | DS51: 0 | DT51: 0 | DU51: 0 | DV51: 0 | DW51: 0 | DX51: 0 | DY51: 0 | DZ51: 0 | EA51: 0 | EB51: 0 | EC51: 0 | ED51: 0 | EE51: 0 | EF51: 0 | EG51: 0 | EH51: 0 | EI51: 0 | EJ51: 0 | EK51: 0 | EL51: 0 | EM51: =EM49-EM50 -> 0 | EN51: 0 | EO51: 0 | EP51: 0 | EQ51: 0 | ER51: 0 | ES51: 0 | ET51: 0 | EU51: 0 | EV51: 0 | EW51: 0 | EX51: 0 | EY51: 0 | EZ51: 0 | FA51: 0 | FB51: 0 | FC51: 0 | FD51: 0 | FE51: 0 | FF51: 0 | FG51: 0
D53: Repayment flag | F53: flag | G53: =Repayment_start_date -> 2024-08-01 | I53: =Maturity_date -> 2041-02-01 | K53: =SUM(N53:FG53) -> 33 | N53: =AND(N6>=$G53,N6<$I53)*1 -> 0 | O53: 0 | P53: 0 | Q53: 0 | R53: 0 | S53: 0 | T53: 0 | U53: 0 | V53: 0 | W53: 0 | X53: 0 | Y53: 0 | Z53: 0 | AA53: 0 | AB53: 0 | AC53: 0 | AD53: 0 | AE53: 0 | AF53: 0 | AG53: 0 | AH53: 0 | AI53: 0 | AJ53: 0 | AK53: 0 | AL53: 0 | AM53: 0 | AN53: 0 | AO53: 0 | AP53: 0 | AQ53: 0 | AR53: 0 | AS53: 0 | AT53: =AND(AT6>=$G53,AT6<$I53)*1 -> 0 | AU53: 0 | AV53: 0 | AW53: 0 | AX53: 0 | AY53: 0 | AZ53: 0 | BA53: 0 | BB53: 0 | BC53: 0 | BD53: 0 | BE53: 0 | BF53: 0 | BG53: 0 | BH53: 0 | BI53: 0 | BJ53: 1 | BK53: 1 | BL53: 1 | BM53: 1 | BN53: 1 | BO53: 1 | BP53: 1 | BQ53: 1 | BR53: 1 | BS53: 1 | BT53: 1 | BU53: 1 | BV53: 1 | BW53: 1 | BX53: 1 | BY53: 1 | BZ53: =AND(BZ6>=$G53,BZ6<$I53)*1 -> 1 | CA53: 1 | CB53: 1 | CC53: 1 | CD53: 1 | CE53: 1 | CF53: 1 | CG53: 1 | CH53: 1 | CI53: 1 | CJ53: 1 | CK53: 1 | CL53: 1 | CM53: 1 | CN53: 1 | CO53: 1 | CP53: 1 | CQ53: 0 | CR53: 0 | CS53: 0 | CT53: 0 | CU53: 0 | CV53: 0 | CW53: 0 | CX53: 0 | CY53: 0 | CZ53: 0 | DA53: 0 | DB53: 0 | DC53: 0 | DD53: 0 | DE53: 0 | DF53: =AND(DF6>=$G53,DF6<$I53)*1 -> 0 | DG53: 0 | DH53: 0 | DI53: 0 | DJ53: 0 | DK53: 0 | DL53: 0 | DM53: 0 | DN53: 0 | DO53: 0 | DP53: 0 | DQ53: 0 | DR53: 0 | DS53: 0 | DT53: 0 | DU53: 0 | DV53: 0 | DW53: 0 | DX53: 0 | DY53: 0 | DZ53: 0 | EA53: 0 | EB53: 0 | EC53: 0 | ED53: 0 | EE53: 0 | EF53: 0 | EG53: 0 | EH53: 0 | EI53: 0 | EJ53: 0 | EK53: 0 | EL53: =AND(EL6>=$G53,EL6<$I53)*1 -> 0 | EM53: 0 | EN53: 0 | EO53: 0 | EP53: 0 | EQ53: 0 | ER53: 0 | ES53: 0 | ET53: 0 | EU53: 0 | EV53: 0 | EW53: 0 | EX53: 0 | EY53: 0 | EZ53: 0 | FA53: 0 | FB53: 0 | FC53: 0 | FD53: 0 | FE53: 0 | FF53: 0 | FG53: 0
D54: Last availability period | F54: flag | G54: =End_of_availability -> 2024-01-01 | I54: =G54 -> 2024-01-01 | K54: =SUM(N54:FG54) -> 1 | N54: =(N6=$G$54)*1 -> 0 | O54: 0 | P54: 0 | Q54: 0 | R54: 0 | S54: 0 | T54: 0 | U54: 0 | V54: 0 | W54: 0 | X54: 0 | Y54: 0 | Z54: 0 | AA54: 0 | AB54: 0 | AC54: 0 | AD54: 0 | AE54: 0 | AF54: 0 | AG54: 0 | AH54: 0 | AI54: 0 | AJ54: 0 | AK54: 0 | AL54: 0 | AM54: 0 | AN54: 0 | AO54: 0 | AP54: 0 | AQ54: 0 | AR54: 0 | AS54: 0 | AT54: =(AT6=$G$54)*1 -> 0 | AU54: 0 | AV54: 0 | AW54: 0 | AX54: 0 | AY54: 0 | AZ54: 0 | BA54: 0 | BB54: 0 | BC54: 0 | BD54: 0 | BE54: 0 | BF54: 0 | BG54: 0 | BH54: 1 | BI54: 0 | BJ54: 0 | BK54: 0 | BL54: 0 | BM54: 0 | BN54: 0 | BO54: 0 | BP54: 0 | BQ54: 0 | BR54: 0 | BS54: 0 | BT54: 0 | BU54: 0 | BV54: 0 | BW54: 0 | BX54: 0 | BY54: 0 | BZ54: =(BZ6=$G$54)*1 -> 0 | CA54: 0 | CB54: 0 | CC54: 0 | CD54: 0 | CE54: 0 | CF54: 0 | CG54: 0 | CH54: 0 | CI54: 0 | CJ54: 0 | CK54: 0 | CL54: 0 | CM54: 0 | CN54: 0 | CO54: 0 | CP54: 0 | CQ54: 0 | CR54: 0 | CS54: 0 | CT54: 0 | CU54: 0 | CV54: 0 | CW54: 0 | CX54: 0 | CY54: 0 | CZ54: 0 | DA54: 0 | DB54: 0 | DC54: 0 | DD54: 0 | DE54: 0 | DF54: =(DF6=$G$54)*1 -> 0 | DG54: 0 | DH54: 0 | DI54: 0 | DJ54: 0 | DK54: 0 | DL54: 0 | DM54: 0 | DN54: 0 | DO54: 0 | DP54: 0 | DQ54: 0 | DR54: 0 | DS54: 0 | DT54: 0 | DU54: 0 | DV54: 0 | DW54: 0 | DX54: 0 | DY54: 0 | DZ54: 0 | EA54: 0 | EB54: 0 | EC54: 0 | ED54: 0 | EE54: 0 | EF54: 0 | EG54: 0 | EH54: 0 | EI54: 0 | EJ54: 0 | EK54: 0 | EL54: =(EL6=$G$54)*1 -> 0 | EM54: 0 | EN54: 0 | EO54: 0 | EP54: 0 | EQ54: 0 | ER54: 0 | ES54: 0 | ET54: 0 | EU54: 0 | EV54: 0 | EW54: 0 | EX54: 0 | EY54: 0 | EZ54: 0 | FA54: 0 | FB54: 0 | FC54: 0 | FD54: 0 | FE54: 0 | FF54: 0 | FG54: 0
D55: CFADS over re-payment period | N55: =N53*N50 -> 0 | O55: =O53*O50 -> 0 | P55: 0 | Q55: 0 | R55: 0 | S55: 0 | T55: 0 | U55: 0 | V55: 0 | W55: 0 | X55: 0 | Y55: 0 | Z55: 0 | AA55: 0 | AB55: 0 | AC55: 0 | AD55: 0 | AE55: 0 | AF55: 0 | AG55: 0 | AH55: 0 | AI55: 0 | AJ55: 0 | AK55: 0 | AL55: 0 | AM55: 0 | AN55: 0 | AO55: 0 | AP55: 0 | AQ55: 0 | AR55: 0 | AS55: 0 | AT55: 0 | AU55: 0 | AV55: 0 | AW55: 0 | AX55: 0 | AY55: 0 | AZ55: 0 | BA55: 0 | BB55: 0 | BC55: 0 | BD55: 0 | BE55: 0 | BF55: 0 | BG55: 0 | BH55: 0 | BI55: 0 | BJ55: 161115.9058 | BK55: 166408.9987 | BL55: 172904.5429 | BM55: 169332.9091 | BN55: 175912.9059 | BO55: 172280.9347 | BP55: 178946.3237 | BQ55: 176770.1319 | BR55: 182005.172 | BS55: 178250.7837 | BT55: 185089.8323 | BU55: 181273.3469 | BV55: 188200.6918 | BW55: 184321.5051 | BX55: 190000.0954 | BY55: 187689.5714 | BZ55: 191826.4901 | CA55: =CA53*CA50 -> 187863.6839 | CB55: 193680.2808 | CC55: 189674.7216 | CD55: 195561.8783 | CE55: 191512.925 | CF55: 197471.6997 | CG55: 195064.9097 | CH55: 199410.1685 | CI55: 195272.4644 | CJ55: 201377.7143 | CK55: 197194.6339 | CL55: 203374.7733 | CM55: 199145.6359 | CN55: 205401.7882 | CO55: 202892.8251 | CP55: 207459.2083 | CQ55: 0 | CR55: 0 | CS55: 0 | CT55: 0 | CU55: 0 | CV55: 0 | CW55: 0 | CX55: 0 | CY55: 0 | CZ55: 0 | DA55: 0 | DB55: 0 | DC55: 0 | DD55: 0 | DE55: 0 | DF55: 0 | DG55: 0 | DH55: 0 | DI55: 0 | DJ55: 0 | DK55: 0 | DL55: 0 | DM55: 0 | DN55: 0 | DO55: 0 | DP55: 0 | DQ55: 0 | DR55: 0 | DS55: 0 | DT55: 0 | DU55: 0 | DV55: 0 | DW55: 0 | DX55: 0 | DY55: 0 | DZ55: 0 | EA55: 0 | EB55: 0 | EC55: 0 | ED55: 0 | EE55: 0 | EF55: 0 | EG55: 0 | EH55: 0 | EI55: 0 | EJ55: 0 | EK55: 0 | EL55: 0 | EM55: =EM53*EM50 -> 0 | EN55: 0 | EO55: 0 | EP55: 0 | EQ55: 0 | ER55: 0 | ES55: 0 | ET55: 0 | EU55: 0 | EV55: 0 | EW55: 0 | EX55: 0 | EY55: 0 | EZ55: 0 | FA55: 0 | FB55: 0 | FC55: 0 | FD55: 0 | FE55: 0 | FF55: 0 | FG55: 0
D57: Base-rate | F57: % p.a | G57: ='Financing Inputs'!F34 -> 0.026 | N57: =$G$57 -> 0.026 | O57: 0.026 | P57: 0.026 | Q57: 0.026 | R57: 0.026 | S57: 0.026 | T57: 0.026 | U57: 0.026 | V57: 0.026 | W57: 0.026 | X57: 0.026 | Y57: 0.026 | Z57: 0.026 | AA57: 0.026 | AB57: 0.026 | AC57: 0.026 | AD57: 0.026 | AE57: 0.026 | AF57: 0.026 | AG57: 0.026 | AH57: 0.026 | AI57: 0.026 | AJ57: 0.026 | AK57: 0.026 | AL57: 0.026 | AM57: 0.026 | AN57: 0.026 | AO57: 0.026 | AP57: 0.026 | AQ57: 0.026 | AR57: 0.026 | AS57: 0.026 | AT57: 0.026 | AU57: 0.026 | AV57: 0.026 | AW57: 0.026 | AX57: 0.026 | AY57: 0.026 | AZ57: 0.026 | BA57: 0.026 | BB57: 0.026 | BC57: 0.026 | BD57: 0.026 | BE57: 0.026 | BF57: 0.026 | BG57: 0.026 | BH57: 0.026 | BI57: 0.026 | BJ57: 0.026 | BK57: 0.026 | BL57: 0.026 | BM57: 0.026 | BN57: 0.026 | BO57: 0.026 | BP57: 0.026 | BQ57: 0.026 | BR57: 0.026 | BS57: 0.026 | BT57: 0.026 | BU57: 0.026 | BV57: 0.026 | BW57: 0.026 | BX57: 0.026 | BY57: 0.026 | BZ57: =$G$57 -> 0.026 | CA57: 0.026 | CB57: 0.026 | CC57: 0.026 | CD57: 0.026 | CE57: 0.026 | CF57: 0.026 | CG57: 0.026 | CH57: 0.026 | CI57: 0.026 | CJ57: 0.026 | CK57: 0.026 | CL57: 0.026 | CM57: 0.026 | CN57: 0.026 | CO57: 0.026 | CP57: 0.026 | CQ57: 0.026 | CR57: 0.026 | CS57: 0.026 | CT57: 0.026 | CU57: 0.026 | CV57: 0.026 | CW57: 0.026 | CX57: 0.026 | CY57: 0.026 | CZ57: 0.026 | DA57: 0.026 | DB57: 0.026 | DC57: 0.026 | DD57: 0.026 | DE57: 0.026 | DF57: 0.026 | DG57: 0.026 | DH57: 0.026 | DI57: 0.026 | DJ57: 0.026 | DK57: 0.026 | DL57: 0.026 | DM57: 0.026 | DN57: 0.026 | DO57: 0.026 | DP57: 0.026 | DQ57: 0.026 | DR57: 0.026 | DS57: 0.026 | DT57: 0.026 | DU57: 0.026 | DV57: 0.026 | DW57: 0.026 | DX57: 0.026 | DY57: 0.026 | DZ57: 0.026 | EA57: 0.026 | EB57: 0.026 | EC57: 0.026 | ED57: 0.026 | EE57: 0.026 | EF57: 0.026 | EG57: 0.026 | EH57: 0.026 | EI57: 0.026 | EJ57: 0.026 | EK57: 0.026 | EL57: =$G$57 -> 0.026 | EM57: 0.026 | EN57: 0.026 | EO57: 0.026 | EP57: 0.026 | EQ57: 0.026 | ER57: 0.026 | ES57: 0.026 | ET57: 0.026 | EU57: 0.026 | EV57: 0.026 | EW57: 0.026 | EX57: 0.026 | EY57: 0.026 | EZ57: 0.026 | FA57: 0.026 | FB57: 0.026 | FC57: 0.026 | FD57: 0.026 | FE57: 0.026 | FF57: 0.026 | FG57: 0.026
D58: Credit-spread | F58: % p.a. | N58: =LOOKUP(N6,'Financing Inputs'!38:38,'Financing Inputs'!39:39) -> 0 | O58: =LOOKUP(O6,'Financing Inputs'!38:38,'Financing Inputs'!39:39) -> 0 | P58: =LOOKUP(P6,'Financing Inputs'!38:38,'Financing Inputs'!39:39) -> 0 | Q58: =LOOKUP(Q6,'Financing Inputs'!38:38,'Financing Inputs'!39:39) -> 0 | R58: =LOOKUP(R6,'Financing Inputs'!38:38,'Financing Inputs'!39:39) -> 0 | S58: =LOOKUP(S6,'Financing Inputs'!38:38,'Financing Inputs'!39:39) -> 0 | T58: =LOOKUP(T6,'Financing Inputs'!38:38,'Financing Inputs'!39:39) -> 0 | U58: =LOOKUP(U6,'Financing Inputs'!38:38,'Financing Inputs'!39:39) -> 0 | V58: =LOOKUP(V6,'Financing Inputs'!38:38,'Financing Inputs'!39:39) -> 0 | W58: =LOOKUP(W6,'Financing Inputs'!38:38,'Financing Inputs'!39:39) -> 0 | X58: =LOOKUP(X6,'Financing Inputs'!38:38,'Financing Inputs'!39:39) -> 0 | Y58: =LOOKUP(Y6,'Financing Inputs'!38:38,'Financing Inputs'!39:39) -> 0 | Z58: =LOOKUP(Z6,'Financing Inputs'!38:38,'Financing Inputs'!39:39) -> 0 | AA58: =LOOKUP(AA6,'Financing Inputs'!38:38,'Financing Inputs'!39:39) -> 0 | AB58: =LOOKUP(AB6,'Financing Inputs'!38:38,'Financing Inputs'!39:39) -> 0 | AC58: =LOOKUP(AC6,'Financing Inputs'!38:38,'Financing Inputs'!39:39) -> 0 | AD58: =LOOKUP(AD6,'Financing Inputs'!38:38,'Financing Inputs'!39:39) -> 0 | AE58: =LOOKUP(AE6,'Financing Inputs'!38:38,'Financing Inputs'!39:39) -> 0 | AF58: =LOOKUP(AF6,'Financing Inputs'!38:38,'Financing Inputs'!39:39) -> 0 | AG58: =LOOKUP(AG6,'Financing Inputs'!38:38,'Financing Inputs'!39:39) -> 0 | AH58: =LOOKUP(AH6,'Financing Inputs'!38:38,'Financing Inputs'!39:39) -> 0 | AI58: =LOOKUP(AI6,'Financing Inputs'!38:38,'Financing Inputs'!39:39) -> 0 | AJ58: =LOOKUP(AJ6,'Financing Inputs'!38:38,'Financing Inputs'!39:39) -> 0 | AK58: =LOOKUP(AK6,'Financing Inputs'!38:38,'Financing Inputs'!39:39) -> 0 | AL58: =LOOKUP(AL6,'Financing Inputs'!38:38,'Financing Inputs'!39:39) -> 0 | AM58: =LOOKUP(AM6,'Financing Inputs'!38:38,'Financing Inputs'!39:39) -> 0 | AN58: =LOOKUP(AN6,'Financing Inputs'!38:38,'Financing Inputs'!39:39) -> 0 | AO58: =LOOKUP(AO6,'Financing Inputs'!38:38,'Financing Inputs'!39:39) -> 0 | AP58: =LOOKUP(AP6,'Financing Inputs'!38:38,'Financing Inputs'!39:39) -> 0 | AQ58: =LOOKUP(AQ6,'Financing Inputs'!38:38,'Financing Inputs'!39:39) -> 0 | AR58: =LOOKUP(AR6,'Financing Inputs'!38:38,'Financing Inputs'!39:39) -> 0 | AS58: =LOOKUP(AS6,'Financing Inputs'!38:38,'Financing Inputs'!39:39) -> 0 | AT58: =LOOKUP(AT6,'Financing Inputs'!38:38,'Financing Inputs'!39:39) -> 0 | AU58: =LOOKUP(AU6,'Financing Inputs'!38:38,'Financing Inputs'!39:39) -> 0 | AV58: =LOOKUP(AV6,'Financing Inputs'!38:38,'Financing Inputs'!39:39) -> 0 | AW58: =LOOKUP(AW6,'Financing Inputs'!38:38,'Financing Inputs'!39:39) -> 0 | AX58: =LOOKUP(AX6,'Financing Inputs'!38:38,'Financing Inputs'!39:39) -> 0 | AY58: =LOOKUP(AY6,'Financing Inputs'!38:38,'Financing Inputs'!39:39) -> 0 | AZ58: =LOOKUP(AZ6,'Financing Inputs'!38:38,'Financing Inputs'!39:39) -> 0 | BA58: =LOOKUP(BA6,'Financing Inputs'!38:38,'Financing Inputs'!39:39) -> 0 | BB58: =LOOKUP(BB6,'Financing Inputs'!38:38,'Financing Inputs'!39:39) -> 0 | BC58: =LOOKUP(BC6,'Financing Inputs'!38:38,'Financing Inputs'!39:39) -> 0 | BD58: =LOOKUP(BD6,'Financing Inputs'!38:38,'Financing Inputs'!39:39) -> 0 | BE58: =LOOKUP(BE6,'Financing Inputs'!38:38,'Financing Inputs'!39:39) -> 0 | BF58: =LOOKUP(BF6,'Financing Inputs'!38:38,'Financing Inputs'!39:39) -> 0 | BG58: =LOOKUP(BG6,'Financing Inputs'!38:38,'Financing Inputs'!39:39) -> 0 | BH58: =LOOKUP(BH6,'Financing Inputs'!38:38,'Financing Inputs'!39:39) -> 0 | BI58: =LOOKUP(BI6,'Financing Inputs'!38:38,'Financing Inputs'!39:39) -> 0 | BJ58: =LOOKUP(BJ6,'Financing Inputs'!38:38,'Financing Inputs'!39:39) -> 0 | BK58: =LOOKUP(BK6,'Financing Inputs'!38:38,'Financing Inputs'!39:39) -> 0 | BL58: =LOOKUP(BL6,'Financing Inputs'!38:38,'Financing Inputs'!39:39) -> 0 | BM58: =LOOKUP(BM6,'Financing Inputs'!38:38,'Financing Inputs'!39:39) -> 0 | BN58: =LOOKUP(BN6,'Financing Inputs'!38:38,'Financing Inputs'!39:39) -> 0 | BO58: =LOOKUP(BO6,'Financing Inputs'!38:38,'Financing Inputs'!39:39) -> 0 | BP58: =LOOKUP(BP6,'Financing Inputs'!38:38,'Financing Inputs'!39:39) -> 0 | BQ58: =LOOKUP(BQ6,'Financing Inputs'!38:38,'Financing Inputs'!39:39) -> 0 | BR58: =LOOKUP(BR6,'Financing Inputs'!38:38,'Financing Inputs'!39:39) -> 0 | BS58: =LOOKUP(BS6,'Financing Inputs'!38:38,'Financing Inputs'!39:39) -> 0 | BT58: =LOOKUP(BT6,'Financing Inputs'!38:38,'Financing Inputs'!39:39) -> 0 | BU58: =LOOKUP(BU6,'Financing Inputs'!38:38,'Financing Inputs'!39:39) -> 0 | BV58: =LOOKUP(BV6,'Financing Inputs'!38:38,'Financing Inputs'!39:39) -> 0 | BW58: =LOOKUP(BW6,'Financing Inputs'!38:38,'Financing Inputs'!39:39) -> 0 | BX58: =LOOKUP(BX6,'Financing Inputs'!38:38,'Financing Inputs'!39:39) -> 0 | BY58: =LOOKUP(BY6,'Financing Inputs'!38:38,'Financing Inputs'!39:39) -> 0 | BZ58: =LOOKUP(BZ6,'Financing Inputs'!38:38,'Financing Inputs'!39:39) -> 0 | CA58: =LOOKUP(CA6,'Financing Inputs'!38:38,'Financing Inputs'!39:39) -> 0 | CB58: =LOOKUP(CB6,'Financing Inputs'!38:38,'Financing Inputs'!39:39) -> 0 | CC58: =LOOKUP(CC6,'Financing Inputs'!38:38,'Financing Inputs'!39:39) -> 0 | CD58: =LOOKUP(CD6,'Financing Inputs'!38:38,'Financing Inputs'!39:39) -> 0 | CE58: =LOOKUP(CE6,'Financing Inputs'!38:38,'Financing Inputs'!39:39) -> 0 | CF58: =LOOKUP(CF6,'Financing Inputs'!38:38,'Financing Inputs'!39:39) -> 0 | CG58: =LOOKUP(CG6,'Financing Inputs'!38:38,'Financing Inputs'!39:39) -> 0 | CH58: =LOOKUP(CH6,'Financing Inputs'!38:38,'Financing Inputs'!39:39) -> 0 | CI58: =LOOKUP(CI6,'Financing Inputs'!38:38,'Financing Inputs'!39:39) -> 0 | CJ58: =LOOKUP(CJ6,'Financing Inputs'!38:38,'Financing Inputs'!39:39) -> 0 | CK58: =LOOKUP(CK6,'Financing Inputs'!38:38,'Financing Inputs'!39:39) -> 0 | CL58: =LOOKUP(CL6,'Financing Inputs'!38:38,'Financing Inputs'!39:39) -> 0 | CM58: =LOOKUP(CM6,'Financing Inputs'!38:38,'Financing Inputs'!39:39) -> 0 | CN58: =LOOKUP(CN6,'Financing Inputs'!38:38,'Financing Inputs'!39:39) -> 0 | CO58: =LOOKUP(CO6,'Financing Inputs'!38:38,'Financing Inputs'!39:39) -> 0 | CP58: =LOOKUP(CP6,'Financing Inputs'!38:38,'Financing Inputs'!39:39) -> 0 | CQ58: =LOOKUP(CQ6,'Financing Inputs'!38:38,'Financing Inputs'!39:39) -> 0 | CR58: =LOOKUP(CR6,'Financing Inputs'!38:38,'Financing Inputs'!39:39) -> 0 | CS58: =LOOKUP(CS6,'Financing Inputs'!38:38,'Financing Inputs'!39:39) -> 0 | CT58: =LOOKUP(CT6,'Financing Inputs'!38:38,'Financing Inputs'!39:39) -> 0 | CU58: =LOOKUP(CU6,'Financing Inputs'!38:38,'Financing Inputs'!39:39) -> 0 | CV58: =LOOKUP(CV6,'Financing Inputs'!38:38,'Financing Inputs'!39:39) -> 0 | CW58: =LOOKUP(CW6,'Financing Inputs'!38:38,'Financing Inputs'!39:39) -> 0 | CX58: =LOOKUP(CX6,'Financing Inputs'!38:38,'Financing Inputs'!39:39) -> 0 | CY58: =LOOKUP(CY6,'Financing Inputs'!38:38,'Financing Inputs'!39:39) -> 0 | CZ58: =LOOKUP(CZ6,'Financing Inputs'!38:38,'Financing Inputs'!39:39) -> 0 | DA58: =LOOKUP(DA6,'Financing Inputs'!38:38,'Financing Inputs'!39:39) -> 0 | DB58: =LOOKUP(DB6,'Financing Inputs'!38:38,'Financing Inputs'!39:39) -> 0 | DC58: =LOOKUP(DC6,'Financing Inputs'!38:38,'Financing Inputs'!39:39) -> 0 | DD58: =LOOKUP(DD6,'Financing Inputs'!38:38,'Financing Inputs'!39:39) -> 0 | DE58: =LOOKUP(DE6,'Financing Inputs'!38:38,'Financing Inputs'!39:39) -> 0 | DF58: =LOOKUP(DF6,'Financing Inputs'!38:38,'Financing Inputs'!39:39) -> 0 | DG58: =LOOKUP(DG6,'Financing Inputs'!38:38,'Financing Inputs'!39:39) -> 0 | DH58: =LOOKUP(DH6,'Financing Inputs'!38:38,'Financing Inputs'!39:39) -> 0 | DI58: =LOOKUP(DI6,'Financing Inputs'!38:38,'Financing Inputs'!39:39) -> 0 | DJ58: =LOOKUP(DJ6,'Financing Inputs'!38:38,'Financing Inputs'!39:39) -> 0 | DK58: =LOOKUP(DK6,'Financing Inputs'!38:38,'Financing Inputs'!39:39) -> 0 | DL58: =LOOKUP(DL6,'Financing Inputs'!38:38,'Financing Inputs'!39:39) -> 0 | DM58: =LOOKUP(DM6,'Financing Inputs'!38:38,'Financing Inputs'!39:39) -> 0 | DN58: =LOOKUP(DN6,'Financing Inputs'!38:38,'Financing Inputs'!39:39) -> 0 | DO58: =LOOKUP(DO6,'Financing Inputs'!38:38,'Financing Inputs'!39:39) -> 0 | DP58: =LOOKUP(DP6,'Financing Inputs'!38:38,'Financing Inputs'!39:39) -> 0 | DQ58: =LOOKUP(DQ6,'Financing Inputs'!38:38,'Financing Inputs'!39:39) -> 0 | DR58: =LOOKUP(DR6,'Financing Inputs'!38:38,'Financing Inputs'!39:39) -> 0 | DS58: =LOOKUP(DS6,'Financing Inputs'!38:38,'Financing Inputs'!39:39) -> 0 | DT58: =LOOKUP(DT6,'Financing Inputs'!38:38,'Financing Inputs'!39:39) -> 0 | DU58: =LOOKUP(DU6,'Financing Inputs'!38:38,'Financing Inputs'!39:39) -> 0 | DV58: =LOOKUP(DV6,'Financing Inputs'!38:38,'Financing Inputs'!39:39) -> 0 | DW58: =LOOKUP(DW6,'Financing Inputs'!38:38,'Financing Inputs'!39:39) -> 0 | DX58: =LOOKUP(DX6,'Financing Inputs'!38:38,'Financing Inputs'!39:39) -> 0 | DY58: =LOOKUP(DY6,'Financing Inputs'!38:38,'Financing Inputs'!39:39) -> 0 | DZ58: =LOOKUP(DZ6,'Financing Inputs'!38:38,'Financing Inputs'!39:39) -> 0 | EA58: =LOOKUP(EA6,'Financing Inputs'!38:38,'Financing Inputs'!39:39) -> 0 | EB58: =LOOKUP(EB6,'Financing Inputs'!38:38,'Financing Inputs'!39:39) -> 0 | EC58: =LOOKUP(EC6,'Financing Inputs'!38:38,'Financing Inputs'!39:39) -> 0 | ED58: =LOOKUP(ED6,'Financing Inputs'!38:38,'Financing Inputs'!39:39) -> 0 | EE58: =LOOKUP(EE6,'Financing Inputs'!38:38,'Financing Inputs'!39:39) -> 0 | EF58: =LOOKUP(EF6,'Financing Inputs'!38:38,'Financing Inputs'!39:39) -> 0 | EG58: =LOOKUP(EG6,'Financing Inputs'!38:38,'Financing Inputs'!39:39) -> 0 | EH58: =LOOKUP(EH6,'Financing Inputs'!38:38,'Financing Inputs'!39:39) -> 0 | EI58: =LOOKUP(EI6,'Financing Inputs'!38:38,'Financing Inputs'!39:39) -> 0 | EJ58: =LOOKUP(EJ6,'Financing Inputs'!38:38,'Financing Inputs'!39:39) -> 0 | EK58: =LOOKUP(EK6,'Financing Inputs'!38:38,'Financing Inputs'!39:39) -> 0 | EL58: =LOOKUP(EL6,'Financing Inputs'!38:38,'Financing Inputs'!39:39) -> 0 | EM58: =LOOKUP(EM6,'Financing Inputs'!38:38,'Financing Inputs'!39:39) -> 0 | EN58: =LOOKUP(EN6,'Financing Inputs'!38:38,'Financing Inputs'!39:39) -> 0 | EO58: =LOOKUP(EO6,'Financing Inputs'!38:38,'Financing Inputs'!39:39) -> 0 | EP58: =LOOKUP(EP6,'Financing Inputs'!38:38,'Financing Inputs'!39:39) -> 0 | EQ58: =LOOKUP(EQ6,'Financing Inputs'!38:38,'Financing Inputs'!39:39) -> 0 | ER58: =LOOKUP(ER6,'Financing Inputs'!38:38,'Financing Inputs'!39:39) -> 0 | ES58: =LOOKUP(ES6,'Financing Inputs'!38:38,'Financing Inputs'!39:39) -> 0 | ET58: =LOOKUP(ET6,'Financing Inputs'!38:38,'Financing Inputs'!39:39) -> 0 | EU58: =LOOKUP(EU6,'Financing Inputs'!38:38,'Financing Inputs'!39:39) -> 0 | EV58: =LOOKUP(EV6,'Financing Inputs'!38:38,'Financing Inputs'!39:39) -> 0 | EW58: =LOOKUP(EW6,'Financing Inputs'!38:38,'Financing Inputs'!39:39) -> 0 | EX58: =LOOKUP(EX6,'Financing Inputs'!38:38,'Financing Inputs'!39:39) -> 0 | EY58: =LOOKUP(EY6,'Financing Inputs'!38:38,'Financing Inputs'!39:39) -> 0 | EZ58: =LOOKUP(EZ6,'Financing Inputs'!38:38,'Financing Inputs'!39:39) -> 0 | FA58: =LOOKUP(FA6,'Financing Inputs'!38:38,'Financing Inputs'!39:39) -> 0 | FB58: =LOOKUP(FB6,'Financing Inputs'!38:38,'Financing Inputs'!39:39) -> 0 | FC58: =LOOKUP(FC6,'Financing Inputs'!38:38,'Financing Inputs'!39:39) -> 0 | FD58: =LOOKUP(FD6,'Financing Inputs'!38:38,'Financing Inputs'!39:39) -> 0 | FE58: =LOOKUP(FE6,'Financing Inputs'!38:38,'Financing Inputs'!39:39) -> 0 | FF58: =LOOKUP(FF6,'Financing Inputs'!38:38,'Financing Inputs'!39:39) -> 0 | FG58: =LOOKUP(FG6,'Financing Inputs'!38:38,'Financing Inputs'!39:39) -> 0
D59: Annual interest rate | F59: % p.a. | N59: =SUM(N57:N58) -> 0.026 | O59: 0.026 | P59: 0.026 | Q59: 0.026 | R59: 0.026 | S59: 0.026 | T59: 0.026 | U59: 0.026 | V59: 0.026 | W59: 0.026 | X59: 0.026 | Y59: 0.026 | Z59: 0.026 | AA59: 0.026 | AB59: 0.026 | AC59: 0.026 | AD59: 0.026 | AE59: 0.026 | AF59: 0.026 | AG59: 0.026 | AH59: 0.026 | AI59: 0.026 | AJ59: 0.026 | AK59: 0.026 | AL59: 0.026 | AM59: 0.026 | AN59: 0.026 | AO59: 0.026 | AP59: 0.026 | AQ59: 0.026 | AR59: 0.026 | AS59: 0.026 | AT59: 0.026 | AU59: 0.026 | AV59: 0.026 | AW59: 0.026 | AX59: 0.026 | AY59: 0.026 | AZ59: 0.026 | BA59: 0.026 | BB59: 0.026 | BC59: 0.026 | BD59: 0.026 | BE59: 0.026 | BF59: 0.026 | BG59: 0.026 | BH59: 0.026 | BI59: 0.026 | BJ59: 0.026 | BK59: 0.026 | BL59: 0.026 | BM59: 0.026 | BN59: 0.026 | BO59: 0.026 | BP59: 0.026 | BQ59: 0.026 | BR59: 0.026 | BS59: 0.026 | BT59: 0.026 | BU59: 0.026 | BV59: 0.026 | BW59: 0.026 | BX59: 0.026 | BY59: 0.026 | BZ59: =SUM(BZ57:BZ58) -> 0.026 | CA59: 0.026 | CB59: 0.026 | CC59: 0.026 | CD59: 0.026 | CE59: 0.026 | CF59: 0.026 | CG59: 0.026 | CH59: 0.026 | CI59: 0.026 | CJ59: 0.026 | CK59: 0.026 | CL59: 0.026 | CM59: 0.026 | CN59: 0.026 | CO59: 0.026 | CP59: 0.026 | CQ59: 0.026 | CR59: 0.026 | CS59: 0.026 | CT59: 0.026 | CU59: 0.026 | CV59: 0.026 | CW59: 0.026 | CX59: 0.026 | CY59: 0.026 | CZ59: 0.026 | DA59: 0.026 | DB59: 0.026 | DC59: 0.026 | DD59: 0.026 | DE59: 0.026 | DF59: 0.026 | DG59: 0.026 | DH59: 0.026 | DI59: 0.026 | DJ59: 0.026 | DK59: 0.026 | DL59: 0.026 | DM59: 0.026 | DN59: 0.026 | DO59: 0.026 | DP59: 0.026 | DQ59: 0.026 | DR59: 0.026 | DS59: 0.026 | DT59: 0.026 | DU59: 0.026 | DV59: 0.026 | DW59: 0.026 | DX59: 0.026 | DY59: 0.026 | DZ59: 0.026 | EA59: 0.026 | EB59: 0.026 | EC59: 0.026 | ED59: 0.026 | EE59: 0.026 | EF59: 0.026 | EG59: 0.026 | EH59: 0.026 | EI59: 0.026 | EJ59: 0.026 | EK59: 0.026 | EL59: =SUM(EL57:EL58) -> 0.026 | EM59: 0.026 | EN59: 0.026 | EO59: 0.026 | EP59: 0.026 | EQ59: 0.026 | ER59: 0.026 | ES59: 0.026 | ET59: 0.026 | EU59: 0.026 | EV59: 0.026 | EW59: 0.026 | EX59: 0.026 | EY59: 0.026 | EZ59: 0.026 | FA59: 0.026 | FB59: 0.026 | FC59: 0.026 | FD59: 0.026 | FE59: 0.026 | FF59: 0.026 | FG59: 0.026
D60: Periodic Interest rate | F60: % p.p | N60: =N5/Months_per_year*N59 -> 0.002166666667 | O60: 0.002166666667 | P60: 0.002166666667 | Q60: 0.002166666667 | R60: 0.002166666667 | S60: 0.002166666667 | T60: 0.002166666667 | U60: 0.002166666667 | V60: 0.002166666667 | W60: 0.002166666667 | X60: 0.002166666667 | Y60: 0.002166666667 | Z60: 0.002166666667 | AA60: 0.002166666667 | AB60: 0.002166666667 | AC60: 0.002166666667 | AD60: 0.002166666667 | AE60: 0.002166666667 | AF60: 0.002166666667 | AG60: 0.002166666667 | AH60: 0.002166666667 | AI60: 0.002166666667 | AJ60: 0.002166666667 | AK60: 0.002166666667 | AL60: 0.002166666667 | AM60: 0.002166666667 | AN60: 0.002166666667 | AO60: 0.002166666667 | AP60: 0.002166666667 | AQ60: 0.002166666667 | AR60: 0.002166666667 | AS60: 0.002166666667 | AT60: =AT5/Months_per_year*AT59 -> 0.002166666667 | AU60: 0.002166666667 | AV60: 0.002166666667 | AW60: 0.002166666667 | AX60: 0.002166666667 | AY60: 0.002166666667 | AZ60: 0.002166666667 | BA60: 0.002166666667 | BB60: 0.002166666667 | BC60: 0.002166666667 | BD60: 0.002166666667 | BE60: 0.002166666667 | BF60: 0.002166666667 | BG60: 0.002166666667 | BH60: 0.002166666667 | BI60: 0.013 | BJ60: 0.013 | BK60: 0.013 | BL60: 0.013 | BM60: 0.013 | BN60: 0.013 | BO60: 0.013 | BP60: 0.013 | BQ60: 0.013 | BR60: 0.013 | BS60: 0.013 | BT60: 0.013 | BU60: 0.013 | BV60: 0.013 | BW60: 0.013 | BX60: 0.013 | BY60: 0.013 | BZ60: =BZ5/Months_per_year*BZ59 -> 0.013 | CA60: 0.013 | CB60: 0.013 | CC60: 0.013 | CD60: 0.013 | CE60: 0.013 | CF60: 0.013 | CG60: 0.013 | CH60: 0.013 | CI60: 0.013 | CJ60: 0.013 | CK60: 0.013 | CL60: 0.013 | CM60: 0.013 | CN60: 0.013 | CO60: 0.013 | CP60: 0.013 | CQ60: 0.013 | CR60: 0.013 | CS60: 0.013 | CT60: 0.013 | CU60: 0.013 | CV60: 0.013 | CW60: 0.013 | CX60: 0.013 | CY60: 0.013 | CZ60: 0.013 | DA60: 0.013 | DB60: 0.013 | DC60: 0.013 | DD60: 0.013 | DE60: 0.013 | DF60: =DF5/Months_per_year*DF59 -> 0.013 | DG60: 0.013 | DH60: 0.013 | DI60: 0.013 | DJ60: 0.013 | DK60: 0.013 | DL60: 0.013 | DM60: 0.013 | DN60: 0.013 | DO60: 0.013 | DP60: 0.013 | DQ60: 0.013 | DR60: 0.013 | DS60: 0.013 | DT60: 0.013 | DU60: 0.013 | DV60: 0.013 | DW60: 0.013 | DX60: 0.013 | DY60: 0.013 | DZ60: 0.013 | EA60: 0.013 | EB60: 0.013 | EC60: 0.013 | ED60: 0.013 | EE60: 0.013 | EF60: 0.013 | EG60: 0.013 | EH60: 0.013 | EI60: 0.013 | EJ60: 0.013 | EK60: 0.013 | EL60: =EL5/Months_per_year*EL59 -> 0.013 | EM60: 0.013 | EN60: 0.013 | EO60: 0.013 | EP60: 0.013 | EQ60: 0.013 | ER60: 0.013 | ES60: 0.013 | ET60: 0.013 | EU60: 0.013 | EV60: 0.013 | EW60: 0.013 | EX60: 0.013 | EY60: 0.013 | EZ60: 0.013 | FA60: 0.013 | FB60: 0.013 | FC60: 0.013 | FD60: 0.013 | FE60: 0.013 | FF60: 0.013 | FG60: 0.013
D61: PV Factor for sculpting | F61: Index | M61: 1 | N61: =M61*(1+N60*N53) -> 1 | O61: 1 | P61: 1 | Q61: 1 | R61: 1 | S61: 1 | T61: 1 | U61: 1 | V61: 1 | W61: 1 | X61: 1 | Y61: 1 | Z61: 1 | AA61: 1 | AB61: 1 | AC61: 1 | AD61: 1 | AE61: 1 | AF61: 1 | AG61: 1 | AH61: 1 | AI61: 1 | AJ61: 1 | AK61: 1 | AL61: 1 | AM61: 1 | AN61: 1 | AO61: 1 | AP61: 1 | AQ61: 1 | AR61: 1 | AS61: 1 | AT61: =AS61*(1+AT60*AT53) -> 1 | AU61: 1 | AV61: 1 | AW61: 1 | AX61: 1 | AY61: 1 | AZ61: 1 | BA61: 1 | BB61: 1 | BC61: 1 | BD61: 1 | BE61: 1 | BF61: 1 | BG61: 1 | BH61: 1 | BI61: 1 | BJ61: 1.013 | BK61: 1.026169 | BL61: 1.039509197 | BM61: 1.053022817 | BN61: 1.066712113 | BO61: 1.080579371 | BP61: 1.094626902 | BQ61: 1.108857052 | BR61: 1.123272194 | BS61: 1.137874732 | BT61: 1.152667104 | BU61: 1.167651776 | BV61: 1.182831249 | BW61: 1.198208056 | BX61: 1.21378476 | BY61: 1.229563962 | BZ61: =BY61*(1+BZ60*BZ53) -> 1.245548294 | CA61: 1.261740422 | CB61: 1.278143047 | CC61: 1.294758907 | CD61: 1.311590772 | CE61: 1.328641452 | CF61: 1.345913791 | CG61: 1.363410671 | CH61: 1.381135009 | CI61: 1.399089764 | CJ61: 1.417277931 | CK61: 1.435702545 | CL61: 1.454366678 | CM61: 1.473273444 | CN61: 1.492425999 | CO61: 1.511827537 | CP61: 1.531481295 | CQ61: 1.531481295 | CR61: 1.531481295 | CS61: 1.531481295 | CT61: 1.531481295 | CU61: 1.531481295 | CV61: 1.531481295 | CW61: 1.531481295 | CX61: 1.531481295 | CY61: 1.531481295 | CZ61: 1.531481295 | DA61: 1.531481295 | DB61: 1.531481295 | DC61: 1.531481295 | DD61: 1.531481295 | DE61: 1.531481295 | DF61: =DE61*(1+DF60*DF53) -> 1.531481295 | DG61: 1.531481295 | DH61: 1.531481295 | DI61: 1.531481295 | DJ61: 1.531481295 | DK61: 1.531481295 | DL61: 1.531481295 | DM61: 1.531481295 | DN61: 1.531481295 | DO61: 1.531481295 | DP61: 1.531481295 | DQ61: 1.531481295 | DR61: 1.531481295 | DS61: 1.531481295 | DT61: 1.531481295 | DU61: 1.531481295 | DV61: 1.531481295 | DW61: 1.531481295 | DX61: 1.531481295 | DY61: 1.531481295 | DZ61: 1.531481295 | EA61: 1.531481295 | EB61: 1.531481295 | EC61: 1.531481295 | ED61: 1.531481295 | EE61: 1.531481295 | EF61: 1.531481295 | EG61: 1.531481295 | EH61: 1.531481295 | EI61: 1.531481295 | EJ61: 1.531481295 | EK61: 1.531481295 | EL61: =EK61*(1+EL60*EL53) -> 1.531481295 | EM61: 1.531481295 | EN61: 1.531481295 | EO61: 1.531481295 | EP61: 1.531481295 | EQ61: 1.531481295 | ER61: 1.531481295 | ES61: 1.531481295 | ET61: 1.531481295 | EU61: 1.531481295 | EV61: 1.531481295 | EW61: 1.531481295 | EX61: 1.531481295 | EY61: 1.531481295 | EZ61: 1.531481295 | FA61: 1.531481295 | FB61: 1.531481295 | FC61: 1.531481295 | FD61: 1.531481295 | FE61: 1.531481295 | FF61: 1.531481295 | FG61: 1.531481295
D63: DSCR Applied
E64: Input DSCR | F64: x | G64: ='Financing Inputs'!F5 -> 1.8
E65: CFADS | F65: kUSD | G65: =SUMPRODUCT(N55:FG55/N61:FG61) -> 4981881.354
E66: Fixed Debt | F66: kUSD | G66: =L28 -> 3406567.216
E67: Constant DSCR from LLCR | F67: x | G67: =G65/G66 -> 1.462434479
E69: DSCR Applied for Minimum Choice | F69: x | G69: =MAX(G67,G64) -> 1.8
E71: Debt Sizing Method | F71: Code | G71: ='Financing Inputs'!F12 -> 2
E72: DSCR Applied | F72: x | G72: =CHOOSE(G71,G64,G67,G69) -> 1.462434479
D74: Target debt-service | F74: x | G74: =G72 -> 1.462434479 | N74: =N55/$G74 -> 0 | O74: 0 | P74: 0 | Q74: 0 | R74: 0 | S74: 0 | T74: 0 | U74: 0 | V74: 0 | W74: 0 | X74: 0 | Y74: 0 | Z74: 0 | AA74: 0 | AB74: 0 | AC74: 0 | AD74: 0 | AE74: 0 | AF74: 0 | AG74: 0 | AH74: 0 | AI74: 0 | AJ74: 0 | AK74: 0 | AL74: 0 | AM74: 0 | AN74: 0 | AO74: 0 | AP74: 0 | AQ74: 0 | AR74: 0 | AS74: 0 | AT74: =AT55/$G74 -> 0 | AU74: 0 | AV74: 0 | AW74: 0 | AX74: 0 | AY74: 0 | AZ74: 0 | BA74: 0 | BB74: 0 | BC74: 0 | BD74: 0 | BE74: 0 | BF74: 0 | BG74: 0 | BH74: 0 | BI74: 0 | BJ74: 110169.6576 | BK74: 113789.0286 | BL74: 118230.6253 | BM74: 115788.3731 | BN74: 120287.7178 | BO74: 117804.2074 | BP74: 122361.9425 | BQ74: 120873.8814 | BR74: 124453.5564 | BS74: 121886.3383 | BT74: 126562.8203 | BU74: 123953.1408 | BV74: 128689.9991 | BW74: 126037.4449 | BX74: 129920.4156 | BY74: 128340.4994 | BZ74: =BZ55/$G74 -> 131169.2885 | CA74: 128459.556 | CB74: 132436.8944 | CC74: 129697.9279 | CD74: 133723.5145 | CE74: 130954.8754 | CF74: 135029.4338 | CG74: 133383.6917 | CH74: 136354.9419 | CI74: 133525.6158 | CJ74: 137700.3327 | CK74: 134839.9786 | CL74: 139065.9043 | CM74: 136174.0568 | CN74: 140451.9594 | CO74: 138736.3522 | CP74: 141858.8054 | CQ74: 0 | CR74: 0 | CS74: 0 | CT74: 0 | CU74: 0 | CV74: 0 | CW74: 0 | CX74: 0 | CY74: 0 | CZ74: 0 | DA74: 0 | DB74: 0 | DC74: 0 | DD74: 0 | DE74: 0 | DF74: =DF55/$G74 -> 0 | DG74: 0 | DH74: 0 | DI74: 0 | DJ74: 0 | DK74: 0 | DL74: 0 | DM74: 0 | DN74: 0 | DO74: 0 | DP74: 0 | DQ74: 0 | DR74: 0 | DS74: 0 | DT74: 0 | DU74: 0 | DV74: 0 | DW74: 0 | DX74: 0 | DY74: 0 | DZ74: 0 | EA74: 0 | EB74: 0 | EC74: 0 | ED74: 0 | EE74: 0 | EF74: 0 | EG74: 0 | EH74: 0 | EI74: 0 | EJ74: 0 | EK74: 0 | EL74: =EL55/$G74 -> 0 | EM74: 0 | EN74: 0 | EO74: 0 | EP74: 0 | EQ74: 0 | ER74: 0 | ES74: 0 | ET74: 0 | EU74: 0 | EV74: 0 | EW74: 0 | EX74: 0 | EY74: 0 | EZ74: 0 | FA74: 0 | FB74: 0 | FC74: 0 | FD74: 0 | FE74: 0 | FF74: 0 | FG74: 0
D75: NPV of debt-service | F75: USD | G75: =SUMPRODUCT(N74:FG74/N61:FG61) -> 3406567.216
D77: Account Balance with Debt Size Before Details
E78: Opening balance | N78: =M81 -> 0 | O78: 0 | P78: 0 | Q78: 0 | R78: 0 | S78: 0 | T78: 0 | U78: 0 | V78: 0 | W78: 0 | X78: 0 | Y78: 0 | Z78: 0 | AA78: 0 | AB78: 0 | AC78: 0 | AD78: 0 | AE78: 0 | AF78: 0 | AG78: 0 | AH78: 0 | AI78: 0 | AJ78: 0 | AK78: 0 | AL78: 0 | AM78: 0 | AN78: 0 | AO78: 0 | AP78: 0 | AQ78: 0 | AR78: 0 | AS78: 0 | AT78: =AS81 -> 0 | AU78: 0 | AV78: 0 | AW78: 0 | AX78: 0 | AY78: 0 | AZ78: 0 | BA78: 0 | BB78: 0 | BC78: 0 | BD78: 0 | BE78: 0 | BF78: 0 | BG78: 0 | BH78: 0 | BI78: 3406567.216 | BJ78: 3406567.216 | BK78: 3340682.933 | BL78: 3270322.782 | BM78: 3194606.353 | BN78: 3120347.863 | BO78: 3040624.667 | BP78: 2962348.58 | BQ78: 2878497.169 | BR78: 2795043.751 | BS78: 2706925.763 | BT78: 2620229.46 | BU78: 2527729.623 | BV78: 2436636.967 | BW78: 2339623.249 | BX78: 2244000.906 | BY78: 2143252.502 | BZ78: =BY81 -> 2042774.285 | CA78: 1938161.062 | CB78: 1834897.6 | CC78: 1726314.375 | CD78: 1619058.534 | CE78: 1506382.78 | CF78: 1395010.881 | CG78: 1278116.589 | CH78: 1161348.412 | CI78: 1040091 | CJ78: 920086.5671 | CK78: 794347.3599 | CL78: 669833.8969 | CM78: 539475.8333 | CN78: 410314.9623 | CO78: 275197.0974 | CP78: 140038.3074 | CQ78: 6.606569514e-09 | CR78: 6.606569514e-09 | CS78: 6.606569514e-09 | CT78: 6.606569514e-09 | CU78: 6.606569514e-09 | CV78: 6.606569514e-09 | CW78: 6.606569514e-09 | CX78: 6.606569514e-09 | CY78: 6.606569514e-09 | CZ78: 6.606569514e-09 | DA78: 6.606569514e-09 | DB78: 6.606569514e-09 | DC78: 6.606569514e-09 | DD78: 6.606569514e-09 | DE78: 6.606569514e-09 | DF78: =DE81 -> 6.606569514e-09 | DG78: 6.606569514e-09 | DH78: 6.606569514e-09 | DI78: 6.606569514e-09 | DJ78: 6.606569514e-09 | DK78: 6.606569514e-09 | DL78: 6.606569514e-09 | DM78: 6.606569514e-09 | DN78: 6.606569514e-09 | DO78: 6.606569514e-09 | DP78: 6.606569514e-09 | DQ78: 6.606569514e-09 | DR78: 6.606569514e-09 | DS78: 6.606569514e-09 | DT78: 6.606569514e-09 | DU78: 6.606569514e-09 | DV78: 6.606569514e-09 | DW78: 6.606569514e-09 | DX78: 6.606569514e-09 | DY78: 6.606569514e-09 | DZ78: 6.606569514e-09 | EA78: 6.606569514e-09 | EB78: 6.606569514e-09 | EC78: 6.606569514e-09 | ED78: 6.606569514e-09 | EE78: 6.606569514e-09 | EF78: 6.606569514e-09 | EG78: 6.606569514e-09 | EH78: 6.606569514e-09 | EI78: 6.606569514e-09 | EJ78: 6.606569514e-09 | EK78: 6.606569514e-09 | EL78: =EK81 -> 6.606569514e-09 | EM78: 6.606569514e-09 | EN78: 6.606569514e-09 | EO78: 6.606569514e-09 | EP78: 6.606569514e-09 | EQ78: 6.606569514e-09 | ER78: 6.606569514e-09 | ES78: 6.606569514e-09 | ET78: 6.606569514e-09 | EU78: 6.606569514e-09 | EV78: 6.606569514e-09 | EW78: 6.606569514e-09 | EX78: 6.606569514e-09 | EY78: 6.606569514e-09 | EZ78: 6.606569514e-09 | FA78: 6.606569514e-09 | FB78: 6.606569514e-09 | FC78: 6.606569514e-09 | FD78: 6.606569514e-09 | FE78: 6.606569514e-09 | FF78: 6.606569514e-09 | FG78: 6.606569514e-09
E79: (+) Drawdown of debt | G79: =G75 -> 3406567.216 | K79: =SUM(N79:FG79) -> 3406567.216 | N79: =$G$79*N54 -> 0 | O79: 0 | P79: 0 | Q79: 0 | R79: 0 | S79: 0 | T79: 0 | U79: 0 | V79: 0 | W79: 0 | X79: 0 | Y79: 0 | Z79: 0 | AA79: 0 | AB79: 0 | AC79: 0 | AD79: 0 | AE79: 0 | AF79: 0 | AG79: 0 | AH79: 0 | AI79: 0 | AJ79: 0 | AK79: 0 | AL79: 0 | AM79: 0 | AN79: 0 | AO79: 0 | AP79: 0 | AQ79: 0 | AR79: 0 | AS79: 0 | AT79: =$G$79*AT54 -> 0 | AU79: 0 | AV79: 0 | AW79: 0 | AX79: 0 | AY79: 0 | AZ79: 0 | BA79: 0 | BB79: 0 | BC79: 0 | BD79: 0 | BE79: 0 | BF79: 0 | BG79: 0 | BH79: 3406567.216 | BI79: 0 | BJ79: 0 | BK79: 0 | BL79: 0 | BM79: 0 | BN79: 0 | BO79: 0 | BP79: 0 | BQ79: 0 | BR79: 0 | BS79: 0 | BT79: 0 | BU79: 0 | BV79: 0 | BW79: 0 | BX79: 0 | BY79: 0 | BZ79: =$G$79*BZ54 -> 0 | CA79: 0 | CB79: 0 | CC79: 0 | CD79: 0 | CE79: 0 | CF79: 0 | CG79: 0 | CH79: 0 | CI79: 0 | CJ79: 0 | CK79: 0 | CL79: 0 | CM79: 0 | CN79: 0 | CO79: 0 | CP79: 0 | CQ79: 0 | CR79: 0 | CS79: 0 | CT79: 0 | CU79: 0 | CV79: 0 | CW79: 0 | CX79: 0 | CY79: 0 | CZ79: 0 | DA79: 0 | DB79: 0 | DC79: 0 | DD79: 0 | DE79: 0 | DF79: =$G$79*DF54 -> 0 | DG79: 0 | DH79: 0 | DI79: 0 | DJ79: 0 | DK79: 0 | DL79: 0 | DM79: 0 | DN79: 0 | DO79: 0 | DP79: 0 | DQ79: 0 | DR79: 0 | DS79: 0 | DT79: 0 | DU79: 0 | DV79: 0 | DW79: 0 | DX79: 0 | DY79: 0 | DZ79: 0 | EA79: 0 | EB79: 0 | EC79: 0 | ED79: 0 | EE79: 0 | EF79: 0 | EG79: 0 | EH79: 0 | EI79: 0 | EJ79: 0 | EK79: 0 | EL79: =$G$79*EL54 -> 0 | EM79: 0 | EN79: 0 | EO79: 0 | EP79: 0 | EQ79: 0 | ER79: 0 | ES79: 0 | ET79: 0 | EU79: 0 | EV79: 0 | EW79: 0 | EX79: 0 | EY79: 0 | EZ79: 0 | FA79: 0 | FB79: 0 | FC79: 0 | FD79: 0 | FE79: 0 | FF79: 0 | FG79: 0
E80: (-) Repayment of debt | K80: =SUM(N80:FG80) -> 3406567.216 | N80: =(N74-N82)*N53 -> 0 | O80: 0 | P80: 0 | Q80: 0 | R80: 0 | S80: 0 | T80: 0 | U80: 0 | V80: 0 | W80: 0 | X80: 0 | Y80: 0 | Z80: 0 | AA80: 0 | AB80: 0 | AC80: 0 | AD80: 0 | AE80: 0 | AF80: 0 | AG80: 0 | AH80: 0 | AI80: 0 | AJ80: 0 | AK80: 0 | AL80: 0 | AM80: 0 | AN80: 0 | AO80: 0 | AP80: 0 | AQ80: 0 | AR80: 0 | AS80: 0 | AT80: =(AT74-AT82)*AT53 -> 0 | AU80: 0 | AV80: 0 | AW80: 0 | AX80: 0 | AY80: 0 | AZ80: 0 | BA80: 0 | BB80: 0 | BC80: 0 | BD80: 0 | BE80: 0 | BF80: 0 | BG80: 0 | BH80: 0 | BI80: 0 | BJ80: 65884.28376 | BK80: 70360.15043 | BL80: 75716.4291 | BM80: 74258.4905 | BN80: 79723.19557 | BO80: 78276.0867 | BP80: 83851.41096 | BQ80: 83453.41823 | BR80: 88117.98765 | BS80: 86696.30334 | BT80: 92499.83736 | BU80: 91092.65567 | BV80: 97013.71848 | BW80: 95622.34265 | BX80: 100748.4039 | BY80: 100478.2168 | BZ80: =(BZ74-BZ82)*BZ53 -> 104613.2228 | CA80: 103263.4622 | CB80: 108583.2256 | CC80: 107255.841 | CD80: 112675.7535 | CE80: 111371.8992 | CF80: 116894.2923 | CG80: 116768.1761 | CH80: 121257.4125 | CI80: 120004.4328 | CJ80: 125739.2073 | CK80: 124513.4629 | CL80: 130358.0636 | CM80: 129160.871 | CN80: 135117.8649 | CO80: 135158.79 | CP80: 140038.3074 | CQ80: 0 | CR80: 0 | CS80: 0 | CT80: 0 | CU80: 0 | CV80: 0 | CW80: 0 | CX80: 0 | CY80: 0 | CZ80: 0 | DA80: 0 | DB80: 0 | DC80: 0 | DD80: 0 | DE80: 0 | DF80: =(DF74-DF82)*DF53 -> 0 | DG80: 0 | DH80: 0 | DI80: 0 | DJ80: 0 | DK80: 0 | DL80: 0 | DM80: 0 | DN80: 0 | DO80: 0 | DP80: 0 | DQ80: 0 | DR80: 0 | DS80: 0 | DT80: 0 | DU80: 0 | DV80: 0 | DW80: 0 | DX80: 0 | DY80: 0 | DZ80: 0 | EA80: 0 | EB80: 0 | EC80: 0 | ED80: 0 | EE80: 0 | EF80: 0 | EG80: 0 | EH80: 0 | EI80: 0 | EJ80: 0 | EK80: 0 | EL80: =(EL74-EL82)*EL53 -> 0 | EM80: 0 | EN80: 0 | EO80: 0 | EP80: 0 | EQ80: 0 | ER80: 0 | ES80: 0 | ET80: 0 | EU80: 0 | EV80: 0 | EW80: 0 | EX80: 0 | EY80: 0 | EZ80: 0 | FA80: 0 | FB80: 0 | FC80: 0 | FD80: 0 | FE80: 0 | FF80: 0 | FG80: 0
E81: Closing Balance | N81: =N78+N79-N80 -> 0 | O81: 0 | P81: 0 | Q81: 0 | R81: 0 | S81: 0 | T81: 0 | U81: 0 | V81: 0 | W81: 0 | X81: 0 | Y81: 0 | Z81: 0 | AA81: 0 | AB81: 0 | AC81: 0 | AD81: 0 | AE81: 0 | AF81: 0 | AG81: 0 | AH81: 0 | AI81: 0 | AJ81: 0 | AK81: 0 | AL81: 0 | AM81: 0 | AN81: 0 | AO81: 0 | AP81: 0 | AQ81: 0 | AR81: 0 | AS81: 0 | AT81: =AT78+AT79-AT80 -> 0 | AU81: 0 | AV81: 0 | AW81: 0 | AX81: 0 | AY81: 0 | AZ81: 0 | BA81: 0 | BB81: 0 | BC81: 0 | BD81: 0 | BE81: 0 | BF81: 0 | BG81: 0 | BH81: 3406567.216 | BI81: 3406567.216 | BJ81: 3340682.933 | BK81: 3270322.782 | BL81: 3194606.353 | BM81: 3120347.863 | BN81: 3040624.667 | BO81: 2962348.58 | BP81: 2878497.169 | BQ81: 2795043.751 | BR81: 2706925.763 | BS81: 2620229.46 | BT81: 2527729.623 | BU81: 2436636.967 | BV81: 2339623.249 | BW81: 2244000.906 | BX81: 2143252.502 | BY81: 2042774.285 | BZ81: =BZ78+BZ79-BZ80 -> 1938161.062 | CA81: 1834897.6 | CB81: 1726314.375 | CC81: 1619058.534 | CD81: 1506382.78 | CE81: 1395010.881 | CF81: 1278116.589 | CG81: 1161348.412 | CH81: 1040091 | CI81: 920086.5671 | CJ81: 794347.3599 | CK81: 669833.8969 | CL81: 539475.8333 | CM81: 410314.9623 | CN81: 275197.0974 | CO81: 140038.3074 | CP81: 6.606569514e-09 | CQ81: 6.606569514e-09 | CR81: 6.606569514e-09 | CS81: 6.606569514e-09 | CT81: 6.606569514e-09 | CU81: 6.606569514e-09 | CV81: 6.606569514e-09 | CW81: 6.606569514e-09 | CX81: 6.606569514e-09 | CY81: 6.606569514e-09 | CZ81: 6.606569514e-09 | DA81: 6.606569514e-09 | DB81: 6.606569514e-09 | DC81: 6.606569514e-09 | DD81: 6.606569514e-09 | DE81: 6.606569514e-09 | DF81: =DF78+DF79-DF80 -> 6.606569514e-09 | DG81: 6.606569514e-09 | DH81: 6.606569514e-09 | DI81: 6.606569514e-09 | DJ81: 6.606569514e-09 | DK81: 6.606569514e-09 | DL81: 6.606569514e-09 | DM81: 6.606569514e-09 | DN81: 6.606569514e-09 | DO81: 6.606569514e-09 | DP81: 6.606569514e-09 | DQ81: 6.606569514e-09 | DR81: 6.606569514e-09 | DS81: 6.606569514e-09 | DT81: 6.606569514e-09 | DU81: 6.606569514e-09 | DV81: 6.606569514e-09 | DW81: 6.606569514e-09 | DX81: 6.606569514e-09 | DY81: 6.606569514e-09 | DZ81: 6.606569514e-09 | EA81: 6.606569514e-09 | EB81: 6.606569514e-09 | EC81: 6.606569514e-09 | ED81: 6.606569514e-09 | EE81: 6.606569514e-09 | EF81: 6.606569514e-09 | EG81: 6.606569514e-09 | EH81: 6.606569514e-09 | EI81: 6.606569514e-09 | EJ81: 6.606569514e-09 | EK81: 6.606569514e-09 | EL81: =EL78+EL79-EL80 -> 6.606569514e-09 | EM81: 6.606569514e-09 | EN81: 6.606569514e-09 | EO81: 6.606569514e-09 | EP81: 6.606569514e-09 | EQ81: 6.606569514e-09 | ER81: 6.606569514e-09 | ES81: 6.606569514e-09 | ET81: 6.606569514e-09 | EU81: 6.606569514e-09 | EV81: 6.606569514e-09 | EW81: 6.606569514e-09 | EX81: 6.606569514e-09 | EY81: 6.606569514e-09 | EZ81: 6.606569514e-09 | FA81: 6.606569514e-09 | FB81: 6.606569514e-09 | FC81: 6.606569514e-09 | FD81: 6.606569514e-09 | FE81: 6.606569514e-09 | FF81: 6.606569514e-09 | FG81: 6.606569514e-09
E82: Interest | G82: =G78 -> 0 | K82: =SUM(N82:FG82) -> 880430.9351 | N82: =N78*N60 -> 0 | O82: 0 | P82: 0 | Q82: 0 | R82: 0 | S82: 0 | T82: 0 | U82: 0 | V82: 0 | W82: 0 | X82: 0 | Y82: 0 | Z82: 0 | AA82: 0 | AB82: 0 | AC82: 0 | AD82: 0 | AE82: 0 | AF82: 0 | AG82: 0 | AH82: 0 | AI82: 0 | AJ82: 0 | AK82: 0 | AL82: 0 | AM82: 0 | AN82: 0 | AO82: 0 | AP82: 0 | AQ82: 0 | AR82: 0 | AS82: 0 | AT82: =AT78*AT60 -> 0 | AU82: 0 | AV82: 0 | AW82: 0 | AX82: 0 | AY82: 0 | AZ82: 0 | BA82: 0 | BB82: 0 | BC82: 0 | BD82: 0 | BE82: 0 | BF82: 0 | BG82: 0 | BH82: 0 | BI82: 44285.37381 | BJ82: 44285.37381 | BK82: 43428.87812 | BL82: 42514.19617 | BM82: 41529.88259 | BN82: 40564.52221 | BO82: 39528.12067 | BP82: 38510.53154 | BQ82: 37420.4632 | BR82: 36335.56876 | BS82: 35190.03492 | BT82: 34062.98298 | BU82: 32860.4851 | BV82: 31676.28057 | BW82: 30415.10223 | BX82: 29172.01178 | BY82: 27862.28253 | BZ82: =BZ78*BZ60 -> 26556.06571 | CA82: 25196.09381 | CB82: 23853.6688 | CC82: 22442.08687 | CD82: 21047.76094 | CE82: 19582.97614 | CF82: 18135.14145 | CG82: 16615.51565 | CH82: 15097.52936 | CI82: 13521.183 | CJ82: 11961.12537 | CK82: 10326.51568 | CL82: 8707.84066 | CM82: 7013.185833 | CN82: 5334.09451 | CO82: 3577.562266 | CP82: 1820.497997 | CQ82: 8.588540368e-11 | CR82: 8.588540368e-11 | CS82: 8.588540368e-11 | CT82: 8.588540368e-11 | CU82: 8.588540368e-11 | CV82: 8.588540368e-11 | CW82: 8.588540368e-11 | CX82: 8.588540368e-11 | CY82: 8.588540368e-11 | CZ82: 8.588540368e-11 | DA82: 8.588540368e-11 | DB82: 8.588540368e-11 | DC82: 8.588540368e-11 | DD82: 8.588540368e-11 | DE82: 8.588540368e-11 | DF82: =DF78*DF60 -> 8.588540368e-11 | DG82: 8.588540368e-11 | DH82: 8.588540368e-11 | DI82: 8.588540368e-11 | DJ82: 8.588540368e-11 | DK82: 8.588540368e-11 | DL82: 8.588540368e-11 | DM82: 8.588540368e-11 | DN82: 8.588540368e-11 | DO82: 8.588540368e-11 | DP82: 8.588540368e-11 | DQ82: 8.588540368e-11 | DR82: 8.588540368e-11 | DS82: 8.588540368e-11 | DT82: 8.588540368e-11 | DU82: 8.588540368e-11 | DV82: 8.588540368e-11 | DW82: 8.588540368e-11 | DX82: 8.588540368e-11 | DY82: 8.588540368e-11 | DZ82: 8.588540368e-11 | EA82: 8.588540368e-11 | EB82: 8.588540368e-11 | EC82: 8.588540368e-11 | ED82: 8.588540368e-11 | EE82: 8.588540368e-11 | EF82: 8.588540368e-11 | EG82: 8.588540368e-11 | EH82: 8.588540368e-11 | EI82: 8.588540368e-11 | EJ82: 8.588540368e-11 | EK82: 8.588540368e-11 | EL82: =EL78*EL60 -> 8.588540368e-11 | EM82: 8.588540368e-11 | EN82: 8.588540368e-11 | EO82: 8.588540368e-11 | EP82: 8.588540368e-11 | EQ82: 8.588540368e-11 | ER82: 8.588540368e-11 | ES82: 8.588540368e-11 | ET82: 8.588540368e-11 | EU82: 8.588540368e-11 | EV82: 8.588540368e-11 | EW82: 8.588540368e-11 | EX82: 8.588540368e-11 | EY82: 8.588540368e-11 | EZ82: 8.588540368e-11 | FA82: 8.588540368e-11 | FB82: 8.588540368e-11 | FC82: 8.588540368e-11 | FD82: 8.588540368e-11 | FE82: 8.588540368e-11 | FF82: 8.588540368e-11 | FG82: 8.588540368e-11
D84: Closing balance at maturity | K84: =LOOKUP(Maturity_date,6:6,81:81) -> 6.606569514e-09 | L84: =ROUND(K84,0)=0 -> TRUE
B86: Funding requirements and sources during construction
C87: Items that Can Be Partially in Borrowing Base
D89: Development Cost -- Total | K89: =SUM(N89:FG89) -> 100000 | N89: ='Operation Model'!N19 -> 9090.909091 | O89: ='Operation Model'!O19 -> 9090.909091 | P89: ='Operation Model'!P19 -> 9090.909091 | Q89: ='Operation Model'!Q19 -> 9090.909091 | R89: ='Operation Model'!R19 -> 9090.909091 | S89: ='Operation Model'!S19 -> 9090.909091 | T89: ='Operation Model'!T19 -> 9090.909091 | U89: ='Operation Model'!U19 -> 9090.909091 | V89: ='Operation Model'!V19 -> 9090.909091 | W89: ='Operation Model'!W19 -> 9090.909091 | X89: ='Operation Model'!X19 -> 9090.909091 | Y89: ='Operation Model'!Y19 -> 0 | Z89: ='Operation Model'!Z19 -> 0 | AA89: ='Operation Model'!AA19 -> 0 | AB89: ='Operation Model'!AB19 -> 0 | AC89: ='Operation Model'!AC19 -> 0 | AD89: ='Operation Model'!AD19 -> 0 | AE89: ='Operation Model'!AE19 -> 0 | AF89: ='Operation Model'!AF19 -> 0 | AG89: ='Operation Model'!AG19 -> 0 | AH89: ='Operation Model'!AH19 -> 0 | AI89: ='Operation Model'!AI19 -> 0 | AJ89: ='Operation Model'!AJ19 -> 0 | AK89: ='Operation Model'!AK19 -> 0 | AL89: ='Operation Model'!AL19 -> 0 | AM89: ='Operation Model'!AM19 -> 0 | AN89: ='Operation Model'!AN19 -> 0 | AO89: ='Operation Model'!AO19 -> 0 | AP89: ='Operation Model'!AP19 -> 0 | AQ89: ='Operation Model'!AQ19 -> 0 | AR89: ='Operation Model'!AR19 -> 0 | AS89: ='Operation Model'!AS19 -> 0 | AT89: ='Operation Model'!AT19 -> 0 | AU89: ='Operation Model'!AU19 -> 0 | AV89: ='Operation Model'!AV19 -> 0 | AW89: ='Operation Model'!AW19 -> 0 | AX89: ='Operation Model'!AX19 -> 0 | AY89: ='Operation Model'!AY19 -> 0 | AZ89: ='Operation Model'!AZ19 -> 0 | BA89: ='Operation Model'!BA19 -> 0 | BB89: ='Operation Model'!BB19 -> 0 | BC89: ='Operation Model'!BC19 -> 0 | BD89: ='Operation Model'!BD19 -> 0 | BE89: ='Operation Model'!BE19 -> 0 | BF89: ='Operation Model'!BF19 -> 0 | BG89: ='Operation Model'!BG19 -> 0 | BH89: ='Operation Model'!BH19 -> 0 | BI89: ='Operation Model'!BI19 -> 0 | BJ89: ='Operation Model'!BJ19 -> 0 | BK89: ='Operation Model'!BK19 -> 0 | BL89: ='Operation Model'!BL19 -> 0 | BM89: ='Operation Model'!BM19 -> 0 | BN89: ='Operation Model'!BN19 -> 0 | BO89: ='Operation Model'!BO19 -> 0 | BP89: ='Operation Model'!BP19 -> 0 | BQ89: ='Operation Model'!BQ19 -> 0 | BR89: ='Operation Model'!BR19 -> 0 | BS89: ='Operation Model'!BS19 -> 0 | BT89: ='Operation Model'!BT19 -> 0 | BU89: ='Operation Model'!BU19 -> 0 | BV89: ='Operation Model'!BV19 -> 0 | BW89: ='Operation Model'!BW19 -> 0 | BX89: ='Operation Model'!BX19 -> 0 | BY89: ='Operation Model'!BY19 -> 0 | BZ89: ='Operation Model'!BZ19 -> 0 | CA89: ='Operation Model'!CA19 -> 0 | CB89: ='Operation Model'!CB19 -> 0 | CC89: ='Operation Model'!CC19 -> 0 | CD89: ='Operation Model'!CD19 -> 0 | CE89: ='Operation Model'!CE19 -> 0 | CF89: ='Operation Model'!CF19 -> 0 | CG89: ='Operation Model'!CG19 -> 0 | CH89: ='Operation Model'!CH19 -> 0 | CI89: ='Operation Model'!CI19 -> 0 | CJ89: ='Operation Model'!CJ19 -> 0 | CK89: ='Operation Model'!CK19 -> 0 | CL89: ='Operation Model'!CL19 -> 0 | CM89: ='Operation Model'!CM19 -> 0 | CN89: ='Operation Model'!CN19 -> 0 | CO89: ='Operation Model'!CO19 -> 0 | CP89: ='Operation Model'!CP19 -> 0 | CQ89: ='Operation Model'!CQ19 -> 0 | CR89: ='Operation Model'!CR19 -> 0 | CS89: ='Operation Model'!CS19 -> 0 | CT89: ='Operation Model'!CT19 -> 0 | CU89: ='Operation Model'!CU19 -> 0 | CV89: ='Operation Model'!CV19 -> 0 | CW89: ='Operation Model'!CW19 -> 0 | CX89: ='Operation Model'!CX19 -> 0 | CY89: ='Operation Model'!CY19 -> 0 | CZ89: ='Operation Model'!CZ19 -> 0 | DA89: ='Operation Model'!DA19 -> 0 | DB89: ='Operation Model'!DB19 -> 0 | DC89: ='Operation Model'!DC19 -> 0 | DD89: ='Operation Model'!DD19 -> 0 | DE89: ='Operation Model'!DE19 -> 0 | DF89: ='Operation Model'!DF19 -> 0 | DG89: ='Operation Model'!DG19 -> 0 | DH89: ='Operation Model'!DH19 -> 0 | DI89: ='Operation Model'!DI19 -> 0 | DJ89: ='Operation Model'!DJ19 -> 0 | DK89: ='Operation Model'!DK19 -> 0 | DL89: ='Operation Model'!DL19 -> 0 | DM89: ='Operation Model'!DM19 -> 0 | DN89: ='Operation Model'!DN19 -> 0 | DO89: ='Operation Model'!DO19 -> 0 | DP89: ='Operation Model'!DP19 -> 0 | DQ89: ='Operation Model'!DQ19 -> 0 | DR89: ='Operation Model'!DR19 -> 0 | DS89: ='Operation Model'!DS19 -> 0 | DT89: ='Operation Model'!DT19 -> 0 | DU89: ='Operation Model'!DU19 -> 0 | DV89: ='Operation Model'!DV19 -> 0 | DW89: ='Operation Model'!DW19 -> 0 | DX89: ='Operation Model'!DX19 -> 0 | DY89: ='Operation Model'!DY19 -> 0 | DZ89: ='Operation Model'!DZ19 -> 0 | EA89: ='Operation Model'!EA19 -> 0 | EB89: ='Operation Model'!EB19 -> 0 | EC89: ='Operation Model'!EC19 -> 0 | ED89: ='Operation Model'!ED19 -> 0 | EE89: ='Operation Model'!EE19 -> 0 | EF89: ='Operation Model'!EF19 -> 0 | EG89: ='Operation Model'!EG19 -> 0 | EH89: ='Operation Model'!EH19 -> 0 | EI89: ='Operation Model'!EI19 -> 0 | EJ89: ='Operation Model'!EJ19 -> 0 | EK89: ='Operation Model'!EK19 -> 0 | EL89: ='Operation Model'!EL19 -> 0 | EM89: ='Operation Model'!EM19 -> 0 | EN89: ='Operation Model'!EN19 -> 0 | EO89: ='Operation Model'!EO19 -> 0 | EP89: ='Operation Model'!EP19 -> 0 | EQ89: ='Operation Model'!EQ19 -> 0 | ER89: ='Operation Model'!ER19 -> 0 | ES89: ='Operation Model'!ES19 -> 0 | ET89: ='Operation Model'!ET19 -> 0 | EU89: ='Operation Model'!EU19 -> 0 | EV89: ='Operation Model'!EV19 -> 0 | EW89: ='Operation Model'!EW19 -> 0 | EX89: ='Operation Model'!EX19 -> 0 | EY89: ='Operation Model'!EY19 -> 0 | EZ89: ='Operation Model'!EZ19 -> 0 | FA89: ='Operation Model'!FA19 -> 0 | FB89: ='Operation Model'!FB19 -> 0 | FC89: ='Operation Model'!FC19 -> 0 | FD89: ='Operation Model'!FD19 -> 0 | FE89: ='Operation Model'!FE19 -> 0 | FF89: ='Operation Model'!FF19 -> 0 | FG89: ='Operation Model'!FG19 -> 0
D90: Development Cost -- Equity Only | G90: =1-G15 -> 0.1 | K90: =SUM(N90:FG90) -> 10000 | N90: =N89*$G$90 -> 909.0909091 | O90: =O89*$G$90 -> 909.0909091 | P90: 909.0909091 | Q90: 909.0909091 | R90: 909.0909091 | S90: 909.0909091 | T90: 909.0909091 | U90: 909.0909091 | V90: 909.0909091 | W90: 909.0909091 | X90: 909.0909091 | Y90: 0 | Z90: 0 | AA90: 0 | AB90: 0 | AC90: 0 | AD90: 0 | AE90: 0 | AF90: 0 | AG90: 0 | AH90: 0 | AI90: 0 | AJ90: 0 | AK90: 0 | AL90: 0 | AM90: 0 | AN90: 0 | AO90: 0 | AP90: 0 | AQ90: 0 | AR90: 0 | AS90: 0 | AT90: 0 | AU90: 0 | AV90: 0 | AW90: 0 | AX90: 0 | AY90: 0 | AZ90: 0 | BA90: 0 | BB90: 0 | BC90: 0 | BD90: 0 | BE90: 0 | BF90: 0 | BG90: 0 | BH90: 0 | BI90: 0 | BJ90: 0 | BK90: 0 | BL90: 0 | BM90: 0 | BN90: 0 | BO90: 0 | BP90: 0 | BQ90: 0 | BR90: 0 | BS90: 0 | BT90: 0 | BU90: 0 | BV90: 0 | BW90: 0 | BX90: 0 | BY90: 0 | BZ90: 0 | CA90: =CA89*$G$90 -> 0 | CB90: 0 | CC90: 0 | CD90: 0 | CE90: 0 | CF90: 0 | CG90: 0 | CH90: 0 | CI90: 0 | CJ90: 0 | CK90: 0 | CL90: 0 | CM90: 0 | CN90: 0 | CO90: 0 | CP90: 0 | CQ90: 0 | CR90: 0 | CS90: 0 | CT90: 0 | CU90: 0 | CV90: 0 | CW90: 0 | CX90: 0 | CY90: 0 | CZ90: 0 | DA90: 0 | DB90: 0 | DC90: 0 | DD90: 0 | DE90: 0 | DF90: 0 | DG90: 0 | DH90: 0 | DI90: 0 | DJ90: 0 | DK90: 0 | DL90: 0 | DM90: 0 | DN90: 0 | DO90: 0 | DP90: 0 | DQ90: 0 | DR90: 0 | DS90: 0 | DT90: 0 | DU90: 0 | DV90: 0 | DW90: 0 | DX90: 0 | DY90: 0 | DZ90: 0 | EA90: 0 | EB90: 0 | EC90: 0 | ED90: 0 | EE90: 0 | EF90: 0 | EG90: 0 | EH90: 0 | EI90: 0 | EJ90: 0 | EK90: 0 | EL90: 0 | EM90: =EM89*$G$90 -> 0 | EN90: 0 | EO90: 0 | EP90: 0 | EQ90: 0 | ER90: 0 | ES90: 0 | ET90: 0 | EU90: 0 | EV90: 0 | EW90: 0 | EX90: 0 | EY90: 0 | EZ90: 0 | FA90: 0 | FB90: 0 | FC90: 0 | FD90: 0 | FE90: 0 | FF90: 0 | FG90: 0
D91: Development Cost -- Debt and Equity Borrowing Base | K91: =SUM(N91:FG91) -> 90000 | N91: =N89-N90 -> 8181.818182 | O91: =O89-O90 -> 8181.818182 | P91: 8181.818182 | Q91: 8181.818182 | R91: 8181.818182 | S91: 8181.818182 | T91: 8181.818182 | U91: 8181.818182 | V91: 8181.818182 | W91: 8181.818182 | X91: 8181.818182 | Y91: 0 | Z91: 0 | AA91: 0 | AB91: 0 | AC91: 0 | AD91: 0 | AE91: 0 | AF91: 0 | AG91: 0 | AH91: 0 | AI91: 0 | AJ91: 0 | AK91: 0 | AL91: 0 | AM91: 0 | AN91: 0 | AO91: 0 | AP91: 0 | AQ91: 0 | AR91: 0 | AS91: 0 | AT91: 0 | AU91: 0 | AV91: 0 | AW91: 0 | AX91: 0 | AY91: 0 | AZ91: 0 | BA91: 0 | BB91: 0 | BC91: 0 | BD91: 0 | BE91: 0 | BF91: 0 | BG91: 0 | BH91: 0 | BI91: 0 | BJ91: 0 | BK91: 0 | BL91: 0 | BM91: 0 | BN91: 0 | BO91: 0 | BP91: 0 | BQ91: 0 | BR91: 0 | BS91: 0 | BT91: 0 | BU91: 0 | BV91: 0 | BW91: 0 | BX91: 0 | BY91: 0 | BZ91: 0 | CA91: =CA89-CA90 -> 0 | CB91: 0 | CC91: 0 | CD91: 0 | CE91: 0 | CF91: 0 | CG91: 0 | CH91: 0 | CI91: 0 | CJ91: 0 | CK91: 0 | CL91: 0 | CM91: 0 | CN91: 0 | CO91: 0 | CP91: 0 | CQ91: 0 | CR91: 0 | CS91: 0 | CT91: 0 | CU91: 0 | CV91: 0 | CW91: 0 | CX91: 0 | CY91: 0 | CZ91: 0 | DA91: 0 | DB91: 0 | DC91: 0 | DD91: 0 | DE91: 0 | DF91: 0 | DG91: 0 | DH91: 0 | DI91: 0 | DJ91: 0 | DK91: 0 | DL91: 0 | DM91: 0 | DN91: 0 | DO91: 0 | DP91: 0 | DQ91: 0 | DR91: 0 | DS91: 0 | DT91: 0 | DU91: 0 | DV91: 0 | DW91: 0 | DX91: 0 | DY91: 0 | DZ91: 0 | EA91: 0 | EB91: 0 | EC91: 0 | ED91: 0 | EE91: 0 | EF91: 0 | EG91: 0 | EH91: 0 | EI91: 0 | EJ91: 0 | EK91: 0 | EL91: 0 | EM91: =EM89-EM90 -> 0 | EN91: 0 | EO91: 0 | EP91: 0 | EQ91: 0 | ER91: 0 | ES91: 0 | ET91: 0 | EU91: 0 | EV91: 0 | EW91: 0 | EX91: 0 | EY91: 0 | EZ91: 0 | FA91: 0 | FB91: 0 | FC91: 0 | FD91: 0 | FE91: 0 | FF91: 0 | FG91: 0
D92: Reimbursment Date - Date | G92: ='Financing Inputs'!F21 -> 2021-02-01 | K92: =SUM(N92:FG92) -> 1 | N92: =(N6=$G$92)*1 -> 0 | O92: 0 | P92: 0 | Q92: 0 | R92: 0 | S92: 0 | T92: 0 | U92: 0 | V92: 0 | W92: 0 | X92: 0 | Y92: 1 | Z92: 0 | AA92: 0 | AB92: 0 | AC92: 0 | AD92: 0 | AE92: 0 | AF92: 0 | AG92: 0 | AH92: 0 | AI92: 0 | AJ92: 0 | AK92: 0 | AL92: 0 | AM92: 0 | AN92: 0 | AO92: 0 | AP92: 0 | AQ92: 0 | AR92: 0 | AS92: 0 | AT92: =(AT6=$G$92)*1 -> 0 | AU92: 0 | AV92: 0 | AW92: 0 | AX92: 0 | AY92: 0 | AZ92: 0 | BA92: 0 | BB92: 0 | BC92: 0 | BD92: 0 | BE92: 0 | BF92: 0 | BG92: 0 | BH92: 0 | BI92: 0 | BJ92: 0 | BK92: 0 | BL92: 0 | BM92: 0 | BN92: 0 | BO92: 0 | BP92: 0 | BQ92: 0 | BR92: 0 | BS92: 0 | BT92: 0 | BU92: 0 | BV92: 0 | BW92: 0 | BX92: 0 | BY92: 0 | BZ92: =(BZ6=$G$92)*1 -> 0 | CA92: 0 | CB92: 0 | CC92: 0 | CD92: 0 | CE92: 0 | CF92: 0 | CG92: 0 | CH92: 0 | CI92: 0 | CJ92: 0 | CK92: 0 | CL92: 0 | CM92: 0 | CN92: 0 | CO92: 0 | CP92: 0 | CQ92: 0 | CR92: 0 | CS92: 0 | CT92: 0 | CU92: 0 | CV92: 0 | CW92: 0 | CX92: 0 | CY92: 0 | CZ92: 0 | DA92: 0 | DB92: 0 | DC92: 0 | DD92: 0 | DE92: 0 | DF92: =(DF6=$G$92)*1 -> 0 | DG92: 0 | DH92: 0 | DI92: 0 | DJ92: 0 | DK92: 0 | DL92: 0 | DM92: 0 | DN92: 0 | DO92: 0 | DP92: 0 | DQ92: 0 | DR92: 0 | DS92: 0 | DT92: 0 | DU92: 0 | DV92: 0 | DW92: 0 | DX92: 0 | DY92: 0 | DZ92: 0 | EA92: 0 | EB92: 0 | EC92: 0 | ED92: 0 | EE92: 0 | EF92: 0 | EG92: 0 | EH92: 0 | EI92: 0 | EJ92: 0 | EK92: 0 | EL92: =(EL6=$G$92)*1 -> 0 | EM92: 0 | EN92: 0 | EO92: 0 | EP92: 0 | EQ92: 0 | ER92: 0 | ES92: 0 | ET92: 0 | EU92: 0 | EV92: 0 | EW92: 0 | EX92: 0 | EY92: 0 | EZ92: 0 | FA92: 0 | FB92: 0 | FC92: 0 | FD92: 0 | FE92: 0 | FF92: 0 | FG92: 0
D93: Development Cost -- Debt Reimbursment | G93: =K91 -> 90000 | N93: =N92*$G$93 -> 0 | O93: =O92*$G$93 -> 0 | P93: 0 | Q93: 0 | R93: 0 | S93: 0 | T93: 0 | U93: 0 | V93: 0 | W93: 0 | X93: 0 | Y93: 90000 | Z93: 0 | AA93: 0 | AB93: 0 | AC93: 0 | AD93: 0 | AE93: 0 | AF93: 0 | AG93: 0 | AH93: 0 | AI93: 0 | AJ93: 0 | AK93: 0 | AL93: 0 | AM93: 0 | AN93: 0 | AO93: 0 | AP93: 0 | AQ93: 0 | AR93: 0 | AS93: 0 | AT93: 0 | AU93: 0 | AV93: 0 | AW93: 0 | AX93: 0 | AY93: 0 | AZ93: 0 | BA93: 0 | BB93: 0 | BC93: 0 | BD93: 0 | BE93: 0 | BF93: 0 | BG93: 0 | BH93: 0 | BI93: 0 | BJ93: 0 | BK93: 0 | BL93: 0 | BM93: 0 | BN93: 0 | BO93: 0 | BP93: 0 | BQ93: 0 | BR93: 0 | BS93: 0 | BT93: 0 | BU93: 0 | BV93: 0 | BW93: 0 | BX93: 0 | BY93: 0 | BZ93: 0 | CA93: =CA92*$G$93 -> 0 | CB93: 0 | CC93: 0 | CD93: 0 | CE93: 0 | CF93: 0 | CG93: 0 | CH93: 0 | CI93: 0 | CJ93: 0 | CK93: 0 | CL93: 0 | CM93: 0 | CN93: 0 | CO93: 0 | CP93: 0 | CQ93: 0 | CR93: 0 | CS93: 0 | CT93: 0 | CU93: 0 | CV93: 0 | CW93: 0 | CX93: 0 | CY93: 0 | CZ93: 0 | DA93: 0 | DB93: 0 | DC93: 0 | DD93: 0 | DE93: 0 | DF93: 0 | DG93: 0 | DH93: 0 | DI93: 0 | DJ93: 0 | DK93: 0 | DL93: 0 | DM93: 0 | DN93: 0 | DO93: 0 | DP93: 0 | DQ93: 0 | DR93: 0 | DS93: 0 | DT93: 0 | DU93: 0 | DV93: 0 | DW93: 0 | DX93: 0 | DY93: 0 | DZ93: 0 | EA93: 0 | EB93: 0 | EC93: 0 | ED93: 0 | EE93: 0 | EF93: 0 | EG93: 0 | EH93: 0 | EI93: 0 | EJ93: 0 | EK93: 0 | EL93: 0 | EM93: =EM92*$G$93 -> 0 | EN93: 0 | EO93: 0 | EP93: 0 | EQ93: 0 | ER93: 0 | ES93: 0 | ET93: 0 | EU93: 0 | EV93: 0 | EW93: 0 | EX93: 0 | EY93: 0 | EZ93: 0 | FA93: 0 | FB93: 0 | FC93: 0 | FD93: 0 | FE93: 0 | FF93: 0 | FG93: 0
D95: EPC Fee - Total | K95: =SUM(N95:FG95) -> 112200 | N95: ='Operation Model'!N26 -> 0 | O95: ='Operation Model'!O26 -> 0 | P95: ='Operation Model'!P26 -> 0 | Q95: ='Operation Model'!Q26 -> 0 | R95: ='Operation Model'!R26 -> 0 | S95: ='Operation Model'!S26 -> 0 | T95: ='Operation Model'!T26 -> 0 | U95: ='Operation Model'!U26 -> 0 | V95: ='Operation Model'!V26 -> 0 | W95: ='Operation Model'!W26 -> 0 | X95: ='Operation Model'!X26 -> 0 | Y95: ='Operation Model'!Y26 -> 135.2273369 | Z95: ='Operation Model'!Z26 -> 213.853387 | AA95: ='Operation Model'!AA26 -> 328.9304165 | AB95: ='Operation Model'!AB26 -> 492.0714877 | AC95: ='Operation Model'!AC26 -> 715.95979 | AD95: ='Operation Model'!AD26 -> 1013.177011 | AE95: ='Operation Model'!AE26 -> 1394.499255 | AF95: ='Operation Model'!AF26 -> 1866.755805 | AG95: ='Operation Model'!AG26 -> 2430.4853 | AH95: ='Operation Model'!AH26 -> 3077.760003 | AI95: ='Operation Model'!AI26 -> 3790.641985 | AJ95: ='Operation Model'!AJ26 -> 4540.744337 | AK95: ='Operation Model'!AK26 -> 5290.267053 | AL95: ='Operation Model'!AL26 -> 5994.657927 | AM95: ='Operation Model'!AM26 -> 6606.744026 | AN95: ='Operation Model'!AN26 -> 7081.851564 | AO95: ='Operation Model'!AO26 -> 7383.162431 | AP95: ='Operation Model'!AP26 -> 7486.421773 | AQ95: ='Operation Model'!AQ26 -> 7383.162431 | AR95: ='Operation Model'!AR26 -> 7081.851564 | AS95: ='Operation Model'!AS26 -> 6606.744026 | AT95: ='Operation Model'!AT26 -> 5994.657927 | AU95: ='Operation Model'!AU26 -> 5290.267053 | AV95: ='Operation Model'!AV26 -> 4540.744337 | AW95: ='Operation Model'!AW26 -> 3790.641985 | AX95: ='Operation Model'!AX26 -> 3077.760003 | AY95: ='Operation Model'!AY26 -> 2430.4853 | AZ95: ='Operation Model'!AZ26 -> 1866.755805 | BA95: ='Operation Model'!BA26 -> 1394.499255 | BB95: ='Operation Model'!BB26 -> 1013.177011 | BC95: ='Operation Model'!BC26 -> 715.95979 | BD95: ='Operation Model'!BD26 -> 492.0714877 | BE95: ='Operation Model'!BE26 -> 328.9304165 | BF95: ='Operation Model'!BF26 -> 213.853387 | BG95: ='Operation Model'!BG26 -> 135.2273369 | BH95: ='Operation Model'!BH26 -> 0 | BI95: ='Operation Model'!BI26 -> 0 | BJ95: ='Operation Model'!BJ26 -> 0 | BK95: ='Operation Model'!BK26 -> 0 | BL95: ='Operation Model'!BL26 -> 0 | BM95: ='Operation Model'!BM26 -> 0 | BN95: ='Operation Model'!BN26 -> 0 | BO95: ='Operation Model'!BO26 -> 0 | BP95: ='Operation Model'!BP26 -> 0 | BQ95: ='Operation Model'!BQ26 -> 0 | BR95: ='Operation Model'!BR26 -> 0 | BS95: ='Operation Model'!BS26 -> 0 | BT95: ='Operation Model'!BT26 -> 0 | BU95: ='Operation Model'!BU26 -> 0 | BV95: ='Operation Model'!BV26 -> 0 | BW95: ='Operation Model'!BW26 -> 0 | BX95: ='Operation Model'!BX26 -> 0 | BY95: ='Operation Model'!BY26 -> 0 | BZ95: ='Operation Model'!BZ26 -> 0 | CA95: ='Operation Model'!CA26 -> 0 | CB95: ='Operation Model'!CB26 -> 0 | CC95: ='Operation Model'!CC26 -> 0 | CD95: ='Operation Model'!CD26 -> 0 | CE95: ='Operation Model'!CE26 -> 0 | CF95: ='Operation Model'!CF26 -> 0 | CG95: ='Operation Model'!CG26 -> 0 | CH95: ='Operation Model'!CH26 -> 0 | CI95: ='Operation Model'!CI26 -> 0 | CJ95: ='Operation Model'!CJ26 -> 0 | CK95: ='Operation Model'!CK26 -> 0 | CL95: ='Operation Model'!CL26 -> 0 | CM95: ='Operation Model'!CM26 -> 0 | CN95: ='Operation Model'!CN26 -> 0 | CO95: ='Operation Model'!CO26 -> 0 | CP95: ='Operation Model'!CP26 -> 0 | CQ95: ='Operation Model'!CQ26 -> 0 | CR95: ='Operation Model'!CR26 -> 0 | CS95: ='Operation Model'!CS26 -> 0 | CT95: ='Operation Model'!CT26 -> 0 | CU95: ='Operation Model'!CU26 -> 0 | CV95: ='Operation Model'!CV26 -> 0 | CW95: ='Operation Model'!CW26 -> 0 | CX95: ='Operation Model'!CX26 -> 0 | CY95: ='Operation Model'!CY26 -> 0 | CZ95: ='Operation Model'!CZ26 -> 0 | DA95: ='Operation Model'!DA26 -> 0 | DB95: ='Operation Model'!DB26 -> 0 | DC95: ='Operation Model'!DC26 -> 0 | DD95: ='Operation Model'!DD26 -> 0 | DE95: ='Operation Model'!DE26 -> 0 | DF95: ='Operation Model'!DF26 -> 0 | DG95: ='Operation Model'!DG26 -> 0 | DH95: ='Operation Model'!DH26 -> 0 | DI95: ='Operation Model'!DI26 -> 0 | DJ95: ='Operation Model'!DJ26 -> 0 | DK95: ='Operation Model'!DK26 -> 0 | DL95: ='Operation Model'!DL26 -> 0 | DM95: ='Operation Model'!DM26 -> 0 | DN95: ='Operation Model'!DN26 -> 0 | DO95: ='Operation Model'!DO26 -> 0 | DP95: ='Operation Model'!DP26 -> 0 | DQ95: ='Operation Model'!DQ26 -> 0 | DR95: ='Operation Model'!DR26 -> 0 | DS95: ='Operation Model'!DS26 -> 0 | DT95: ='Operation Model'!DT26 -> 0 | DU95: ='Operation Model'!DU26 -> 0 | DV95: ='Operation Model'!DV26 -> 0 | DW95: ='Operation Model'!DW26 -> 0 | DX95: ='Operation Model'!DX26 -> 0 | DY95: ='Operation Model'!DY26 -> 0 | DZ95: ='Operation Model'!DZ26 -> 0 | EA95: ='Operation Model'!EA26 -> 0 | EB95: ='Operation Model'!EB26 -> 0 | EC95: ='Operation Model'!EC26 -> 0 | ED95: ='Operation Model'!ED26 -> 0 | EE95: ='Operation Model'!EE26 -> 0 | EF95: ='Operation Model'!EF26 -> 0 | EG95: ='Operation Model'!EG26 -> 0 | EH95: ='Operation Model'!EH26 -> 0 | EI95: ='Operation Model'!EI26 -> 0 | EJ95: ='Operation Model'!EJ26 -> 0 | EK95: ='Operation Model'!EK26 -> 0 | EL95: ='Operation Model'!EL26 -> 0 | EM95: ='Operation Model'!EM26 -> 0 | EN95: ='Operation Model'!EN26 -> 0 | EO95: ='Operation Model'!EO26 -> 0 | EP95: ='Operation Model'!EP26 -> 0 | EQ95: ='Operation Model'!EQ26 -> 0 | ER95: ='Operation Model'!ER26 -> 0 | ES95: ='Operation Model'!ES26 -> 0 | ET95: ='Operation Model'!ET26 -> 0 | EU95: ='Operation Model'!EU26 -> 0 | EV95: ='Operation Model'!EV26 -> 0 | EW95: ='Operation Model'!EW26 -> 0 | EX95: ='Operation Model'!EX26 -> 0 | EY95: ='Operation Model'!EY26 -> 0 | EZ95: ='Operation Model'!EZ26 -> 0 | FA95: ='Operation Model'!FA26 -> 0 | FB95: ='Operation Model'!FB26 -> 0 | FC95: ='Operation Model'!FC26 -> 0 | FD95: ='Operation Model'!FD26 -> 0 | FE95: ='Operation Model'!FE26 -> 0 | FF95: ='Operation Model'!FF26 -> 0 | FG95: ='Operation Model'!FG26 -> 0
D96: EPC Fee - Debt and Equity - Borrowing Base | G96: =1-G97 -> 1 | K96: =SUM(N96:FG96) -> 112200 | N96: =N95-N97 -> 0 | O96: 0 | P96: 0 | Q96: 0 | R96: 0 | S96: 0 | T96: 0 | U96: 0 | V96: 0 | W96: 0 | X96: 0 | Y96: 135.2273369 | Z96: 213.853387 | AA96: 328.9304165 | AB96: 492.0714877 | AC96: 715.95979 | AD96: 1013.177011 | AE96: 1394.499255 | AF96: 1866.755805 | AG96: 2430.4853 | AH96: 3077.760003 | AI96: 3790.641985 | AJ96: 4540.744337 | AK96: 5290.267053 | AL96: 5994.657927 | AM96: 6606.744026 | AN96: 7081.851564 | AO96: 7383.162431 | AP96: 7486.421773 | AQ96: 7383.162431 | AR96: 7081.851564 | AS96: 6606.744026 | AT96: =AT95-AT97 -> 5994.657927 | AU96: 5290.267053 | AV96: 4540.744337 | AW96: 3790.641985 | AX96: 3077.760003 | AY96: 2430.4853 | AZ96: 1866.755805 | BA96: 1394.499255 | BB96: 1013.177011 | BC96: 715.95979 | BD96: 492.0714877 | BE96: 328.9304165 | BF96: 213.853387 | BG96: 135.2273369 | BH96: 0 | BI96: 0 | BJ96: 0 | BK96: 0 | BL96: 0 | BM96: 0 | BN96: 0 | BO96: 0 | BP96: 0 | BQ96: 0 | BR96: 0 | BS96: 0 | BT96: 0 | BU96: 0 | BV96: 0 | BW96: 0 | BX96: 0 | BY96: 0 | BZ96: =BZ95-BZ97 -> 0 | CA96: 0 | CB96: 0 | CC96: 0 | CD96: 0 | CE96: 0 | CF96: 0 | CG96: 0 | CH96: 0 | CI96: 0 | CJ96: 0 | CK96: 0 | CL96: 0 | CM96: 0 | CN96: 0 | CO96: 0 | CP96: 0 | CQ96: 0 | CR96: 0 | CS96: 0 | CT96: 0 | CU96: 0 | CV96: 0 | CW96: 0 | CX96: 0 | CY96: 0 | CZ96: 0 | DA96: 0 | DB96: 0 | DC96: 0 | DD96: 0 | DE96: 0 | DF96: =DF95-DF97 -> 0 | DG96: 0 | DH96: 0 | DI96: 0 | DJ96: 0 | DK96: 0 | DL96: 0 | DM96: 0 | DN96: 0 | DO96: 0 | DP96: 0 | DQ96: 0 | DR96: 0 | DS96: 0 | DT96: 0 | DU96: 0 | DV96: 0 | DW96: 0 | DX96: 0 | DY96: 0 | DZ96: 0 | EA96: 0 | EB96: 0 | EC96: 0 | ED96: 0 | EE96: 0 | EF96: 0 | EG96: 0 | EH96: 0 | EI96: 0 | EJ96: 0 | EK96: 0 | EL96: =EL95-EL97 -> 0 | EM96: 0 | EN96: 0 | EO96: 0 | EP96: 0 | EQ96: 0 | ER96: 0 | ES96: 0 | ET96: 0 | EU96: 0 | EV96: 0 | EW96: 0 | EX96: 0 | EY96: 0 | EZ96: 0 | FA96: 0 | FB96: 0 | FC96: 0 | FD96: 0 | FE96: 0 | FF96: 0 | FG96: 0
D97: EPC Fee - Equity Only | G97: =1-G16 -> 0 | K97: =SUM(N97:FG97) -> 0 | N97: =N95*$G$97 -> 0 | O97: =O95*$G$97 -> 0 | P97: 0 | Q97: 0 | R97: 0 | S97: 0 | T97: 0 | U97: 0 | V97: 0 | W97: 0 | X97: 0 | Y97: 0 | Z97: 0 | AA97: 0 | AB97: 0 | AC97: 0 | AD97: 0 | AE97: 0 | AF97: 0 | AG97: 0 | AH97: 0 | AI97: 0 | AJ97: 0 | AK97: 0 | AL97: 0 | AM97: 0 | AN97: 0 | AO97: 0 | AP97: 0 | AQ97: 0 | AR97: 0 | AS97: 0 | AT97: 0 | AU97: 0 | AV97: 0 | AW97: 0 | AX97: 0 | AY97: 0 | AZ97: 0 | BA97: 0 | BB97: 0 | BC97: 0 | BD97: 0 | BE97: 0 | BF97: 0 | BG97: 0 | BH97: 0 | BI97: 0 | BJ97: 0 | BK97: 0 | BL97: 0 | BM97: 0 | BN97: 0 | BO97: 0 | BP97: 0 | BQ97: 0 | BR97: 0 | BS97: 0 | BT97: 0 | BU97: 0 | BV97: 0 | BW97: 0 | BX97: 0 | BY97: 0 | BZ97: 0 | CA97: =CA95*$G$97 -> 0 | CB97: 0 | CC97: 0 | CD97: 0 | CE97: 0 | CF97: 0 | CG97: 0 | CH97: 0 | CI97: 0 | CJ97: 0 | CK97: 0 | CL97: 0 | CM97: 0 | CN97: 0 | CO97: 0 | CP97: 0 | CQ97: 0 | CR97: 0 | CS97: 0 | CT97: 0 | CU97: 0 | CV97: 0 | CW97: 0 | CX97: 0 | CY97: 0 | CZ97: 0 | DA97: 0 | DB97: 0 | DC97: 0 | DD97: 0 | DE97: 0 | DF97: 0 | DG97: 0 | DH97: 0 | DI97: 0 | DJ97: 0 | DK97: 0 | DL97: 0 | DM97: 0 | DN97: 0 | DO97: 0 | DP97: 0 | DQ97: 0 | DR97: 0 | DS97: 0 | DT97: 0 | DU97: 0 | DV97: 0 | DW97: 0 | DX97: 0 | DY97: 0 | DZ97: 0 | EA97: 0 | EB97: 0 | EC97: 0 | ED97: 0 | EE97: 0 | EF97: 0 | EG97: 0 | EH97: 0 | EI97: 0 | EJ97: 0 | EK97: 0 | EL97: 0 | EM97: =EM95*$G$97 -> 0 | EN97: 0 | EO97: 0 | EP97: 0 | EQ97: 0 | ER97: 0 | ES97: 0 | ET97: 0 | EU97: 0 | EV97: 0 | EW97: 0 | EX97: 0 | EY97: 0 | EZ97: 0 | FA97: 0 | FB97: 0 | FC97: 0 | FD97: 0 | FE97: 0 | FF97: 0 | FG97: 0
